Workbook

Sheet dummy_database (hidden)
D1: Moisture (%) | E1: Particle size (mm) | F1: C (%) | G1: H (%) | H1: O (%) | I1: N (%) | J1: S (%) | K1: CO (%VOL) | L1: CO2 (%VOL) | M1: H2 (%VOL) | N1: N2 (%VOL) | O1: CH4 (%vol) | P1: LHV (MJ/m3)
A2: =title88 -> barley | B2: =title443 -> straw | C2: =+A2&B2 -> barleystraw | D2: 0.11 | E2: 38 | F2: 0.468 | G2: 0.0553 | H2: 0.419 | I2: 0.0041 | J2: =100%-SUM(F2:I2) -> 0.0536 | K2: =($M$34*$F2*100+$N$34*$G2*100+$O$34*$H2*100+$P$34)/100 -> 0.217705189 | L2: =($M$35*$F2*100+$N$35*$G2*100+$O$35*$H2*100+$P$35)/100 -> 0.1944819575 | M2: =($M$33*$F2*100+$N$33*$G2*100+$O$33*$H2*100+$P$33)/100 -> 0.1505676068 | N2: 0.4 | O2: =1-SUM(K2:N2) -> 0.03724524675 | P2: =+($M$46*$K2+$M$47*$M2+$M$48*$O2)/($K2*$M$39+$L2*$M$38+$M2*$M$40+$N2*$M$37+$O2*$M$41) -> 4.930959022
A3: =title89 -> cacao | B3: =title444 -> pods | C3: cacaopods | D3: 0.08 | E3: 44 | F3: 0.5062375 | G3: 0.0671125 | H3: 0.3874125 | I3: 0.0176125 | J3: =100%-SUM(F3:I3) -> 0.021625 | K3: =($M$34*$F3*100+$N$34*$G3*100+$O$34*$H3*100+$P$34)/100 -> 0.1976672241 | L3: =($M$35*$F3*100+$N$35*$G3*100+$O$35*$H3*100+$P$35)/100 -> 0.167975047 | M3: =($M$33*$F3*100+$N$33*$G3*100+$O$33*$H3*100+$P$33)/100 -> 0.1687662094 | N3: 0.4 | O3: =1-SUM(K3:N3) -> 0.06559151947 | P3: =+$M$46*$K3+$M$47*$M3+$M$48*$O3 -> 6.644581862
A4: =title90 -> cassava | B4: =title79 -> stalk | C4: cassavastalk | D4: 0.12 | E4: 77 | F4: 0.537 | G4: 0.071 | H4: 0.379 | I4: 0.012 | J4: 0.001 | K4: 0.200892509 | L4: 0.1455489953 | M4: 0.1809698038 | N4: 0.4 | O4: 0.07258869182 | P4: 7.066297682
A5: =title91 -> coconut | B5: =title80 -> fronds | C5: coconutfronds | D5: 0.05 | E5: 36 | F5: 0.5062375 | G5: 0.0671125 | H5: 0.3874125 | I5: 0.0176125 | J5: 0.021625 | K5: 0.1976672241 | L5: 0.167975047 | M5: 0.1687662094 | N5: 0.4 | O5: 0.06559151947 | P5: 6.644581862
A6: =title91 -> coconut | B6: =title81 -> husk | C6: coconuthusk | D6: 0.0667 | E6: 56 | F6: 0.3949 | G6: 0.06068 | H6: 0.53979 | I6: 0.00399 | J6: 0.00064 | K6: 0.2630723453 | L6: 0.07931107215 | M6: 0.1607291237 | N6: 0.4 | O6: 0.09688745884 | P6: 8.503084201
A7: =title91 -> coconut | B7: =title82 -> shell | C7: coconutshell | D7: 0.057 | E7: 77 | F7: 0.539 | G7: 0.057 | H7: 0.3944 | I7: 0.001 | J7: 0.0002 | K7: 0.230815419 | L7: 0.1734227036 | M7: 0.1694237631 | N7: 0.4 | O7: 0.02633811432 | P7: 5.664013037
A8: =title92 -> coffee | B8: =title81 -> husk | C8: coffeehusk | D8: 0.0766 | E8: 56 | F8: 0.5062375 | G8: 0.0671125 | H8: 0.3874125 | I8: 0.0176125 | J8: 0.021625 | K8: 0.1976672241 | L8: 0.167975047 | M8: 0.1687662094 | N8: 0.4 | O8: 0.06559151947 | P8: 6.644581862
A9: =title93 -> cotton | B9: =title445 -> hull | C9: cottonhull | D9: 0.09 | E9: 49 | F9: 0.4643 | G9: 0.0618 | H9: 0.4262 | I9: 0.008 | J9: 0.0397 | K9: 0.2127591678 | L9: 0.166322964 | M9: 0.1582957752 | N9: 0.4 | O9: 0.06262209302 | P9: 6.616401239
A10: =title93 -> cotton | B10: =title79 -> stalk | C10: cottonstalk | D10: 0.0766 | E10: 40 | F10: 0.461 | G10: 0.0685 | H10: 0.4335 | I10: 0.0109 | J10: 0.0026 | K10: 0.2078119517 | L10: 0.1371199746 | M10: 0.1663972165 | N10: 0.4 | O10: 0.08867085721 | P10: 7.573297496
A11: =title94 -> groundnut | B11: =title82 -> shell | C11: groundnutshell | D11: 0.082 | E11: 59 | F11: 0.5062375 | G11: 0.0671125 | H11: 0.3874125 | I11: 0.0176125 | J11: 0.021625 | K11: 0.1976672241 | L11: 0.167975047 | M11: 0.1687662094 | N11: 0.4 | O11: 0.06559151947 | P11: 6.644581862
A12: =title95 -> maize | B12: =title85 -> cob | C12: maizecob | D12: 0.15 | E12: 59 | F12: 0.4658 | G12: 0.0587 | H12: 0.4545 | I12: 0.0047 | J12: 0.0001 | K12: 0.237614857 | L12: 0.1424353657 | M12: 0.1617055573 | N12: 0.4 | O12: 0.05824422005 | P12: 6.809339739
A13: =title95 -> maize | B13: =title81 -> husk | C13: maizehusk | D13: 0.1111 | E13: 38 | F13: 0.4627 | G13: 0.0669 | H13: 0.4543 | I13: 0.016 | J13: 0.0001 | K13: 0.2254834441 | L13: 0.1168967709 | M13: 0.1698519743 | N13: 0.4 | O13: 0.08776781074 | P13: 7.800595144
A14: =title95 -> maize | B14: =title446 -> stover | C14: maizestover | D14: 0.05 | E14: 41 | F14: 0.4365 | G14: 0.0556 | H14: 0.4331 | I14: 0.0061 | J14: 0.0001 | K14: 0.2128024951 | L14: 0.1964992985 | M14: 0.1441021917 | N14: 0.4 | O14: 0.04659601465 | P14: 5.891342214
A15: =title96 -> millet | B15: =title443 -> straw | C15: milletstraw | D15: 0.14 | E15: 40 | F15: 0.411 | G15: 0.08 | H15: 0.411 | I15: 0.009 | J15: 0.001 | K15: 0.1538495357 | L15: 0.1560782605 | M15: 0.158315252 | N15: 0.4 | O15: 0.1317569519 | P15: 8.349376223
A16: =title97 -> oat | B16: =title443 -> straw | C16: oatstraw | D16: 0.092 | E16: 68 | F16: 0.468 | G16: 0.0582 | H16: 0.4698 | I16: 0.0031 | J16: 0.0009 | K16: 0.2501813319 | L16: 0.1246785738 | M16: 0.1653053662 | N16: 0.4 | O16: 0.059834728 | P16: 7.063135464
A17: =title98 -> oilpalm | B17: =title447 -> empty bunches | C17: oilpalmempty bunches | D17: 0.024 | E17: 25 | F17: 0.5378 | G17: 0.0437 | H17: 0.415 | I17: 0.0035 | J17: 0 | K17: 0.2620639202 | L17: 0.1947885257 | M17: 0.1588224276 | N17: 0.4 | O17: -0.01567487353 | P17: 4.440244897
A18: =title98 -> oilpalm | B18: =title80 -> fronds | C18: oilpalmfronds | D18: 0.0533 | E18: 80 | F18: 0.4843 | G18: 0.11 | H18: 0.40207 | I18: 0.00339 | J18: 0.00024 | K18: 0.1427639045 | L18: 0.01943228571 | M18: 0.2131107254 | N18: 0.4 | O18: 0.2246930845 | P18: 12.12312238
A19: =title98 -> oilpalm | B19: =title82 -> shell | C19: oilpalmshell | D19: 0.0811 | E19: 61 | F19: 0.4444 | G19: 0.0501 | H19: 0.347 | I19: 0.0028 | J19: 0.1557 | K19: 0.1621653311 | L19: 0.3118472809 | M19: 0.1209747495 | N19: 0.4 | O19: 0.005012638499 | P19: 3.517165449
A20: =title99 -> rice | B20: =title443 -> straw | C20: ricestraw | D20: 0.0811 | E20: 52 | F20: 0.392 | G20: 0.051 | H20: 0.358 | I20: 0.006 | J20: 0.001 | K20: 0.1446158009 | L20: 0.3285596679 | M20: 0.1078503366 | N20: 0.4 | O20: 0.01897419454 | P20: 3.655433858
A21: =title99 -> rice | B21: =title81 -> husk | C21: ricehusk | D21: 0.09 | E21: 30 | F21: 0.385 | G21: 0.057 | H21: 0.398 | I21: 0.005 | J21: 0 | K21: 0.1621664775 | L21: 0.265410795 | M21: 0.1213930365 | N21: 0.4 | O21: 0.05102969091 | P21: 5.169066042
A22: =title442 -> rye | B22: =title443 -> straw | C22: ryestraw | D22: 0.15 | E22: 77 | F22: 0.478 | G22: 0.051 | H22: 0.389 | I22: 0.001 | J22: 0 | K22: 0.2064812997 | L22: 0.2381992571 | M22: 0.1421409489 | N22: 0.4 | O22: 0.01317849435 | P22: 4.594362627
A23: =title100 -> sorghum | B23: =title87 -> straw/stalk | C23: sorghumstraw/stalk | D23: 0.0564 | E23: 51 | F23: 0.458 | G23: 0.053 | H23: 0.423 | I23: 0.01 | J23: 0.001 | K23: 0.2188925894 | L23: 0.203779613 | M23: 0.1457273488 | N23: 0.4 | O23: 0.03160044874 | P23: 5.448625324
A24: =title101 -> soybean | B24: =title443 -> straw | C24: soybeanstraw | D24: 0.188 | E24: 58 | F24: 0.457 | G24: 0.066 | H24: 0.47 | I24: 0.006 | J24: 0.001 | K24: 0.2351966893 | L24: 0.1049563278 | M24: 0.1705890276 | N24: 0.4 | O24: 0.08925795532 | P24: 7.984215681
A25: =title101 -> soybean | B25: =title444 -> pods | C25: soybeanpods | D25: 0.132 | E25: 38 | F25: 0.425 | G25: 0.065 | H25: 0.49 | I25: 0.016 | J25: 0.003 | K25: 0.2359415706 | L25: 0.1047107 | M25: 0.1638452788 | N25: 0.4 | O25: 0.09550245054 | P25: 8.144996003
A26: =title102 -> sugarcane | B26: =title449 -> tops/leaves | C26: sugarcanetops/leaves | D26: 0.135 | E26: 23 | F26: 0.3975 | G26: 0.0555 | H26: 0.4682 | I26: 0.0017 | J26: 0.001 | K26: 0.2199147706 | L26: 0.1797511888 | M26: 0.1395614281 | N26: 0.4 | O26: 0.0607726125 | P26: 6.439892918
A27: =title102 -> sugarcane | B27: =title448 -> baggase | C27: sugarcanebaggase | D27: 0.15 | E27: 51 | F27: 0.449 | G27: 0.054 | H27: 0.396 | I27: 0.004 | J27: 0.0001 | K27: 0.1941984405 | L27: 0.2379157421 | M27: 0.1378831815 | N27: 0.4 | O27: 0.03000263598 | P27: 4.996344759
A28: =title104 -> wheat | B28: =title443 -> straw | C28: wheatstraw | D28: 0.0863 | E28: 57 | F28: 0.434 | G28: 0.06 | H28: 0.445 | I28: 0.008 | J28: 0.001 | K28: 0.2144646409 | L28: 0.1691359541 | M28: 0.1509246256 | N28: 0.4 | O28: 0.0654747794 | P28: 6.661145072
A29: =title59 -> Briquettes/Pellets | C29: Briquettes/Pellets | D29: 0.15 | E29: N/A | F29: =+AVERAGE(48.7%,51.5%,53.1%) -> 0.511 | G29: =+AVERAGE(6.2%,7.8%,8.1%) -> 0.07366666667 | H29: =+AVERAGE(26.16%,21.51%,35.75%) -> 0.2780666667 | I29: =+AVERAGE(0.71%,0.66%,0.93%) -> 0.007666666667 | J29: =+AVERAGE(0.02%,0.03%,0.02%) -> 0.0002333333333 | K29: 0.1134935345 | L29: 0.2720033423 | M29: 0.1528718043 | N29: 0.4 | O29: =1-SUM(K29:N29) -> 0.06163131879 | P29: 5.272148054
A30: =title47 -> Forest Harvest. Res. | C30: Forest Harvest. Res. | D30: 0.05 | E30: 60 | F30: =+AVERAGE(48.7%,51.5%,53.1%) -> 0.511 | G30: =+AVERAGE(6.2%,7.8%,8.1%) -> 0.07366666667 | H30: =+AVERAGE(26.16%,21.51%,35.75%) -> 0.2780666667 | I30: =+AVERAGE(0.71%,0.66%,0.93%) -> 0.007666666667 | J30: =+AVERAGE(0.02%,0.03%,0.02%) -> 0.0002333333333 | K30: 0.1134935345 | L30: 0.2720033423 | M30: 0.1528718043 | N30: 0.4 | O30: =1-SUM(K30:N30) -> 0.06163131879 | P30: 5.272148054
A31: =title48 -> Wood Proc.Res. | C31: Wood Proc.Res. | D31: 0.15 | E31: 40 | F31: 0.469 | G31: 0.052 | H31: 0.378 | I31: 0.001 | J31: 0.0004 | K31: 0.1931915974 | L31: 0.2534368815 | M31: 0.1379166157 | N31: 0.4 | O31: =1-SUM(K31:N31) -> 0.01545490538 | P31: 4.463207528
M32: M1(C) | N32: M2 (H) | O32: M3 (O) | P32: B
L33: YH2(%VOL) | M33: 0.3171765534 | N33: 1.118891732 | O33: 0.226239634 | P33: -15.45401396
L34: YCO(%VOL) | M34: 0.4624346884 | N34: -1.287232901 | O34: 0.7127779214 | P34: -22.61842148
L35: YCO2(%VOL) | M35: -0.6249367209 | N35: -3.379528035 | O35: -1.181156543 | P35: 116.8744835
L37: Density N2 | M37: 1.2506 | N37: Kg/m3
L38: Density CO2 | M38: 1.87 | N38: Kg/m3
L39: Density CO | M39: 1.145 | N39: Kg/m3
L40: Density H2 | M40: 0.0899 | N40: Kg/m3
L41: Density CH4 | M41: 0.717 | N41: Kg/m3
L42: Density Syngas | M42: 0.95 | N42: Kg/m3
L43: Calorific Value | M43: 6 | N43: MJ/m3
L45: LHV | M45: (MJ/m3) | N45: syngas yield | O45: (m3/kg biomass) | P45: =AVERAGE(1.87,2.12,2.15,2.24,2.41) -> 2.158
L46: CO | M46: 12.6
L47: H2 | M47: 10.7
L48: CH4 | M48: 35.8
L49: Bassed on | M49: Pengmei, L., Y. Zhenhong, et al. (2007). "Bio-syngas production from biomass catalytic gasification." Energy Conversion and Management 48(4): 1132-1139.
M50: Gautam, G., S. Adhikari, et al. (2010). "Estimation of biomass synthesis gas composition using equilibrium modeling." Energy and Fuels 24(4): 2692-2698

Sheet GASIFICACONVERSION (hidden)
B2: Power conversion factor for biomass gasification project
B4: Water consumption | C4: kWh per m3
B5: Specific Water consumption (kWh per m3) | C5: =10872.73 -> 10872.73
B7: Chemical consumption | C7: kWh per kg
B8: Specific Chemical (Catalyst) consumption (kWh per kg) | C8: 0
B10: Diesel consumption
B11: Specific Diesel/fuel oil consumption (kWh per liter) No Syngas at rate capacity | C11: =1/0.3 -> 3.333333333 | D11: Default value for 100% diesel
B13: Pure O2/steam consumption
B14: Specific Pure O2 (Nm3 per kg of biomass) | C14: =1.8/7.22 -> 0.2493074792
B15: Specific Steam (kg per kg of biomass) | C15: 0.61

Sheet label (hidden)
B2: Selection | C2: =VLOOKUP(START!B2,$A$3:$C$5,3,FALSE) -> 1
A3: EN | B3: English | C3: 1
A4: FR | B4: French | C4: 2
A5: ES | B5: Spanish | C5: 3
A7: ID | B7: English | C7: French | D7: Spanish | E7: Typeof | F7: Ref | G7: Name
A8: 1 | B8: 1 | C8: 2 | D8: 3
A9: 2 | B9: Gasification Process Description | C9: Description du Processus de Gazéification | D9: Descripción del Proceso de Gasificación | E9: label | F9: =HLOOKUP($C$2,$B$8:$D9,$A9,FALSE) -> Gasification Process Description | G9: =$E9&$A9 -> label2
A10: 3 | B10: Data Entry | C10: Saisie de Données | D10: Datos de Entrada | E10: label | F10: =HLOOKUP($C$2,$B$8:$D10,$A10,FALSE) -> Data Entry | G10: label3
A11: 4 | B11: NEXT >> Energy Demand | C11: SUIVANT >> Demande d'Énergie | D11: SIGUIENTE >> Demanda de Energía | E11: label | F11: =HLOOKUP($C$2,$B$8:$D11,$A11,FALSE) -> NEXT >> Energy Demand | G11: label4
A12: 5 | B12: << BACK Start | C12: << RETOUR Début | D12: << VOLVER Inicio | E12: label | F12: =HLOOKUP($C$2,$B$8:$D12,$A12,FALSE) -> << BACK Start | G12: label5
A13: 6 | B13: Energy Demand | C13: Demande d'Énergie | D13: Demanda de Energía | E13: label | F13: =HLOOKUP($C$2,$B$8:$D13,$A13,FALSE) -> Energy Demand | G13: label6
A14: 7 | B14: NEXT >> Data Entry | C14: SUIVANT >> Saisie de Données | D14: SIGUIENTE >> Datos de Entrada | E14: label | F14: =HLOOKUP($C$2,$B$8:$D14,$A14,FALSE) -> NEXT >> Data Entry | G14: label7
A15: 8 | B15: Clear data | C15: Effacer les données | D15: Borrar datos | E15: label | F15: =HLOOKUP($C$2,$B$8:$D15,$A15,FALSE) -> Clear data | G15: label8
A16: 9 | B16: Load Default Values | C16: Charger les Valeurs par Défaut | D16: Cargar Valores por Defecto | E16: label | F16: =HLOOKUP($C$2,$B$8:$D16,$A16,FALSE) -> Load Default Values | G16: label9
A17: 10 | B17: Production Cost 1 | C17: Coût de Production 1 | D17: Costo de Producción 1 | E17: label | F17: =HLOOKUP($C$2,$B$8:$D17,$A17,FALSE) -> Production Cost 1 | G17: label10
A18: 11 | B18: Production Cost 2 | C18: Coût de Production 2 | D18: Costo de Producción 2 | E18: label | F18: =HLOOKUP($C$2,$B$8:$D18,$A18,FALSE) -> Production Cost 2 | G18: label11
A19: 12 | B19: Production Cost 3 | C19: Coût de Production 3 | D19: Costo de Producción 3 | E19: label | F19: =HLOOKUP($C$2,$B$8:$D19,$A19,FALSE) -> Production Cost 3 | G19: label12
A20: 13 | B20: Production Cost 4 | C20: Coût de Production 4 | D20: Costo de Producción 4 | E20: label | F20: =HLOOKUP($C$2,$B$8:$D20,$A20,FALSE) -> Production Cost 4 | G20: label13
A21: 14 | B21: Storage Calculator 1 | C21: Calculateur de Stockage 1 | D21: Calculadora de Almacenamiento 1 | E21: label | F21: =HLOOKUP($C$2,$B$8:$D21,$A21,FALSE) -> Storage Calculator 1 | G21: label14
A22: 15 | B22: Storage Calculator 2 | C22: Calculateur de Stockage 2 | D22: Calculadora de Almacenamiento 2 | E22: label | F22: =HLOOKUP($C$2,$B$8:$D22,$A22,FALSE) -> Storage Calculator 2 | G22: label15
A23: 16 | B23: Storage Calculator 3 | C23: Calculateur de Stockage 3 | D23: Calculadora de Almacenamiento 3 | E23: label | F23: =HLOOKUP($C$2,$B$8:$D23,$A23,FALSE) -> Storage Calculator 3 | G23: label16
A24: 17 | B24: Storage Calculator 4 | C24: Calculateur de Stockage 4 | D24: Calculadora de Almacenamiento 4 | E24: label | F24: =HLOOKUP($C$2,$B$8:$D24,$A24,FALSE) -> Storage Calculator 4 | G24: label17
A25: 18 | B25: Price Calculator 1 | C25: Calculateur de Prix 1 | D25: Calculadora de Precio 1 | E25: label | F25: =HLOOKUP($C$2,$B$8:$D25,$A25,FALSE) -> Price Calculator 1 | G25: label18
A26: 19 | B26: Price Calculator 2 | C26: Calculateur de Prix 2 | D26: Calculadora de Precio 2 | E26: label | F26: =HLOOKUP($C$2,$B$8:$D26,$A26,FALSE) -> Price Calculator 2 | G26: label19
A27: 20 | B27: Price Calculator 3 | C27: Calculateur de Prix 3 | D27: Calculadora de Precio 3 | E27: label | F27: =HLOOKUP($C$2,$B$8:$D27,$A27,FALSE) -> Price Calculator 3 | G27: label20
A28: 21 | B28: Price Calculator 4 | C28: Calculateur de Prix 4 | D28: Calculadora de Precio 4 | E28: label | F28: =HLOOKUP($C$2,$B$8:$D28,$A28,FALSE) -> Price Calculator 4 | G28: label21
A29: 22 | B29: Electricity Price Calculator | C29: Calculateur de Prix d’Électricité | D29: Definición del precio de electricidad | E29: label | F29: =HLOOKUP($C$2,$B$8:$D29,$A29,FALSE) -> Electricity Price Calculator | G29: label22
A30: 23 | B30: NEXT >> Summary of Results Comparative | C30: SUIVANT >> Résumé des Résultats Comparatifs | D30: SIGUIENTE >> Resumen de Resultados Comparativos | E30: label | F30: =HLOOKUP($C$2,$B$8:$D30,$A30,FALSE) -> NEXT >> Summary of Results Comparative | G30: label23
A31: 24 | B31: NEXT >> Summary of Results by Feedstock | C31: SUIVANT >> Résumé des Résultats par Matière Première | D31: SIGUIENTE >> Resumen de Resultados por Materia Prima | E31: label | F31: =HLOOKUP($C$2,$B$8:$D31,$A31,FALSE) -> NEXT >> Summary of Results by Feedstock | G31: label24
A32: 25 | B32: << BACK Data Entry | C32: << RETOUR Saisie de Données | D32: << VOLVER Datos de Entrada | E32: label | F32: =HLOOKUP($C$2,$B$8:$D32,$A32,FALSE) -> << BACK Data Entry | G32: label25
A33: 26 | B33: << BACK Production Cost 1 | C33: << RETOUR Coût de Production 1 | D33: << VOLVER Costo de Producción 1 | E33: label | F33: =HLOOKUP($C$2,$B$8:$D33,$A33,FALSE) -> << BACK Production Cost 1 | G33: label26
A34: 27 | B34: Hide this sheet | C34: Cachez cette feuille | D34: Ocultar esta Hoja | E34: label | F34: =HLOOKUP($C$2,$B$8:$D34,$A34,FALSE) -> Hide this sheet | G34: label27
A35: 28 | B35: << BACK Production Cost 2 | C35: << RETOUR Coût de Production 2 | D35: << VOLVER Costo de Producción 2 | E35: label | F35: =HLOOKUP($C$2,$B$8:$D35,$A35,FALSE) -> << BACK Production Cost 2 | G35: label28
A36: 29 | B36: << BACK Production Cost 3 | C36: << RETOUR Coût de Production 3 | D36: << VOLVER Costo de Producción 3 | E36: label | F36: =HLOOKUP($C$2,$B$8:$D36,$A36,FALSE) -> << BACK Production Cost 3 | G36: label29
A37: 30 | B37: << BACK Production Cost 4 | C37: << RETOUR Coût de Production 4 | D37: << VOLVER Costo de Producción 4 | E37: label | F37: =HLOOKUP($C$2,$B$8:$D37,$A37,FALSE) -> << BACK Production Cost 4 | G37: label30
A38: 31 | B38: Create a PDF report | C38: Créer un rapport PDF | D38: Crear un Reporte en PDF | E38: label | F38: =HLOOKUP($C$2,$B$8:$D38,$A38,FALSE) -> Create a PDF report | G38: label31
A39: 32 | B39: Financial Analysis 10 kW | C39: Analyse Financière de 10 kW | D39: Análisis Financiero 10 kW | E39: label | F39: =HLOOKUP($C$2,$B$8:$D39,$A39,FALSE) -> Financial Analysis 10 kW | G39: label32
A40: 33 | B40: Financial Analysis 40 kW | C40: Analyse Financière de 40 kW | D40: Análisis Financiero 40 kW | E40: label | F40: =HLOOKUP($C$2,$B$8:$D40,$A40,FALSE) -> Financial Analysis 40 kW | G40: label33
A41: 34 | B41: Financial Analysis 100 kW | C41: Analyse Financière de 100 kW | D41: Análisis Financiero 100 kW | E41: label | F41: =HLOOKUP($C$2,$B$8:$D41,$A41,FALSE) -> Financial Analysis 100 kW | G41: label34

Sheet title (hidden)
B2: Selection | C2: =VLOOKUP(START!B2,$A$3:$C$5,3,FALSE) -> 1
A3: EN | B3: English | C3: 1
A4: FR | B4: French | C4: 2
A5: ES | B5: Spanish | C5: 3
A7: ID | B7: English | C7: French | D7: Spanish | E7: Typeof | F7: Ref | G7: Name
A8: 1 | B8: 1 | C8: 2 | D8: 3
A9: 2 | B9: RAPID APPRAISAL TOOL FOR RURAL ELECTRIFICATION – GASIFICATION | C9: OUTIL D'ÉVALUATION RAPIDE POUR L’ÉLECTRIFICATION RURALE – GAZÉFICATION | D9: HERRAMIENTA DE EVALUACIÓN RÁPIDA PARA ELECTRIFICACIÓN RURAL – GASIFICACIÓN | E9: title | F9: =HLOOKUP($C$2,$B$8:$D9,$A9,FALSE) -> RAPID APPRAISAL TOOL FOR RURAL ELECTRIFICATION – GASIFICATION | G9: =$E9&$A9 -> title2
A10: 3 | B10: Disclaimer | C10: Déni de responsabilité | D10: Descargo de Responsabilidad | E10: title | F10: =HLOOKUP($C$2,$B$8:$D10,$A10,FALSE) -> Disclaimer | G10: title3
A11: 4 | B11: FAO declines all responsibility for errors or deficiencies in the database or software or in the documentation accompanying it, for program maintenance and upgrading as well as for any damage that may arise from them. FAO also declines any responsibility for updating the data and assumes no responsibility for errors and omissions in the data provided. Users are, however, kindly asked to report any errors or deficiencies in this product to FAO. The choices of calculation made in this tool are those of the author(s) and do not necessarily reflect the views and choices of the Food and Agriculture Organization of the United Nations. | C11: La FAO décline toute responsabilité quant aux erreurs ou défauts des textes du présent site et des bases de données y afférentes, ainsi que pour les dommages pouvant en résulter. La FAO décline également toute responsabilité quant à la mise à jour des données et se dégage de toute responsabilité quant aux erreurs ou omissions concernant les données fournies. Les utilisateurs sont toutefois invités à signaler toute erreur ou lacune de ce produit à la FAO. Les choix des calculs faits dans le présent outil sont celles du/des auteur(s) et ne reflètent pas nécessairement les choix et opinions de l’Organisation des Nations Unies pour l’alimentation et l’agriculture (FAO). | D11: La FAO declina cualquier responsabilidad por errores u otros defectos del banco de datos, programa o de la documentación que los acompaña, o por cualquier daño derivado de ellos, así como por el mantenimiento y el mejoramiento de los programas. La FAO declina asimismo cualquier responsabilidad por la actualización de los datos, o por errores u omisiones en los datos que se han proporcionado. Se pide no obstante a los usuarios que señalen eventuales errores o defectos de este producto a la FAO. La elección de los cálculos presente en esta herramienta son las del/de los autor(es) y no reflejan necesariamente las opiniones y elecciones de la Organización de las Naciones Unidas para la Agricultura y la Alimentación. | E11: title | F11: =HLOOKUP($C$2,$B$8:$D11,$A11,FALSE) -> FAO declines all responsibility for errors or deficiencies in the database or software or in the documentation accompanying it, for program maintenance and upgrading as well as for any damage that may arise from them. FAO also declines any responsibility for updating the data and assumes no responsibility for errors and omissions in the data provided. Users are, however, kindly asked to report any errors or deficiencies in this product to FAO. The choices of calculation made in this tool are those of the author(s) and do not necessarily reflect the views and choices of the Food and Agriculture Organization of the United Nations. | G11: title4
A12: 5 | B12: BIOMASS GASIFICATION SYSTEM FOR RURAL ELECTRIFICATION | C12: SYSTÈME DE GAZEIFICATION DE BIOMASSE POUR L’ÉLECTRIFICATION RURALE | D12: SISTEMA DE GASIFICACIÓN DE BIOMASA PARA ELECTRIFICACIÓN RURAL | E12: title | F12: =HLOOKUP($C$2,$B$8:$D12,$A12,FALSE) -> BIOMASS GASIFICATION SYSTEM FOR RURAL ELECTRIFICATION | G12: title5
A13: 6 | B13: Agricultural residues in the field (spread or collected) | C13: Résidus agricoles dans le champs (réparties ou collectées) | D13: Residuos agrícolas en el campo (expandido o recogido) | E13: title | F13: =HLOOKUP($C$2,$B$8:$D13,$A13,FALSE) -> Agricultural residues in the field (spread or collected) | G13: title6
A14: 7 | B14: Agricultural residues from industry (processing plant) | C14: Résidus agricoles de l'industrie (usine de traitement) | D14: Residuos agrícolas de la industria (planta de procesamiento) | E14: title | F14: =HLOOKUP($C$2,$B$8:$D14,$A14,FALSE) -> Agricultural residues from industry (processing plant) | G14: title7
A15: 8 | B15: Forestry and dedicated woodfuel plantation | C15: Des forêts et de plantations de bois de feu dédié | D15: Silvicultura y plantaciones de madera dedicadas a energía | E15: title | F15: =HLOOKUP($C$2,$B$8:$D15,$A15,FALSE) -> Forestry and dedicated woodfuel plantation | G15: title8
A16: 9 | B16: Forestry and plantation residues | C16: Résidus forestiers et de plantation | D16: Residuos forestales y de plantación | E16: title | F16: =HLOOKUP($C$2,$B$8:$D16,$A16,FALSE) -> Forestry and plantation residues | G16: title9
A17: 10 | B17: Wood products industrial residues (processing plant) | C17: Produits du bois résidus industriels (usine de traitement) | D17: Residuos industriales de productos de madera (planta de procesamiento) | E17: title | F17: =HLOOKUP($C$2,$B$8:$D17,$A17,FALSE) -> Wood products industrial residues (processing plant) | G17: title10
A18: 11 | B18: Distribution line to households (isolated grid connection) | C18: Ligne de distribution aux ménages (raccordement au réseau isolé) | D18: Línea de distribución a los hogares (conexión a la red aislada) | E18: title | F18: =HLOOKUP($C$2,$B$8:$D18,$A18,FALSE) -> Distribution line to households (isolated grid connection) | G18: title11
A19: 12 | B19: Biomass residues collection & transportation | C19: Collecte des résidus de biomasse et de transport | D19: Recolección y Transporte de Residuos de Biomasa | E19: title | F19: =HLOOKUP($C$2,$B$8:$D19,$A19,FALSE) -> Biomass residues collection & transportation | G19: title12
A20: 13 | B20: Biomass stock pile | C20: Stock de biomasse | D20: Almacenamiento de Biomasa | E20: title | F20: =HLOOKUP($C$2,$B$8:$D20,$A20,FALSE) -> Biomass stock pile | G20: title13
A21: 14 | B21: Pre-treatment | C21: Pré-traitement | D21: Pre-tratamiento | E21: title | F21: =HLOOKUP($C$2,$B$8:$D21,$A21,FALSE) -> Pre-treatment | G21: title14
A22: 15 | B22: Air | C22: Air | D22: Aire | E22: title | F22: =HLOOKUP($C$2,$B$8:$D22,$A22,FALSE) -> Air | G22: title15
A23: 16 | B23: Downdraft Gasifier | C23: Descendante Gazogène | D23: Corriente Descendente Gasificador | E23: title | F23: =HLOOKUP($C$2,$B$8:$D23,$A23,FALSE) -> Downdraft Gasifier | G23: title16
A24: 17 | B24: Ash | C24: Cendre | D24: Ceniza | E24: title | F24: =HLOOKUP($C$2,$B$8:$D24,$A24,FALSE) -> Ash | G24: title17
A25: 18 | B25: Gas cooling system | C25: Système de refroidissement à gaz | D25: Sistema de Enfriamiento del Gas | E25: title | F25: =HLOOKUP($C$2,$B$8:$D25,$A25,FALSE) -> Gas cooling system | G25: title18
A26: 19 | B26: Gas cleaning system | C26: Système d'épuration des gaz | D26: Sistema de Limpieza del Gas | E26: title | F26: =HLOOKUP($C$2,$B$8:$D26,$A26,FALSE) -> Gas cleaning system | G26: title19
A27: 20 | B27: Gas engine | C27: Moteur à essence | D27: Motor a Gas | E27: title | F27: =HLOOKUP($C$2,$B$8:$D27,$A27,FALSE) -> Gas engine | G27: title20
A28: 21 | B28: ENERGY DEMAND FOR RURAL ELECTRIFICATION - GASIFICATION | C28: DEMANDE D'ÉNERGIE POUR L’ÉLECTRIFICATION RURALE – GAZÉFICATION | D28: DEMANDA DE ENERGÍA PARA ELECTRIFICACIÓN RURAL – GASIFICACIÓN | E28: title | F28: =HLOOKUP($C$2,$B$8:$D28,$A28,FALSE) -> ENERGY DEMAND FOR RURAL ELECTRIFICATION - GASIFICATION | G28: title21
A29: 22 | B29: Electricity Demand per Household | C29: Demande d’Électricité par Ménage | D29: Demanda de electricidad por hogar | E29: title | F29: =HLOOKUP($C$2,$B$8:$D29,$A29,FALSE) -> Electricity Demand per Household | G29: title22
A30: 23 | B30: Electricity consumption per household (kWh/month) | C30: Consommation d'électricité par ménage (kWh/mois) | D30: Consumo de electricidad por hogar (kWh/mes) | E30: title | F30: =HLOOKUP($C$2,$B$8:$D30,$A30,FALSE) -> Electricity consumption per household (kWh/month) | G30: title23
A31: 24 | B31: Value calculated in the Country Status module | C31: Valeur calculée dans le Module Situation du Pays | D31: Valor calculado en el Módulo Situación Actual del País | E31: title | F31: =HLOOKUP($C$2,$B$8:$D31,$A31,FALSE) -> Value calculated in the Country Status module | G31: title24
A32: 25 | B32: DATA ENTRY FOR RURAL ELECTRIFICATION - GASIFICATION | C32: SAISIE DE L’ÉLECTRIFICATION RURALE – GAZÉFICATION | D32: DEMANDA DE ENERGÍA PARA ELECTRIFICACIÓN RURAL – GASIFICACIÓN | E32: title | F32: =HLOOKUP($C$2,$B$8:$D32,$A32,FALSE) -> DATA ENTRY FOR RURAL ELECTRIFICATION - GASIFICATION | G32: title25
A33: 26 | B33: Use white cells to input data | C33: Utilisez les cellules blanches pour entrer les données | D33: Utilice las celdas blancas para ingresar los datos | E33: title | F33: =HLOOKUP($C$2,$B$8:$D33,$A33,FALSE) -> Use white cells to input data | G33: title26
A34: 27 | B34: Grey cells are used for calculations | C34: Les cellules grises sont utilisées pour les calculs | D34: Utilice las celdas grises para los cálculos | E34: title | F34: =HLOOKUP($C$2,$B$8:$D34,$A34,FALSE) -> Grey cells are used for calculations | G34: title27
A35: 28 | B35: Feedstock Availability and Cost | C35: Disponibilité et Coût des Matières Premières | D35: Disponibilidad y costo de la materia prima | E35: title | F35: =HLOOKUP($C$2,$B$8:$D35,$A35,FALSE) -> Feedstock Availability and Cost | G35: title28
A36: 29 | B36: Feedstock | C36: Matière première | D36: Materia prima | E36: title | F36: =HLOOKUP($C$2,$B$8:$D36,$A36,FALSE) -> Feedstock | G36: title29
A37: 30 | B37: Feedstock potential (t/year) | C37: Potentiel de matières premières (t/an) | D37: Materia prima potencial (t/año) | E37: title | F37: =HLOOKUP($C$2,$B$8:$D37,$A37,FALSE) -> Feedstock potential (t/year) | G37: title30
A38: 31 | B38: Feedstock yield (t/ha) | C38: Rendement de matières premières (t/ha) | D38: Rendimiento de la materia prima (t/ha) | E38: title | F38: =HLOOKUP($C$2,$B$8:$D38,$A38,FALSE) -> Feedstock yield (t/ha) | G38: title31
A39: 32 | B39: Moisture content | C39: Teneur en humidité | D39: Contenido de humedad | E39: title | F39: =HLOOKUP($C$2,$B$8:$D39,$A39,FALSE) -> Moisture content | G39: title32
A40: 33 | B40: Average Size (mm) | C40: Dimension moyenne (mm) | D40: Tamaño promedio (mm) | E40: title | F40: =HLOOKUP($C$2,$B$8:$D40,$A40,FALSE) -> Average Size (mm) | G40: title33
A41: 34 | B41: Feedstock price (USD/t) | C41: Prix des matières premières (USD/t) | D41: Precio de la materia prima (USD/t) | E41: title | F41: =HLOOKUP($C$2,$B$8:$D41,$A41,FALSE) -> Feedstock price (USD/t) | G41: title34
A42: 35 | B42: Use the price definition calculator | C42: Utilisez la calculatrice de définition de prix | D42: Use la calculadora de definición de precio | E42: title | F42: =HLOOKUP($C$2,$B$8:$D42,$A42,FALSE) -> Use the price definition calculator | G42: title35
A43: 36 | B43: Market price (transport excluded) | C43: Prix du marché (transport exclu) | D43: Precio del mercado (transporte excluido) | E43: title | F43: =HLOOKUP($C$2,$B$8:$D43,$A43,FALSE) -> Market price (transport excluded) | G43: title36
A44: 37 | B44: Feedstock storage cost (USD/t) | C44: Coût de stockage des matières premières (USD/t) | D44: Costo de almacenamiento de la materia prima (USD/t) | E44: title | F44: =HLOOKUP($C$2,$B$8:$D44,$A44,FALSE) -> Feedstock storage cost (USD/t) | G44: title37
A45: 38 | B45: Please Select | C45: Sélectionnez | D45: Seleccione | E45: title | F45: =HLOOKUP($C$2,$B$8:$D45,$A45,FALSE) -> Please Select | G45: title38
A46: 39 | B46: cassava | C46: manioc | D46: yuca | E46: title | F46: =HLOOKUP($C$2,$B$8:$D46,$A46,FALSE) -> cassava | G46: title39
A47: 40 | B47: coconut | C47: noix de coco | D47: coco | E47: title | F47: =HLOOKUP($C$2,$B$8:$D47,$A47,FALSE) -> coconut | G47: title40
A48: 41 | B48: cotton | C48: coton | D48: algodón | E48: title | F48: =HLOOKUP($C$2,$B$8:$D48,$A48,FALSE) -> cotton | G48: title41
A49: 42 | B49: groundnut | C49: arachide | D49: cacahuete | E49: title | F49: =HLOOKUP($C$2,$B$8:$D49,$A49,FALSE) -> groundnut | G49: title42
A50: 43 | B50: maize | C50: maïs | D50: maíz | E50: title | F50: =HLOOKUP($C$2,$B$8:$D50,$A50,FALSE) -> maize | G50: title43
A51: 44 | B51: oilpalm | C51: palmier à huile | D51: palma aceitera | E51: title | F51: =HLOOKUP($C$2,$B$8:$D51,$A51,FALSE) -> oilpalm | G51: title44
A52: 45 | B52: sorghum | C52: sorgho | D52: sorgo | E52: title | F52: =HLOOKUP($C$2,$B$8:$D52,$A52,FALSE) -> sorghum | G52: title45
A53: 46 | B53: Briquettes/Pellets | C53: Briquettes/Granulés de bois | D53: Briquetas/Pellets | E53: title | F53: =HLOOKUP($C$2,$B$8:$D53,$A53,FALSE) -> Briquettes/Pellets | G53: title46
A54: 47 | B54: Forest Harvest. Res. | C54: Résidus de l'exploit. forest.. | D54: Res. forestales | E54: title | F54: =HLOOKUP($C$2,$B$8:$D54,$A54,FALSE) -> Forest Harvest. Res. | G54: title47
A55: 48 | B55: Wood Proc.Res. | C55: Résidus de la transf. du bois | D55: Res. procesam. mad. | E55: title | F55: =HLOOKUP($C$2,$B$8:$D55,$A55,FALSE) -> Wood Proc.Res. | G55: title48
A56: 49 | B56: Please Select | C56: Sélectionnez | D56: Seleccione | E56: title | F56: =HLOOKUP($C$2,$B$8:$D56,$A56,FALSE) -> Please Select | G56: title49
A57: 50 | B57: cassava | C57: manioc | D57: yuca | E57: title | F57: =HLOOKUP($C$2,$B$8:$D57,$A57,FALSE) -> cassava | G57: title50
A58: 51 | B58: coconut | C58: noix de coco | D58: coco | E58: title | F58: =HLOOKUP($C$2,$B$8:$D58,$A58,FALSE) -> coconut | G58: title51
A59: 52 | B59: coconut1 | C59: noix de coco1 | D59: coco1 | E59: title | F59: =HLOOKUP($C$2,$B$8:$D59,$A59,FALSE) -> coconut1 | G59: title52
A60: 53 | B60: coconut2 | C60: noix de coco2 | D60: coco2 | E60: title | F60: =HLOOKUP($C$2,$B$8:$D60,$A60,FALSE) -> coconut2 | G60: title53
A61: 54 | B61: cotton | C61: coton | D61: algodón | E61: title | F61: =HLOOKUP($C$2,$B$8:$D61,$A61,FALSE) -> cotton | G61: title54
A62: 55 | B62: groundnut | C62: arachide | D62: cacahuete | E62: title | F62: =HLOOKUP($C$2,$B$8:$D62,$A62,FALSE) -> groundnut | G62: title55
A63: 56 | B63: maize | C63: maïs | D63: maíz | E63: title | F63: =HLOOKUP($C$2,$B$8:$D63,$A63,FALSE) -> maize | G63: title56
A64: 57 | B64: oilpalm | C64: palmier à huile | D64: palma aceitera | E64: title | F64: =HLOOKUP($C$2,$B$8:$D64,$A64,FALSE) -> oilpalm | G64: title57
A65: 58 | B65: sorghum | C65: sorgho | D65: sorgo | E65: title | F65: =HLOOKUP($C$2,$B$8:$D65,$A65,FALSE) -> sorghum | G65: title58
A66: 59 | B66: Briquettes/Pellets | C66: Briquettes/Granulés de bois | D66: Briquetas/Pellets | E66: title | F66: =HLOOKUP($C$2,$B$8:$D66,$A66,FALSE) -> Briquettes/Pellets | G66: title59
A67: 60 | B67: Briquettes/Pellets1 | C67: Briquettes/Granulés de bois1 | D67: Briquetas/Pellets1 | E67: title | F67: =HLOOKUP($C$2,$B$8:$D67,$A67,FALSE) -> Briquettes/Pellets1 | G67: title60
A68: 61 | B68: Briquettes/Pellets2 | C68: Briquettes/Granulés de bois2 | D68: Briquetas/Pellets2 | E68: title | F68: =HLOOKUP($C$2,$B$8:$D68,$A68,FALSE) -> Briquettes/Pellets2 | G68: title61
A69: 62 | B69: Briquettes/Pellets3 | C69: Briquettes/Granulés de bois3 | D69: Briquetas/Pellets3 | E69: title | F69: =HLOOKUP($C$2,$B$8:$D69,$A69,FALSE) -> Briquettes/Pellets3 | G69: title62
A70: 63 | B70: Briquettes/Pellets4 | C70: Briquettes/Granulés de bois4 | D70: Briquetas/Pellets4 | E70: title | F70: =HLOOKUP($C$2,$B$8:$D70,$A70,FALSE) -> Briquettes/Pellets4 | G70: title63
A71: 64 | B71: Briquettes/Pellets5 | C71: Briquettes/Granulés de bois5 | D71: Briquetas/Pellets5 | E71: title | F71: =HLOOKUP($C$2,$B$8:$D71,$A71,FALSE) -> Briquettes/Pellets5 | G71: title64
A72: 65 | B72: Briquettes/Pellets6 | C72: Briquettes/Granulés de bois6 | D72: Briquetas/Pellets6 | E72: title | F72: =HLOOKUP($C$2,$B$8:$D72,$A72,FALSE) -> Briquettes/Pellets6 | G72: title65
A73: 66 | B73: Briquettes/Pellets7 | C73: Briquettes/Granulés de bois7 | D73: Briquetas/Pellets7 | E73: title | F73: =HLOOKUP($C$2,$B$8:$D73,$A73,FALSE) -> Briquettes/Pellets7 | G73: =$E73&$A73 -> title66
A74: 67 | B74: Briquettes/Pellets8 | C74: Briquettes/Granulés de bois8 | D74: Briquetas/Pellets8 | E74: title | F74: =HLOOKUP($C$2,$B$8:$D74,$A74,FALSE) -> Briquettes/Pellets8 | G74: title67
A75: 68 | B75: Briquettes/Pellets9 | C75: Briquettes/Granulés de bois9 | D75: Briquetas/Pellets9 | E75: title | F75: =HLOOKUP($C$2,$B$8:$D75,$A75,FALSE) -> Briquettes/Pellets9 | G75: title68
A76: 69 | B76: Briquettes/Pellets10 | C76: Briquettes/Granulés de bois10 | D76: Briquetas/Pellets10 | E76: title | F76: =HLOOKUP($C$2,$B$8:$D76,$A76,FALSE) -> Briquettes/Pellets10 | G76: title69
A77: 70 | B77: Briquettes/Pellets11 | C77: Briquettes/Granulés de bois11 | D77: Briquetas/Pellets11 | E77: title | F77: =HLOOKUP($C$2,$B$8:$D77,$A77,FALSE) -> Briquettes/Pellets11 | G77: title70
A78: 71 | B78: Briquettes/Pellets12 | C78: Briquettes/Granulés de bois12 | D78: Briquetas/Pellets12 | E78: title | F78: =HLOOKUP($C$2,$B$8:$D78,$A78,FALSE) -> Briquettes/Pellets12 | G78: title71
A79: 72 | B79: Briquettes/Pellets13 | C79: Briquettes/Granulés de bois13 | D79: Briquetas/Pellets13 | E79: title | F79: =HLOOKUP($C$2,$B$8:$D79,$A79,FALSE) -> Briquettes/Pellets13 | G79: title72
A80: 73 | B80: Briquettes/Pellets14 | C80: Briquettes/Granulés de bois14 | D80: Briquetas/Pellets14 | E80: title | F80: =HLOOKUP($C$2,$B$8:$D80,$A80,FALSE) -> Briquettes/Pellets14 | G80: title73
A81: 74 | B81: Briquettes/Pellets15 | C81: Briquettes/Granulés de bois15 | D81: Briquetas/Pellets15 | E81: title | F81: =HLOOKUP($C$2,$B$8:$D81,$A81,FALSE) -> Briquettes/Pellets15 | G81: title74
A82: 75 | B82: Briquettes/Pellets16 | C82: Briquettes/Granulés de bois16 | D82: Briquetas/Pellets16 | E82: title | F82: =HLOOKUP($C$2,$B$8:$D82,$A82,FALSE) -> Briquettes/Pellets16 | G82: title75
A83: 76 | B83: Forest Harvest. Res. | C83: Résidus de l'exploit. forest.. | D83: Res. forestales | E83: title | F83: =HLOOKUP($C$2,$B$8:$D83,$A83,FALSE) -> Forest Harvest. Res. | G83: title76
A84: 77 | B84: Wood Proc.Res. | C84: Résidus de la transf. du bois | D84: Res. procesam. mad. | E84: title | F84: =HLOOKUP($C$2,$B$8:$D84,$A84,FALSE) -> Wood Proc.Res. | G84: title77
A85: 78 | B85: Please Select | C85: Sélectionnez | D85: Seleccione | E85: title | F85: =HLOOKUP($C$2,$B$8:$D85,$A85,FALSE) -> Please Select | G85: title78
A86: 79 | B86: stalk | C86: tige | D86: tallos | E86: title | F86: =HLOOKUP($C$2,$B$8:$D86,$A86,FALSE) -> stalk | G86: title79
A87: 80 | B87: fronds | C87: frondes | D87: frondas | E87: title | F87: =HLOOKUP($C$2,$B$8:$D87,$A87,FALSE) -> fronds | G87: title80
A88: 81 | B88: husk | C88: écorce | D88: cascarilla | E88: title | F88: =HLOOKUP($C$2,$B$8:$D88,$A88,FALSE) -> husk | G88: title81
A89: 82 | B89: shell | C89: coquilles | D89: concha | E89: title | F89: =HLOOKUP($C$2,$B$8:$D89,$A89,FALSE) -> shell | G89: title82
A90: 83 | B90: stalk | C90: tige | D90: tallos | E90: title | F90: =HLOOKUP($C$2,$B$8:$D90,$A90,FALSE) -> stalk | G90: title83
A91: 84 | B91: shell | C91: coquilles | D91: concha | E91: title | F91: =HLOOKUP($C$2,$B$8:$D91,$A91,FALSE) -> shell | G91: title84
A92: 85 | B92: cob | C92: épi | D92: mazorcas | E92: title | F92: =HLOOKUP($C$2,$B$8:$D92,$A92,FALSE) -> cob | G92: title85
A93: 86 | B93: shell | C93: coquilles | D93: concha | E93: title | F93: =HLOOKUP($C$2,$B$8:$D93,$A93,FALSE) -> shell | G93: title86
A94: 87 | B94: straw/stalk | C94: paille/tige | D94: paja/tallos | E94: title | F94: =HLOOKUP($C$2,$B$8:$D94,$A94,FALSE) -> straw/stalk | G94: title87
A95: 88 | B95: barley | C95: orge | D95: cebada | E95: title | F95: =HLOOKUP($C$2,$B$8:$D95,$A95,FALSE) -> barley | G95: title88
A96: 89 | B96: cacao | C96: cacao | D96: cacao | E96: title | F96: =HLOOKUP($C$2,$B$8:$D96,$A96,FALSE) -> cacao | G96: title89
A97: 90 | B97: cassava | C97: manioc | D97: yuca | E97: title | F97: =HLOOKUP($C$2,$B$8:$D97,$A97,FALSE) -> cassava | G97: title90
A98: 91 | B98: coconut | C98: noix de coco | D98: coco | E98: title | F98: =HLOOKUP($C$2,$B$8:$D98,$A98,FALSE) -> coconut | G98: title91
A99: 92 | B99: coffee | C99: café | D99: café | E99: title | F99: =HLOOKUP($C$2,$B$8:$D99,$A99,FALSE) -> coffee | G99: title92
A100: 93 | B100: cotton | C100: coton | D100: algodón | E100: title | F100: =HLOOKUP($C$2,$B$8:$D100,$A100,FALSE) -> cotton | G100: title93
A101: 94 | B101: groundnut | C101: arachide | D101: cacahuete | E101: title | F101: =HLOOKUP($C$2,$B$8:$D101,$A101,FALSE) -> groundnut | G101: title94
A102: 95 | B102: maize | C102: maïs | D102: maíz | E102: title | F102: =HLOOKUP($C$2,$B$8:$D102,$A102,FALSE) -> maize | G102: title95
A103: 96 | B103: millet | C103: millet | D103: mijo | E103: title | F103: =HLOOKUP($C$2,$B$8:$D103,$A103,FALSE) -> millet | G103: title96
A104: 97 | B104: oat | C104: avoine | D104: avena | E104: title | F104: =HLOOKUP($C$2,$B$8:$D104,$A104,FALSE) -> oat | G104: title97
A105: 98 | B105: oilpalm | C105: palmier à huile | D105: palma aceitera | E105: title | F105: =HLOOKUP($C$2,$B$8:$D105,$A105,FALSE) -> oilpalm | G105: title98
A106: 99 | B106: rice | C106: riz | D106: arroz | E106: title | F106: =HLOOKUP($C$2,$B$8:$D106,$A106,FALSE) -> rice | G106: title99
A107: 100 | B107: sorghum | C107: sorgho | D107: sorgo | E107: title | F107: =HLOOKUP($C$2,$B$8:$D107,$A107,FALSE) -> sorghum | G107: title100
A108: 101 | B108: soybean | C108: soja | D108: soja | E108: title | F108: =HLOOKUP($C$2,$B$8:$D108,$A108,FALSE) -> soybean | G108: title101
A109: 102 | B109: sugarcane | C109: canne à sucre | D109: caña de azúcar | E109: title | F109: =HLOOKUP($C$2,$B$8:$D109,$A109,FALSE) -> sugarcane | G109: title102
A110: 103 | B110: sunflower | C110: tournesol | D110: girasol | E110: title | F110: =HLOOKUP($C$2,$B$8:$D110,$A110,FALSE) -> sunflower | G110: title103
A111: 104 | B111: wheat | C111: blé | D111: trigo | E111: title | F111: =HLOOKUP($C$2,$B$8:$D111,$A111,FALSE) -> wheat | G111: title104
A112: 105 | B112: Forest Harvest. Res. | C112: Résidus de l'exploit. forest. | D112: Res. forestales | E112: title | F112: =HLOOKUP($C$2,$B$8:$D112,$A112,FALSE) -> Forest Harvest. Res. | G112: title105
A113: 106 | B113: Wood Proc.Res. | C113: Résidus de la transf. du bois | D113: Res. procesam. mad. | E113: title | F113: =HLOOKUP($C$2,$B$8:$D113,$A113,FALSE) -> Wood Proc.Res. | G113: title106
A114: 107 | B114: yes | C114: oui | D114: sí | E114: title | F114: =HLOOKUP($C$2,$B$8:$D114,$A114,FALSE) -> yes | G114: title107
A115: 108 | B115: Cassava flour | C115: Farine de manioc | D115: harina de yuca | E115: title | F115: =HLOOKUP($C$2,$B$8:$D115,$A115,FALSE) -> Cassava flour | G115: title108
A116: 109 | B116: Maize flour | C116: Farine de maïs | D116: harina de maíz | E116: title | F116: =HLOOKUP($C$2,$B$8:$D116,$A116,FALSE) -> Maize flour | G116: title109
A117: 110 | B117: Wheat flour | C117: Farine de blé | D117: harina de trigo | E117: title | F117: =HLOOKUP($C$2,$B$8:$D117,$A117,FALSE) -> Wheat flour | G117: title110
A118: 111 | B118: Input data below! | C118: Entrer données ci-dessous! | D118: Ingrese los datos debajo! | E118: title | F118: =HLOOKUP($C$2,$B$8:$D118,$A118,FALSE) -> Input data below! | G118: title111
A119: 112 | B119: Electricity Price Definition | C119: Définition du Prix de l'Électricité | D119: Definición del precio de la electricidad | E119: title | F119: =HLOOKUP($C$2,$B$8:$D119,$A119,FALSE) -> Electricity Price Definition | G119: title112
A120: 113 | B120: Select a method to determine the price of electricity | C120: Sélectionnez une méthode pour déterminer le prix de l'électricité | D120: Seleccione un método para determinar el precio de la electricidad | E120: title | F120: =HLOOKUP($C$2,$B$8:$D120,$A120,FALSE) -> Select a method to determine the price of electricity | G120: title113
A121: 114 | B121: Method 1 | C121: Méthode 1 | D121: Método 1 | E121: title | F121: =HLOOKUP($C$2,$B$8:$D121,$A121,FALSE) -> Method 1 | G121: title114
A122: 115 | B122: Comparative production cost of electricity | C122: Coût comparatif de production d'électricité | D122: Costos comparativos de la producción de electricidad | E122: title | F122: =HLOOKUP($C$2,$B$8:$D122,$A122,FALSE) -> Comparative production cost of electricity | G122: title115
A123: 116 | B123: Unit | C123: Unité | D123: Unidad | E123: title | F123: =HLOOKUP($C$2,$B$8:$D123,$A123,FALSE) -> Unit | G123: title116
A124: 117 | B124: Method 1: Use a calculator to determine the production cost of electricity from diesel generator. | C124: Méthode 1: Utiliser une calculatrice pour déterminer le coût de production d'électricité à partir d'un générateur diesel. | D124: Método 1: Utilice una calculadora para determinar el costo de producción de electricidad a partir de un generador diésel. | E124: title | F124: =HLOOKUP($C$2,$B$8:$D124,$A124,FALSE) -> Method 1: Use a calculator to determine the production cost of electricity from diesel generator. | G124: title117
A125: 118 | B125: Method 2 | C125: Méthode 2 | D125: Método 2 | E125: title | F125: =HLOOKUP($C$2,$B$8:$D125,$A125,FALSE) -> Method 2 | G125: title118
A126: 119 | B126: Production Cost and Financial Parameters | C126: Coût de Production et Paramètres Financiers | D126: Costo de producción y parámetros financieros | E126: title | F126: =HLOOKUP($C$2,$B$8:$D126,$A126,FALSE) -> Production Cost and Financial Parameters | G126: title119
A127: 120 | B127: Labour | C127: Main d’oeuvre | D127: Mano de obra | E127: title | F127: =HLOOKUP($C$2,$B$8:$D127,$A127,FALSE) -> Labour | G127: title120
A128: 121 | B128: Unskilled worker | C128: Ouvrier non-qualifié | D128: Trabajadores no cualificados | E128: title | F128: =HLOOKUP($C$2,$B$8:$D128,$A128,FALSE) -> Unskilled worker | G128: title121
A129: 122 | B129: Utilities | C129: Utilitaires | D129: Servicios | E129: title | F129: =HLOOKUP($C$2,$B$8:$D129,$A129,FALSE) -> Utilities | G129: title122
A130: 123 | B130: Water | C130: Eau | D130: Agua | E130: title | F130: =HLOOKUP($C$2,$B$8:$D130,$A130,FALSE) -> Water | G130: title123
A131: 124 | B131: Feedstock collection | C131: Collecte des matières premières | D131: Recolección de la materia prima | E131: title | F131: =HLOOKUP($C$2,$B$8:$D131,$A131,FALSE) -> Feedstock collection | G131: title124
A132: 125 | B132: Working hours per day (manual) | C132: Heures de travail par jour (manuel) | D132: Horas de trabajo por día (manual) | E132: title | F132: =HLOOKUP($C$2,$B$8:$D132,$A132,FALSE) -> Working hours per day (manual) | G132: title125
A133: 126 | B133: Transportation cost | C133: Frais de transport | D133: Costo de transporte | E133: title | F133: =HLOOKUP($C$2,$B$8:$D133,$A133,FALSE) -> Transportation cost | G133: title126
A134: 127 | B134: Feedstock (collection point to plant) | C134: Matières premières (le point de collecte à la centrale) | D134: Materia prima (punto de recolección a la planta) | E134: title | F134: =HLOOKUP($C$2,$B$8:$D134,$A134,FALSE) -> Feedstock (collection point to plant) | G134: title127
A135: 128 | B135: Other costs | C135: Autres coûts | D135: Otros costos | E135: title | F135: =HLOOKUP($C$2,$B$8:$D135,$A135,FALSE) -> Other costs | G135: title128
A136: 129 | B136: General and administrative (%) | C136: Frais généraux et administratifs (%) | D136: Generales y administrativos (%) | E136: title | F136: =HLOOKUP($C$2,$B$8:$D136,$A136,FALSE) -> General and administrative (%) | G136: title129
A137: 130 | B137: Plant overhead (%) | C137: Frais généraux de l'usine (%) | D137: Gastos generales de planta (%) | E137: title | F137: =HLOOKUP($C$2,$B$8:$D137,$A137,FALSE) -> Plant overhead (%) | G137: =$E137&$A137 -> title130
A138: 131 | B138: Financial parameters | C138: Paramètres financiers | D138: Parámetros financieros | E138: title | F138: =HLOOKUP($C$2,$B$8:$D138,$A138,FALSE) -> Financial parameters | G138: title131
A139: 132 | B139: Discount rate | C139: Taux d'escompte | D139: Tasa de descuento | E139: title | F139: =HLOOKUP($C$2,$B$8:$D139,$A139,FALSE) -> Discount rate | G139: title132
A140: 133 | B140: Loan ratio | C140: Ratio du prêt | D140: Proporción de créditos | E140: title | F140: =HLOOKUP($C$2,$B$8:$D140,$A140,FALSE) -> Loan ratio | G140: title133
A141: 134 | B141: Loan interest rate | C141: Taux d'intérêt du prêt | D141: Tasa de interés de créditos | E141: title | F141: =HLOOKUP($C$2,$B$8:$D141,$A141,FALSE) -> Loan interest rate | G141: title134
A142: 135 | B142: Loan term | C142: Durée du prêt | D142: Plazo del crédito | E142: title | F142: =HLOOKUP($C$2,$B$8:$D142,$A142,FALSE) -> Loan term | G142: title135
A143: 136 | B143: USD/person-h | C143: USD/personne-h | D143: USD/persona-h | E143: title | F143: =HLOOKUP($C$2,$B$8:$D143,$A143,FALSE) -> USD/person-h | G143: title136
A144: 137 | B144: h/day | C144: h/jour | D144: h/día | E144: title | F144: =HLOOKUP($C$2,$B$8:$D144,$A144,FALSE) -> h/day | G144: title137
A145: 138 | B145: year | C145: an | D145: año | E145: title | F145: =HLOOKUP($C$2,$B$8:$D145,$A145,FALSE) -> year | G145: title138
A146: 139 | B146: Skilled worker | C146: Ouvrier qualifié | D146: Trabajadores cualificados | E146: title | F146: =HLOOKUP($C$2,$B$8:$D146,$A146,FALSE) -> Skilled worker | G146: title139
A147: 140 | B147: Diesel | C147: Diesel | D147: Diésel | E147: title | F147: =HLOOKUP($C$2,$B$8:$D147,$A147,FALSE) -> Diesel | G147: title140
A148: 141 | B148: ==>Required to start up the engine | C148: ==>Requis pour démarrer le moteur | D148: ==>Requerido para poner en marcha el motor | E148: title | F148: =HLOOKUP($C$2,$B$8:$D148,$A148,FALSE) -> ==>Required to start up the engine | G148: title141
A149: 142 | B149: Working hours per day (mechanized) | C149: Heures de travail par jour (mécanisé ) | D149: Horas de trabajo por día (mecanizado) | E149: title | F149: =HLOOKUP($C$2,$B$8:$D149,$A149,FALSE) -> Working hours per day (mechanized) | G149: title142
A150: 143 | B150: Maintenance cost | C150: Coût de maintenance | D150: Costos de mantenimiento | E150: title | F150: =HLOOKUP($C$2,$B$8:$D150,$A150,FALSE) -> Maintenance cost | G150: title143
A151: 144 | B151: Miscellaneous cost | C151: Coût divers | D151: Costo varios | E151: title | F151: =HLOOKUP($C$2,$B$8:$D151,$A151,FALSE) -> Miscellaneous cost | G151: title144
A152: 145 | B152: Investment cost update | C152: Mise à jour des coûts d'investissement | D152: Actualización del costo de inversión | E152: title | F152: =HLOOKUP($C$2,$B$8:$D152,$A152,FALSE) -> Investment cost update | G152: title145
A153: 146 | B153: Plant Cost Index during | C153: Indice du coût de l'usine pendant | D153: Índice de costo de la planta durante | E153: title | F153: =HLOOKUP($C$2,$B$8:$D153,$A153,FALSE) -> Plant Cost Index during | G153: title146
A154: 147 | B154: Method 2: Use an electricity price defined by the user. In the assessment , it is important to consider that this price might include subsidies. | C154: Méthode 2: Use an electricity price defined by the user. In the assessment , it is important to consider that this price might include subsidies. | D154: Método 2: Utilizar un precio de electricidad definido por el usuario. En la evaluación, es importante tener en cuenta que este precio podría incluir subsidios. | E154: title | F154: =HLOOKUP($C$2,$B$8:$D154,$A154,FALSE) -> Method 2: Use an electricity price defined by the user. In the assessment , it is important to consider that this price might include subsidies. | G154: title147
A155: 148 | B155: Price paid by customer | C155: Prix payé par le client | D155: Precio pagado por el consumidor | E155: title | F155: =HLOOKUP($C$2,$B$8:$D155,$A155,FALSE) -> Price paid by customer | G155: title148
A156: 149 | B156: Processing costs FOR POWER GENERATION FROM | C156: Les coûts de traitement pour la PRODUCTION D'ÉLECTRICITÉ DE | D156: Costos de procesamiento para la GENERACIÓN DE ENERGÍA A PARTIR DE | E156: title | F156: =HLOOKUP($C$2,$B$8:$D156,$A156,FALSE) -> Processing costs FOR POWER GENERATION FROM | G156: title149
A157: 150 | B157: Summary of Feedstock and Storage | C157: Résumé des Matières Premières et du Stockage | D157: Resumen de materias primas y almacenamiento | E157: title | F157: =HLOOKUP($C$2,$B$8:$D157,$A157,FALSE) -> Summary of Feedstock and Storage | G157: title150
A158: 151 | B158: Summary of Operational Parameters | C158: Résumé des Paramètres Opérationnels | D158: Resumen de parámetros operacionales | E158: title | F158: =HLOOKUP($C$2,$B$8:$D158,$A158,FALSE) -> Summary of Operational Parameters | G158: title151
A159: 152 | B159: Feedstock available (t/year) | C159: Matières premières disponibles (t/an) | D159: Materia prima disponible (t/año) | E159: title | F159: =HLOOKUP($C$2,$B$8:$D159,$A159,FALSE) -> Feedstock available (t/year) | G159: title152
A160: 153 | B160: Feedstock yield (t/ha) | C160: Rendement de matières premières (t/ha) | D160: Rendimiento de la materia prima (t/ha) | E160: title | F160: =HLOOKUP($C$2,$B$8:$D160,$A160,FALSE) -> Feedstock yield (t/ha) | G160: title153
A161: 154 | B161: Moisture (%) | C161: Teneur en humidité (%) | D161: Humedad (%) | E161: title | F161: =HLOOKUP($C$2,$B$8:$D161,$A161,FALSE) -> Moisture (%) | G161: title154
A162: 155 | B162: Size (mm) | C162: Dimension moyenne (mm) | D162: Tamaño (mm) | E162: title | F162: =HLOOKUP($C$2,$B$8:$D162,$A162,FALSE) -> Size (mm) | G162: title155
A163: 156 | B163: Gasifier type | C163: Type de gazogène | D163: Tipo gasificador | E163: title | F163: =HLOOKUP($C$2,$B$8:$D163,$A163,FALSE) -> Gasifier type | G163: title156
A164: 157 | B164: Gas engine type | C164: Type de moteur à gaz | D164: Tipo de motor a gas | E164: title | F164: =HLOOKUP($C$2,$B$8:$D164,$A164,FALSE) -> Gas engine type | G164: title157
A165: 158 | B165: Capacity utilization factor | C165: Facteur d'utilisation des capacités | D165: Factor de capacidad de uso | E165: title | F165: =HLOOKUP($C$2,$B$8:$D165,$A165,FALSE) -> Capacity utilization factor | G165: title158
A166: 159 | B166: Power conversion (kWh/kg feedstock) | C166: Conversion d'énergie (kWh / kg charge) | D166: Conversión de potencia (kWh/kg materia prima) | E166: title | F166: =HLOOKUP($C$2,$B$8:$D166,$A166,FALSE) -> Power conversion (kWh/kg feedstock) | G166: title159
A167: 160 | B167: Power loss due to operation (%) | C167: Perte de courant due aux opérations (%) | D167: Pérdida de potencia por operación (%) | E167: title | F167: =HLOOKUP($C$2,$B$8:$D167,$A167,FALSE) -> Power loss due to operation (%) | G167: title160
A168: 161 | B168: Operating hours per day | C168: Heures de fonctionnement par jour | D168: Horas de operación por día | E168: title | F168: =HLOOKUP($C$2,$B$8:$D168,$A168,FALSE) -> Operating hours per day | G168: title161
A169: 162 | B169: Power loss in distribution network (%) | C169: Perte de courant dans le réseau de distrib.(%) | D169: Pérdida de potencia en la red de distribución (%) | E169: title | F169: =HLOOKUP($C$2,$B$8:$D169,$A169,FALSE) -> Power loss in distribution network (%) | G169: title162
A170: 163 | B170: Gas engine efficiency (%) | C170: Efficacité du moteur à gaz (%) | D170: Eficiencia del motor de gas (%) | E170: title | F170: =HLOOKUP($C$2,$B$8:$D170,$A170,FALSE) -> Gas engine efficiency (%) | G170: title163
A171: 164 | B171: Loan term (years) | C171: Durée du prêt (années) | D171: Plazo del crédito (años) | E171: title | F171: =HLOOKUP($C$2,$B$8:$D171,$A171,FALSE) -> Loan term (years) | G171: title164
A172: 165 | B172: Project lifetime | C172: Durée de vie du projet | D172: Tiempo de vida del proyecto | E172: title | F172: =HLOOKUP($C$2,$B$8:$D173,$A172,FALSE) -> Project lifetime | G172: title165
A173: 166 | B173: Price of electricity (USD/kWh) | C173: Prix de l'électricité (USD/kWh) | D173: Precio de la electricidad (USD/kWh) | E173: title | F173: =HLOOKUP($C$2,$B$8:$D173,$A173,FALSE) -> Price of electricity (USD/kWh) | G173: title166
A174: 167 | B174: Price of electricity (USD/kWh) - User defined | C174: Prix de l'électricité (USD/kWh) - Definie par lútilisateur | D174: Precio de la electricidad (USD/kWh) - Definido por el usuario | E174: title | F174: =HLOOKUP($C$2,$B$8:$D174,$A174,FALSE) -> Price of electricity (USD/kWh) - User defined | G174: title167
A175: 168 | B175: Price of electricity (USD/kWh) - Calculated | C175: Prix de l'électricité (USD/kWh) - Calculée | D175: Precio de la electricidad (USD/kWh) - Calculado | E175: title | F175: =HLOOKUP($C$2,$B$8:$D175,$A175,FALSE) -> Price of electricity (USD/kWh) - Calculated | G175: title168
A176: 169 | B176: Transport Distance of Feedstock | C176: Distance de Transport des Matières Premières | D176: Distancia de transporte de la materia prima | E176: title | F176: =HLOOKUP($C$2,$B$8:$D176,$A176,FALSE) -> Transport Distance of Feedstock | G176: title169
A177: 170 | B177: Transport Quantity | C177: Quantité à Transporter | D177: Cantidad transportada | E177: title | F177: =HLOOKUP($C$2,$B$8:$D177,$A177,FALSE) -> Transport Quantity | G177: title170
A178: 171 | B178: Distance small scale production (km) | C178: Distance à la production à petite échelle (km) | D178: Distancia de producción de pequeña escala (km) | E178: title | F178: =HLOOKUP($C$2,$B$8:$D178,$A178,FALSE) -> Distance small scale production (km) | G178: title171
A179: 172 | B179: Distance medium scale production (km) | C179: Distance à la production à moyenne échelle de support (km) | D179: Distancia de producción de mediana escala (km) | E179: title | F179: =HLOOKUP($C$2,$B$8:$D179,$A179,FALSE) -> Distance medium scale production (km) | G179: title172
A180: 173 | B180: Small scale (t/year) | C180: Petite échelle (t/an) | D180: Pequeña escala (t/año) | E180: title | F180: =HLOOKUP($C$2,$B$8:$D180,$A180,FALSE) -> Small scale (t/year) | G180: title173
A181: 174 | B181: Medium scale (t/year) | C181: Moyenne échelle (t/an) | D181: Mediana escala (t/año) | E181: title | F181: =HLOOKUP($C$2,$B$8:$D181,$A181,FALSE) -> Medium scale (t/year) | G181: title174
A182: 175 | B182: Distance large scale production (km) | C182: Distance à la production à grande échelle (km) | D182: Distancia de producción de gran escala (km) | E182: title | F182: =HLOOKUP($C$2,$B$8:$D182,$A182,FALSE) -> Distance large scale production (km) | G182: title175
A183: 176 | B183: Transportation cost (USD/t/km) | C183: Frais de transport (USD/t/km) | D183: Costo de transporte (USD/t/km) | E183: title | F183: =HLOOKUP($C$2,$B$8:$D183,$A183,FALSE) -> Transportation cost (USD/t/km) | G183: title176
A184: 177 | B184: Large scale (t/year) | C184: Grande échelle (t/an) | D184: Gran escala (t/año) | E184: title | F184: =HLOOKUP($C$2,$B$8:$D184,$A184,FALSE) -> Large scale (t/year) | G184: title177
A185: 178 | B185: Production Cost Details | C185: Détails des Coûts de Production | D185: Detalles de los costos de producción | E185: title | F185: =HLOOKUP($C$2,$B$8:$D185,$A185,FALSE) -> Production Cost Details | G185: title178
A186: 179 | B186: Inputs | C186: Intrant | D186: Insumos | E186: title | F186: =HLOOKUP($C$2,$B$8:$D186,$A186,FALSE) -> Inputs | G186: title179
A187: 180 | B187: Diesel for start up | C187: Diesel pour démarrer | D187: Diésel necesario para la puesta en marcha | E187: title | F187: =HLOOKUP($C$2,$B$8:$D187,$A187,FALSE) -> Diesel for start up | G187: title180
A188: 181 | B188: Subtotal | C188: Sous-total | D188: Subtotal | E188: title | F188: =HLOOKUP($C$2,$B$8:$D188,$A188,FALSE) -> Subtotal | G188: title181
A189: 182 | B189: Labour and miscellaneous cost | C189: Travail et le coût divers | D189: Mano de obra y costos varios | E189: title | F189: =HLOOKUP($C$2,$B$8:$D189,$A189,FALSE) -> Labour and miscellaneous cost | G189: title182
A190: 183 | B190: Transport of feedstock | C190: Transport des matières premières | D190: Transporte de materia prima | E190: title | F190: =HLOOKUP($C$2,$B$8:$D190,$A190,FALSE) -> Transport of feedstock | G190: title183
A191: 184 | B191: Feedstock (farm to plant) | C191: Matières premières (ferme à l'usine) | D191: Materia prima (finca a la planta) | E191: title | F191: =HLOOKUP($C$2,$B$8:$D191,$A191,FALSE) -> Feedstock (farm to plant) | G191: title184
A192: 185 | B192: Storage | C192: Stockage | D192: Almacenamiento | E192: title | F192: =HLOOKUP($C$2,$B$8:$D192,$A192,FALSE) -> Storage | G192: title185
A193: 186 | B193: Investment | C193: Investissement | D193: Inversión | E193: title | F193: =HLOOKUP($C$2,$B$8:$D193,$A193,FALSE) -> Investment | G193: title186
A194: 187 | B194: Equipments | C194: Equipements | D194: Equipos | E194: title | F194: =HLOOKUP($C$2,$B$8:$D194,$A194,FALSE) -> Equipments | G194: title187
A195: 188 | B195: Building | C195: Bâtiment | D195: Construcción | E195: title | F195: =HLOOKUP($C$2,$B$8:$D195,$A195,FALSE) -> Building | G195: title188
A196: 189 | B196: Installation | C196: Installation | D196: Instalación | E196: title | F196: =HLOOKUP($C$2,$B$8:$D196,$A196,FALSE) -> Installation | G196: title189
A197: 190 | B197: Distribution network | C197: Réseau de distribution | D197: Red de distribución | E197: title | F197: =HLOOKUP($C$2,$B$8:$D197,$A197,FALSE) -> Distribution network | G197: title190
A198: 191 | B198: Total Investment | C198: Investissement total | D198: Inversión total | E198: title | F198: =HLOOKUP($C$2,$B$8:$D198,$A198,FALSE) -> Total Investment | G198: title191
A199: 192 | B199: Plant overhead | C199: Frais généraux de l'usine | D199: Gastos generales de planta | E199: title | F199: =HLOOKUP($C$2,$B$8:$D199,$A199,FALSE) -> Plant overhead | G199: title192
A200: 193 | B200: General and administrative cost | C200: Coût généraux et administratifs | D200: Costos generales y administrativos | E200: title | F200: =HLOOKUP($C$2,$B$8:$D200,$A200,FALSE) -> General and administrative cost | G200: title193
A201: 194 | B201: Loan interest | C201: Intérêts du prêt (USD) | D201: Intereses de créditos | E201: title | F201: =HLOOKUP($C$2,$B$8:$D201,$A201,FALSE) -> Loan interest | G201: =$E201&$A201 -> title194
A202: 195 | B202: Income tax | C202: Impôt sur le revenu | D202: Impuesto sobre la renta | E202: title | F202: =HLOOKUP($C$2,$B$8:$D202,$A202,FALSE) -> Income tax | G202: title195
... 264 more rows

Sheet START
B2: EN
C24: =title3 -> Disclaimer
C25: =title4 -> FAO declines all responsibility for errors or deficiencies in the database or software or in the documentation accompanying it, for program maintenance and upgrading as well as for any damage that may arise from them. FAO also declines any responsibility for updating the data and assumes no responsibility for errors and omissions in the data provided. Users are, however, kindly asked to report any errors or deficiencies in this product to FAO. The choices of calculation made in this tool are those of the author(s) and do not necessarily reflect the views and choices of the Food and Agriculture Organization of the United Nations.
C30: © FAO, 2014

Sheet Process Description
C3: =title5 -> BIOMASS GASIFICATION SYSTEM FOR RURAL ELECTRIFICATION
C11: =title6 -> Agricultural residues in the field (spread or collected) | H11: =title7 -> Agricultural residues from industry (processing plant)
C19: =title8 -> Forestry and dedicated woodfuel plantation
T21: =title11 -> Distribution line to households (isolated grid connection)
C26: =title9 -> Forestry and plantation residues | G26: =title10 -> Wood products industrial residues (processing plant)

Sheet Energy Demand
C3: =title21 -> ENERGY DEMAND FOR RURAL ELECTRIFICATION - GASIFICATION
C6: =title22 -> Electricity Demand per Household
G7: =title24 -> Value calculated in the Country Status module
C8: =title23 -> Electricity consumption per household (kWh/month)
C11: =("Potential Revenue of electricity production from "&'Data Entry Needs'!$D$11&" "&""&'Data Entry Needs'!$D$12) -> Potential Revenue of electricity production from Please Select Please Select
C13: Price of Electricity | E13: =+COST_RES1!$N$15 -> 0 | F13: USD/kWh | G13: =title223 -> Capacities (kW of power generation)
G14: =+COST_RES1!$G$33 -> 10 | I14: =+COST_RES1!$I$33 -> 40 | K14: =+COST_RES1!$K$33 -> 100
C15: Revenue without Policy subsidy | E15: =title116 -> Unit | F15: =title200 -> Unit Price | G15: =title202 -> Quantity | H15: Total | I15: =title202 -> Quantity | J15: Total | K15: =title202 -> Quantity | L15: Total
F16: =title201 -> (USD/unit) | G16: (Units) | H16: =title204 -> (USD/year) | I16: (Units) | J16: =title204 -> (USD/year) | K16: (Units) | L16: =title204 -> (USD/year)
C17: =title209 -> Power generation | E17: =title211 -> kWh/year | F17: =+$E$13 -> 0 | G17: =+COST_RES1!$G$91 -> 0 | H17: =$F17*G17 -> 0 | I17: =+COST_RES1!$I$91 -> 0 | J17: =$F17*I17 -> 0 | K17: =+COST_RES1!$K$91 -> 0 | L17: =$F17*K17 -> 0
C18: Electricity-Self use | E18: =title211 -> kWh/year | F18: =F17 -> 0 | G18: =+COST_RES1!$G$92 -> 0 | H18: =$F18*G18 -> 0 | I18: =+COST_RES1!I$92 -> 0 | J18: 0 | K18: =+COST_RES1!$K$92 -> 0 | L18: =$F18*K18 -> 0
C19: =title212 -> Power loss in distribution network | E19: =title211 -> kWh/year | F19: =F17 -> 0 | G19: =+COST_RES1!$G$93 -> 0 | H19: 0 | I19: =+COST_RES1!I$93 -> 0 | J19: 0 | K19: =+COST_RES1!$K$93 -> 0 | L19: =$F19*K19 -> 0
C20: =title181 -> Subtotal | G20: =SUM(G17:G19) -> 0 | H20: 0 | I20: 0 | J20: 0 | K20: 0 | L20: 0
C22: =("Potential Revenue of electricity production from "&'Data Entry Needs'!$E$11&" "&""&'Data Entry Needs'!$E$12) -> Potential Revenue of electricity production from Please Select Please Select
C24: Price of Electricity | E24: =+COST_RES2!$N$15 -> 0 | F24: USD/kWh | G24: =title223 -> Capacities (kW of power generation)
G25: =+COST_RES2!$G$33 -> 10 | I25: =+COST_RES2!$I$33 -> 40 | K25: =+COST_RES2!$K$33 -> 100
C26: Revenue without Policy subsidy | E26: =title116 -> Unit | F26: =title200 -> Unit Price | G26: =title202 -> Quantity | H26: Total | I26: =title202 -> Quantity | J26: Total | K26: =title202 -> Quantity | L26: Total
F27: =title201 -> (USD/unit) | G27: (Units) | H27: =title204 -> (USD/year) | I27: (Units) | J27: =title204 -> (USD/year) | K27: (Units) | L27: =title204 -> (USD/year)
C28: =title209 -> Power generation | E28: =title211 -> kWh/year | F28: =+$E$13 -> 0 | G28: =+COST_RES2!$G$91 -> 0 | H28: =$F28*G28 -> 0 | I28: =+COST_RES2!$I$91 -> 0 | J28: =$F28*I28 -> 0 | K28: =+COST_RES2!$K$91 -> 0 | L28: =$F28*K28 -> 0
C29: Electricity-Self use | E29: =title211 -> kWh/year | F29: =F28 -> 0 | G29: =+COST_RES2!$G$92 -> 0 | H29: =$F29*G29 -> 0 | I29: =+COST_RES2!I$92 -> 0 | J29: =$F29*I29 -> 0 | K29: =+COST_RES2!$K$92 -> 0 | L29: =$F29*K29 -> 0
C30: =title212 -> Power loss in distribution network | E30: =title211 -> kWh/year | F30: =F28 -> 0 | G30: =+COST_RES2!$G$93 -> 0 | H30: =$F30*G30 -> 0 | I30: =+COST_RES2!I$93 -> 0 | J30: =$F30*I30 -> 0 | K30: =+COST_RES2!$K$93 -> 0 | L30: =$F30*K30 -> 0
C31: =title181 -> Subtotal | G31: =SUM(G28:G30) -> 0 | H31: 0 | I31: 0 | J31: 0 | K31: 0 | L31: 0
C33: =("Potential Revenue of electricity production from "&'Data Entry Needs'!$F$11&" "&""&'Data Entry Needs'!$F$12) -> Potential Revenue of electricity production from Please Select Please Select
C35: Price of Electricity | E35: =+COST_RES3!$N$15 -> 0 | F35: USD/kWh | G35: =title223 -> Capacities (kW of power generation)
G36: =+COST_RES3!$G$33 -> 10 | I36: =+COST_RES3!$I$33 -> 40 | K36: =+COST_RES3!$K$33 -> 100
C37: Revenue without Policy subsidy | E37: =title116 -> Unit | F37: =title200 -> Unit Price | G37: =title202 -> Quantity | H37: Total | I37: =title202 -> Quantity | J37: Total | K37: =title202 -> Quantity | L37: Total
F38: =title201 -> (USD/unit) | G38: (Units) | H38: =title204 -> (USD/year) | I38: (Units) | J38: =title204 -> (USD/year) | K38: (Units) | L38: =title204 -> (USD/year)
C39: =title209 -> Power generation | E39: =title211 -> kWh/year | F39: =+$E$13 -> 0 | G39: =+COST_RES3!$G$91 -> 0 | H39: =$F39*G39 -> 0 | I39: =+COST_RES3!$I$91 -> 0 | J39: =$F39*I39 -> 0 | K39: =+COST_RES3!$K$91 -> 0 | L39: =$F39*K39 -> 0
C40: Electricity-Self use | E40: =title211 -> kWh/year | F40: =F39 -> 0 | G40: =+COST_RES3!$G$92 -> 0 | H40: =$F40*G40 -> 0 | I40: =+COST_RES3!I$92 -> 0 | J40: =$F40*I40 -> 0 | K40: =+COST_RES3!$K$92 -> 0 | L40: =$F40*K40 -> 0
C41: =title212 -> Power loss in distribution network | E41: =title211 -> kWh/year | F41: =F39 -> 0 | G41: =+COST_RES3!$G$93 -> 0 | H41: =$F41*G41 -> 0 | I41: =+COST_RES3!I$93 -> 0 | J41: =$F41*I41 -> 0 | K41: =+COST_RES3!$K$93 -> 0 | L41: =$F41*K41 -> 0
C42: =title181 -> Subtotal | G42: =SUM(G39:G41) -> 0 | H42: 0 | I42: 0 | J42: 0 | K42: 0 | L42: 0
C44: =("Potential Revenue of electricity production from "&'Data Entry Needs'!$G$11&" "&""&'Data Entry Needs'!$G$12) -> Potential Revenue of electricity production from Please Select Please Select
C46: Price of Electricity | E46: =+COST_RES4!$N$15 -> 0 | F46: USD/kWh | G46: =title223 -> Capacities (kW of power generation)
G47: =+COST_RES4!$G$33 -> 10 | I47: =+COST_RES4!$I$33 -> 40 | K47: =+COST_RES4!$K$33 -> 100
C48: Revenue without Policy subsidy | E48: =title116 -> Unit | F48: =title200 -> Unit Price | G48: =title202 -> Quantity | H48: Total | I48: =title202 -> Quantity | J48: Total | K48: =title202 -> Quantity | L48: Total
F49: =title201 -> (USD/unit) | G49: (Units) | H49: =title204 -> (USD/year) | I49: (Units) | J49: =title204 -> (USD/year) | K49: (Units) | L49: =title204 -> (USD/year)
C50: =title209 -> Power generation | E50: =title211 -> kWh/year | F50: =+$E$13 -> 0 | G50: =+COST_RES4!$G$91 -> 0 | H50: =$F50*G50 -> 0 | I50: =+COST_RES4!$I$91 -> 0 | J50: =$F50*I50 -> 0 | K50: =+COST_RES4!$K$91 -> 0 | L50: =$F50*K50 -> 0
C51: Electricity-Self use | E51: =title211 -> kWh/year | F51: =F50 -> 0 | G51: =+COST_RES4!$G$92 -> 0 | H51: =$F51*G51 -> 0 | I51: =+COST_RES4!I$92 -> 0 | J51: =$F51*I51 -> 0 | K51: =+COST_RES4!$K$92 -> 0 | L51: =$F51*K51 -> 0
C52: =title212 -> Power loss in distribution network | E52: =title211 -> kWh/year | F52: =F50 -> 0 | G52: =+COST_RES4!$G$93 -> 0 | H52: =$F52*G52 -> 0 | I52: =+COST_RES4!I$93 -> 0 | J52: =$F52*I52 -> 0 | K52: =+COST_RES4!$K$93 -> 0 | L52: =$F52*K52 -> 0
C53: =title181 -> Subtotal | G53: =SUM(G50:G52) -> 0 | H53: 0 | I53: 0 | J53: 0 | K53: 0 | L53: 0

Sheet Rural Electricity Price (hidden)
C3: ELECTRICITY PRICE CALCULATOR FOR ISOLATED AND RURAL AREAS
C6: Instructions | F6: =title26 -> Use white cells to input data | J6: =title27 -> Grey cells are used for calculations
C8: Current Electricity Technology | J8: Costing parameters
C10: Typical diesel generator capacity | H10: kW | J10: National Diesel Price | M10: =+'Data Entry Needs'!$I$40 -> 0 | N10: USD/L
C11: =title161 -> Operating hours per day | H11: h | J11: Transportation Cost of diesel | N11: USD/t/km
C12: Operating days per year | H12: day | J12: Transportation Distance | N12: km
C13: Typical efficiency | H13: % | J13: Labor and Maintenance Costs | N13: USD/kWh
C14: Calculated diesel consumption | G14: =+$G$10*$G$11*($G$12/100)*G13/(42.8*0.837/3.6) -> 0 | H14: L/year | J14: Equipment Cost | N14: USD
C16: Total production cost of electricity
C18: Concept | H18: Units | J18: =title115 -> Comparative production cost of electricity | M18: =ROUND(IFERROR($G$23/($G$10*$G$11*($G$12/100)*G13),0),2) -> 0 | N18: USD/kWh
C19: Diesel Cost | G19: =+G14*M10 -> 0 | H19: =title221 -> USD/year
C20: Transportation Cost | G20: =+M11*G14*0.84*M12/1000 -> 0 | H20: =title221 -> USD/year
C21: Labor and Maintenance Costs | G21: =+$G$10*$G$11*($G$13/100)*$G$12*$M$13 -> 0 | H21: =title221 -> USD/year
C22: Investment Costs | G22: =+M14 -> 0 | H22: =title221 -> USD/year
C23: Total production cost of electricity | G23: =SUM(G19:G22) -> 0 | H23: =title221 -> USD/year

Sheet COST(PREADJUSTED) (hidden)
B1: Cost details of dual fuel and 100% producer gas biomass gasifier power projects (5–40 kW) | I1: Source: Nouni et al, 2007
L2: Unit: Rs of India
B3: Manufacturer of BGPP | C3: Manufacturer I | J3: Manufacturer II
B4: Type of engine | C4: Dual fuel engine | H4: 100% producer gas engine | J4: Dual fuel engine | L4: 100% producer gas engine
B5: Rated capacity of BGPP (kW) | C5: 5 | D5: 10 | E5: 20 | F5: 30 | G5: 40 | H5: 9 | I5: 40 | J5: 10 | K5: 40 | L5: 10 | M5: 40
B6: Gasifier with accessories | C6: 76000 | D6: 95000 | E6: 145000 | F6: 300000 | G6: 380000 | H6: 145000 | I6: 700000 | J6: 230000 | K6: 510000 | L6: 250000 | M6: 600000
B7: Biomass cutter | C7: 12000 | D7: 12000 | E7: 12000 | F7: 20000 | G7: 20000 | H7: 12000 | I7: 20000 | J7: 7500 | K7: 7500 | L7: 7500 | M7: 7500
B8: Biomass dryer | C8: 9000 | D8: 9000 | E8: 9000 | F8: 40000 | G8: 40000 | H8: 9000 | I8: 50000 | J8: 10000 | K8: 35000 | L8: 10000 | M8: 35000
B9: Moisture meter | C9: 3000 | D9: 3000 | E9: 3000 | F9: 3000 | G9: 3000 | H9: 3000 | I9: 3000 | J9: 5000 | K9: 5000 | L9: 5000 | M9: 5000
B10: Chain pulley block | C10: 0 | D10: 0 | E10: 0 | F10: 10000 | G10: 10000 | H10: 0 | I10: 10000 | J10: 3000 | K10: 6500 | L10: 3000 | M10: 6500
B11: Water cooling system | C11: 10000 | D11: 10000 | E11: 15000 | F11: 15000 | G11: 15000 | H11: 10000 | I11: 25000 | J11: 0 | K11: 30000 | L11: 0 | M11: 30000
B12: Other accessories | C12: 0 | D12: 0 | E12: 0 | F12: 0 | G12: 0 | H12: 0 | I12: 0 | J12: 50000 | K12: 90000 | L12: 50000 | M12: 90000
B13: Taxes and duties | C13: 29700 | D13: 34830 | E13: 49680 | F13: 104760 | G13: 126360 | H13: 48330 | I13: 218160 | J13: 82485 | K13: 184680 | L13: 87885 | M13: 208980
B14: Total cost of biomass gasifier | C14: 139700 | D14: 163830 | E14: 233680 | F14: 492760 | G14: 594360 | H14: 227330 | I14: 1026160 | J14: 387985 | K14: 868680 | L14: 413385 | M14: 982980
B15: Engine–generator set | C15: 94000 | D15: 140000 | E15: 245000 | F15: 375000 | G15: 405000 | H15: 200000 | I15: 814000 | J15: 60000 | K15: 400000 | L15: 80000 | M15: 725000
B16: Accessories | C16: 0 | D16: 0 | E16: 0 | F16: 0 | G16: 0 | H16: 0 | I16: 100000 | J16: 0 | K16: 0 | L16: 0 | M16: 0
B17: Taxes and duties | C17: 25380 | D17: 37800 | E17: 66150 | F17: 101250 | G17: 109350 | H17: 54000 | I17: 273780 | J17: 16200 | K17: 108000 | L17: 21600 | M17: 195750
B18: Total cost of engine–generator set | C18: 119380 | D18: 163830 | E18: 311150 | F18: 476250 | G18: 514350 | H18: 254000 | I18: 1287780 | J18: 76200 | K18: 508000 | L18: 101600 | M18: 920750
B19: Earthing materials | C19: 10000 | D19: 10000 | E19: 15000 | F19: 20000 | G19: 30000 | H19: 10000 | I19: 30000 | J19: 15000 | K19: 30000 | L19: 15000 | M19: 30000
B20: Civil work | C20: 60000 | D20: 80000 | E20: 100000 | F20: 150000 | G20: 175000 | H20: 80000 | I20: 200000 | J20: 125000 | K20: 400000 | L20: 125000 | M20: 400000
B21: Erection, commissioning and training | C21: 30000 | D21: 30000 | E21: 30000 | F21: 50000 | G21: 50000 | H21: 30000 | I21: 50000 | J21: 80000 | K21: 100000 | L21: 80000 | M21: 100000
B22: Cost of site related work | C22: 100000 | D22: 120000 | E22: 145000 | F22: 220000 | G22: 255000 | H22: 120000 | I22: 280000 | J22: 220000 | K22: 530000 | L22: 220000 | M22: 530000
B23: Total installed cost of BGPP | C23: 359080 | D23: 461630 | E23: 689830 | F23: 1189010 | G23: 1363710 | H23: 601330 | I23: 2593940 | J23: 684185 | K23: 1906680 | L23: 734985 | M23: 2433730
B24: LT electricity distribution network | C24: 250000 | D24: 250000 | E24: 250000 | F24: 375000 | G24: 375000 | H24: 250000 | I24: 375000 | J24: 250000 | K24: 375000 | L24: 250000 | M24: 375000
B25: Total cost including distribution network | C25: 609080 | D25: 711630 | E25: 939830 | F25: 1564010 | G25: 1738710 | H25: 851330 | I25: 2968940 | J25: 934185 | K25: 2281680 | L25: 984985 | M25: 2808730
B26: Cost of BGPP per kW of rated capacity | C26: 121816 | D26: 71163 | E26: 46992 | F26: 52134 | G26: 43468 | H26: 94592 | I26: 74224 | J26: 93419 | K26: 57042 | L26: 98499 | M26: 70218
H28: Exchange rate | J28: 0.5998 | K28: Baht/Rs | L28: Unit: Baht of Thailand
B29: Manufacturer of BGPP | C29: Manufacturer I | J29: Manufacturer II
B30: Type of engine | C30: Dual fuel engine | H30: 100% producer gas engine | J30: Dual fuel engine | L30: 100% producer gas engine
B31: Rated capacity of BGPP (kW) | C31: 5 | D31: 10 | E31: 20 | F31: 30 | G31: 40 | H31: 9 | I31: 40 | J31: 10 | K31: 40 | L31: 10 | M31: 40
B32: Gasifier with accessories | C32: =C6*$J$28 -> 45584.8 | D32: =D6*$J$28 -> 56981 | E32: 86971 | F32: 179940 | G32: 227924 | H32: 86971 | I32: 419860 | J32: 137954 | K32: 305898 | L32: 149950 | M32: 359880
B33: Biomass cutter | C33: =C7*$J$28 -> 7197.6 | D33: 7197.6 | E33: 7197.6 | F33: 11996 | G33: 11996 | H33: 7197.6 | I33: 11996 | J33: 4498.5 | K33: 4498.5 | L33: 4498.5 | M33: 4498.5
B34: Biomass dryer | C34: 5398.2 | D34: 5398.2 | E34: 5398.2 | F34: 23992 | G34: 23992 | H34: 5398.2 | I34: 29990 | J34: 5998 | K34: 20993 | L34: 5998 | M34: 20993
B35: Moisture meter | C35: 1799.4 | D35: 1799.4 | E35: 1799.4 | F35: 1799.4 | G35: 1799.4 | H35: 1799.4 | I35: 1799.4 | J35: 2999 | K35: 2999 | L35: 2999 | M35: 2999
B36: Chain pulley block | C36: 0 | D36: 0 | E36: 0 | F36: 5998 | G36: 5998 | H36: 0 | I36: 5998 | J36: 1799.4 | K36: 3898.7 | L36: 1799.4 | M36: 3898.7
B37: Water cooling system | C37: 5998 | D37: 5998 | E37: 8997 | F37: 8997 | G37: 8997 | H37: 5998 | I37: 14995 | J37: 0 | K37: 17994 | L37: 0 | M37: 17994
B38: Other accessories | C38: 0 | D38: 0 | E38: 0 | F38: 0 | G38: 0 | H38: 0 | I38: 0 | J38: 29990 | K38: 53982 | L38: 29990 | M38: 53982
B39: Taxes and duties | C39: 17814.06 | D39: 20891.034 | E39: 29798.064 | F39: 62835.048 | G39: 75790.728 | H39: 28988.334 | I39: 130852.368 | J39: 49474.503 | K39: 110771.064 | L39: 52713.423 | M39: 125346.204
B40: Total cost of biomass gasifier | C40: 83792.06 | D40: 98265.234 | E40: 140161.264 | F40: 295557.448 | G40: 356497.128 | H40: 136352.534 | I40: 615490.768 | J40: 232713.403 | K40: 521034.264 | L40: 247948.323 | M40: 589591.404
B41: Engine–generator set | C41: 56381.2 | D41: 83972 | E41: 146951 | F41: 224925 | G41: 242919 | H41: 119960 | I41: 488237.2 | J41: 35988 | K41: 239920 | L41: 47984 | M41: 434855
B42: Accessories | C42: 0 | D42: 0 | E42: 0 | F42: 0 | G42: 0 | H42: 0 | I42: 59980 | J42: 0 | K42: 0 | L42: 0 | M42: 0
B43: Taxes and duties | C43: 15222.924 | D43: 22672.44 | E43: 39676.77 | F43: 60729.75 | G43: 65588.13 | H43: 32389.2 | I43: 164213.244 | J43: 9716.76 | K43: 64778.4 | L43: 12955.68 | M43: 117410.85
B44: Total cost of engine–generator set | C44: 71604.124 | D44: 98265.234 | E44: 186627.77 | F44: 285654.75 | G44: 308507.13 | H44: 152349.2 | I44: 772410.444 | J44: 45704.76 | K44: 304698.4 | L44: 60939.68 | M44: 552265.85
B45: Earthing materials | C45: 5998 | D45: 5998 | E45: 8997 | F45: 11996 | G45: 17994 | H45: 5998 | I45: 17994 | J45: 8997 | K45: 17994 | L45: 8997 | M45: 17994
B46: Civil work | C46: 35988 | D46: 47984 | E46: 59980 | F46: 89970 | G46: 104965 | H46: 47984 | I46: 119960 | J46: 74975 | K46: 239920 | L46: 74975 | M46: 239920
B47: Erection, commissioning and training | C47: 17994 | D47: 17994 | E47: 17994 | F47: 29990 | G47: 29990 | H47: 17994 | I47: 29990 | J47: 47984 | K47: 59980 | L47: 47984 | M47: 59980
B48: Cost of site related work | C48: 59980 | D48: 71976 | E48: 86971 | F48: 131956 | G48: 152949 | H48: 71976 | I48: 167944 | J48: 131956 | K48: 317894 | L48: 131956 | M48: 317894
B49: Total installed cost of BGPP | C49: =C23*$J$28 -> 215376.184 | D49: 276885.674 | E49: 413760.034 | F49: 713168.198 | G49: 817953.258 | H49: 360677.734 | I49: 1555845.212 | J49: 410374.163 | K49: 1143626.664 | L49: 440844.003 | M49: 1459751.254
B50: LT electricity distribution network | C50: 149950 | D50: 149950 | E50: 149950 | F50: 224925 | G50: 224925 | H50: 149950 | I50: 224925 | J50: 149950 | K50: 224925 | L50: 149950 | M50: 224925
B51: Total cost including distribution network | C51: 365326.184 | D51: 426835.674 | E51: 563710.034 | F51: 938093.198 | G51: 1042878.258 | H51: 510627.734 | I51: 1780770.212 | J51: 560324.163 | K51: 1368551.664 | L51: 590794.003 | M51: 1684676.254
B52: Cost of BGPP per kW of rated capacity | C52: 73065.2368 | D52: 42683.5674 | E52: 28185.8016 | F52: 31269.9732 | G52: 26072.1064 | H52: 56736.2816 | I52: 44519.5552 | J52: 56032.7162 | K52: 34213.7916 | L52: 59079.7002 | M52: 42116.7564
H55: Exchange rate | J55: 30.7775 | K55: Baht/USD | AF55: Unit: USD
B56: Manufacturer of BGPP | C56: Manufacturer I by Nouni et al, 2007 | J56: Manufacturer II by Nouni et al, 2007 | N56: Arena et al, 2010 | Z56: Leung, Yin, & Wu, 2004 | AE56: Buchholz et al. n.d.
B57: Type of engine | C57: Dual fuel engine | H57: 100% producer gas engine | J57: Dual fuel engine | L57: 100% producer gas engine | N57: Bubbling Fluidized Bed Gasifier+ Gas engine | T57: Bubbling Fluidized Bed Gasifier+ Externally Fired Gas turbine | Z57: Circulating Fluidized Bed & 100% producer gas engine | AE57: Downdraft Gasifier and Gas engine (250kW and 10kW capacity)
B58: Rated capacity of BGPP (kW) | C58: 5 | D58: 10 | E58: 20 | F58: 30 | G58: 40 | H58: 9 | I58: 40 | J58: 10 | K58: 40 | L58: 10 | M58: 40 | N58: 100 | O58: 200 | P58: 300 | Q58: 400 | R58: 500 | S58: 600 | T58: 100 | U58: 200 | V58: 300 | W58: 400 | X58: 500 | Y58: 600 | Z58: 200 | AA58: 600 | AB58: 1000 | AC58: 1500 | AD58: 2000 | AE58: 10 | AF58: 87 | AG58: 220
B59: Gasifier with accessories | C59: =C32/$J$55 -> 1481.107952 | D59: =D32/$J$55 -> 1851.38494 | E59: 2825.798067 | F59: 5846.478759 | G59: 7405.539761 | H59: 2825.798067 | I59: 13641.78377 | J59: 4482.300382 | K59: 9939.01389 | L59: =L32/$J$55 -> 4872.065632 | M59: =M32/$J$55 -> 11692.95752 | Z59: =19.7*1000 -> 19700 | AA59: 43000 | AB59: =61.5*1000 -> 61500 | AC59: =73.8*1000 -> 73800 | AD59: =86.1*1000 -> 86100 | AF59: =99651*50% -> 49825.5 | AG59: 99651
B60: Biomass cutter | C60: =C33/$J$55 -> 233.8591504 | D60: 233.8591504 | E60: 233.8591504 | F60: 389.7652506 | G60: 389.7652506 | H60: 233.8591504 | I60: 389.7652506 | J60: 146.161969 | K60: 146.161969 | L60: 146.161969 | M60: 146.161969 | AF60: =35000*50% -> 17500 | AG60: 35000
B61: Biomass dryer | C61: 175.3943628 | D61: 175.3943628 | E61: 175.3943628 | F61: 779.5305012 | G61: 779.5305012 | H61: 175.3943628 | I61: 974.4131265 | J61: 194.8826253 | K61: 682.0891885 | L61: 194.8826253 | M61: 682.0891885
B62: Moisture meter | C62: 58.46478759 | D62: 58.46478759 | E62: 58.46478759 | F62: 58.46478759 | G62: 58.46478759 | H62: 58.46478759 | I62: 58.46478759 | J62: 97.44131265 | K62: 97.44131265 | L62: 97.44131265 | M62: 97.44131265
B63: Chain pulley block | C63: 0 | D63: 0 | E63: 0 | F63: 194.8826253 | G63: 194.8826253 | H63: 0 | I63: 194.8826253 | J63: 58.46478759 | K63: 126.6737064 | L63: 58.46478759 | M63: 126.6737064
B64: Water cooling system | C64: 194.8826253 | D64: 194.8826253 | E64: 292.3239379 | F64: 292.3239379 | G64: 292.3239379 | H64: 194.8826253 | I64: 487.2065632 | J64: 0 | K64: 584.6478759 | L64: 0 | M64: 584.6478759
B65: Other accessories | C65: 0 | D65: 0 | E65: 0 | F65: 0 | G65: 0 | H65: 0 | I65: 0 | J65: 974.4131265 | K65: 1753.943628 | L65: 974.4131265 | M65: 1753.943628
B66: Taxes and duties | C66: 578.8013971 | D66: 678.7761839 | E66: 968.1768825 | F66: 2041.590383 | G66: 2462.536853 | H66: 941.867728 | I66: 4251.559353 | J66: 1607.489335 | K66: 3599.092324 | L66: 1712.725952 | M66: 4072.657103
B67: Sub-total cost of biomass gasifier | C67: 2722.510275 | D67: 3192.76205 | E67: 4554.017188 | F67: 9603.036244 | G67: 11583.04372 | H67: 4430.266721 | I67: 19998.07548 | J67: 7561.153537 | K67: 16929.06389 | L67: 8056.155406 | M67: 19156.5723 | Z67: =SUM(Z59:Z66) -> 19700 | AA67: =SUM(AA59:AA66) -> 43000 | AB67: =SUM(AB59:AB66) -> 61500 | AC67: =SUM(AC59:AC66) -> 73800 | AD67: =SUM(AD59:AD66) -> 86100 | AF67: =SUM(AF59:AF66) -> 67325.5 | AG67: =SUM(AG59:AG66) -> 134651
B68: Engine–generator set | C68: 1831.896678 | D68: 2728.356754 | E68: 4774.62432 | F68: 7308.098449 | G68: 7892.746324 | H68: 3897.652506 | I68: 15863.4457 | J68: 1169.295752 | K68: 7795.305012 | L68: 1559.061002 | M68: 14128.99033 | Z68: =43*1000 -> 43000 | AA68: =129.1*1000 -> 129100 | AB68: =215.2*1000 -> 215200 | AC68: =295.2*1000 -> 295200 | AD68: =393.6*1000 -> 393600 | AF68: =129547*50% -> 64773.5 | AG68: 129547
B69: Diesel generator | AG69: =AF69-17000 -> -17000
B70: Accessories | C70: =C42/$J$55 -> 0 | D70: 0 | E70: 0 | F70: 0 | G70: 0 | H70: 0 | I70: 1948.826253 | J70: 0 | K70: 0 | L70: 0 | M70: 0 | AG70: 20000
B71: Taxes and duties | C71: 494.612103 | D71: 736.6563236 | E71: 1289.148566 | F71: 1973.186581 | G71: 2131.041508 | H71: 1052.366177 | I71: 5335.496515 | J71: 315.709853 | K71: 2104.732353 | L71: 420.9464706 | M71: 3814.82739
B72: Sub-total cost of engine–generator set | C72: 2326.508781 | D72: 3192.76205 | E72: 6063.772886 | F72: 9281.28503 | G72: 10023.78783 | H72: 4950.018682 | I72: 25096.59472 | J72: 1485.005605 | K72: 9900.037365 | L72: 1980.007473 | M72: 17943.81772 | Z72: =SUM(Z68:Z71) -> 43000 | AA72: =SUM(AA68:AA71) -> 129100 | AB72: =SUM(AB68:AB71) -> 215200 | AC72: =SUM(AC68:AC71) -> 295200 | AD72: =SUM(AD68:AD71) -> 393600 | AF72: =SUM(AF68:AF71) -> 64773.5 | AG72: =SUM(AG68:AG71) -> 132547
B73: Feasibility study | AG73: 40000
B74: Development and Engineering
B75: Earthing materials | C75: =C45/$J$55 -> 194.8826253 | D75: 194.8826253 | E75: 292.3239379 | F75: 389.7652506 | G75: 584.6478759 | H75: 194.8826253 | I75: 584.6478759 | J75: 292.3239379 | K75: 584.6478759 | L75: 292.3239379 | M75: 584.6478759
B76: Civil work (Building, water pool, etc.) | C76: 1169.295752 | D76: 1559.061002 | E76: 1948.826253 | F76: 2923.239379 | G76: 3410.445943 | H76: 1559.061002 | I76: 3897.652506 | J76: 2436.032816 | K76: 7795.305012 | L76: 2436.032816 | M76: 7795.305012 | Z76: =12.4*1000 -> 12400 | AA76: =(12.3+24.6)*1000 -> 36900 | AB76: =(18.4+36.9)*1000 -> 55300 | AC76: =(24.6+49.2)*1000 -> 73800 | AD76: =(61.5+36.9)*1000 -> 98400 | AF76: =30000*50% -> 15000 | AG76: 30000
B77: Installation,Erection, commissioning and training | C77: 584.6478759 | D77: 584.6478759 | E77: 584.6478759 | F77: 974.4131265 | G77: 974.4131265 | H77: 584.6478759 | I77: 974.4131265 | J77: 1559.061002 | K77: 1948.826253 | L77: 1559.061002 | M77: 1948.826253 | Z77: =11.1*1000 -> 11100 | AA77: =(18.4+12.3)*1000 -> 30700 | AB77: =(24.6+12.3)*1000 -> 36900 | AC77: =(36.9+12.3)*1000 -> 49200 | AD77: =(49.2+12.3)*1000 -> 61500 | AF77: =(60000+4000)*50% -> 32000 | AG77: =60000+4000 -> 64000
B78: Shipping, Duty, Insurrance, clearance | AG78: =10000+10000 -> 20000
B79: Sub-total cost of site related work | C79: =SUM(C73:C78) -> 1948.826253 | D79: 2338.591504 | E79: 2825.798067 | F79: 4287.417756 | G79: 4969.506945 | H79: 2338.591504 | I79: 5456.713508 | J79: 4287.417756 | K79: 10328.77914 | L79: 4287.417756 | M79: 10328.77914 | Z79: =SUM(Z73:Z78) -> 23500 | AA79: 67600 | AB79: 92200 | AC79: 123000 | AD79: 159900 | AE79: 0 | AF79: =SUM(AF73:AF78) -> 47000 | AG79: =SUM(AG73:AG78) -> 154000
B80: Total installation cost of BGPP | C80: =C67+C72+C79 -> 6997.845309 | D80: =D67+D72+D79 -> 8724.115604 | E80: 13443.58814 | F80: 23171.73903 | G80: 26576.33849 | H80: 11718.87691 | I80: 50551.38371 | J80: 13333.5769 | K80: 37157.8804 | L80: 14323.58064 | M80: 47429.16917 | N80: =900000*40.7124/30.6212 -> 1196594.516 | O80: =6000*O58*40.7124/30.6212 -> 1595459.355 | P80: =1500000*40.7124/30.6212 -> 1994324.194 | Q80: =1750000*40.7124/30.6212 -> 2326711.559 | R80: =2000000*40.7124/30.6212 -> 2659098.925 | S80: =2200000*40.7124/30.6212 -> 2925008.817 | T80: =1000000*40.7124/30.6212 -> 1329549.462 | U80: =7600*U58*40.7124/30.6212 -> 2020915.183 | V80: =2000000*40.7124/30.6212 -> 2659098.925 | W80: =2250000*40.7124/30.6212 -> 2991486.291 | X80: =2600000*40.7124/30.6212 -> 3456828.602 | Y80: =2900000*40.7124/30.6212 -> 3855693.441 | Z80: =Z67+Z72+Z79 -> 86200 | AA80: =AA67+AA72+AA79 -> 239700 | AB80: =AB67+AB72+AB79 -> 368900 | AC80: =AC67+AC72+AC79 -> 492000 | AD80: =AD67+AD72+AD79 -> 639600 | AE80: =2890*AE58 -> 28900 | AF80: =AF67+AF72+AF79 -> 179099 | AG80: =AG67+AG72+AG79 -> 421198
B81: LT electricity distribution network | C81: =C50/$J$55 -> 4872.065632 | D81: 4872.065632 | E81: 4872.065632 | F81: 7308.098449 | G81: 7308.098449 | H81: 4872.065632 | I81: 7308.098449 | J81: 4872.065632 | K81: 7308.098449 | L81: 4872.065632 | M81: 7308.098449 | N81: 0 | O81: 0 | P81: 0 | Q81: 0 | R81: 0 | S81: 0 | T81: 0 | U81: 0 | V81: 0 | W81: 0 | X81: 0 | Y81: 0 | Z81: 0 | AA81: 0 | AB81: 0 | AC81: 0 | AD81: 0 | AE81: 0 | AF81: 0 | AG81: 0
B82: Total cost including distribution network | C82: 11869.91094 | D82: 13868.43226 | E82: 18315.65377 | F82: 30479.83748 | G82: 33884.43694 | H82: 16590.94254 | I82: 57859.48215 | J82: 18205.64253 | K82: 44465.97885 | L82: 19195.64627 | M82: 54737.26761 | N82: =SUM(N80:N81) -> 1196594.516 | O82: 1595459.355 | P82: 1994324.194 | Q82: 2326711.559 | R82: 2659098.925 | S82: 2925008.817 | T82: 1329549.462 | U82: 2020915.183 | V82: 2659098.925 | W82: 2991486.291 | X82: 3456828.602 | Y82: 3855693.441 | Z82: 86200 | AA82: =SUM(AA80:AA81) -> 239700 | AB82: 368900 | AC82: 492000 | AD82: 639600 | AE82: 28900 | AF82: 179099 | AG82: 421198
B83: Cost of BGPP per kW of rated capacity | C83: 2373.982188 | D83: 1386.843226 | E83: 915.7924328 | F83: 1016.001079 | G83: 847.1157956 | H83: 1843.433729 | I83: 1446.496798 | J83: 1820.573997 | K83: 1111.649471 | L83: 1919.574371 | M83: 1368.426818 | N83: =N82/N58 -> 11965.94516 | O83: =O82/O58 -> 7977.296775 | P83: 6647.747312 | Q83: 5816.778898 | R83: 5318.19785 | S83: 4875.014696 | T83: 13295.49462 | U83: 10104.57591 | V83: 8863.663083 | W83: 7478.715726 | X83: 6913.657205 | Y83: 6426.155735 | Z83: 431 | AA83: 399.5 | AB83: 368.9 | AC83: 328 | AD83: 319.8 | AE83: 2890 | AF83: 2058.609195 | AG83: 1914.536364
AF85: Unit: USD
B86: Manufacturer of BGPP | C86: Manufacturer I by Nouni et al, 2007 | J86: Manufacturer II by Nouni et al, 2007 | N86: Arena et al, 2010 | Z86: Leung, Yin, & Wu, 2004 | AE86: Buchholz et al. n.d.
B87: Type of engine | C87: Dual fuel engine | H87: 100% producer gas engine | J87: Dual fuel engine | L87: 100% producer gas engine | N87: Bubbling Fluidized Bed Gasifier+ Gas engine | T87: Bubbling Fluidized Bed Gasifier+ Externally Fired Gas turbine | Z87: Circulating Fluidized Bed & 100% producer gas engine | AE87: Downdraft Gasifier and Gas engine (250kW and 10kW capacity)
B88: Rated capacity of BGPP (kW) | C88: 5 | D88: 10 | E88: 20 | F88: 30 | G88: 40 | H88: 9 | I88: 40 | J88: 10 | K88: 40 | L88: 10 | M88: 40 | N88: 100 | O88: 200 | P88: 300 | Q88: 400 | R88: 500 | S88: 600 | T88: 100 | U88: 200 | V88: 300 | W88: 400 | X88: 500 | Y88: 600 | Z88: 200 | AA88: 600 | AB88: 1000 | AC88: 1500 | AD88: 2000 | AE88: 8 | AF88: 87 | AG88: 220
B89: Operating hours per year | C89: ='Data Entry Needs'!#REF! ->  | D89: ='Data Entry Needs'!#REF! ->  | E89: ='Data Entry Needs'!#REF! ->  | F89: ='Data Entry Needs'!#REF! ->  | G89: ='Data Entry Needs'!#REF! ->  | H89: ='Data Entry Needs'!#REF! ->  | I89: ='Data Entry Needs'!#REF! ->  | J89: ='Data Entry Needs'!#REF! ->  | K89: ='Data Entry Needs'!#REF! ->  | L89: =+COST_RES1!$H$34 -> 0 | M89: =+COST_RES1!$J$34 -> 0 | Z89: 5000 | AA89: 5000 | AB89: 5000 | AC89: 5000 | AD89: 5000
B90: Electrical conversion Efficiency | C90: ='Data Entry Needs'!#REF! ->  | D90: ='Data Entry Needs'!#REF! ->  | E90: ='Data Entry Needs'!#REF! ->  | F90: ='Data Entry Needs'!#REF! ->  | G90: ='Data Entry Needs'!#REF! ->  | H90: ='Data Entry Needs'!#REF! ->  | I90: ='Data Entry Needs'!#REF! ->  | J90: ='Data Entry Needs'!#REF! ->  | K90: ='Data Entry Needs'!#REF! ->  | L90: =+COST_RES1!$I$18 -> 0 | M90: =+COST_RES1!$I$18 -> 0
B91: Electric generation (kWh per year) | C91: =C88*C89*C90 ->  | D91: =D88*D89*D90 ->  | E91: =E88*E89*E90 ->  | L91: 0 | M91: 0
B93: Operating & Maintenance cost
B94: Raw material cost
A95: 1 | B95: Land cost
A96: 2 | B96: Biomass cost (US$ per year) | C96: =C99*C98 ->  | D96: =D99*D98 ->  | L96: 0 | M96: 0
B97: Specific Biomass conversion rate (kWh per kg) | C97: =1/1.1 -> 0.9090909091 | D97: =1/1.1 -> 0.9090909091 | E97: =1/1.1 -> 0.9090909091 | F97: =1/1.1 -> 0.9090909091 | G97: =1/1.1 -> 0.9090909091 | H97: =1/1.4 -> 0.7142857143 | I97: =1/1.4 -> 0.7142857143 | J97: =1/1.1 -> 0.9090909091 | K97: =1/1.1 -> 0.9090909091 | L97: =1/1.4 -> 0.7142857143 | M97: =1/1.4 -> 0.7142857143
B98: Biomass consumption (kg per year) | C98: =C91/C97 ->  | D98: =D91/D97 ->  | L98: 0 | M98: 0
B99: Biomass price (US$ per kg) | C99: =1.5*$J$28/$J$55 -> 0.02923239379 | D99: =1.5*$J$28/$J$55 -> 0.02923239379 | E99: 0.02923239379 | F99: 0.02923239379 | G99: 0.02923239379 | H99: 0.02923239379 | I99: 0.02923239379 | J99: 0.02923239379 | K99: 0.02923239379 | L99: 0.02923239379 | M99: 0.02923239379
A100: 3 | B100: Water cost (US$ per year)
B101: Specific water conversion rate (kWh per m3)
B102: Water consumption (m3 per year)
B103: Water price (US$ per m3)
A104: 4 | B104: Chemical cost (US$ per year)
B105: Specific chemical conversion rate (kWh per kg)
B106: Chemical consumption (kg per year)
B107: Chemical price (US$ per kg)
A108: 5 | B108: Diesel cost (US$ per year) | C108: =C110*C111 ->  | D108: =D110*D111 ->  | J108: =J110*J111 ->  | L108: 0 | M108: 0
B109: Specific diesel conversion rate (kWh per liter) | C109: =1/0.11 -> 9.090909091 | D109: =1/0.11 -> 9.090909091 | E109: =1/0.11 -> 9.090909091 | F109: =1/0.11 -> 9.090909091 | G109: =1/0.11 -> 9.090909091 | H109: =(1/0.11)*1.9 -> 17.27272727 | I109: =(1/0.11)*1.9 -> 17.27272727 | J109: =1/0.11 -> 9.090909091 | K109: =1/0.11 -> 9.090909091 | L109: =(1/0.11)*1.9 -> 17.27272727 | M109: =(1/0.11)*1.9 -> 17.27272727
B110: Diesel consumption (liters per year) | C110: =C91/C109 ->  | D110: =D91/D109 ->  | J110: =J91/J109 ->  | K110: =K91/K109 ->  | L110: =L91/L109 -> 0 | M110: =M91/M109 -> 0
B111: Diesel price (US$ per liter) | C111: =30.45*$J$28/$J$55 -> 0.593417594 | D111: =30.45*$J$28/$J$55 -> 0.593417594 | E111: 0.593417594 | F111: 0.593417594 | G111: 0.593417594 | H111: 0.593417594 | I111: 0.593417594 | J111: 0.593417594 | K111: 0.593417594 | L111: 0.593417594 | M111: 0.593417594
A112: 6 | B112: Auxiliary power consumption | C112: =10%*C88*C89*(24.99*$J$28/$J$55) ->  | D112: =10%*D88*D89*(16.84*$J$28/$J$55) ->  | E112: =10%*E88*E89*(13.28*$J$28/$J$55) ->  | F112: =10%*F88*F89*(14.54*$J$28/$J$55) ->  | G112: =10%*G88*G89*(13.14*$J$28/$J$55) ->  | H112: =10%*H88*H89*(18.53*$J$28/$J$55) ->  | I112: =10%*I88*I89*(15.02*$J$28/$J$55) ->  | J112: =10%*J88*J89*(16.84*$J$28/$J$55) ->  | K112: =10%*K88*K89*(13.14*$J$28/$J$55) ->  | L112: =10%*L88*L89*(18.53*$J$28/$J$55) -> 0 | M112: =10%*M88*M89*(15.02*$J$28/$J$55) -> 0
B113: Sub-total raw material cost | C113: =C95+C96+C100+C104+C108+C112 ->  | D113: =D95+D96+D100+D104+D108+D112 ->  | L113: 0 | M113: 0 | N113: =SUM(N94:N112) -> 0 | O113: 0 | P113: 0 | Q113: 0 | R113: 0 | S113: 0 | T113: 0 | U113: 0 | V113: 0 | W113: 0 | X113: 0 | Y113: 0 | Z113: 5500 | AA113: 16600 | AB113: 27700 | AC113: 38600 | AD113: 51600 | AE113: 0 | AF113: 0 | AG113: 0
B115: Labor cost
B116: Engineer
B117: Assistant, skilled | C117: =15*5000*$J$28/$J$55 -> 1461.61969 | D117: =15*5000*$J$28/$J$55 -> 1461.61969 | E117: 1461.61969 | F117: =2*15*5000*$J$28/$J$55 -> 2923.239379 | G117: =2*15*5000*$J$28/$J$55 -> 2923.239379 | H117: 1461.61969 | I117: =2*15*5000*$J$28/$J$55 -> 2923.239379 | J117: 1461.61969 | K117: =2*15*5000*$J$28/$J$55 -> 2923.239379 | L117: 1461.61969 | M117: =2*15*5000*$J$28/$J$55 -> 2923.239379
B118: Assistant, unskilled
B119: Indirect labor cost
B120: Sub-total labor cost | C120: =SUM(C115:C119) -> 1461.61969 | D120: =SUM(D115:D119) -> 1461.61969 | E120: 1461.61969 | F120: 2923.239379 | G120: 2923.239379 | H120: 1461.61969 | I120: 2923.239379 | J120: 1461.61969 | K120: 2923.239379 | L120: 1461.61969 | M120: 2923.239379 | N120: 0 | O120: 0 | P120: 0 | Q120: 0 | R120: 0 | S120: 0 | T120: 0 | U120: 0 | V120: 0 | W120: 0 | X120: 0 | Y120: 0 | Z120: 12200 | AA120: 24500 | AB120: 36900 | AC120: 43000 | AD120: 49100 | AE120: 14237 | AF120: 17275 | AG120: 17497
B122: Maintenance cost
B123: Maintenance of Gasifier system | C123: =0.05*C67 -> 136.1255138 | D123: =0.05*D67 -> 159.6381025 | E123: 227.7008594 | F123: 480.1518122 | G123: 579.1521859 | H123: 221.513336 | I123: 999.9037739 | J123: 378.0576769 | K123: 846.4531947 | L123: 402.8077703 | M123: 957.8286151
B124: Maintenance of Gas engine system | C124: =0.1*C72 -> 232.6508781 | D124: =0.1*D72 -> 319.276205 | E124: 606.3772886 | F124: 928.128503 | G124: 1002.378783 | H124: 495.0018682 | I124: 2509.659472 | J124: 148.5005605 | K124: 990.0037365 | L124: 198.0007473 | M124: 1794.381772
B125: Maintenance of Electrical distribution network | C125: =0.03*C81 -> 146.161969 | D125: =0.03*D81 -> 146.161969 | E125: 146.161969 | F125: 219.2429535 | G125: 219.2429535 | H125: 146.161969 | I125: 219.2429535 | J125: 146.161969 | K125: 219.2429535 | L125: 146.161969 | M125: 219.2429535
B126: Maintenance of Civil work | C126: =0.02*C76 -> 23.38591504 | D126: =0.02*D76 -> 31.18122005 | E126: 38.97652506 | F126: 58.46478759 | G126: 68.20891885 | H126: 31.18122005 | I126: 77.95305012 | J126: 48.72065632 | K126: 155.9061002 | L126: 48.72065632 | M126: 155.9061002
B127: others
B128: Sub-total maintenance cost | C128: =SUM(C123:C127) -> 538.3242759 | D128: =SUM(D123:D127) -> 656.2574965 | E128: 1019.216642 | F128: 1685.988056 | G128: 1868.982841 | H128: 893.8583933 | I128: 3806.759249 | J128: 721.4408626 | K128: 2211.605985 | L128: 795.6911429 | M128: 3127.359441 | N128: 0 | O128: 0 | P128: 0 | Q128: 0 | R128: 0 | S128: 0 | T128: 0 | U128: 0 | V128: 0 | W128: 0 | X128: 0 | Y128: 0 | Z128: 1800 | AA128: 4900 | AB128: 7400 | AC128: 9900 | AD128: 12300 | AE128: 0 | AF128: 48030 | AG128: 31175
B130: Total Operating & Maintenance cost | C130: =C113+C120+C128 ->  | D130: =D113+D120+D128 ->  | L130: 2257.310833 | M130: 6050.598821 | N130: =150000*40.7124/30.6212 -> 199432.4194 | O130: =940*O88*40.7124/30.6212 -> 249955.2989 | P130: =225000*40.7124/30.6212 -> 299148.6291 | Q130: =260000*40.7124/30.6212 -> 345682.8602 | R130: =300000*40.7124/30.6212 -> 398864.8387 | S130: =340000*40.7124/30.6212 -> 452046.8172 | T130: =100000*40.7124/30.6212 -> 132954.9462 | U130: =690*U88*40.7124/30.6212 -> 183477.8258 | V130: =175000*40.7124/30.6212 -> 232671.1559 | W130: =220000*40.7124/30.6212 -> 292500.8817 | X130: =260000*40.7124/30.6212 -> 345682.8602 | Y130: =290000*40.7124/30.6212 -> 385569.3441 | Z130: 19500 | AA130: 46000 | AB130: 72000 | AC130: 91500 | AD130: 113000 | AE130: 14237 | AF130: 65305 | AG130: 48672
B131: O&M cost per kW of rate capacity | C131: =C130/C88 ->  | D131: =D130/D88 ->  | L131: 225.7310833 | M131: 151.2649705 | N131: 1994.324194 | O131: 1249.776495 | P131: 997.1620968 | Q131: 864.2071506 | R131: 797.7296775 | S131: 753.4113621 | T131: 1329.549462 | U131: 917.3891291 | V131: 775.5705198 | W131: 731.2522044 | X131: 691.3657205 | Y131: 642.6155735 | Z131: 97.5 | AA131: 76.66666667 | AB131: 72 | AC131: 61 | AD131: 56.5 | AE131: 1779.625 | AF131: 750.6321839 | AG131: 221.2363636

Sheet STORAGE_RES1 (hidden)
C3: =UPPER("storage calculator FOR GASIFICATION+RURAL ELECTRIFICATION FROM "&'Data Entry Needs'!$G$11&" "&'Data Entry Needs'!$G$12) -> STORAGE CALCULATOR FOR GASIFICATION+RURAL ELECTRIFICATION FROM PLEASE SELECT PLEASE SELECT
C6: Biomass safety stock rate definition
F8: Electricity Production Capacities (kW)
D9: =title116 -> Unit | F9: 10 | I9: 40 | L9: 100
C10: Biomass consumption | D10: t/year | F10: =+COST_RES1!$G$39 ->  | I10: =+COST_RES1!$I$39 ->  | L10: =+COST_RES1!$K$39 -> 
D11: t/month | F11: =F10/12 ->  | I11: =I10/12 ->  | L11: =L10/12 -> 
D12: t/day | F12: =F10/365 ->  | I12: =I10/365 ->  | L12: =L10/365 -> 
C14: Biomass production within a specific distance | D14: t/year | F14: =+'Data Entry Needs'!$D$13 -> 0 | I14: =+'Data Entry Needs'!$D$13 -> 0 | L14: =+'Data Entry Needs'!$D$13 -> 0
C16: Biomass safety stock rate | F16: =+F17/100 -> 0.3 | I16: =+I17/100 -> 0.3 | L16: =+L17/100 -> 0.3
F17: 30 | I17: 30 | L17: 30
C18: Biomass stock pile capacity | D18: ts | F18: =+MAX(F25:F36) ->  | I18: =+MAX(I25:I36) ->  | L18: =+MAX(L25:L36) -> 
C20: Maximum storage definition
F22: Electricity Production Capacities (kW)
F23: =+F9 -> 10 | I23: =+I9 -> 40 | L23: =+L9 -> 100 | AD23: Depletion time definition
C24: Harvest Month Selection | D24: Storage Month | E24: Monthly Consumption (t/month) | F24: Biomass Stored (t) | G24: Storage Depletion (t/month) | H24: Monthly Consumption (t/month) | I24: Biomass Stored (t) | J24: Storage Depletion (t/month) | K24: Monthly Consumption (t/month) | L24: Biomass Stored (t) | M24: Storage Depletion (t/month) | AB24: Harvest Period | AC24: Harvest Period | AD24: Depletion term | AE24: Depletion month | AF24: EQ term | AG24: Depletion time | AH24: Storage term | AI24: Storage month | AJ24: EQ term | AK24: Storage time
C25: January | D25: =+IF($AC25=0,0,IF($AC25>$AC36,1,IF($AC25=$AC36,$D36+1,IF($AC36>$AC25,0)))) -> 1 | E25: =+F$11 ->  | F25: =+IF(AND($D$25=1,$D$36=0,$D$26=0),$F$11*$AG25+$F$11*$F$16,IF(D25>0,($AG25*$F$11/$AK25)*$D25+$F$11*$F$16,0)) ->  | G25: =IF(AND($D$25=1,$D$36=0,$D$26=0),$F$11*11+$G$36-E25,IF($D25>0,IFERROR(($AG25*$F$11/$AK25)*$D25,"")+$F$11*$F$16,IF($D25=0,G36-E25))) ->  | H25: =+I$11 ->  | I25: =+IF(AND($D$25=1,$D$36=0,$D$26=0),$I$11*$AG25+$I$11*$I$16,IF($D25>0,($AG25*$I$11/$AK25)*$D25+$I$11*$I$16,0)) ->  | J25: =IF(AND($D$25=1,$D$36=0,$D$26=0),$I$11*11+J36-H25,IF($D25>0,IFERROR(($AG25*$I$11/$AK25)*$D25,"")+$I$11*$I$16,IF($D25=0,J36-H25))) ->  | K25: =+L$11 ->  | L25: =+IF(AND($D$25=1,$D$36=0,$D$26=0),$L$11*$AG25+$L$11*$L$16,IF($D25>0,($AG25*$L$11/$AK25)*$D25+$L$11*$I$16,0)) ->  | M25: =IF(AND($D$25=1,$D$36=0,$D$26=0),$L$11*11+M36-K25,IF($D25>0,IFERROR(($AG25*$L$11/$AK25)*$D25,"")+$L$11*$L$16,IF($D25=0,M36-K25))) ->  | AB25: TRUE | AC25: =+N(AB25) -> 1 | AD25: =+IF(AND(AC26>AC25,AC25=0),"Last"&AF25,"") ->  | AE25: =+IF($AC25=1,0,IF($AC25<$AC36,1,IF($AC25=$AC36,$AE36+1,IF($AC36>$AC25,1)))) -> 0 | AF25: 1 | AG25: =IFERROR(VLOOKUP("LAST"&AF25,$AD$25:$AE$36,2,FALSE),AK25) -> 2 | AH25: =+IF(AND(AI25>AI26,AI26=0),"Last"&AJ25,"") ->  | AI25: =+IF($AC25=0,0,IF($AC25>$AC36,1,IF($AC25=$AC36,$AI36+1,IF($AC36>$AC25,0)))) -> 1 | AJ25: 1 | AK25: =IFERROR(VLOOKUP("LAST"&AJ25,$AH$25:$AI$36,2,FALSE),VLOOKUP("LAST"&1,$AH$25:$AI$36,2,FALSE)) -> 2
C26: February | D26: =+IF($AC26=0,0,IF($AC26>$AC25,1,IF($AC26=$AC25,$D25+1,IF($AC25>$AC26,0)))) -> 2 | F26: =IF(D26>0,($AG26*$F$11/$AK26)*$D26+$F$11*$F$16,0) ->  | G26: =+IF($D26>0,IFERROR(($AG26*$F$11/$AK26)*$D26,"")+$F$11*$F$16,IF($D26=0,G25-E26)) ->  | I26: =IF($D26>0,($AG26*$I$11/$AK26)*$D26+$I$11*$I$16,0) ->  | J26: =+IF($D26>0,IFERROR(($AG26*$I$11/$AK26)*$D26,"")+$I$11*$I$16,IF($D26=0,J25-H26)) ->  | L26: =IF($D26>0,($AG26*$L$11/$AK26)*$D26+$L$11*$L$16,0) ->  | M26: =+IF($D26>0,IFERROR(($AG26*$L$11/$AK26)*$D26,"")+$L$11*$L$16,IF($D26=0,M25-K26)) ->  | AB26: TRUE | AC26: =+N(AB26) -> 1 | AD26: =+IF(AND(AC27>AC26,AC26=0),"Last"&AF26,"") ->  | AE26: =+IF($AC26=1,0,IF($AC26<$AC25,1,IF($AC26=$AC25,$AE25+1,IF($AC25>$AC26,1)))) -> 0 | AF26: =+IF($AE25>$AE26,$AF25+1,$AF25) -> 1 | AG26: =IFERROR(VLOOKUP("LAST"&AF26,$AD$25:$AE$36,2,FALSE),$AG$25) -> 2 | AH26: =+IF(AND(AI26>AI27,AI27=0),"Last"&AJ26,"") -> Last1 | AI26: =+IF($AC26=0,0,IF($AC26>$AC25,1,IF($AC26=$AC25,$AI25+1,IF($AC25>$AC26,0)))) -> 2 | AJ26: =+IF($AI25>$AI26,$AJ25+1,$AJ25) -> 1 | AK26: =IFERROR(VLOOKUP("LAST"&AJ26,$AH$25:$AI$36,2,FALSE),VLOOKUP("LAST"&1,$AH$25:$AI$36,2,FALSE)) -> 2
C27: March | D27: 0 | F27: 0 | I27: =IF($D27>0,($AG27*$I$11/$AK27)*$D27+$I$11*$I$16,0) -> 0 | L27: =IF($D27>0,($AG27*$L$11/$AK27)*$D27+$L$11*$L$16,0) -> 0 | AB27: FALSE | AC27: 0 | AD27: =+IF(AND(AC28>AC27,AC27=0),"Last"&AF27,"") ->  | AE27: 1 | AF27: =+IF($AE26>$AE27,$AF26+1,$AF26) -> 1 | AG27: 2 | AH27: =+IF(AND(AI27>AI28,AI28=0),"Last"&AJ27,"") ->  | AI27: =+IF($AC27=0,0,IF($AC27>$AC26,1,IF($AC27=$AC26,$AI26+1,IF($AC26>$AC27,0)))) -> 0 | AJ27: =+IF($AI26>$AI27,$AJ26+1,$AJ26) -> 2 | AK27: 2
C28: April | D28: 0 | F28: 0 | I28: 0 | L28: 0 | AB28: FALSE | AC28: 0 | AD28: =+IF(AND(AC29>AC28,AC28=0),"Last"&AF28,"") -> Last1 | AE28: 2 | AF28: =+IF($AE27>$AE28,$AF27+1,$AF27) -> 1 | AG28: 2 | AH28: =+IF(AND(AI28>AI29,AI29=0),"Last"&AJ28,"") ->  | AI28: 0 | AJ28: 2 | AK28: 2
C29: May | D29: 1 | AB29: TRUE | AC29: 1 | AE29: 0 | AF29: 2 | AG29: 3 | AH29: =+IF(AND(AI29>AI30,AI30=0),"Last"&AJ29,"") ->  | AI29: 1 | AJ29: 2 | AK29: 2
C30: June | D30: 2 | AB30: TRUE | AC30: 1 | AE30: 0 | AF30: 2 | AG30: 3 | AH30: Last2 | AI30: 2 | AJ30: 2 | AK30: 2
C31: July | D31: 0 | F31: 0 | I31: 0 | L31: 0 | AB31: FALSE | AC31: 0 | AE31: 1 | AF31: 2 | AG31: 3 | AI31: 0 | AJ31: 3 | AK31: 2
C32: August | D32: 0 | F32: 0 | I32: 0 | L32: 0 | AB32: FALSE | AC32: 0 | AE32: 2 | AF32: 2 | AG32: 3 | AI32: 0 | AJ32: 3 | AK32: 2
C33: September | D33: 0 | F33: 0 | I33: 0 | L33: 0 | AB33: FALSE | AC33: 0 | AD33: Last2 | AE33: 3 | AF33: 2 | AG33: 3 | AI33: 0 | AJ33: 3 | AK33: 2
C34: October | D34: 1 | AB34: TRUE | AC34: 1 | AE34: 0 | AF34: 3 | AG34: 1 | AI34: 1 | AJ34: 3 | AK34: 2
C35: November | D35: 2 | AB35: TRUE | AC35: 1 | AE35: 0 | AF35: 3 | AG35: 1 | AH35: Last3 | AI35: 2 | AJ35: 3 | AK35: 2
C36: December | D36: 0 | F36: 0 | I36: 0 | L36: 0 | AB36: FALSE | AC36: 0 | AD36: =+IF(AND(AC25>AC36,AC36=0),"Last"&AF36,"") -> Last3 | AE36: 1 | AF36: =+IF($AE35>$AE36,$AF35+1,$AF35) -> 3 | AG36: =IFERROR(VLOOKUP("LAST"&AF36,$AD$25:$AE$36,2,FALSE),$AG$25) -> 1 | AH36: =+IF(AND(AI36>AI25,AI25=0),"Last"&AJ36,"") ->  | AI36: =+IF($AC36=0,0,IF($AC36>$AC35,1,IF($AC36=$AC35,$AI35+1,IF($AC35>$AC36,0)))) -> 0 | AJ36: =+IF($AI35>$AI36,$AJ35+1,$AJ35) -> 4 | AK36: 2
D37: =+MAX(D25:D36)*30 -> 60
C38: Maximum Storage Capacity Required (ts) | F38: =ROUNDUP(MAX(F25:F36),0) ->  | G38: =ROUNDUP(MAX(G25:G36),0) ->  | AB38: No. Storage Months | AC38: =+COUNTIF(AC25:AC36,">0") -> 6
C39: Minimum Safety Storage (ts) | F39: =+ROUNDUP(MIN(G25:G36),0) ->  | I39: =+ROUNDUP(MIN(J25:J36),0) ->  | L39: =+ROUNDUP(MIN(M25:M36),0) ->  | AB39: Total Depletion Period | AC39: =12-AC38 -> 6
C41: Monthly Consumption of Biomass Stocked
AC43: =F23&" (kW)" -> 10 (kW) | AD43: =I23&" (kW)" -> 40 (kW) | AE43: =L23&" (kW)" -> 100 (kW)
AB44: =+LEFT(title384,3) -> Jan | AC44: =+G25 ->  | AD44: =+J25 ->  | AE44: =+M25 -> 
AB45: =+LEFT(title385,3) -> Feb
AB46: =+LEFT(title386,3) -> Mar
AB47: =+LEFT(title387,3) -> Apr
AB48: =+LEFT(title388,3) -> May
AB49: =+LEFT(title389,3) -> Jun
AB50: =+LEFT(title390,3) -> Jul | AC50: =+G31 ->  | AD50: =+J31 ->  | AE50: =+M31 -> 
AB51: =+LEFT(title391,3) -> Aug | AC51: =+G32 ->  | AD51: =+J32 ->  | AE51: =+M32 -> 
AB52: =+LEFT(title392,3) -> Sep | AC52: =+G33 ->  | AD52: =+J33 ->  | AE52: =+M33 -> 
AB53: =+LEFT(title393,3) -> Oct | AC53: =+G34 ->  | AD53: =+J34 ->  | AE53: =+M34 -> 
AB54: =+LEFT(title394,3) -> Nov | AC54: =+G35 ->  | AD54: =+J35 ->  | AE54: =+M35 -> 
AB55: =+LEFT(title395,3) -> Dec | AC55: =+G36 ->  | AD55: =+J36 ->  | AE55: =+M36 -> 

Sheet STORAGE_RES2 (hidden)
C3: =UPPER("storage calculator FOR GASIFICATION+RURAL ELECTRIFICATION FROM "&'Data Entry Needs'!$G$11&" "&'Data Entry Needs'!$G$12) -> STORAGE CALCULATOR FOR GASIFICATION+RURAL ELECTRIFICATION FROM PLEASE SELECT PLEASE SELECT
C6: Biomass safety stock rate definition
F8: Electricity Production Capacities (kW)
D9: =title116 -> Unit | F9: 10 | I9: 40 | L9: 100
C10: Biomass consumption | D10: t/year | F10: =+COST_RES2!$G$39 ->  | I10: =+COST_RES2!$I$39 ->  | L10: =+COST_RES2!$K$39 -> 
D11: t/month | F11: =F10/12 ->  | I11: =I10/12 ->  | L11: =L10/12 -> 
D12: t/day | F12: =F10/365 ->  | I12: =I10/365 ->  | L12: =L10/365 -> 
C14: Biomass production within a specific distance | D14: t/year | F14: =+COST_RES2!$E$10 -> 0 | I14: =+F14 -> 0 | L14: =I14 -> 0
C16: Biomass safety stock rate | F16: =+F17/100 -> 0.3 | I16: =+I17/100 -> 0.3 | L16: =+L17/100 -> 0.3
F17: 30 | I17: 30 | L17: 30
C18: Biomass stock pile capacity | D18: ts | F18: =+MAX(F25:F36) ->  | I18: =+MAX(I25:I36) ->  | L18: =+MAX(L25:L36) -> 
C20: Maximum storage definition
F22: Electricity Production Capacities (kW)
F23: =+F9 -> 10 | I23: =+I9 -> 40 | L23: =+L9 -> 100 | AD23: Depletion time definition
C24: Harvest Month Selection | D24: Storage Month | E24: Monthly Consumption (t/month) | F24: Biomass Stored (t) | G24: Storage Depletion (t/month) | H24: Monthly Consumption (t/month) | I24: Biomass Stored (t) | J24: Storage Depletion (t/month) | K24: Monthly Consumption (t/month) | L24: Biomass Stored (t) | M24: Storage Depletion (t/month) | AB24: Harvest Period | AC24: Harvest Period | AD24: Depletion term | AE24: Depletion month | AF24: EQ term | AG24: Depletion time | AH24: Storage term | AI24: Storage month | AJ24: EQ term | AK24: Storage time
C25: January | D25: =+IF($AC25=0,0,IF($AC25>$AC36,1,IF($AC25=$AC36,$D36+1,IF($AC36>$AC25,0)))) -> 1 | E25: =+F$11 ->  | F25: =+IF(AND($D$25=1,$D$36=0,$D$26=0),$F$11*$AG25+$F$11*$F$16,IF(D25>0,($AG25*$F$11/$AK25)*$D25+$F$11*$F$16,0)) ->  | G25: =IF(AND($D$25=1,$D$36=0,$D$26=0),$F$11*11+$G$36-E25,IF($D25>0,IFERROR(($AG25*$F$11/$AK25)*$D25,"")+$F$11*$F$16,IF($D25=0,G36-E25))) ->  | H25: =+I$11 ->  | I25: =+IF(AND($D$25=1,$D$36=0,$D$26=0),$I$11*$AG25+$I$11*$I$16,IF($D25>0,($AG25*$I$11/$AK25)*$D25+$I$11*$I$16,0)) ->  | J25: =IF(AND($D$25=1,$D$36=0,$D$26=0),$I$11*11+J36-H25,IF($D25>0,IFERROR(($AG25*$I$11/$AK25)*$D25,"")+$I$11*$I$16,IF($D25=0,J36-H25))) ->  | K25: =+L$11 ->  | L25: =+IF(AND($D$25=1,$D$36=0,$D$26=0),$L$11*$AG25+$L$11*$L$16,IF($D25>0,($AG25*$L$11/$AK25)*$D25+$L$11*$I$16,0)) ->  | M25: =IF(AND($D$25=1,$D$36=0,$D$26=0),$L$11*11+M36-K25,IF($D25>0,IFERROR(($AG25*$L$11/$AK25)*$D25,"")+$L$11*$L$16,IF($D25=0,M36-K25))) ->  | AB25: TRUE | AC25: =+N(AB25) -> 1 | AD25: =+IF(AND(AC26>AC25,AC25=0),"Last"&AF25,"") ->  | AE25: =+IF($AC25=1,0,IF($AC25<$AC36,1,IF($AC25=$AC36,$AE36+1,IF($AC36>$AC25,1)))) -> 0 | AF25: 1 | AG25: =IFERROR(VLOOKUP("LAST"&AF25,$AD$25:$AE$36,2,FALSE),AK25) -> 1 | AH25: =+IF(AND(AI25>AI26,AI26=0),"Last"&AJ25,"") ->  | AI25: =+IF($AC25=0,0,IF($AC25>$AC36,1,IF($AC25=$AC36,$AI36+1,IF($AC36>$AC25,0)))) -> 1 | AJ25: 1 | AK25: =IFERROR(VLOOKUP("LAST"&AJ25,$AH$25:$AI$36,2,FALSE),VLOOKUP("LAST"&1,$AH$25:$AI$36,2,FALSE)) -> 2
C26: February | D26: =+IF($AC26=0,0,IF($AC26>$AC25,1,IF($AC26=$AC25,$D25+1,IF($AC25>$AC26,0)))) -> 2 | F26: =IF(D26>0,($AG26*$F$11/$AK26)*$D26+$F$11*$F$16,0) ->  | G26: =+IF($D26>0,IFERROR(($AG26*$F$11/$AK26)*$D26,"")+$F$11*$F$16,IF($D26=0,G25-E26)) ->  | I26: =IF($D26>0,($AG26*$I$11/$AK26)*$D26+$I$11*$I$16,0) ->  | J26: =+IF($D26>0,IFERROR(($AG26*$I$11/$AK26)*$D26,"")+$I$11*$I$16,IF($D26=0,J25-H26)) ->  | L26: =IF($D26>0,($AG26*$L$11/$AK26)*$D26+$L$11*$L$16,0) ->  | M26: =+IF($D26>0,IFERROR(($AG26*$L$11/$AK26)*$D26,"")+$L$11*$L$16,IF($D26=0,M25-K26)) ->  | AB26: TRUE | AC26: =+N(AB26) -> 1 | AD26: =+IF(AND(AC27>AC26,AC26=0),"Last"&AF26,"") ->  | AE26: =+IF($AC26=1,0,IF($AC26<$AC25,1,IF($AC26=$AC25,$AE25+1,IF($AC25>$AC26,1)))) -> 0 | AF26: =+IF($AE25>$AE26,$AF25+1,$AF25) -> 1 | AG26: =IFERROR(VLOOKUP("LAST"&AF26,$AD$25:$AE$36,2,FALSE),$AG$25) -> 1 | AH26: =+IF(AND(AI26>AI27,AI27=0),"Last"&AJ26,"") -> Last1 | AI26: =+IF($AC26=0,0,IF($AC26>$AC25,1,IF($AC26=$AC25,$AI25+1,IF($AC25>$AC26,0)))) -> 2 | AJ26: =+IF($AI25>$AI26,$AJ25+1,$AJ25) -> 1 | AK26: =IFERROR(VLOOKUP("LAST"&AJ26,$AH$25:$AI$36,2,FALSE),VLOOKUP("LAST"&1,$AH$25:$AI$36,2,FALSE)) -> 2
C27: March | D27: 0 | F27: 0 | I27: =IF($D27>0,($AG27*$I$11/$AK27)*$D27+$I$11*$I$16,0) -> 0 | L27: =IF($D27>0,($AG27*$L$11/$AK27)*$D27+$L$11*$L$16,0) -> 0 | AB27: FALSE | AC27: 0 | AD27: =+IF(AND(AC28>AC27,AC27=0),"Last"&AF27,"") -> Last1 | AE27: 1 | AF27: =+IF($AE26>$AE27,$AF26+1,$AF26) -> 1 | AG27: 1 | AH27: =+IF(AND(AI27>AI28,AI28=0),"Last"&AJ27,"") ->  | AI27: =+IF($AC27=0,0,IF($AC27>$AC26,1,IF($AC27=$AC26,$AI26+1,IF($AC26>$AC27,0)))) -> 0 | AJ27: =+IF($AI26>$AI27,$AJ26+1,$AJ26) -> 2 | AK27: 2
C28: April | D28: 1 | AB28: TRUE | AC28: 1 | AD28: =+IF(AND(AC29>AC28,AC28=0),"Last"&AF28,"") ->  | AE28: 0 | AF28: =+IF($AE27>$AE28,$AF27+1,$AF27) -> 2 | AG28: 1 | AH28: =+IF(AND(AI28>AI29,AI29=0),"Last"&AJ28,"") ->  | AI28: 1 | AJ28: 2 | AK28: 2
C29: May | D29: 2 | AB29: TRUE | AC29: 1 | AE29: 0 | AF29: 2 | AG29: 1 | AH29: =+IF(AND(AI29>AI30,AI30=0),"Last"&AJ29,"") -> Last2 | AI29: 2 | AJ29: 2 | AK29: 2
C30: June | D30: 0 | F30: 0 | I30: 0 | L30: 0 | AB30: FALSE | AC30: 0 | AD30: Last2 | AE30: 1 | AF30: 2 | AG30: 1 | AI30: 0 | AJ30: 3 | AK30: 2
C31: July | D31: 1 | AB31: TRUE | AC31: 1 | AE31: 0 | AF31: 3 | AG31: 1 | AI31: 1 | AJ31: 3 | AK31: 2
C32: August | D32: 2 | AB32: TRUE | AC32: 1 | AE32: 0 | AF32: 3 | AG32: 1 | AH32: Last3 | AI32: 2 | AJ32: 3 | AK32: 2
C33: September | D33: 0 | F33: 0 | I33: 0 | L33: 0 | AB33: FALSE | AC33: 0 | AD33: Last3 | AE33: 1 | AF33: 3 | AG33: 1 | AI33: 0 | AJ33: 4 | AK33: 2
C34: October | D34: 1 | AB34: TRUE | AC34: 1 | AE34: 0 | AF34: 4 | AG34: 1 | AI34: 1 | AJ34: 4 | AK34: 2
C35: November | D35: 2 | AB35: TRUE | AC35: 1 | AE35: 0 | AF35: 4 | AG35: 1 | AH35: Last4 | AI35: 2 | AJ35: 4 | AK35: 2
C36: December | D36: 0 | F36: 0 | I36: 0 | L36: 0 | AB36: FALSE | AC36: 0 | AD36: =+IF(AND(AC25>AC36,AC36=0),"Last"&AF36,"") -> Last4 | AE36: 1 | AF36: =+IF($AE35>$AE36,$AF35+1,$AF35) -> 4 | AG36: =IFERROR(VLOOKUP("LAST"&AF36,$AD$25:$AE$36,2,FALSE),$AG$25) -> 1 | AH36: =+IF(AND(AI36>AI25,AI25=0),"Last"&AJ36,"") ->  | AI36: =+IF($AC36=0,0,IF($AC36>$AC35,1,IF($AC36=$AC35,$AI35+1,IF($AC35>$AC36,0)))) -> 0 | AJ36: =+IF($AI35>$AI36,$AJ35+1,$AJ35) -> 5 | AK36: 2
D37: =+MAX(D25:D36)*30 -> 60
C38: Maximum Storage Capacity Required (ts) | F38: =ROUNDUP(MAX(F25:F36),0) ->  | G38: =ROUNDUP(MAX(G25:G36),0) ->  | AB38: No. Storage Months | AC38: =+COUNTIF(AC25:AC36,">0") -> 8
C39: Minimum Safety Storage (ts) | F39: =+ROUNDUP(MIN(G25:G36),0) ->  | I39: =+ROUNDUP(MIN(J25:J36),0) ->  | L39: =+ROUNDUP(MIN(M25:M36),0) ->  | AB39: Total Depletion Period | AC39: =12-AC38 -> 4
C41: Monthly Consumption of Biomass Stocked | AC41: =F23&" (kW)" -> 10 (kW) | AD41: =I23&" (kW)" -> 40 (kW) | AE41: =L23&" (kW)" -> 100 (kW)
AB42: =+LEFT(title384,3) -> Jan | AC42: =+G25 ->  | AD42: =+J25 ->  | AE42: =+M25 -> 
AB43: =+LEFT(title385,3) -> Feb
AB44: =+LEFT(title386,3) -> Mar
AB45: =+LEFT(title387,3) -> Apr
AB46: =+LEFT(title388,3) -> May
AB47: =+LEFT(title389,3) -> Jun
AB48: =+LEFT(title390,3) -> Jul | AC48: =+G31 ->  | AD48: =+J31 ->  | AE48: =+M31 -> 
AB49: =+LEFT(title391,3) -> Aug | AC49: =+G32 ->  | AD49: =+J32 ->  | AE49: =+M32 -> 
AB50: =+LEFT(title392,3) -> Sep | AC50: =+G33 ->  | AD50: =+J33 ->  | AE50: =+M33 -> 
AB51: =+LEFT(title393,3) -> Oct | AC51: =+G34 ->  | AD51: =+J34 ->  | AE51: =+M34 -> 
AB52: =+LEFT(title394,3) -> Nov | AC52: =+G35 ->  | AD52: =+J35 ->  | AE52: =+M35 -> 
AB53: =+LEFT(title395,3) -> Dec | AC53: =+G36 ->  | AD53: =+J36 ->  | AE53: =+M36 -> 

Sheet STORAGE_RES3 (hidden)
C3: =UPPER("storage calculator FOR GASIFICATION+RURAL ELECTRIFICATION FROM "&'Data Entry Needs'!$G$11&" "&'Data Entry Needs'!$G$12) -> STORAGE CALCULATOR FOR GASIFICATION+RURAL ELECTRIFICATION FROM PLEASE SELECT PLEASE SELECT
C6: Biomass safety stock rate definition
F8: Electricity Production Capacities (kW)
D9: =title116 -> Unit | F9: 10 | I9: 40 | L9: 100
C10: Biomass consumption | D10: t/year | F10: =+COST_RES3!$G$39 ->  | I10: =+COST_RES3!$I$39 ->  | L10: =+COST_RES3!$K$39 -> 
D11: t/month | F11: =F10/12 ->  | I11: =I10/12 ->  | L11: =L10/12 -> 
D12: t/day | F12: =F10/365 ->  | I12: =I10/365 ->  | L12: =L10/365 -> 
C14: Biomass production within a specific distance | D14: t/year | F14: =+COST_RES3!$E$10 -> 0 | I14: =+F14 -> 0 | L14: =I14 -> 0
C16: Biomass safety stock rate | F16: =+F17/100 -> 0.3 | I16: =+I17/100 -> 0.3 | L16: =+L17/100 -> 0.3
F17: 30 | I17: 30 | L17: 30
C18: Biomass stock pile capacity | D18: ts | F18: =+MAX(F25:F36) ->  | I18: =+MAX(I25:I36) ->  | L18: =+MAX(L25:L36) -> 
C20: Maximum storage definition
F22: Electricity Production Capacities (kW)
F23: =+F9 -> 10 | I23: =+I9 -> 40 | L23: =+L9 -> 100 | AD23: Depletion time definition
C24: Harvest Month Selection | D24: Storage Month | E24: Monthly Consumption (t/month) | F24: Biomass Stored (t) | G24: Storage Depletion (t/month) | H24: Monthly Consumption (t/month) | I24: Biomass Stored (t) | J24: Storage Depletion (t/month) | K24: Monthly Consumption (t/month) | L24: Biomass Stored (t) | M24: Storage Depletion (t/month) | AB24: Harvest Period | AC24: Harvest Period | AD24: Depletion term | AE24: Depletion month | AF24: EQ term | AG24: Depletion time | AH24: Storage term | AI24: Storage month | AJ24: EQ term | AK24: Storage time
C25: January | D25: =+IF($AC25=0,0,IF($AC25>$AC36,1,IF($AC25=$AC36,$D36+1,IF($AC36>$AC25,0)))) -> 1 | E25: =+F$11 ->  | F25: =+IF(AND($D$25=1,$D$36=0,$D$26=0),$F$11*$AG25+$F$11*$F$16,IF(D25>0,($AG25*$F$11/$AK25)*$D25+$F$11*$F$16,0)) ->  | G25: =IF(AND($D$25=1,$D$36=0,$D$26=0),$F$11*11+$G$36-E25,IF($D25>0,IFERROR(($AG25*$F$11/$AK25)*$D25,"")+$F$11*$F$16,IF($D25=0,G36-E25))) ->  | H25: =+I$11 ->  | I25: =+IF(AND($D$25=1,$D$36=0,$D$26=0),$I$11*$AG25+$I$11*$I$16,IF($D25>0,($AG25*$I$11/$AK25)*$D25+$I$11*$I$16,0)) ->  | J25: =IF(AND($D$25=1,$D$36=0,$D$26=0),$I$11*11+J36-H25,IF($D25>0,IFERROR(($AG25*$I$11/$AK25)*$D25,"")+$I$11*$I$16,IF($D25=0,J36-H25))) ->  | K25: =+L$11 ->  | L25: =+IF(AND($D$25=1,$D$36=0,$D$26=0),$L$11*$AG25+$L$11*$L$16,IF($D25>0,($AG25*$L$11/$AK25)*$D25+$L$11*$I$16,0)) ->  | M25: =IF(AND($D$25=1,$D$36=0,$D$26=0),$L$11*11+M36-K25,IF($D25>0,IFERROR(($AG25*$L$11/$AK25)*$D25,"")+$L$11*$L$16,IF($D25=0,M36-K25))) ->  | AB25: TRUE | AC25: =+N(AB25) -> 1 | AD25: =+IF(AND(AC26>AC25,AC25=0),"Last"&AF25,"") ->  | AE25: =+IF($AC25=1,0,IF($AC25<$AC36,1,IF($AC25=$AC36,$AE36+1,IF($AC36>$AC25,1)))) -> 0 | AF25: 1 | AG25: =IFERROR(VLOOKUP("LAST"&AF25,$AD$25:$AE$36,2,FALSE),AK25) -> 1 | AH25: =+IF(AND(AI25>AI26,AI26=0),"Last"&AJ25,"") ->  | AI25: =+IF($AC25=0,0,IF($AC25>$AC36,1,IF($AC25=$AC36,$AI36+1,IF($AC36>$AC25,0)))) -> 1 | AJ25: 1 | AK25: =IFERROR(VLOOKUP("LAST"&AJ25,$AH$25:$AI$36,2,FALSE),VLOOKUP("LAST"&1,$AH$25:$AI$36,2,FALSE)) -> 2
C26: February | D26: =+IF($AC26=0,0,IF($AC26>$AC25,1,IF($AC26=$AC25,$D25+1,IF($AC25>$AC26,0)))) -> 2 | F26: =IF(D26>0,($AG26*$F$11/$AK26)*$D26+$F$11*$F$16,0) ->  | G26: =+IF($D26>0,IFERROR(($AG26*$F$11/$AK26)*$D26,"")+$F$11*$F$16,IF($D26=0,G25-E26)) ->  | I26: =IF($D26>0,($AG26*$I$11/$AK26)*$D26+$I$11*$I$16,0) ->  | J26: =+IF($D26>0,IFERROR(($AG26*$I$11/$AK26)*$D26,"")+$I$11*$I$16,IF($D26=0,J25-H26)) ->  | L26: =IF($D26>0,($AG26*$L$11/$AK26)*$D26+$L$11*$L$16,0) ->  | M26: =+IF($D26>0,IFERROR(($AG26*$L$11/$AK26)*$D26,"")+$L$11*$L$16,IF($D26=0,M25-K26)) ->  | AB26: TRUE | AC26: =+N(AB26) -> 1 | AD26: =+IF(AND(AC27>AC26,AC26=0),"Last"&AF26,"") ->  | AE26: =+IF($AC26=1,0,IF($AC26<$AC25,1,IF($AC26=$AC25,$AE25+1,IF($AC25>$AC26,1)))) -> 0 | AF26: =+IF($AE25>$AE26,$AF25+1,$AF25) -> 1 | AG26: =IFERROR(VLOOKUP("LAST"&AF26,$AD$25:$AE$36,2,FALSE),$AG$25) -> 1 | AH26: =+IF(AND(AI26>AI27,AI27=0),"Last"&AJ26,"") -> Last1 | AI26: =+IF($AC26=0,0,IF($AC26>$AC25,1,IF($AC26=$AC25,$AI25+1,IF($AC25>$AC26,0)))) -> 2 | AJ26: =+IF($AI25>$AI26,$AJ25+1,$AJ25) -> 1 | AK26: =IFERROR(VLOOKUP("LAST"&AJ26,$AH$25:$AI$36,2,FALSE),VLOOKUP("LAST"&1,$AH$25:$AI$36,2,FALSE)) -> 2
C27: March | D27: 0 | F27: 0 | I27: =IF($D27>0,($AG27*$I$11/$AK27)*$D27+$I$11*$I$16,0) -> 0 | L27: =IF($D27>0,($AG27*$L$11/$AK27)*$D27+$L$11*$L$16,0) -> 0 | AB27: FALSE | AC27: 0 | AD27: =+IF(AND(AC28>AC27,AC27=0),"Last"&AF27,"") -> Last1 | AE27: 1 | AF27: =+IF($AE26>$AE27,$AF26+1,$AF26) -> 1 | AG27: 1 | AH27: =+IF(AND(AI27>AI28,AI28=0),"Last"&AJ27,"") ->  | AI27: =+IF($AC27=0,0,IF($AC27>$AC26,1,IF($AC27=$AC26,$AI26+1,IF($AC26>$AC27,0)))) -> 0 | AJ27: =+IF($AI26>$AI27,$AJ26+1,$AJ26) -> 2 | AK27: 2
C28: April | D28: 1 | AB28: TRUE | AC28: 1 | AD28: =+IF(AND(AC29>AC28,AC28=0),"Last"&AF28,"") ->  | AE28: 0 | AF28: =+IF($AE27>$AE28,$AF27+1,$AF27) -> 2 | AG28: 1 | AH28: =+IF(AND(AI28>AI29,AI29=0),"Last"&AJ28,"") ->  | AI28: 1 | AJ28: 2 | AK28: 2
C29: May | D29: 2 | AB29: TRUE | AC29: 1 | AE29: 0 | AF29: 2 | AG29: 1 | AH29: =+IF(AND(AI29>AI30,AI30=0),"Last"&AJ29,"") -> Last2 | AI29: 2 | AJ29: 2 | AK29: 2
C30: June | D30: 0 | F30: 0 | I30: 0 | L30: 0 | AB30: FALSE | AC30: 0 | AD30: Last2 | AE30: 1 | AF30: 2 | AG30: 1 | AI30: 0 | AJ30: 3 | AK30: 2
C31: July | D31: 1 | AB31: TRUE | AC31: 1 | AE31: 0 | AF31: 3 | AG31: 1 | AI31: 1 | AJ31: 3 | AK31: 2
C32: August | D32: 2 | AB32: TRUE | AC32: 1 | AE32: 0 | AF32: 3 | AG32: 1 | AH32: Last3 | AI32: 2 | AJ32: 3 | AK32: 2
C33: September | D33: 0 | F33: 0 | I33: 0 | L33: 0 | AB33: FALSE | AC33: 0 | AD33: Last3 | AE33: 1 | AF33: 3 | AG33: 1 | AI33: 0 | AJ33: 4 | AK33: 2
C34: October | D34: 1 | AB34: TRUE | AC34: 1 | AE34: 0 | AF34: 4 | AG34: 1 | AI34: 1 | AJ34: 4 | AK34: 2
C35: November | D35: 2 | AB35: TRUE | AC35: 1 | AE35: 0 | AF35: 4 | AG35: 1 | AH35: Last4 | AI35: 2 | AJ35: 4 | AK35: 2
C36: December | D36: 0 | F36: 0 | I36: 0 | L36: 0 | AB36: FALSE | AC36: 0 | AD36: =+IF(AND(AC25>AC36,AC36=0),"Last"&AF36,"") -> Last4 | AE36: 1 | AF36: =+IF($AE35>$AE36,$AF35+1,$AF35) -> 4 | AG36: =IFERROR(VLOOKUP("LAST"&AF36,$AD$25:$AE$36,2,FALSE),$AG$25) -> 1 | AH36: =+IF(AND(AI36>AI25,AI25=0),"Last"&AJ36,"") ->  | AI36: =+IF($AC36=0,0,IF($AC36>$AC35,1,IF($AC36=$AC35,$AI35+1,IF($AC35>$AC36,0)))) -> 0 | AJ36: =+IF($AI35>$AI36,$AJ35+1,$AJ35) -> 5 | AK36: 2
D37: =+MAX(D25:D36)*30 -> 60
C38: Maximum Storage Capacity Required (ts) | F38: =ROUNDUP(MAX(F25:F36),0) ->  | G38: =ROUNDUP(MAX(G25:G36),0) ->  | AB38: No. Storage Months | AC38: =+COUNTIF(AC25:AC36,">0") -> 8
C39: Minimum Safety Storage (ts) | F39: =+ROUNDUP(MIN(G25:G36),0) ->  | I39: =+ROUNDUP(MIN(J25:J36),0) ->  | L39: =+ROUNDUP(MIN(M25:M36),0) ->  | AB39: Total Depletion Period | AC39: =12-AC38 -> 4
C41: Monthly Consumption of Biomass Stocked
AD42: =F23&" (kW)" -> 10 (kW) | AE42: =I23&" (kW)" -> 40 (kW) | AF42: =L23&" (kW)" -> 100 (kW)
AC43: =+LEFT(title384,3) -> Jan | AD43: =+G25 ->  | AE43: =+J25 ->  | AF43: =+M25 -> 
AC44: =+LEFT(title385,3) -> Feb
AC45: =+LEFT(title386,3) -> Mar
AC46: =+LEFT(title387,3) -> Apr
AC47: =+LEFT(title388,3) -> May
AC48: =+LEFT(title389,3) -> Jun
AB49: =+VLOOKUP('Data Entry Needs'!$F$11&'Data Entry Needs'!$F$12,dummy_database!$C$1:$P$28,9,FALSE) ->  | AC49: =+LEFT(title390,3) -> Jul | AD49: =+G31 ->  | AE49: =+J31 ->  | AF49: =+M31 -> 
AB50: =+VLOOKUP('Data Entry Needs'!$F$11&'Data Entry Needs'!$F$12,dummy_database!$C$1:$P$28,10,FALSE) ->  | AC50: =+LEFT(title391,3) -> Aug | AD50: =+G32 ->  | AE50: =+J32 ->  | AF50: =+M32 -> 
AB51: =+VLOOKUP('Data Entry Needs'!$F$11&'Data Entry Needs'!$F$12,dummy_database!$C$1:$P$28,11,FALSE) ->  | AC51: =+LEFT(title392,3) -> Sep | AD51: =+G33 ->  | AE51: =+J33 ->  | AF51: =+M33 -> 
AB52: =+VLOOKUP('Data Entry Needs'!$F$11&'Data Entry Needs'!$F$12,dummy_database!$C$1:$P$28,13,FALSE) ->  | AC52: =+LEFT(title393,3) -> Oct | AD52: =+G34 ->  | AE52: =+J34 ->  | AF52: =+M34 -> 
AC53: =+LEFT(title394,3) -> Nov | AD53: =+G35 ->  | AE53: =+J35 ->  | AF53: =+M35 -> 
AB54: 21 | AC54: =+LEFT(title395,3) -> Dec | AD54: =+G36 ->  | AE54: =+J36 ->  | AF54: =+M36 -> 

Sheet STORAGE_RES4 (hidden)
C3: =UPPER("storage calculator FOR GASIFICATION+RURAL ELECTRIFICATION FROM "&'Data Entry Needs'!$G$11&" "&'Data Entry Needs'!$G$12) -> STORAGE CALCULATOR FOR GASIFICATION+RURAL ELECTRIFICATION FROM PLEASE SELECT PLEASE SELECT
C6: Biomass safety stock rate definition
F8: Electricity Production Capacities (kW)
D9: =title116 -> Unit | F9: 10 | I9: 40 | L9: 100
C10: Biomass consumption | D10: t/year | F10: =+COST_RES4!$G$39 ->  | I10: =+COST_RES4!$I$39 ->  | L10: =+COST_RES4!$K$39 -> 
D11: t/month | F11: =F10/12 ->  | I11: =I10/12 ->  | L11: =L10/12 -> 
D12: t/day | F12: =F10/365 ->  | I12: =I10/365 ->  | L12: =L10/365 -> 
C14: Biomass production within a specific distance | D14: t/year | F14: =+COST_RES4!$E$10 -> 0 | I14: =+F14 -> 0 | L14: =I14 -> 0
C16: Biomass safety stock rate | F16: =+F17/100 -> 0.3 | I16: =+I17/100 -> 0.3 | L16: =+L17/100 -> 0.3
F17: 30 | I17: 30 | L17: 30
C18: Biomass stock pile capacity | D18: ts | F18: =+MAX(F25:F36) ->  | I18: =+MAX(I25:I36) ->  | L18: =+MAX(L25:L36) -> 
C20: Maximum storage definition
F22: Electricity Production Capacities (kW)
F23: =+F9 -> 10 | I23: =+I9 -> 40 | L23: =+L9 -> 100 | AD23: Depletion time definition
C24: Harvest Month Selection | D24: Storage Month | E24: Monthly Consumption (t/month) | F24: Biomass Stored (t) | G24: Storage Depletion (t/month) | H24: Monthly Consumption (t/month) | I24: Biomass Stored (t) | J24: Storage Depletion (t/month) | K24: Monthly Consumption (t/month) | L24: Biomass Stored (t) | M24: Storage Depletion (t/month) | AB24: Harvest Period | AC24: Harvest Period | AD24: Depletion term | AE24: Depletion month | AF24: EQ term | AG24: Depletion time | AH24: Storage term | AI24: Storage month | AJ24: EQ term | AK24: Storage time
C25: January | D25: =+IF($AC25=0,0,IF($AC25>$AC36,1,IF($AC25=$AC36,$D36+1,IF($AC36>$AC25,0)))) -> 0 | E25: =+F$11 ->  | F25: =+IF(AND($D$25=1,$D$36=0,$D$26=0),$F$11*$AG25+$F$11*$F$16,IF(D25>0,($AG25*$F$11/$AK25)*$D25+$F$11*$F$16,0)) -> 0 | G25: =IF(AND($D$25=1,$D$36=0,$D$26=0),$F$11*11+$G$36-E25,IF($D25>0,IFERROR(($AG25*$F$11/$AK25)*$D25,"")+$F$11*$F$16,IF($D25=0,G36-E25))) ->  | H25: =+I$11 ->  | I25: =+IF(AND($D$25=1,$D$36=0,$D$26=0),$I$11*$AG25+$I$11*$I$16,IF($D25>0,($AG25*$I$11/$AK25)*$D25+$I$11*$I$16,0)) -> 0 | J25: =IF(AND($D$25=1,$D$36=0,$D$26=0),$I$11*11+J36-H25,IF($D25>0,IFERROR(($AG25*$I$11/$AK25)*$D25,"")+$I$11*$I$16,IF($D25=0,J36-H25))) ->  | K25: =+L$11 ->  | L25: =+IF(AND($D$25=1,$D$36=0,$D$26=0),$L$11*$AG25+$L$11*$L$16,IF($D25>0,($AG25*$L$11/$AK25)*$D25+$L$11*$I$16,0)) -> 0 | M25: =IF(AND($D$25=1,$D$36=0,$D$26=0),$L$11*11+M36-K25,IF($D25>0,IFERROR(($AG25*$L$11/$AK25)*$D25,"")+$L$11*$L$16,IF($D25=0,M36-K25))) ->  | AB25: FALSE | AC25: =+N(AB25) -> 0 | AD25: =+IF(AND(AC26>AC25,AC25=0),"Last"&AF25,"") ->  | AE25: =+IF($AC25=1,0,IF($AC25<$AC36,1,IF($AC25=$AC36,$AE36+1,IF($AC36>$AC25,1)))) -> 8 | AF25: 1 | AG25: =IFERROR(VLOOKUP("LAST"&AF25,$AD$25:$AE$36,2,FALSE),AK25) -> 10 | AH25: =+IF(AND(AI25>AI26,AI26=0),"Last"&AJ25,"") ->  | AI25: =+IF($AC25=0,0,IF($AC25>$AC36,1,IF($AC25=$AC36,$AI36+1,IF($AC36>$AC25,0)))) -> 0 | AJ25: 1 | AK25: =IFERROR(VLOOKUP("LAST"&AJ25,$AH$25:$AI$36,2,FALSE),VLOOKUP("LAST"&1,$AH$25:$AI$36,2,FALSE)) -> 2
C26: February | D26: =+IF($AC26=0,0,IF($AC26>$AC25,1,IF($AC26=$AC25,$D25+1,IF($AC25>$AC26,0)))) -> 0 | F26: =IF(D26>0,($AG26*$F$11/$AK26)*$D26+$F$11*$F$16,0) -> 0 | G26: =+IF($D26>0,IFERROR(($AG26*$F$11/$AK26)*$D26,"")+$F$11*$F$16,IF($D26=0,G25-E26)) ->  | I26: =IF($D26>0,($AG26*$I$11/$AK26)*$D26+$I$11*$I$16,0) -> 0 | J26: =+IF($D26>0,IFERROR(($AG26*$I$11/$AK26)*$D26,"")+$I$11*$I$16,IF($D26=0,J25-H26)) ->  | L26: =IF($D26>0,($AG26*$L$11/$AK26)*$D26+$L$11*$L$16,0) -> 0 | M26: =+IF($D26>0,IFERROR(($AG26*$L$11/$AK26)*$D26,"")+$L$11*$L$16,IF($D26=0,M25-K26)) ->  | AB26: FALSE | AC26: =+N(AB26) -> 0 | AD26: =+IF(AND(AC27>AC26,AC26=0),"Last"&AF26,"") ->  | AE26: =+IF($AC26=1,0,IF($AC26<$AC25,1,IF($AC26=$AC25,$AE25+1,IF($AC25>$AC26,1)))) -> 9 | AF26: =+IF($AE25>$AE26,$AF25+1,$AF25) -> 1 | AG26: =IFERROR(VLOOKUP("LAST"&AF26,$AD$25:$AE$36,2,FALSE),$AG$25) -> 10 | AH26: =+IF(AND(AI26>AI27,AI27=0),"Last"&AJ26,"") ->  | AI26: =+IF($AC26=0,0,IF($AC26>$AC25,1,IF($AC26=$AC25,$AI25+1,IF($AC25>$AC26,0)))) -> 0 | AJ26: =+IF($AI25>$AI26,$AJ25+1,$AJ25) -> 1 | AK26: =IFERROR(VLOOKUP("LAST"&AJ26,$AH$25:$AI$36,2,FALSE),VLOOKUP("LAST"&1,$AH$25:$AI$36,2,FALSE)) -> 2
C27: March | D27: 0 | F27: 0 | I27: =IF($D27>0,($AG27*$I$11/$AK27)*$D27+$I$11*$I$16,0) -> 0 | L27: =IF($D27>0,($AG27*$L$11/$AK27)*$D27+$L$11*$L$16,0) -> 0 | AB27: FALSE | AC27: 0 | AD27: =+IF(AND(AC28>AC27,AC27=0),"Last"&AF27,"") -> Last1 | AE27: 10 | AF27: =+IF($AE26>$AE27,$AF26+1,$AF26) -> 1 | AG27: 10 | AH27: =+IF(AND(AI27>AI28,AI28=0),"Last"&AJ27,"") ->  | AI27: =+IF($AC27=0,0,IF($AC27>$AC26,1,IF($AC27=$AC26,$AI26+1,IF($AC26>$AC27,0)))) -> 0 | AJ27: =+IF($AI26>$AI27,$AJ26+1,$AJ26) -> 1 | AK27: 2
C28: April | D28: 1 | AB28: TRUE | AC28: 1 | AD28: =+IF(AND(AC29>AC28,AC28=0),"Last"&AF28,"") ->  | AE28: 0 | AF28: =+IF($AE27>$AE28,$AF27+1,$AF27) -> 2 | AG28: 10 | AH28: =+IF(AND(AI28>AI29,AI29=0),"Last"&AJ28,"") ->  | AI28: 1 | AJ28: 1 | AK28: 2
C29: May | D29: 2 | AB29: TRUE | AC29: 1 | AE29: 0 | AF29: 2 | AG29: 10 | AH29: =+IF(AND(AI29>AI30,AI30=0),"Last"&AJ29,"") -> Last1 | AI29: 2 | AJ29: 1 | AK29: 2
C30: June | D30: 0 | F30: 0 | I30: 0 | L30: 0 | AB30: FALSE | AC30: 0 | AE30: 1 | AF30: 2 | AG30: 10 | AI30: 0 | AJ30: 2 | AK30: 2
C31: July | D31: 0 | F31: 0 | I31: 0 | L31: 0 | AB31: FALSE | AC31: 0 | AE31: 2 | AF31: 2 | AG31: 10 | AI31: 0 | AJ31: 2 | AK31: 2
C32: August | D32: 0 | F32: 0 | I32: 0 | L32: 0 | AB32: FALSE | AC32: 0 | AE32: 3 | AF32: 2 | AG32: 10 | AI32: 0 | AJ32: 2 | AK32: 2
C33: September | D33: 0 | F33: 0 | I33: 0 | L33: 0 | AB33: FALSE | AC33: 0 | AE33: 4 | AF33: 2 | AG33: 10 | AI33: 0 | AJ33: 2 | AK33: 2
C34: October | D34: 0 | F34: 0 | I34: 0 | L34: 0 | AB34: FALSE | AC34: 0 | AE34: 5 | AF34: 2 | AG34: 10 | AI34: 0 | AJ34: 2 | AK34: 2
C35: November | D35: 0 | F35: 0 | I35: 0 | L35: 0 | AB35: FALSE | AC35: 0 | AE35: 6 | AF35: 2 | AG35: 10 | AI35: 0 | AJ35: 2 | AK35: 2
C36: December | D36: 0 | F36: 0 | I36: 0 | L36: 0 | AB36: FALSE | AC36: 0 | AD36: =+IF(AND(AC25>AC36,AC36=0),"Last"&AF36,"") ->  | AE36: 7 | AF36: =+IF($AE35>$AE36,$AF35+1,$AF35) -> 2 | AG36: =IFERROR(VLOOKUP("LAST"&AF36,$AD$25:$AE$36,2,FALSE),$AG$25) -> 10 | AH36: =+IF(AND(AI36>AI25,AI25=0),"Last"&AJ36,"") ->  | AI36: =+IF($AC36=0,0,IF($AC36>$AC35,1,IF($AC36=$AC35,$AI35+1,IF($AC35>$AC36,0)))) -> 0 | AJ36: =+IF($AI35>$AI36,$AJ35+1,$AJ35) -> 2 | AK36: 2
D37: =+MAX(D25:D36)*30 -> 60
C38: Maximum Storage Capacity Required (ts) | F38: =ROUNDUP(MAX(F25:F36),0) ->  | G38: =ROUNDUP(MAX(G25:G36),0) ->  | AB38: No. Storage Months | AC38: =+COUNTIF(AC25:AC36,">0") -> 2
C39: Minimum Safety Storage (ts) | F39: =+ROUNDUP(MIN(G25:G36),0) ->  | I39: =+ROUNDUP(MIN(J25:J36),0) ->  | L39: =+ROUNDUP(MIN(M25:M36),0) ->  | AB39: Total Depletion Period | AC39: =12-AC38 -> 10
C41: Monthly Consumption of Biomass Stocked
AE42: =F23&" (kW)" -> 10 (kW) | AF42: =I23&" (kW)" -> 40 (kW) | AG42: =L23&" (kW)" -> 100 (kW)
AD43: =+LEFT(title384,3) -> Jan | AE43: =+G25 ->  | AF43: =+J25 ->  | AG43: =+M25 -> 
AD44: =+LEFT(title385,3) -> Feb
AD45: =+LEFT(title386,3) -> Mar
AD46: =+LEFT(title387,3) -> Apr
AD47: =+LEFT(title388,3) -> May
AD48: =+LEFT(title389,3) -> Jun
AC49: =+VLOOKUP('Data Entry Needs'!$F$11&'Data Entry Needs'!$F$12,dummy_database!$C$1:$P$28,9,FALSE) ->  | AD49: =+LEFT(title390,3) -> Jul | AE49: =+G31 ->  | AF49: =+J31 ->  | AG49: =+M31 -> 
AC50: =+VLOOKUP('Data Entry Needs'!$F$11&'Data Entry Needs'!$F$12,dummy_database!$C$1:$P$28,10,FALSE) ->  | AD50: =+LEFT(title391,3) -> Aug | AE50: =+G32 ->  | AF50: =+J32 ->  | AG50: =+M32 -> 
AC51: =+VLOOKUP('Data Entry Needs'!$F$11&'Data Entry Needs'!$F$12,dummy_database!$C$1:$P$28,11,FALSE) ->  | AD51: =+LEFT(title392,3) -> Sep | AE51: =+G33 ->  | AF51: =+J33 ->  | AG51: =+M33 -> 
AC52: =+VLOOKUP('Data Entry Needs'!$F$11&'Data Entry Needs'!$F$12,dummy_database!$C$1:$P$28,13,FALSE) ->  | AD52: =+LEFT(title393,3) -> Oct | AE52: =+G34 ->  | AF52: =+J34 ->  | AG52: =+M34 -> 
AD53: =+LEFT(title394,3) -> Nov | AE53: =+G35 ->  | AF53: =+J35 ->  | AG53: =+M35 -> 
AC54: 21 | AD54: =+LEFT(title395,3) -> Dec | AE54: =+G36 ->  | AF54: =+J36 ->  | AG54: =+M36 -> 

Sheet Data Entry Needs
C3: =title25 -> DATA ENTRY FOR RURAL ELECTRIFICATION - GASIFICATION
C6: =title26 -> Use white cells to input data | D6: =title27 -> Grey cells are used for calculations
C8: =title28 -> Feedstock Availability and Cost
D10: =title29&" 1" -> Feedstock 1 | E10: =title29&" 2" -> Feedstock 2 | F10: =title29&" 3" -> Feedstock 3 | G10: =title29&" 4" -> Feedstock 4
D11: Please Select | E11: Please Select | F11: Please Select | G11: Please Select
C12: =title29 -> Feedstock | D12: Please Select | E12: Please Select | F12: Please Select | G12: Please Select
C13: =title30 -> Feedstock potential (t/year)
C14: =title31 -> Feedstock yield (t/ha)
C15: =title32 -> Moisture content | D15: =+IF(D$11=title49,0,IFERROR(IF(D$11=title59,VLOOKUP(D$11,dummy_database!$C$1:$E$31,2,FALSE),VLOOKUP(D$11&D$12,dummy_database!$C$1:$E$31,2,FALSE)),"")) -> 0 | E15: =+IF(E$11=title49,0,IFERROR(IF(E$11=title59,VLOOKUP(E$11,dummy_database!$C$1:$E$31,2,FALSE),VLOOKUP(E$11&E$12,dummy_database!$C$1:$E$31,2,FALSE)),"")) -> 0 | F15: =+IF(F$11=title49,0,IFERROR(IF(F$11=title59,VLOOKUP(F$11,dummy_database!$C$1:$E$31,2,FALSE),VLOOKUP(F$11&F$12,dummy_database!$C$1:$E$31,2,FALSE)),"")) -> 0 | G15: =+IF(G$11=title49,0,IFERROR(IF(G$11=title59,VLOOKUP(G$11,dummy_database!$C$1:$E$31,2,FALSE),VLOOKUP(G$11&G$12,dummy_database!$C$1:$E$31,2,FALSE)),"")) -> 0
C16: =title33 -> Average Size (mm) | D16: =IF(D$11=title49,0,IFERROR(IF(D$11=title59,VLOOKUP(D$11,dummy_database!$C$1:$E$31,3,FALSE),VLOOKUP(D$11&D$12,dummy_database!$C$2:$E$31,3,FALSE)),"")) -> 0 | E16: =IF(E$11=title49,0,IFERROR(IF(E$11=title59,VLOOKUP(E$11,dummy_database!$C$1:$E$31,3,FALSE),VLOOKUP(E$11&E$12,dummy_database!$C$2:$E$31,3,FALSE)),"")) -> 0 | F16: =IF(F$11=title49,0,IFERROR(IF(F$11=title59,VLOOKUP(F$11,dummy_database!$C$1:$E$31,3,FALSE),VLOOKUP(F$11&F$12,dummy_database!$C$2:$E$31,3,FALSE)),"")) -> 0 | G16: =IF(G$11=title49,0,IFERROR(IF(G$11=title59,VLOOKUP(G$11,dummy_database!$C$1:$E$31,3,FALSE),VLOOKUP(G$11&G$12,dummy_database!$C$2:$E$31,3,FALSE)),"")) -> 0
C17: =title34 -> Feedstock price (USD/t)
C18: FALSE | D18: =+IF(D$11=title49,0,IF($C$18=FALSE,PRICE_RES1!$I$26,title111)) -> 0 | F18: =+IF(F$11=title49,0,IF($C$18=FALSE,PRICE_RES3!$I$26,title111)) -> 0 | G18: =+IF(G$11=title49,0,IF($C$18=FALSE,PRICE_RES4!$I$26,title111)) -> 0
C20: =title37 -> Feedstock storage cost (USD/t)
D22: =IF(OR(D11=title47,D11=title48),TRUE,FALSE) -> FALSE | E22: =IF(OR(E11=title47,E11=title48),TRUE,FALSE) -> FALSE | F22: =IF(OR(F11=title47,F11=title48),TRUE,FALSE) -> FALSE | G22: =IF(OR(G11=title47,G11=title48),TRUE,FALSE) -> FALSE
C23: =title112 -> Electricity Price Definition
C25: =title113 -> Select a method to determine the price of electricity
C27: =title114 -> Method 1 | E27: =title116 -> Unit | F27: =title117 -> Method 1: Use a calculator to determine the production cost of electricity from diesel generator.
C28: =title115 -> Comparative production cost of electricity | D28: =+'Rural Electricity Price'!$M$18 -> 0 | E28: USD/kWh
C30: =title118 -> Method 2 | E30: =title116 -> Unit | F30: =title147 -> Method 2: Use an electricity price defined by the user. In the assessment , it is important to consider that this price might include subsidies.
C32: =title148 -> Price paid by customer | E32: USD/kWh
C34: =title119 -> Production Cost and Financial Parameters
C36: =title120 -> Labour | E36: =title116 -> Unit | J36: =title116 -> Unit
C37: =title121 -> Unskilled worker | E37: =title136 -> USD/person-h | F37: =title139 -> Skilled worker | J37: =title136 -> USD/person-h
C39: =title122 -> Utilities | E39: =title116 -> Unit | J39: =title116 -> Unit
C40: =title123 -> Water | E40: USD/m3 | F40: =title140 -> Diesel | J40: USD/litre
F41: =title141 -> ==>Required to start up the engine
C42: =title124 -> Feedstock collection | E42: =title116 -> Unit | J42: =title116 -> Unit
C43: =title125 -> Working hours per day (manual) | E43: =title137 -> h/day | F43: =title142 -> Working hours per day (mechanized) | J43: =title137 -> h/day
C45: =title126 -> Transportation cost | E45: =title116 -> Unit
C46: =title127 -> Feedstock (collection point to plant) | E46: USD/t/km
C48: =title128 -> Other costs | E48: =title116 -> Unit | J48: =title116 -> Unit
C49: =title129 -> General and administrative (%) | F49: =title143&" (%)" -> Maintenance cost (%)
C50: =title130 -> Plant overhead (%) | F50: =title144&" (%)" -> Miscellaneous cost (%)
C52: =title131 -> Financial parameters | E52: =title116 -> Unit | F52: =title145 -> Investment cost update
C53: =title132 -> Discount rate
C54: =title133 -> Loan ratio | F54: =+title146&MONTH(TODAY())&"/"&YEAR(TODAY()) -> Plant Cost Index during 5/2017
C55: =title134 -> Loan interest rate | F55: http://www.intratec.us/free-tools/intratec-construction-index
C56: =title135 -> Loan term | E56: =title138 -> year
C59: Inflation rate | D59: 0.05
AB87: =+D$11&" "&D$12 -> Please Select Please Select | AC87: =+E$11&" "&E$12 -> Please Select Please Select | AD87: =+F$11&" "&F$12 -> Please Select Please Select | AE87: =+G$11&" "&G$12 -> Please Select Please Select
AK88: Selction Binder | AN88: Change in raw material cost (%)
AE89: Crop | AF89: Crop | AG89: =title29 -> Feedstock | AH89: Options | AI89: Binder | AJ89: =title29& " 1" -> Feedstock 1 | AK89: =+IF($D$22=title107,AI90,"") ->  | AN89: Change in labor cost (%)
AE90: =title38 -> Please Select | AF90: =title49 -> Please Select | AG90: =title78 -> Please Select | AH90: =title107 -> yes | AI90: =title108 -> Cassava flour | AK90: =+IF($D$22=title107,AI91,"") ->  | AN90: Change in Investment cost (%)
AE91: =title39 -> cassava | AF91: =title50 -> cassava | AG91: =title79 -> stalk | AH91: no | AI91: =title109 -> Maize flour | AN91: Change in electricity price(%)
AE92: =title40 -> coconut | AF92: =title51 -> coconut | AG92: =title80 -> fronds | AI92: =title110 -> Wheat flour | AJ92: =title29& " 2" -> Feedstock 2 | AN92: Income Tax rate | AQ92: 0
W93: =title88 -> barley | AE93: =title41 -> cotton | AF93: =title52 -> coconut1 | AG93: =title81 -> husk
W94: =title89 -> cacao | AE94: =title42 -> groundnut | AF94: =title53 -> coconut2 | AG94: =title82 -> shell | AN94: Condition
W95: =title90 -> cassava | AE95: =title43 -> maize | AF95: =title54 -> cotton | AG95: =title83 -> stalk | AJ95: =title29& " 3" -> Feedstock 3 | AN95: Wage1 | AO95: =IF(OR($D$37="",$D$37=" "),TRUE,FALSE) -> TRUE
W96: =title91 -> coconut | AE96: =title44 -> oilpalm | AF96: =title55 -> groundnut | AG96: =title84 -> shell | AK96: =+IF($D$22=title107,AI92,"") ->  | AN96: Wage2 | AO96: =IF(OR($I$37="",$I$37=" "),TRUE,FALSE) -> TRUE
W97: =title92 -> coffee | AE97: =title45 -> sorghum | AF97: =title56 -> maize | AG97: =title85 -> cob | AK97: =+IF($E$22=title107,AI90,"") ->  | AN97: =title140 -> Diesel | AO97: =IF(OR($I$40="",$I$40=" "),TRUE,FALSE) -> TRUE
W98: =title93 -> cotton | AE98: =title46 -> Briquettes/Pellets | AF98: =title57 -> oilpalm | AG98: =title86 -> shell | AJ98: =title29& " 4" -> Feedstock 4 | AK98: =+IF($E$22=title107,AI91,"") ->  | AN98: Decision1 | AO98: =+OR(AO95,AO96,AO97) -> TRUE
W99: =title94 -> groundnut | AE99: =title47 -> Forest Harvest. Res. | AF99: =title58 -> sorghum | AG99: =title87 -> straw/stalk | AK99: =+IF($E$22=title107,AI92,"") ->  | AN99: Decision2 | AO99: =+C18 -> FALSE
W100: =title95 -> maize | AE100: =title48 -> Wood Proc.Res. | AF100: =title59 -> Briquettes/Pellets | AG100: =title88 -> barley | AK100: =+IF($F$22=title107,AI90,"") ->  | AN100: PCI | AO100: =IF(OR($I$54="",$I$54=" "),TRUE,FALSE) -> TRUE
W101: =title96 -> millet | AF101: =title60 -> Briquettes/Pellets1 | AG101: =title89 -> cacao | AK101: =+IF($F$22=title107,AI91,"") -> 
W102: =title97 -> oat | AF102: =title61 -> Briquettes/Pellets2 | AG102: =title90 -> cassava | AK102: =+IF($F$22=title107,AI92,"") -> 
W103: =title98 -> oilpalm | AF103: =title62 -> Briquettes/Pellets3 | AG103: =title91 -> coconut | AK103: =IF($G$22=title107,AI90,"") -> 
W104: =title99 -> rice | AF104: =title63 -> Briquettes/Pellets4 | AG104: =title92 -> coffee | AK104: =IF($G$22=title107,AI91,"") -> 
W105: =title100 -> sorghum | AF105: =title64 -> Briquettes/Pellets5 | AG105: =title93 -> cotton | AK105: =IF($G$22=title107,AI92,"") -> 
W106: =title101 -> soybean | AF106: =title65 -> Briquettes/Pellets6 | AG106: =title94 -> groundnut
W107: =title102 -> sugarcane | AF107: =title66 -> Briquettes/Pellets7 | AG107: =title95 -> maize
W108: =title103 -> sunflower | AF108: =title67 -> Briquettes/Pellets8 | AG108: =title96 -> millet
W109: =title104 -> wheat | AF109: =title68 -> Briquettes/Pellets9 | AG109: =title97 -> oat
AF110: =title69 -> Briquettes/Pellets10 | AG110: =title98 -> oilpalm
AF111: =title70 -> Briquettes/Pellets11 | AG111: =title99 -> rice
AF112: =title71 -> Briquettes/Pellets12 | AG112: =title100 -> sorghum
AF113: =title72 -> Briquettes/Pellets13 | AG113: =title101 -> soybean
AF114: =title73 -> Briquettes/Pellets14 | AG114: =title102 -> sugarcane
AF115: =title74 -> Briquettes/Pellets15 | AG115: =title103 -> sunflower
AF116: =title75 -> Briquettes/Pellets16 | AG116: =title104 -> wheat | AI116: FS
AF117: Forest | AG117: Harv. Res. | AI117: 1 | AJ117: =+IF($D$11=title49,TRUE,FALSE) -> TRUE
AF118: Wood | AG118: Proc. Res. | AI118: 2 | AJ118: =+IF($E$11=title49,TRUE,FALSE) -> TRUE
AI119: 3 | AJ119: =+IF($F$11=title49,TRUE,FALSE) -> TRUE
AI120: 4 | AJ120: =+IF($G$11=title49,TRUE,FALSE) -> TRUE
AG121: 0
AG122: 1
AG123: 1
AB125: =title29& " 1" -> Feedstock 1 | AC125: Selection Crop | AD125: Crop Feedstock | AF125: ElectriCity Price | AG125: 1 | AH125: =+IF($AG$125=1,$D$28,$D$32) -> 0
AC126: =$D$11 -> Please Select | AD126: =+IFERROR(VLOOKUP($AC$126&AB126,$AF$91:$AG$118,2,FALSE),title38) -> Please Select
AB127: 1 | AD127: =+IFERROR(VLOOKUP($AC$126&AB127,$AF$91:$AG$118,2,FALSE),"") -> 
AB128: 2 | AD128: =+IFERROR(VLOOKUP($AC$126&AB128,$AF$91:$AG$118,2,FALSE),"") -> 
AB129: 3
AB130: 4
AB131: 5
AB132: 6
AB133: 7
AB134: 8
AB135: 9
AB136: 10
AB137: 11
AB138: 12
AB139: 13
AB140: 14
AB141: 15
AB142: 16
AB143: =title29& " 2" -> Feedstock 2
AC144: Selection Crop | AD144: Crop Feedstock
AC145: =$E$11 -> Please Select | AD145: =+IFERROR(VLOOKUP($AC$145&AB145,$AF$91:$AG$118,2,FALSE),title49) -> Please Select
AB146: 1 | AD146: =+IFERROR(VLOOKUP($AC$145&AB146,$AF$91:$AG$118,2,FALSE),"") -> 
AB147: 2
AB148: 3
AB149: 4
AB150: 5
AB151: 6
AB152: 7
AB153: 8
AB154: 9
AB155: 10
AB156: 11
AB157: 12
AB158: 13
AB159: 14
AB160: 15
AB161: 16
AB162: =title29& " 3" -> Feedstock 3
AC163: Selection Crop | AD163: Crop Feedstock
AC164: =$F$11 -> Please Select | AD164: =+IFERROR(VLOOKUP($AC$164&AB164,$AF$91:$AG$118,2,FALSE),title49) -> Please Select
AB165: 1 | AD165: =+IFERROR(VLOOKUP($AC$164&AB165,$AF$91:$AG$118,2,FALSE),"") -> 
AB166: 2
AB167: 3
AB168: 4
AB169: 5
AB170: 6
AB171: 7
AB172: 8
AB173: 9
AB174: 10
AB175: 11
AB176: 12
AB177: 13
AB178: 14
AB179: 15
AB180: 16
AB181: =title29& " 4" -> Feedstock 4
AC182: Selection Crop | AD182: Crop Feedstock
AC183: =$G$11 -> Please Select | AD183: =+IFERROR(VLOOKUP($AC$183&AB183,$AF$91:$AG$118,2,FALSE),title49) -> Please Select
AB184: 1 | AD184: =+IFERROR(VLOOKUP($AC$183&AB184,$AF$91:$AG$118,2,FALSE),"") -> 
AB185: 2
AB186: 3
AB187: 4
AB188: 5
AB189: 6
AB190: 7
AB191: 8
AB192: 9
AB193: 10
AB194: 11
AB195: 12
AB196: 13
AB197: 14
AB198: 15
AB199: 16

Sheet PRICE_RES1 (hidden)
C3: =+title408&UPPER('Data Entry Needs'!$D$11&" "&'Data Entry Needs'!$D$12) -> COLLECTION COSTS CALCULATOR FOR PLEASE SELECT PLEASE SELECT | P3: =title410 -> Sources of biomass | Q3: No. | R3: Selection2 | S3: Number | T3: =title418 -> Mechanized | U3: =title426 -> Number of skilled workers | V3: =title432 -> person-hour/ha
P4: =title412 -> Agricultural residues spread in the field | Q4: 1 | R4: =+$F$11 -> Mechanized | T4: =title418&"2" -> Mechanized2 | U4: =title427 -> Skilled labour wage | V4: =title433 -> USD/person-hour
P5: =title413 -> Agricultural residues collected from field | Q5: 2 | R5: Selection1 | S5: 1 | T5: =title418&"4" -> Mechanized4 | U5: =title428 -> Average fuel economy | V5: l/h
C6: =title26 -> Use white cells to input data | E6: =title27 -> Grey cells are used for calculations | P6: =title414 -> Agricultural residues from food processing plant | Q6: 3 | R6: =+VLOOKUP($C$11,$P$3:$Q$10,2,FALSE) -> 1 | S6: 2 | T6: =title418&"5" -> Mechanized5 | U6: =title429 -> Fuel price | V6: USD/l
P7: =title415 -> Forestry | Q7: 4 | S7: 3 | T7: =title419 -> Semi-mechanized | U7: =title426 -> Number of skilled workers | V7: =title432 -> person-hour/ha
C8: =title409 -> Biomass Collection Definition | P8: =title9 -> Forestry and plantation residues | Q8: 5 | S8: 4 | T8: =title419&"1" -> Semi-mechanized1 | U8: =title430 -> Number of unskilled workers | V8: =title432 -> person-hour/ha
P9: =title416 -> Residues from wood industry | Q9: 6 | S9: 5 | T9: =title419&"2" -> Semi-mechanized2 | U9: =title427 -> Skilled labour wage | V9: =title433 -> USD/person-hour
C10: =title410 -> Sources of biomass | F10: =title411 -> Collecting method | P10: =title417 -> Dedicated wood energy plantation | Q10: 7 | T10: =title419&"3" -> Semi-mechanized3 | U10: =title431 -> Unskilled labour wage | V10: =title433 -> USD/person-hour
C11: Agricultural residues spread in the field | F11: Mechanized | P11: =title411 -> Collecting method | T11: =title419&"4" -> Semi-mechanized4 | U11: =title428 -> Average fuel economy | V11: l/h
P12: =title418 -> Mechanized | T12: =title419&"5" -> Semi-mechanized5 | U12: =title429 -> Fuel price | V12: USD/l
C13: =IF($R$6=7,title421,IF(OR($R$6=1,$R$6=5,$R$6=4),title409,title422)) -> Biomass Collection Definition | P13: =title419 -> Semi-mechanized | T13: =title420 -> Manual | U13: =title430 -> Number of unskilled workers | V13: =title432 -> person-hour/ha
P14: =title420 -> Manual | T14: =title420&"2" -> Manual2 | U14: =title431 -> Unskilled labour wage | V14: =title433 -> USD/person-hour
C16: =title423 -> Biomass price definition
C17: =title424 -> Labour cost | D17: =title434 -> Quantity | E17: =title116 -> Unit | F17: =title434 -> Quantity | H17: =title116 -> Unit | I17: Total | J17: =title116 -> Unit
C18: =+IF(OR($R$6=1,$R$6=4,$R$6=5),IFERROR(VLOOKUP($R$4&$S4,$T$3:$V$14,2,FALSE),""),"") -> Number of skilled workers | E18: =IF(OR(entry1=title47,entry1=title48),title459,IF(OR($R$6=1,$R$6=4,$R$6=5),IFERROR(VLOOKUP($R$4&$S4,$T$3:$V$23,3,FALSE),""),"")) -> person-hour/ha | F18: =IF(OR($R$6=1,$R$6=4,$R$6=5),IFERROR(VLOOKUP($R$4&$S6,$T$3:$V$14,2,FALSE),""),"") -> Skilled labour wage | G18: =IF(F18="","",IF(F18=title431,'Data Entry Needs'!$D$37,IF(F18=title427,'Data Entry Needs'!$I$37))) -> 0 | H18: =IF(OR($R$6=1,$R$6=4,$R$6=5),IFERROR(VLOOKUP($R$4&$S6,$T$3:$V$20,3,FALSE),""),"") -> USD/person-hour | I18: =+IFERROR(G18*D18*(COST_RES1!$E$10/created1),"") ->  | J18: =+IF(OR($R$6=1,$R$6=4,$R$6=5),title221,"") -> USD/year | K18: =IF(OR(entry1=title47,entry1=title48),1,COST_RES1!E11) -> 0
C19: =IF(OR($R$6=1,$R$6=4,$R$6=5),IFERROR(VLOOKUP($R$4&$S5,$T$3:$V$14,2,FALSE),""),"") ->  | E19: =IF(AND(selection1=title419,OR(entry1=title47,entry1=title48)),title459,IF(OR($R$6=1,$R$6=4,$R$6=5),IFERROR(VLOOKUP($R$4&$S5,$T$3:$V$23,3,FALSE),""),"")) ->  | F19: =IF(OR($R$6=1,$R$6=4,$R$6=5),IFERROR(VLOOKUP($R$4&$S7,$T$3:$V$14,2,FALSE),""),"") ->  | G19: =IF(F19="","",'Data Entry Needs'!$D$37) ->  | H19: =IF(OR($R$6=1,$R$6=4,$R$6=5),IFERROR(VLOOKUP($R$4&$S7,$T$3:$V$27,3,FALSE),""),"") ->  | I19: =+IFERROR(G19*D19*(COST_RES1!$E$10/created1),"") ->  | J19: =+IF(OR($R$6=1,$R$6=4,$R$6=5),title221,"") -> USD/year
D20: =+IF(AND(C18="",C19=""),0,IF(C18="",D19,IF(C19="",D18,D18+D19))) -> 0 | H20: =+IF(OR($R$6=1,$R$6=4,$R$6=5),title181,"") -> Subtotal | I20: =+SUMIF($I$18:$I$19,">0") -> 0 | J20: =+IF(OR($R$6=1,$R$6=4,$R$6=5),title221,"") -> USD/year
C21: =title425 -> Machinery and operating cost | D21: =title434 -> Quantity | E21: =title116 -> Unit | F21: =title434 -> Quantity | H21: =title116 -> Unit | I21: Total | J21: =title116 -> Unit
C22: =IF(OR($R$6=1,$R$6=4,$R$6=5),IFERROR(VLOOKUP($R$4&$S8,$T$3:$V$14,2,FALSE),""),"") -> Average fuel economy | E22: =IF(OR($R$6=1,$R$6=4,$R$6=5),IFERROR(VLOOKUP($R$4&$S8,$T$3:$V$27,3,FALSE),""),"") -> l/h | F22: =IF(OR($R$6=1,$R$6=4,$R$6=5),IFERROR(VLOOKUP($R$4&$S9,$T$3:$V$14,2,FALSE),""),"") -> Fuel price | G22: =IF(F22="","",'Data Entry Needs'!$I$40) -> 0 | H22: =+IFERROR(VLOOKUP($R$4&$S9,$T$3:$V$14,3,FALSE),"") -> USD/l | I22: =+IFERROR(G22*D22*IF($F$11=title420,0,$D$18*COST_RES1!$E$10/COST_RES1!$E$11),"") ->  | J22: =+IF(OR($R$6=1,$R$6=4,$R$6=5),title221,"") -> USD/year
H23: =+IF(OR($R$6=1,$R$6=4,$R$6=5),title181,"") -> Subtotal | I23: =+I22 ->  | J23: =+IF(OR($R$6=1,$R$6=4,$R$6=5),title221,"") -> USD/year
H24: =+IF(OR($R$6=1,$R$6=4,$R$6=5),"Total","") -> Total | I24: =IFERROR(I20+I23,I20) -> 0 | J24: =+IF(OR($R$6=1,$R$6=4,$R$6=5),title221,"") -> USD/year
E26: =IF($R$6=7,title435,title436)&'Data Entry Needs'!$D$11&" "&'Data Entry Needs'!$D$12 -> Collection price of Please Select Please Select | I26: =I24/COST_RES1!$E$10 ->  | J26: USD/t

Sheet PRICE_RES3 (hidden)
C3: =+UPPER(title408&'Data Entry Needs'!$F$11&" "&'Data Entry Needs'!$F$12) -> COLLECTION COSTS CALCULATOR FOR PLEASE SELECT PLEASE SELECT | P3: =title410 -> Sources of biomass | Q3: No. | R3: Selection2 | S3: Number | T3: =title418 -> Mechanized | U3: =title426 -> Number of skilled workers | V3: =title432 -> person-hour/ha
P4: =title412 -> Agricultural residues spread in the field | Q4: 1 | R4: =+$F$11 -> Mechanized | T4: =title418&"2" -> Mechanized2 | U4: =title427 -> Skilled labour wage | V4: =title433 -> USD/person-hour
P5: =title413 -> Agricultural residues collected from field | Q5: 2 | R5: Selection1 | S5: 1 | T5: =title418&"4" -> Mechanized4 | U5: =title428 -> Average fuel economy | V5: l/h
C6: =title26 -> Use white cells to input data | E6: =title27 -> Grey cells are used for calculations | P6: =title414 -> Agricultural residues from food processing plant | Q6: 3 | R6: =+VLOOKUP($C$11,$P$3:$Q$10,2,FALSE) -> 1 | S6: 2 | T6: =title418&"5" -> Mechanized5 | U6: =title429 -> Fuel price | V6: USD/l
P7: =title415 -> Forestry | Q7: 4 | S7: 3 | T7: =title419 -> Semi-mechanized | U7: =title426 -> Number of skilled workers | V7: =title432 -> person-hour/ha
C8: =title409 -> Biomass Collection Definition | P8: =title9 -> Forestry and plantation residues | Q8: 5 | S8: 4 | T8: =title419&"1" -> Semi-mechanized1 | U8: =title430 -> Number of unskilled workers | V8: =title432 -> person-hour/ha
P9: =title416 -> Residues from wood industry | Q9: 6 | S9: 5 | T9: =title419&"2" -> Semi-mechanized2 | U9: =title427 -> Skilled labour wage | V9: =title433 -> USD/person-hour
C10: =title410 -> Sources of biomass | F10: =title411 -> Collecting method | P10: =title417 -> Dedicated wood energy plantation | Q10: 7 | T10: =title419&"3" -> Semi-mechanized3 | U10: =title431 -> Unskilled labour wage | V10: =title433 -> USD/person-hour
C11: Agricultural residues spread in the field | F11: Mechanized | P11: Collection method | T11: =title419&"4" -> Semi-mechanized4 | U11: =title428 -> Average fuel economy | V11: l/h
P12: =title418 -> Mechanized | T12: =title419&"5" -> Semi-mechanized5 | U12: =title429 -> Fuel price | V12: USD/l
C13: =IF($R$6=7,title421,IF(OR($R$6=1,$R$6=5,$R$6=4),title409,title422)) -> Biomass Collection Definition | P13: =title419 -> Semi-mechanized | T13: =title420 -> Manual | U13: =title430 -> Number of unskilled workers | V13: =title432 -> person-hour/ha
P14: =title420 -> Manual | T14: =title420&"2" -> Manual2 | U14: =title431 -> Unskilled labour wage | V14: =title433 -> USD/person-hour
C16: =title423 -> Biomass price definition
C17: =title424 -> Labour cost | D17: =title434 -> Quantity | E17: =title116 -> Unit | F17: =title434 -> Quantity | H17: =title116 -> Unit | J17: =title116 -> Unit
C18: =+IF(OR($R$6=1,$R$6=4,$R$6=5),IFERROR(VLOOKUP($R$4&$S4,$T$3:$V$14,2,FALSE),""),"") -> Number of skilled workers | E18: =IF(OR(entry3=title47,entry3=title48),title459,IF(OR($R$6=1,$R$6=4,$R$6=5),IFERROR(VLOOKUP($R$4&$S4,$T$3:$V$23,3,FALSE),""),"")) -> person-hour/ha | F18: =IF(OR($R$6=1,$R$6=4,$R$6=5),IFERROR(VLOOKUP($R$4&$S6,$T$3:$V$14,2,FALSE),""),"") -> Skilled labour wage | G18: =IF(F18="","",IF(F18=title431,'Data Entry Needs'!$D$37,IF(F18=title427,'Data Entry Needs'!$I$37))) -> 0 | H18: =IF(OR($R$6=1,$R$6=4,$R$6=5),IFERROR(VLOOKUP($R$4&$S6,$T$3:$V$20,3,FALSE),""),"") -> USD/person-hour | I18: =+IFERROR(G18*D18*(COST_RES3!$E$10/created3),"") ->  | J18: =+IF(OR($R$6=1,$R$6=4,$R$6=5),title221,"") -> USD/year | K18: =IF(OR(entry3=title47,entry3=title48),1,COST_RES3!E11) -> 0
C19: =IF(OR($R$6=1,$R$6=4,$R$6=5),IFERROR(VLOOKUP($R$4&$S5,$T$3:$V$14,2,FALSE),""),"") ->  | E19: =IF(AND(selection3=title419,OR(entry3=title47,entry3=title48)),title459,IF(OR($R$6=1,$R$6=4,$R$6=5),IFERROR(VLOOKUP($R$4&$S5,$T$3:$V$23,3,FALSE),""),"")) ->  | F19: =IF(OR($R$6=1,$R$6=4,$R$6=5),IFERROR(VLOOKUP($R$4&$S7,$T$3:$V$14,2,FALSE),""),"") ->  | G19: =IF(F19="","",'Data Entry Needs'!$D$37) ->  | H19: =IF(OR($R$6=1,$R$6=4,$R$6=5),IFERROR(VLOOKUP($R$4&$S7,$T$3:$V$27,3,FALSE),""),"") ->  | I19: =+IFERROR(G19*D19*(COST_RES3!$E$10/created3),"") ->  | J19: =+IF(OR($R$6=1,$R$6=4,$R$6=5),title221,"") -> USD/year
D20: =+IF(AND(C18="",C19=""),0,IF(C18="",D19,IF(C19="",D18,D18+D19))) -> 0 | H20: =+IF(OR($R$6=1,$R$6=4,$R$6=5),title181,"") -> Subtotal | I20: =+SUMIF($I$18:$I$19,">0") -> 0 | J20: =+IF(OR($R$6=1,$R$6=4,$R$6=5),title221,"") -> USD/year
C21: =title425 -> Machinery and operating cost | D21: =title434 -> Quantity | E21: =title116 -> Unit | F21: =title434 -> Quantity | H21: =title116 -> Unit | I21: Total | J21: =title116 -> Unit
C22: =IF(OR($R$6=1,$R$6=4,$R$6=5),IFERROR(VLOOKUP($R$4&$S8,$T$3:$V$14,2,FALSE),""),"") -> Average fuel economy | E22: =IF(OR($R$6=1,$R$6=4,$R$6=5),IFERROR(VLOOKUP($R$4&$S8,$T$3:$V$27,3,FALSE),""),"") -> l/h | F22: =IF(OR($R$6=1,$R$6=4,$R$6=5),IFERROR(VLOOKUP($R$4&$S9,$T$3:$V$14,2,FALSE),""),"") -> Fuel price | G22: =IF(F22="","",'Data Entry Needs'!$I$40) -> 0 | H22: =+IFERROR(VLOOKUP($R$4&$S9,$T$3:$V$14,3,FALSE),"") -> USD/l | I22: =+IFERROR(G22*D22*IF($F$11=title420,0,$D$18*COST_RES3!$E$10/COST_RES3!$E$11),"") ->  | J22: =+IF(OR($R$6=1,$R$6=4,$R$6=5),title221,"") -> USD/year
H23: =+IF(OR($R$6=1,$R$6=4,$R$6=5),title181,"") -> Subtotal | I23: =+I22 ->  | J23: =+IF(OR($R$6=1,$R$6=4,$R$6=5),title221,"") -> USD/year
H24: =+IF(OR($R$6=1,$R$6=4,$R$6=5),"Total","") -> Total | I24: =IFERROR(I20+I23,I20) -> 0 | J24: =+IF(OR($R$6=1,$R$6=4,$R$6=5),title221,"") -> USD/year
F26: =IF($R$6=7,title435,title436)&'Data Entry Needs'!$F$11&" "&'Data Entry Needs'!$F$12 -> Collection price of Please Select Please Select | I26: =I24/COST_RES3!$E$10 ->  | J26: USD/t
F39: =+IF('Data Entry Needs'!$C$18=FALSE,'Data Entry Needs'!F$18,'Data Entry Needs'!F$19) -> 0

Sheet PRICE_RES4 (hidden)
C3: =+UPPER(title408&'Data Entry Needs'!$G$11&" "&'Data Entry Needs'!$G$12) -> COLLECTION COSTS CALCULATOR FOR PLEASE SELECT PLEASE SELECT | P3: =title410 -> Sources of biomass | Q3: No. | R3: Selection2 | S3: Number | T3: =title418 -> Mechanized | U3: =title426 -> Number of skilled workers | V3: =title432 -> person-hour/ha
P4: =title412 -> Agricultural residues spread in the field | Q4: 1 | R4: =+$F$11 -> Mechanized | T4: =title418&"2" -> Mechanized2 | U4: =title427 -> Skilled labour wage | V4: =title433 -> USD/person-hour
P5: =title413 -> Agricultural residues collected from field | Q5: 2 | R5: Selection1 | S5: 1 | T5: =title418&"4" -> Mechanized4 | U5: =title428 -> Average fuel economy | V5: l/h
C6: =title26 -> Use white cells to input data | E6: =title27 -> Grey cells are used for calculations | P6: =title414 -> Agricultural residues from food processing plant | Q6: 3 | R6: =+VLOOKUP($C$11,$P$3:$Q$10,2,FALSE) -> 1 | S6: 2 | T6: =title418&"5" -> Mechanized5 | U6: =title429 -> Fuel price | V6: USD/l
P7: =title415 -> Forestry | Q7: 4 | S7: 3 | T7: =title419 -> Semi-mechanized | U7: =title426 -> Number of skilled workers | V7: =title432 -> person-hour/ha
C8: =title409 -> Biomass Collection Definition | P8: =title9 -> Forestry and plantation residues | Q8: 5 | S8: 4 | T8: =title419&"1" -> Semi-mechanized1 | U8: =title430 -> Number of unskilled workers | V8: =title432 -> person-hour/ha
P9: =title416 -> Residues from wood industry | Q9: 6 | S9: 5 | T9: =title419&"2" -> Semi-mechanized2 | U9: =title427 -> Skilled labour wage | V9: =title433 -> USD/person-hour
C10: =title410 -> Sources of biomass | F10: =title411 -> Collecting method | P10: =title417 -> Dedicated wood energy plantation | Q10: 7 | T10: =title419&"3" -> Semi-mechanized3 | U10: =title431 -> Unskilled labour wage | V10: =title433 -> USD/person-hour
C11: Agricultural residues spread in the field | F11: Mechanized | P11: Collection method | T11: =title419&"4" -> Semi-mechanized4 | U11: =title428 -> Average fuel economy | V11: l/h
P12: =title418 -> Mechanized | T12: =title419&"5" -> Semi-mechanized5 | U12: =title429 -> Fuel price | V12: USD/l
C13: =IF($R$6=7,title421,IF(OR($R$6=1,$R$6=5,$R$6=4),title409,title422)) -> Biomass Collection Definition | P13: =title419 -> Semi-mechanized | T13: =title420 -> Manual | U13: =title430 -> Number of unskilled workers | V13: =title432 -> person-hour/ha
P14: =title420 -> Manual | T14: =title420&"2" -> Manual2 | U14: =title431 -> Unskilled labour wage | V14: =title433 -> USD/person-hour
C16: =title423 -> Biomass price definition
C17: =title424 -> Labour cost | D17: =title434 -> Quantity | E17: =title116 -> Unit | F17: =title434 -> Quantity | H17: =title116 -> Unit | J17: =title116 -> Unit
C18: =+IF(OR($R$6=1,$R$6=4,$R$6=5),IFERROR(VLOOKUP($R$4&$S4,$T$3:$V$14,2,FALSE),""),"") -> Number of skilled workers | E18: =IF(OR(entry4=title47,entry4=title48),title459,IF(OR($R$6=1,$R$6=4,$R$6=5),IFERROR(VLOOKUP($R$4&$S4,$T$3:$V$23,3,FALSE),""),"")) -> person-hour/ha | F18: =IF(OR($R$6=1,$R$6=4,$R$6=5),IFERROR(VLOOKUP($R$4&$S6,$T$3:$V$14,2,FALSE),""),"") -> Skilled labour wage | G18: =IF(F18="","",IF(F18=title431,'Data Entry Needs'!$D$37,IF(F18=title427,'Data Entry Needs'!$I$37))) -> 0 | H18: =IF(OR($R$6=1,$R$6=4,$R$6=5),IFERROR(VLOOKUP($R$4&$S6,$T$3:$V$20,3,FALSE),""),"") -> USD/person-hour | I18: =+IFERROR(G18*D18*(COST_RES4!$E$10/created4),"") ->  | J18: =+IF(OR($R$6=1,$R$6=4,$R$6=5),title221,"") -> USD/year | K18: =IF(OR(entry4=title47,entry4=title48),1,COST_RES4!E11) -> 0
C19: =IF(OR($R$6=1,$R$6=4,$R$6=5),IFERROR(VLOOKUP($R$4&$S5,$T$3:$V$14,2,FALSE),""),"") ->  | E19: =IF(AND(selection4=title419,OR(entry4=title47,entry4=title48)),title459,IF(OR($R$6=1,$R$6=4,$R$6=5),IFERROR(VLOOKUP($R$4&$S5,$T$3:$V$23,3,FALSE),""),"")) ->  | F19: =IF(OR($R$6=1,$R$6=4,$R$6=5),IFERROR(VLOOKUP($R$4&$S7,$T$3:$V$14,2,FALSE),""),"") ->  | G19: =IF(F19="","",'Data Entry Needs'!$D$37) ->  | H19: =IF(OR($R$6=1,$R$6=4,$R$6=5),IFERROR(VLOOKUP($R$4&$S7,$T$3:$V$27,3,FALSE),""),"") ->  | I19: =+IFERROR(G19*D19*(COST_RES4!$E$10/created4),"") ->  | J19: =+IF(OR($R$6=1,$R$6=4,$R$6=5),title221,"") -> USD/year
D20: =+IF(AND(C18="",C19=""),0,IF(C18="",D19,IF(C19="",D18,D18+D19))) -> 0 | H20: =+IF(OR($R$6=1,$R$6=4,$R$6=5),title181,"") -> Subtotal | I20: =+SUMIF($I$18:$I$19,">0") -> 0 | J20: =+IF(OR($R$6=1,$R$6=4,$R$6=5),title221,"") -> USD/year
C21: =title425 -> Machinery and operating cost | D21: =title434 -> Quantity | E21: =title116 -> Unit | F21: =title434 -> Quantity | H21: =title116 -> Unit | I21: Total | J21: =title116 -> Unit
C22: =IF(OR($R$6=1,$R$6=4,$R$6=5),IFERROR(VLOOKUP($R$4&$S8,$T$3:$V$14,2,FALSE),""),"") -> Average fuel economy | E22: =IF(OR($R$6=1,$R$6=4,$R$6=5),IFERROR(VLOOKUP($R$4&$S8,$T$3:$V$27,3,FALSE),""),"") -> l/h | F22: =IF(OR($R$6=1,$R$6=4,$R$6=5),IFERROR(VLOOKUP($R$4&$S9,$T$3:$V$14,2,FALSE),""),"") -> Fuel price | G22: =IF(F22="","",'Data Entry Needs'!$I$40) -> 0 | H22: =+IFERROR(VLOOKUP($R$4&$S9,$T$3:$V$14,3,FALSE),"") -> USD/l | I22: =+IFERROR(G22*D22*IF($F$11=title420,0,$D$18*COST_RES4!$E$10/COST_RES4!$E$11),"") ->  | J22: =+IF(OR($R$6=1,$R$6=4,$R$6=5),title221,"") -> USD/year
H23: =+IF(OR($R$6=1,$R$6=4,$R$6=5),title181,"") -> Subtotal | I23: =+I22 ->  | J23: =+IF(OR($R$6=1,$R$6=4,$R$6=5),title221,"") -> USD/year
H24: =+IF(OR($R$6=1,$R$6=4,$R$6=5),"Total","") -> Total | I24: =IFERROR(I20+I23,I20) -> 0 | J24: =+IF(OR($R$6=1,$R$6=4,$R$6=5),title221,"") -> USD/year
F26: =IF($R$6=7,title435,title436)&'Data Entry Needs'!$G$11&" "&'Data Entry Needs'!$G$12 -> Collection price of Please Select Please Select | I26: =I24/COST_RES4!$E$10 ->  | J26: USD/t

Sheet PRICE_RES2 (hidden)
C3: =+UPPER(title408&'Data Entry Needs'!$E$11&" "&'Data Entry Needs'!$E$12) -> COLLECTION COSTS CALCULATOR FOR PLEASE SELECT PLEASE SELECT | P3: =title410 -> Sources of biomass | Q3: No. | R3: Selection2 | S3: Number | T3: =title418 -> Mechanized | U3: =title426 -> Number of skilled workers | V3: =title432 -> person-hour/ha
P4: =title412 -> Agricultural residues spread in the field | Q4: 1 | R4: =+$F$11 -> Mechanized | T4: =title418&"2" -> Mechanized2 | U4: =title427 -> Skilled labour wage | V4: =title433 -> USD/person-hour
P5: =title413 -> Agricultural residues collected from field | Q5: 2 | R5: Selection1 | S5: 1 | T5: =title418&"4" -> Mechanized4 | U5: =title428 -> Average fuel economy | V5: l/h
C6: =title26 -> Use white cells to input data | E6: =title27 -> Grey cells are used for calculations | P6: =title414 -> Agricultural residues from food processing plant | Q6: 3 | R6: =+VLOOKUP($C$11,$P$3:$Q$10,2,FALSE) -> 1 | S6: 2 | T6: =title418&"5" -> Mechanized5 | U6: =title429 -> Fuel price | V6: USD/l
P7: =title415 -> Forestry | Q7: 4 | S7: 3 | T7: =title419 -> Semi-mechanized | U7: =title426 -> Number of skilled workers | V7: =title432 -> person-hour/ha
C8: =title409 -> Biomass Collection Definition | P8: =title9 -> Forestry and plantation residues | Q8: 5 | S8: 4 | T8: =title419&"1" -> Semi-mechanized1 | U8: =title430 -> Number of unskilled workers | V8: =title432 -> person-hour/ha
P9: =title416 -> Residues from wood industry | Q9: 6 | S9: 5 | T9: =title419&"2" -> Semi-mechanized2 | U9: =title427 -> Skilled labour wage | V9: =title433 -> USD/person-hour
C10: =title410 -> Sources of biomass | F10: =title411 -> Collecting method | P10: =title417 -> Dedicated wood energy plantation | Q10: 7 | T10: =title419&"3" -> Semi-mechanized3 | U10: =title431 -> Unskilled labour wage | V10: =title433 -> USD/person-hour
C11: Agricultural residues spread in the field | F11: Mechanized | P11: Collection method | T11: =title419&"4" -> Semi-mechanized4 | U11: =title428 -> Average fuel economy | V11: l/h
P12: =title418 -> Mechanized | T12: =title419&"5" -> Semi-mechanized5 | U12: =title429 -> Fuel price | V12: USD/l
C13: =IF($R$6=7,title421,IF(OR($R$6=1,$R$6=5,$R$6=4),title409,title422)) -> Biomass Collection Definition | P13: =title419 -> Semi-mechanized | T13: =title420 -> Manual | U13: =title430 -> Number of unskilled workers | V13: =title432 -> person-hour/ha
P14: =title420 -> Manual | T14: =title420&"2" -> Manual2 | U14: =title431 -> Unskilled labour wage | V14: =title433 -> USD/person-hour
C16: =title423 -> Biomass price definition
C17: =title424 -> Labour cost | D17: =title434 -> Quantity | E17: =title116 -> Unit | F17: =title434 -> Quantity | H17: =title116 -> Unit | I17: Total | J17: =title116 -> Unit
C18: =+IF(OR($R$6=1,$R$6=4,$R$6=5),IFERROR(VLOOKUP($R$4&$S4,$T$3:$V$14,2,FALSE),""),"") -> Number of skilled workers | E18: =IF(OR(entry2=title47,entry2=title48),title459,IF(OR($R$6=1,$R$6=4,$R$6=5),IFERROR(VLOOKUP($R$4&$S4,$T$3:$V$23,3,FALSE),""),"")) -> person-hour/ha | F18: =IF(OR($R$6=1,$R$6=4,$R$6=5),IFERROR(VLOOKUP($R$4&$S6,$T$3:$V$14,2,FALSE),""),"") -> Skilled labour wage | G18: =IF(F18="","",IF(F18=title431,'Data Entry Needs'!$D$37,IF(F18=title427,'Data Entry Needs'!$I$37))) -> 0 | H18: =IF(OR($R$6=1,$R$6=4,$R$6=5),IFERROR(VLOOKUP($R$4&$S6,$T$3:$V$20,3,FALSE),""),"") -> USD/person-hour | I18: =+IFERROR(G18*D18*(COST_RES2!$E$10/created2),"") ->  | J18: =+IF(OR($R$6=1,$R$6=4,$R$6=5),title221,"") -> USD/year | K18: =IF(OR(entry2=title47,entry2=title48),1,COST_RES2!E11) -> 0
C19: =IF(OR($R$6=1,$R$6=4,$R$6=5),IFERROR(VLOOKUP($R$4&$S5,$T$3:$V$14,2,FALSE),""),"") ->  | E19: =IF(AND(selection2=title419,OR(entry2=title47,entry2=title48)),title459,IF(OR($R$6=1,$R$6=4,$R$6=5),IFERROR(VLOOKUP($R$4&$S5,$T$3:$V$23,3,FALSE),""),"")) ->  | F19: =IF(OR($R$6=1,$R$6=4,$R$6=5),IFERROR(VLOOKUP($R$4&$S7,$T$3:$V$14,2,FALSE),""),"") ->  | G19: =IF(F19="","",'Data Entry Needs'!$D$37) ->  | H19: =IF(OR($R$6=1,$R$6=4,$R$6=5),IFERROR(VLOOKUP($R$4&$S7,$T$3:$V$27,3,FALSE),""),"") ->  | I19: =+IFERROR(G19*D19*(COST_RES2!$E$10/created2),"") ->  | J19: =+IF(OR($R$6=1,$R$6=4,$R$6=5),title221,"") -> USD/year
D20: =+IF(AND(C18="",C19=""),0,IF(C18="",D19,IF(C19="",D18,D18+D19))) -> 0 | H20: =+IF(OR($R$6=1,$R$6=4,$R$6=5),title181,"") -> Subtotal | I20: =+SUMIF($I$18:$I$19,">0") -> 0 | J20: =+IF(OR($R$6=1,$R$6=4,$R$6=5),title221,"") -> USD/year
C21: =title425 -> Machinery and operating cost | D21: =title434 -> Quantity | E21: =title116 -> Unit | F21: =title434 -> Quantity | H21: =title116 -> Unit | I21: Total | J21: =title116 -> Unit
C22: =IF(OR($R$6=1,$R$6=4,$R$6=5),IFERROR(VLOOKUP($R$4&$S8,$T$3:$V$14,2,FALSE),""),"") -> Average fuel economy | E22: =IF(OR($R$6=1,$R$6=4,$R$6=5),IFERROR(VLOOKUP($R$4&$S8,$T$3:$V$27,3,FALSE),""),"") -> l/h | F22: =IF(OR($R$6=1,$R$6=4,$R$6=5),IFERROR(VLOOKUP($R$4&$S9,$T$3:$V$14,2,FALSE),""),"") -> Fuel price | G22: =IF(F22="","",'Data Entry Needs'!$I$40) -> 0 | H22: =+IFERROR(VLOOKUP($R$4&$S9,$T$3:$V$14,3,FALSE),"") -> USD/l | I22: =+IFERROR(G22*D22*IF($F$11=title420,0,$D$18*COST_RES2!$E$10/COST_RES2!$E$11),"") ->  | J22: =+IF(OR($R$6=1,$R$6=4,$R$6=5),title221,"") -> USD/year
H23: =+IF(OR($R$6=1,$R$6=4,$R$6=5),title181,"") -> Subtotal | I23: =+I22 ->  | J23: =+IF(OR($R$6=1,$R$6=4,$R$6=5),title221,"") -> USD/year
H24: =+IF(OR($R$6=1,$R$6=4,$R$6=5),"Total","") -> Total | I24: =IFERROR(I20+I23,I20) -> 0 | J24: =+IF(OR($R$6=1,$R$6=4,$R$6=5),title221,"") -> USD/year
F26: =IF($R$6=7,title435,title436)&'Data Entry Needs'!$E$11&" "&'Data Entry Needs'!$E$12 -> Collection price of Please Select Please Select | I26: =I24/COST_RES2!$E$10 ->  | J26: USD/t

Sheet COST_RES1
C3: =+UPPER(title149&'Data Entry Needs'!$D$11&" "&'Data Entry Needs'!$D$12) -> PROCESSING COSTS FOR POWER GENERATION FROM PLEASE SELECT PLEASE SELECT
C6: =title26 -> Use white cells to input data | E6: =title27 -> Grey cells are used for calculations
C8: =title150 -> Summary of Feedstock and Storage | G8: =title151 -> Summary of Operational Parameters | K8: =title131 -> Financial parameters
C10: =title152 -> Feedstock available (t/year) | E10: =+'Data Entry Needs'!$D$13 -> 0 | G10: =title156 -> Gasifier type | I10: =title441 -> Downdraft | K10: =title134&" (%)" -> Loan interest rate (%) | N10: =+'Data Entry Needs'!$D$55 -> 0
C11: =title153 -> Feedstock yield (t/ha) | E11: =+'Data Entry Needs'!$D$14 -> 0 | G11: =title157 -> Gas engine type | I11: 100% Syngas | K11: =title133&" (%)" -> Loan ratio (%) | N11: =+'Data Entry Needs'!$D$54 -> 0
C12: =title154 -> Moisture (%) | E12: =+'Data Entry Needs'!$D$15 -> 0 | G12: =title158 -> Capacity utilization factor | I12: =H34/8760 -> 0 | K12: =title164 -> Loan term (years) | N12: =+'Data Entry Needs'!$D$56 -> 0
C13: =title155 -> Size (mm) | E13: =+'Data Entry Needs'!$D$16 -> 0 | G13: =title159 -> Power conversion (kWh/kg feedstock) | I13: =+VLOOKUP(IF('Data Entry Needs'!$D$11=title59,'Data Entry Needs'!$D$11,'Data Entry Needs'!$D$11&'Data Entry Needs'!$D$12),dummy_database!$C$1:$P$31,14,FALSE)/(dummy_database!$P$45*3.6) ->  | K13: =title132&" (%)" -> Discount rate (%) | N13: =+'Data Entry Needs'!$D$53 -> 0
C14: =title37 -> Feedstock storage cost (USD/t) | E14: =+'Data Entry Needs'!$D$20 -> 0 | H14: CO (%Vol) | I14: =+VLOOKUP(IF('Data Entry Needs'!$D$11=title59,'Data Entry Needs'!$D$11,'Data Entry Needs'!$D$11&'Data Entry Needs'!$D$12),dummy_database!$C$1:$P$31,9,FALSE) ->  | K14: =+'Data Entry Needs'!F54 -> Plant Cost Index during 5/2017 | N14: =+'Data Entry Needs'!$I$54 -> 0
H15: CO2 (%Vol) | I15: =+VLOOKUP(IF('Data Entry Needs'!$D$11=title59,'Data Entry Needs'!$D$11,'Data Entry Needs'!$D$11&'Data Entry Needs'!$D$12),dummy_database!$C$1:$P$31,10,FALSE) ->  | K15: =IF('Data Entry Needs'!$AG$125=0,title167,title168) -> Price of electricity (USD/kWh) - Calculated | N15: =+'Data Entry Needs'!$AH$125 -> 0
H16: H2 (%Vol) | I16: =+VLOOKUP(IF('Data Entry Needs'!$D$11=title59,'Data Entry Needs'!$D$11,'Data Entry Needs'!$D$11&'Data Entry Needs'!$D$12),dummy_database!$C$1:$P$31,11,FALSE) ->  | K16: =title165 -> Project lifetime | N16: 20
H17: CH4 (%Vol) | I17: =+VLOOKUP(IF('Data Entry Needs'!$D$11=title59,'Data Entry Needs'!$D$11,'Data Entry Needs'!$D$11&'Data Entry Needs'!$D$12),dummy_database!$C$1:$P$31,13,FALSE) -> 
G18: =title160 -> Power loss due to operation (%)
G19: =title161 -> Operating hours per day
G20: =title162 -> Power loss in distribution network (%)
G21: =title163 -> Gas engine efficiency (%)
C23: =title169 -> Transport Distance of Feedstock | F23: =title170 -> Transport Quantity | I23: =title169 -> Transport Distance of Feedstock | L23: =title170 -> Transport Quantity
C25: =title171 -> Distance small scale production (km) | F25: =title173 -> Small scale (t/year) | H25: =+$G$39 ->  | I25: =title175 -> Distance large scale production (km) | L25: =title177 -> Large scale (t/year) | N25: =+$K$39 -> 
C26: =title172 -> Distance medium scale production (km) | F26: =title174 -> Medium scale (t/year) | H26: =+$I$39 ->  | I26: =title176 -> Transportation cost (USD/t/km) | N26: =+'Data Entry Needs'!$D$46 -> 0
C30: =title178 -> Production Cost Details
G32: =title223 -> Capacities (kW of power generation)
G33: 10 | I33: 40 | K33: 100
G34: =title231 -> Operating hours per year | H34: =$I$19*365 -> 0 | I34: =title231 -> Operating hours per year | J34: =$I$19*365 -> 0 | K34: =title231 -> Operating hours per year | L34: =$I$19*365 -> 0
D37: =title179 -> Inputs | E37: =title116 -> Unit | F37: =title200 -> Unit Price | G37: =title202 -> Quantity | H37: Total | I37: =title202 -> Quantity | J37: Total | K37: =title202 -> Quantity | L37: Total
F38: =title201 -> (USD/unit) | G38: =title203 -> (Unit/year) | H38: =title204 -> (USD/year) | I38: =title203 -> (Unit/year) | J38: =title204 -> (USD/year) | K38: =title203 -> (Unit/year) | L38: =title204 -> (USD/year)
D39: =title29 -> Feedstock | E39: t | F39: =+IF('Data Entry Needs'!$C$18=FALSE,'Data Entry Needs'!D$18,'Data Entry Needs'!D$19) -> 0 | G39: =+(G$33/$I$21/$I$13)*(H$34/1000)/(1-$I$18) ->  | H39: =+G39*$F39 ->  | I39: =+(I$33/$I$21/$I$13)*(J$34/1000)/(1-$I$18) ->  | J39: =+I39*$F39 ->  | K39: =+(K$33/$I$21/$I$13)*(L$34/1000)/(1-$I$18) ->  | L39: =+K39*$F39 -> 
D40: =title123 -> Water | E40: m3 | F40: =+'Data Entry Needs'!$D$40 -> 0 | G40: =G$33*H$34/GASIFICACONVERSION!$C$5 -> 0 | H40: =+G40*$F40 -> 0 | I40: =I$33*J$34/GASIFICACONVERSION!$C$5 -> 0 | J40: =+I40*$F40 -> 0 | K40: =K$33*L$34/GASIFICACONVERSION!$C$5 -> 0 | L40: =+K40*$F40 -> 0
D41: =title180 -> Diesel for start up | E41: litre | F41: =+'Data Entry Needs'!I$40 -> 0 | G41: =10%*G$33*0.5*365/GASIFICACONVERSION!$C$11 -> 54.75 | H41: =+G41*$F41 -> 0 | I41: =10%*I$33*0.5*365/GASIFICACONVERSION!$C$11 -> 219 | J41: =+I41*$F41 -> 0 | K41: =10%*K$33*0.5*365/GASIFICACONVERSION!$C$11 -> 547.5 | L41: =+K41*$F41 -> 0
D42: =title181 -> Subtotal | H42: =SUM(H39:H41) ->  | J42: =SUM(J39:J41) ->  | L42: =SUM(L39:L41) -> 
D44: =title182 -> Labour and miscellaneous cost | E44: =title116 -> Unit | F44: =title200 -> Unit Price | G44: =title202 -> Quantity | H44: Total | I44: =title202 -> Quantity | J44: Total | K44: =title202 -> Quantity | L44: Total
F45: ="("&title433&")" -> (USD/person-hour) | G45: (Unit) | H45: =title204 -> (USD/year) | I45: (Unit) | J45: =title204 -> (USD/year) | K45: (Unit) | L45: =title204 -> (USD/year)
D46: =title121 -> Unskilled worker | E46: =title205 -> # employee | F46: =+'Data Entry Needs'!$D$37 -> 0 | G46: 1 | H46: =+F46*G46*H34 -> 0 | I46: 3 | J46: =+$F46*I46*$H$34 -> 0 | K46: 6 | L46: =+$F46*K46*$H$34 -> 0
D47: =title139 -> Skilled worker | E47: =title205 -> # employee | F47: =+'Data Entry Needs'!I$37 -> 0 | G47: 1 | H47: =+F47*G47*H34 -> 0 | I47: =+ROUND(I46/4,0) -> 1 | J47: =+$F47*I47*$H$34 -> 0 | K47: =+ROUND(K46/3,0) -> 2 | L47: =+$F47*K47*$H$34 -> 0
D48: =title144 -> Miscellaneous cost | G48: =+'Data Entry Needs'!$I$50 -> 0 | H48: =+G48*SUM(H46:H47) -> 0 | I48: =+G48 -> 0 | J48: =+I48*SUM(J46:J47) -> 0 | K48: =+G48 -> 0 | L48: =+K48*SUM(L46:L47) -> 0
D49: =title181 -> Subtotal | H49: =+H46+H47+H48 -> 0 | J49: =+J46+J47+J48 -> 0 | L49: =+L46+L47+L48 -> 0
G50: =+SUM(G46:G47) -> 2 | I50: =+SUM(I46:I47) -> 4 | K50: =+SUM(K46:K47) -> 8
D51: =title183 -> Transport of feedstock | E51: =title116 -> Unit | F51: =title200 -> Unit Price | G51: =title202 -> Quantity | H51: Total | I51: =title202 -> Quantity | J51: Total | K51: =title202 -> Quantity | L51: Total
F52: (USD/t/km) | G52: (Unit) | H52: =title204 -> (USD/year) | I52: (Unit) | J52: =title204 -> (USD/year) | K52: (Unit) | L52: =title204 -> (USD/year)
D53: =title184 -> Feedstock (farm to plant) | E53: km | F53: =+'Data Entry Needs'!$D$46 -> 0 | G53: =+$E$25 -> 0 | H53: =+G53*F53*G39 ->  | I53: =+$E$26 -> 0 | J53: =+I53*$F53*I$39 ->  | K53: =+$K$25 -> 0 | L53: =+K53*$F53*K$39 -> 
D54: =title181 -> Subtotal | H54: =+H53 ->  | J54: =+J53 ->  | L54: =+L53 -> 
D56: =title185 -> Storage | E56: =title116 -> Unit | F56: =title200 -> Unit Price | G56: =title202 -> Quantity | H56: Total | I56: =title202 -> Quantity | J56: Total | K56: =title202 -> Quantity | L56: Total
F57: USD/t | G57: (Unit) | H57: =title204 -> (USD/year) | I57: (Units) | J57: =title204 -> (USD/year) | K57: (Unit) | L57: =title204 -> (USD/year)
D58: =title29 -> Feedstock | E58: t | F58: =+$E$14 -> 0 | G58: =+STORAGE_RES1!$F$38 ->  | H58: =+F58*G58 ->  | I58: =+STORAGE_RES1!$I$38 ->  | J58: =I58*F58 ->  | K58: =+STORAGE_RES1!$L$38 ->  | L58: =F58*K58 -> 
D59: =title181 -> Subtotal | H59: =SUM(H58) ->  | J59: =SUM(J58) ->  | L59: =SUM(L58) -> 
D61: =title186 -> Investment | E61: =title116 -> Unit | F61: =PROPER(title224) -> Years | G61: Total | H61: =title206 -> Depreciation | I61: Total | J61: =title206 -> Depreciation | K61: Total | L61: =title206 -> Depreciation
G62: (USD) | H62: =title204 -> (USD/year) | I62: (USD) | J62: =title204 -> (USD/year) | K62: (USD) | L62: =title204 -> (USD/year)
D63: =title187 -> Equipments | E63: USD | F63: =+$N$16 -> 20 | G63: =('COST(ADJUSTED)_RES1'!L67+'COST(ADJUSTED)_RES1'!L72)*('Data Entry Needs'!$I$54/141) -> 0 | H63: =+G63/F63 -> 0 | I63: =('COST(ADJUSTED)_RES1'!M67+'COST(ADJUSTED)_RES1'!M72)*('Data Entry Needs'!$I$54/141) -> 0 | J63: =+I63/F63 -> 0 | K63: =('COST(ADJUSTED)_RES1'!AF67+'COST(ADJUSTED)_RES1'!AF72)*('Data Entry Needs'!$I$54/141) -> 0 | L63: =+K63/F63 -> 0
D64: =title188 -> Building | E64: USD | F64: =+$N$16 -> 20 | G64: =('COST(ADJUSTED)_RES1'!L76+'COST(ADJUSTED)_RES1'!L75)*('Data Entry Needs'!$I$54/141) -> 0 | H64: =+G64/F64 -> 0 | I64: =('COST(ADJUSTED)_RES1'!M75+'COST(ADJUSTED)_RES1'!M76)*('Data Entry Needs'!$I$54/141) -> 0 | J64: =+I64/F64 -> 0 | K64: =('COST(ADJUSTED)_RES1'!AF76+'COST(ADJUSTED)_RES1'!AF75)*('Data Entry Needs'!$I$54/141) -> 0 | L64: =+K64/F64 -> 0
D65: =title189 -> Installation | E65: USD | F65: =+$N$16 -> 20 | G65: ='COST(ADJUSTED)_RES1'!L77*('Data Entry Needs'!$I$54/141) -> 0 | H65: =+G65/F65 -> 0 | I65: ='COST(ADJUSTED)_RES1'!M77*('Data Entry Needs'!$I$54/141) -> 0 | J65: =+I65/F65 -> 0 | K65: =('COST(ADJUSTED)_RES1'!AF73+'COST(ADJUSTED)_RES1'!AF77+'COST(ADJUSTED)_RES1'!AF78)*('Data Entry Needs'!$I$54/141) -> 0 | L65: =+K65/F65 -> 0
D66: =title190 -> Distribution network | E66: USD | F66: =+$N$16 -> 20 | G66: =((27.1*$G33)+(7.5*10*($G94/('Energy Demand'!$F$8*12))))*('Data Entry Needs'!$I$54/141) ->  | H66: =+G66/F66 ->  | I66: =((27.1*I$33)+(7.5*10*($I$94/('Energy Demand'!$F$8*12))))*('Data Entry Needs'!$I$54/141) ->  | J66: =+I66/F66 ->  | K66: =((27.1*K$33)+(7.5*10*($K$94/('Energy Demand'!$F$8*12))))*('Data Entry Needs'!$I$54/141) ->  | L66: =+K66/F66 -> 
D67: =title191 -> Total Investment | G67: =SUM(G63:G66) ->  | I67: =SUM(I63:I66) ->  | K67: =SUM(K63:K66) -> 
G68: =title207 -> Total depreciation | H68: =SUM(H63:H67) ->  | I68: =title207 -> Total depreciation | J68: =SUM(J63:J67) ->  | K68: =title207 -> Total depreciation | L68: =SUM(L63:L67) -> 
D69: =title143 -> Maintenance cost | F69: =+'Data Entry Needs'!I49 -> 0 | H69: =+F69*H68 ->  | J69: =+F69*$J$68 ->  | L69: =+$F$69*L68 -> 
D70: =title181 -> Subtotal | H70: =SUM(H68:H69) ->  | J70: =SUM(J68:J69) ->  | L70: =SUM(L68:L69) -> 
D72: =title128 -> Other costs | E72: =title116 -> Unit | F72: Rate (%) | H72: Total | J72: Total | L72: Total
H73: =title204 -> (USD/year) | J73: =title204 -> (USD/year) | L73: =title204 -> (USD/year)
D74: =title192 -> Plant overhead | E74: USD | F74: =+'Data Entry Needs'!$D$50 -> 0 | H74: =+(H46+H47+H69)*$F$74 ->  | J74: =+(J46+J47+J69)*$F$74 ->  | L74: =+(L46+L47+L69)*$F$74 -> 
D75: =title193 -> General and administrative cost | E75: USD | F75: =+'Data Entry Needs'!$D$49 -> 0 | H75: =+(H42+H49+H74+H69)*$F$75 ->  | J75: =+(J42+J49+J74+J69)*$F$75 ->  | L75: =+(L42+L49+L74+L69)*$F$75 -> 
D76: =title194 -> Loan interest | E76: USD | F76: =+'Data Entry Needs'!$D$55 -> 0 | H76: =-FA10kW_RES1!G92 ->  | J76: =-FA40kW_RES1!G92 ->  | L76: =-FA100kW_RES1!G92 -> 
D77: =title195 -> Income tax | E77: USD | F77: =+'Data Entry Needs'!$AQ$92 -> 0 | H77: =-FA10kW_RES1!C99 ->  | J77: =-FA40kW_RES1!C99 ->  | L77: =-FA100kW_RES1!C99 -> 
D78: =title181 -> Subtotal | H78: =SUM(H74:H76) ->  | J78: =SUM(J74:J76) ->  | L78: =SUM(L74:L76) -> 
G80: Total | H80: =title208 -> Share (%) | I80: Total | J80: =title208 -> Share (%) | K80: Total | L80: =title208 -> Share (%)
G81: =title204 -> (USD/year) | I81: =title204 -> (USD/year) | K81: =title204 -> (USD/year)
D82: =title196 -> Total operating costs | G82: =+H42+H49+H54+H59 ->  | H82: =+G82/$G$85 ->  | I82: =+J42+J49+J54+J59 ->  | J82: =+I82/$I$85 ->  | K82: =+L42+L49+L54+L59 ->  | L82: =+K82/$K$85 -> 
D83: =title197 -> Total fixed costs | G83: =+H70 ->  | H83: =+G83/$G$85 ->  | I83: =+J70 ->  | J83: =+I83/$I$85 ->  | K83: =+L70 ->  | L83: =+K83/$K$85 -> 
D84: =title198 -> Total other costs | G84: =+H78 ->  | H84: =+G84/$G$85 ->  | I84: =+J78 ->  | J84: =+I84/$I$85 ->  | K84: =+L78 ->  | L84: =+K84/$K$85 -> 
D85: =title199 -> Total production costs | G85: =SUM(G82:G84) ->  | I85: =SUM(I82:I84) ->  | K85: =SUM(K82:K84) -> 
C87: =title209 -> Power generation
E89: =title116 -> Unit | G89: =title202 -> Quantity | I89: =title202 -> Quantity | K89: =title202 -> Quantity
G90: (Unit) | I90: (Unit) | K90: (Unit)
D91: =title209 -> Power generation | E91: =title211 -> kWh/year | G91: =+G33*H34*(1-$I$18) -> 0 | I91: =+I33*J34*(1-$I$18) -> 0 | K91: =+K33*L34*(1-$I$18) -> 0
D92: =title210 -> Electricity - self use | E92: =title211 -> kWh/year | G92: =-G91*10% -> 0 | I92: =-I91*10% -> 0 | K92: =-K91*10% -> 0
D93: =title212 -> Power loss in distribution network | E93: =title211 -> kWh/year | G93: =-G91*$I$20 -> 0 | I93: =-I91*$I$20 -> 0 | K93: =-K91*$I$20 -> 0
D94: =title181 -> Subtotal | G94: =SUM(G91:H93) -> 0 | I94: =SUM(I91:J93) -> 0 | K94: =SUM(K91:L93) -> 0
C96: =title213 -> Total Production Cost + Distribution
G98: =$G$32 -> Capacities (kW of power generation)
G99: =+G33 -> 10 | I99: =+I33 -> 40 | K99: =+K33 -> 100
D100: =title214 -> Unit cost of electricity (USD/kWh) | G100: =G85/G94 ->  | I100: =I85/I94 ->  | K100: =K85/K94 -> 
D102: =title219 -> Average loan interest | E102: =title116 -> Unit | F102: =title133&" (%)" -> Loan ratio (%) | G102: =title191 -> Total Investment | H102: =title215 -> Loan amount | I102: =title191 -> Total Investment | J102: =title215 -> Loan amount | K102: =title191 -> Total Investment | L102: =title215 -> Loan amount
G103: (USD) | H103: (USD) | I103: (USD) | J103: (USD) | K103: (USD) | L103: (USD)
D104: =title215 -> Loan amount | E104: USD | F104: =+$N$11 -> 0 | G104: =G67 ->  | H104: =$F$104*G104 ->  | I104: =I67 ->  | J104: =$F$104*I104 ->  | K104: =K67 ->  | L104: =$F$104*K104 -> 
D105: =title134 -> Loan interest rate | E105: % | H105: =+$N$10 -> 0 | J105: =+$N$10 -> 0 | L105: =+$N$10 -> 0
D106: =title216 -> Loan payment | E106: =title220 -> USD/month | H106: =PMT(H105/12,H108*12,H104,0) ->  | J106: =PMT(J105/12,J108*12,J104,0) ->  | L106: =PMT(L105/12,L108*12,L104,0) -> 
D107: =title217 -> Annual loan payment | E107: =title221 -> USD/year | H107: =H106*12 ->  | J107: =J106*12 ->  | L107: =L106*12 -> 
D108: =title222 -> Loan terms | E108: =title224 -> years | H108: =+$N$12 -> 0 | J108: =+$N$12 -> 0 | L108: =+$N$12 -> 0
D109: =title218 -> Total loan payment | E109: USD | H109: =H107*H108 ->  | J109: =J107*J108 ->  | L109: =L107*L108 -> 
D110: =title194 -> Loan interest | E110: USD | H110: =H109+H104 ->  | J110: =J109+J104 ->  | L110: =L109+L104 -> 
D111: =title219 -> Average loan interest | E111: =title221 -> USD/year | H111: =H110/$N$16 ->  | J111: =J110/$N$16 ->  | L111: =L110/$N$16 -> 

Sheet FA10kW_RES1 (hidden)
B1: =title227&"10 kW" -> FINANCIAL EVALUATION OF GASIFICATION FOR POWER GENERATION10 kW
A4: =title228 -> Revenues of biomass gasification and power generation system
B6: =title229 -> Operating Year | C6: 0 | D6: 1 | E6: 2 | F6: 3 | G6: 4 | H6: 5 | I6: 6 | J6: 7 | K6: 8 | L6: 9 | M6: 10 | N6: 11 | O6: 12 | P6: 13 | Q6: 14 | R6: 15 | S6: 16 | T6: 17 | U6: 18 | V6: 19 | W6: 20
B8: =title230 -> Power generation capacity (kW) | C8: 10 | D8: =C8 -> 10 | E8: =D8 -> 10 | F8: 10 | G8: 10 | H8: 10 | I8: 10 | J8: 10 | K8: 10 | L8: 10 | M8: 10 | N8: 10 | O8: 10 | P8: 10 | Q8: 10 | R8: 10 | S8: 10 | T8: 10 | U8: 10 | V8: 10 | W8: 10
B10: =title157 -> Gas engine type | C10: =+COST_RES1!$I$11 -> 100% Syngas
B12: =title162 -> Power loss in distribution network (%) | C12: =+COST_RES1!$I$18 -> 0 | D12: =+C12 -> 0 | E12: =+D12 -> 0 | F12: 0 | G12: 0 | H12: 0 | I12: 0 | J12: 0 | K12: 0 | L12: 0 | M12: 0 | N12: 0 | O12: 0 | P12: 0 | Q12: 0 | R12: 0 | S12: 0 | T12: 0 | U12: 0 | V12: 0 | W12: 0
B14: =title231 -> Operating hours per year | C14: =+COST_RES1!$H$34 -> 0 | D14: =C14 -> 0 | E14: =D14 -> 0 | F14: 0 | G14: 0 | H14: 0 | I14: 0 | J14: 0 | K14: 0 | L14: 0 | M14: 0 | N14: 0 | O14: 0 | P14: 0 | Q14: 0 | R14: 0 | S14: 0 | T14: 0 | U14: 0 | V14: 0 | W14: 0
B15: =title158 -> Capacity utilization factor | C15: =C14/8760 -> 0 | D15: =D14/8760 -> 0 | E15: 0 | F15: 0 | G15: 0 | H15: 0 | I15: 0 | J15: 0 | K15: 0 | L15: 0 | M15: 0 | N15: 0 | O15: 0 | P15: 0 | Q15: 0 | R15: 0 | S15: 0 | T15: 0 | U15: 0 | V15: 0 | W15: 0
B17: =title232 -> Electricity generation (kWh per year) | C17: =C8*C14*(1-C12) -> 0 | D17: =D8*D14*(1-D12) -> 0 | E17: 0 | F17: 0 | G17: 0 | H17: 0 | I17: 0 | J17: 0 | K17: 0 | L17: 0 | M17: 0 | N17: 0 | O17: 0 | P17: 0 | Q17: 0 | R17: 0 | S17: 0 | T17: 0 | U17: 0 | V17: 0 | W17: 0
B18: =title233 -> Electricity - self use (kWh per year) | C18: =C17*10% -> 0 | D18: =D17*10% -> 0 | E18: 0 | F18: 0 | G18: 0 | H18: 0 | I18: 0 | J18: 0 | K18: 0 | L18: 0 | M18: 0 | N18: 0 | O18: 0 | P18: 0 | Q18: 0 | R18: 0 | S18: 0 | T18: 0 | U18: 0 | V18: 0 | W18: 0
B19: =title234 -> Power loss in distribution network (kWh per year) | C19: =C17*COST_RES1!$I$20 -> 0 | D19: =C19 -> 0 | E19: =D19 -> 0 | F19: 0 | G19: 0 | H19: 0 | I19: 0 | J19: 0 | K19: 0 | L19: 0 | M19: 0 | N19: 0 | O19: 0 | P19: 0 | Q19: 0 | R19: 0 | S19: 0 | T19: 0 | U19: 0 | V19: 0 | W19: 0
B20: =title235 -> Total power sold to customers (kWh per year) | C20: =C17-C18-C19 -> 0 | D20: =D17-D18-D19 -> 0 | E20: 0 | F20: 0 | G20: 0 | H20: 0 | I20: 0 | J20: 0 | K20: 0 | L20: 0 | M20: 0 | N20: 0 | O20: 0 | P20: 0 | Q20: 0 | R20: 0 | S20: 0 | T20: 0 | U20: 0 | V20: 0 | W20: 0
B22: =title166 -> Price of electricity (USD/kWh) | C22: =+COST_RES1!$N$15 -> 0 | D22: =C22*(1+D23) -> 0 | E22: 0 | F22: 0 | G22: 0 | H22: 0 | I22: 0 | J22: 0 | K22: 0 | L22: 0 | M22: 0 | N22: 0 | O22: 0 | P22: 0 | Q22: 0 | R22: 0 | S22: 0 | T22: 0 | U22: 0 | V22: 0 | W22: 0
B24: =title237 -> Total income (USD/year) | C24: =C20*C22 -> 0 | D24: 0 | E24: 0 | F24: 0 | G24: 0 | H24: 0 | I24: 0 | J24: 0 | K24: 0 | L24: 0 | M24: 0 | N24: 0 | O24: 0 | P24: 0 | Q24: 0 | R24: 0 | S24: 0 | T24: 0 | U24: 0 | V24: 0 | W24: 0
B26: =title238 -> Project lifetime (years) | C26: =+COST_RES1!$N$16 -> 20
B27: =title239 -> Lifespan of civil work (years) | C27: =20 -> 20
B28: =title240 -> Lifespan of gasifier system (years) | C28: =20 -> 20
B29: =title241 -> Lifespan of engine generator system (years) | C29: =20 -> 20
B30: =title242 -> Lifespan of electrical distribution system (years) | C30: =20 -> 20
A33: =title243 -> Capital and operating cost of biomass gasification and power generation system
B35: =title229 -> Operating Year | C35: =title247 -> Appraisal | D35: 1 | E35: 2 | F35: 3 | G35: 4 | H35: 5 | I35: 6 | J35: 7 | K35: 8 | L35: 9 | M35: 10 | N35: 11 | O35: 12 | P35: 13 | Q35: 14 | R35: 15 | S35: 16 | T35: 17 | U35: 18 | V35: 19 | W35: 20
B36: =title244 -> Direct capital cost (USD)
B37: =title187 -> Equipments | C37: =COST_RES1!G63 -> 0
B38: =title188 -> Building | C38: =COST_RES1!G64 -> 0
B39: =title189 -> Installation | C39: =COST_RES1!G65 -> 0
B40: =title190 -> Distribution network | C40: =COST_RES1!G66 -> 
B41: =title245 -> Total capital cost (USD) | C41: =SUM(C37:C40) ->  | D41: =D37+D38+D39 -> 0 | E41: 0 | F41: 0 | G41: 0 | H41: 0 | I41: 0 | J41: 0 | K41: 0 | L41: 0 | M41: 0 | N41: 0 | O41: 0 | P41: 0 | Q41: 0 | R41: 0 | S41: 0 | T41: 0 | U41: 0 | V41: 0 | W41: 0
B42: =title246 -> Capital cost (USD/kW) | C42: =C41/C8 -> 
B45: =title229 -> Operating Year | C45: =title247 -> Appraisal | D45: 1 | E45: 2 | F45: 3 | G45: 4 | H45: 5 | I45: 6 | J45: 7 | K45: 8 | L45: 9 | M45: 10 | N45: 11 | O45: 12 | P45: 13 | Q45: 14 | R45: 15 | S45: 16 | T45: 17 | U45: 18 | V45: 19 | W45: 20
B46: =title248 -> Annual operating and maintenance cost
B47: =title249 -> Sub-total material cost (USD) | C47: =C48+C56+C60 ->  | D47: =D48+D56+D60 ->  | E47: =E48+E56+E60 -> 
B48: =title250 -> Biomass cost (USD/year) | C48: =C49*C50 ->  | D48: =D49*D50 ->  | E48: =E49*E50 -> 
B49: =title251 -> Biomass consumption (t per year) | C49: =+COST_RES1!$G$39 ->  | D49: =+C49 ->  | E49: =+D49 -> 
B50: =title252 -> Biomass total price (USD/t) | C50: =SUM(C51:C52) -> 0 | D50: =SUM(D51:D52) -> 0 | E50: 0 | F50: 0 | G50: 0 | H50: 0 | I50: 0 | J50: 0 | K50: 0 | L50: 0 | M50: 0 | N50: 0 | O50: 0 | P50: 0 | Q50: 0 | R50: 0 | S50: 0 | T50: 0 | U50: 0 | V50: 0 | W50: 0
B51: =title253 -> Biomass price (USD/t) | C51: =+COST_RES1!$F$39 -> 0 | D51: =C51*(1+D80+D81) -> 0 | E51: =D51*(1+E80+E81) -> 0 | F51: 0 | G51: 0 | H51: 0 | I51: 0 | J51: 0 | K51: 0 | L51: 0 | M51: 0 | N51: 0 | O51: 0 | P51: 0 | Q51: 0 | R51: 0 | S51: 0 | T51: 0 | U51: 0 | V51: 0 | W51: 0
B52: =title254 -> Biomass transportation cost (USD/t) | C52: =+C53*C54 -> 0 | D52: =C52*(1+D80+D81) -> 0 | E52: 0 | F52: 0 | G52: 0 | H52: 0 | I52: 0 | J52: 0 | K52: 0 | L52: 0 | M52: 0 | N52: 0 | O52: 0 | P52: 0 | Q52: 0 | R52: 0 | S52: 0 | T52: 0 | U52: 0 | V52: 0 | W52: 0
B53: =title255 -> Biomass from farm to plant (USD/t/km) | C53: =+COST_RES1!$F$53 -> 0
B54: =title256 -> Transportation distant (km) | C54: =+COST_RES1!$G$53 -> 0
B56: =title257 -> Water cost (USD/year) | C56: =C57*C58 -> 0 | D56: =D57*D58 -> 0 | E56: 0 | F56: 0 | G56: 0 | H56: 0 | I56: 0 | J56: 0 | K56: 0 | L56: 0 | M56: 0 | N56: 0 | O56: 0 | P56: 0 | Q56: 0 | R56: 0 | S56: 0 | T56: 0 | U56: 0 | V56: 0 | W56: 0
B57: =title258 -> Water consumption (m3 per year) | C57: =+COST_RES1!$G$40 -> 0 | D57: =+C57 -> 0 | E57: =+D57 -> 0 | F57: 0 | G57: 0 | H57: 0 | I57: 0 | J57: 0 | K57: 0 | L57: 0 | M57: 0 | N57: 0 | O57: 0 | P57: 0 | Q57: 0 | R57: 0 | S57: 0 | T57: 0 | U57: 0 | V57: 0 | W57: 0
B58: =title259 -> Water treatment cost (USD/m3) | C58: =+COST_RES1!$F$40 -> 0 | D58: =C58*(1+D80+D81) -> 0 | E58: 0 | F58: 0 | G58: 0 | H58: 0 | I58: 0 | J58: 0 | K58: 0 | L58: 0 | M58: 0 | N58: 0 | O58: 0 | P58: 0 | Q58: 0 | R58: 0 | S58: 0 | T58: 0 | U58: 0 | V58: 0 | W58: 0
B60: =title260 -> Diesel cost (USD/year) | C60: =C61*C62 -> 0 | D60: =D61*D62 -> 0 | E60: 0 | F60: 0 | G60: 0 | H60: 0 | I60: 0 | J60: 0 | K60: 0 | L60: 0 | M60: 0 | N60: 0 | O60: 0 | P60: 0 | Q60: 0 | R60: 0 | S60: 0 | T60: 0 | U60: 0 | V60: 0 | W60: 0
B61: =title261 -> Diesel/fuel oil consumption (litres per year) | C61: =+COST_RES1!$G$41 -> 54.75 | D61: =+C61 -> 54.75 | E61: =+D61 -> 54.75 | F61: 54.75 | G61: 54.75 | H61: 54.75 | I61: 54.75 | J61: 54.75 | K61: 54.75 | L61: 54.75 | M61: 54.75 | N61: 54.75 | O61: 54.75 | P61: 54.75 | Q61: 54.75 | R61: 54.75 | S61: 54.75 | T61: 54.75 | U61: 54.75 | V61: 54.75 | W61: 54.75
B62: =title262 -> Diesel/fuel oil price (USD per litre) | C62: =+COST_RES1!$F$41 -> 0 | D62: =C62*(1+D80+D81) -> 0 | E62: 0 | F62: 0 | G62: 0 | H62: 0 | I62: 0 | J62: 0 | K62: 0 | L62: 0 | M62: 0 | N62: 0 | O62: 0 | P62: 0 | Q62: 0 | R62: 0 | S62: 0 | T62: 0 | U62: 0 | V62: 0 | W62: 0
B64: =title263 -> Sub-total operating cost (USD) | C64: =C65+C67+C68 ->  | D64: =D65+D67+D68 -> 
B65: =title264 -> Labour cost (USD) | C65: =COST_RES1!H49 -> 0 | D65: =C65*(1+D66) -> 0 | E65: 0 | F65: 0 | G65: 0 | H65: 0 | I65: 0 | J65: 0 | K65: 0 | L65: 0 | M65: 0 | N65: 0 | O65: 0 | P65: 0 | Q65: 0 | R65: 0 | S65: 0 | T65: 0 | U65: 0 | V65: 0 | W65: 0
B66: =title265 -> Annual change in labour cost (%) | D66: 0 | E66: =D66 -> 0 | F66: =E66 -> 0 | G66: 0 | H66: 0 | I66: 0 | J66: 0 | K66: 0 | L66: 0 | M66: 0 | N66: 0 | O66: 0 | P66: 0 | Q66: 0 | R66: 0 | S66: 0 | T66: 0 | U66: 0 | V66: 0 | W66: 0
B67: =title192 -> Plant overhead | C67: =COST_RES1!H74 ->  | D67: =C67 ->  | E67: =D67 -> 
B68: =title193 -> General and administrative cost | C68: =COST_RES1!H75 ->  | D68: =C68 ->  | E68: =D68 -> 
B69: =title266 -> Sub-total maintenance cost (USD) | C69: =COST_RES1!H69 ->  | D69: =C69 ->  | E69: =D69 -> 
B71: =title267 -> Sub-total of annual fixed cost | C71: =COST_RES1!H68 ->  | D71: =C71 ->  | E71: =D71 -> 
B73: =title268 -> Sub-total of storage capacity | C73: =+COST_RES1!H59 ->  | D73: =C73 ->  | E73: =D73 -> 
B75: =title269 -> Total operation and maintenance cost (USD) | C75: =C47+C64+C69+C71+C73 ->  | D75: =D47+D64+D69+D71+D73 -> 
B76: =title270 -> Operation and maintenance cost (USD/kWh) without loan interest | C76: =C75/C20 -> 
A78: =title131 -> Financial parameters
B79: =title229 -> Operating Year | C79: =title247 -> Appraisal | D79: 1 | E79: 2 | F79: 3 | G79: 4 | H79: 5 | I79: 6 | J79: 7 | K79: 8 | L79: 9 | M79: 10 | N79: 11 | O79: 12 | P79: 13 | Q79: 14 | R79: 15 | S79: 16 | T79: 17 | U79: 18 | V79: 19 | W79: 20
B80: =title271 -> Annual change in raw material cost (%) | D80: =+COST_RES1!$N$19 -> 0 | E80: =D80 -> 0 | F80: =E80 -> 0 | G80: 0 | H80: 0 | I80: 0 | J80: 0 | K80: 0 | L80: 0 | M80: 0 | N80: 0 | O80: 0 | P80: 0 | Q80: 0 | R80: 0 | S80: 0 | T80: 0 | U80: 0 | V80: 0 | W80: 0
B81: =title272 -> Inflation rate (%) | D81: 0 | E81: =D81 -> 0 | F81: =E81 -> 0 | G81: 0 | H81: 0 | I81: 0 | J81: 0 | K81: 0 | L81: 0 | M81: 0 | N81: 0 | O81: 0 | P81: 0 | Q81: 0 | R81: 0 | S81: 0 | T81: 0 | U81: 0 | V81: 0 | W81: 0
B82: =title132&" (%)" -> Discount rate (%) | C82: =+COST_RES1!$N$13 -> 0
B83: =title133&" (%)" -> Loan ratio (%) | C83: =+COST_RES1!$N$11 -> 0
B85: =title273 -> Loans | D85: 1 | E85: 2 | F85: 3 | G85: 4 | H85: 5 | I85: 6 | J85: 7 | K85: 8 | L85: 9 | M85: 10 | N85: 11 | O85: 12 | P85: 13 | Q85: 14 | R85: 15 | S85: 16 | T85: 17 | U85: 18 | V85: 19 | W85: 20
B86: =title274 -> Loan amount (USD ) | C86: =C83*C41 -> 
B87: =title134&" (%)" -> Loan interest rate (%) | C87: =+COST_RES1!$N$10 -> 0
B88: =title164 -> Loan term (years) | C88: =+COST_RES1!$N$12 -> 0
B89: =title275 -> Loan payment (USD/month) | C89: =(PMT(C87/12,(12*C88),C86)) -> 
B90: =title276 -> Loan payment (USD/year) | D90: =IF(D79<=$C$88,$C$89*12,0) -> 0 | E90: =IF(E79<=$C$88,$C$89*12,0) -> 0 | F90: 0 | G90: 0 | H90: 0 | I90: 0 | J90: 0 | K90: 0 | L90: 0 | M90: 0 | N90: 0 | O90: 0 | P90: 0 | Q90: 0 | R90: 0 | S90: 0 | T90: 0 | U90: 0 | V90: 0 | W90: 0
B91: =title277 -> Total loan payment (USD) | C91: =SUM(D90:W90) -> 0
B92: =title278 -> Loan interest payment (USD) | C92: =C91+C86 ->  | D92: =title286 -> Average loan interest payment for project lifetime | G92: =C92/C26 ->  | H92: =title287 -> USD per year
A94: =title279 -> Income tax analysis
B95: =title229 -> Operating Year | C95: =title247 -> Appraisal | D95: 1 | E95: 2 | F95: 3 | G95: 4 | H95: 5 | I95: 6 | J95: 7 | K95: 8 | L95: 9 | M95: 10 | N95: 11 | O95: 12 | P95: 13 | Q95: 14 | R95: 15 | S95: 16 | T95: 17 | U95: 18 | V95: 19 | W95: 20
B96: =title280 -> Effective income tax rate (%) | C96: =+'Data Entry Needs'!$AQ$92 -> 0 | D96: =C96 -> 0 | E96: =D96 -> 0 | F96: 0 | G96: 0 | H96: 0 | I96: 0 | J96: 0 | K96: 0 | L96: 0 | M96: 0 | N96: 0 | O96: 0 | P96: 0 | Q96: 0 | R96: 0 | S96: 0 | T96: 0 | U96: 0 | V96: 0 | W96: 0
B97: =title281 -> Income tax | D97: =IF(D122<0,0,-D96*D122) -> 
B98: =title282 -> Total income tax (USD) | C98: =SUM(D97:W97) -> 
B99: =title283 -> Income tax payment (USD per year) | C99: =C98/$C$26 -> 
A101: =title206 -> Depreciation
B102: =title229 -> Operating Year | C102: =title247 -> Appraisal | D102: 1 | E102: 2 | F102: 3 | G102: 4 | H102: 5 | I102: 6 | J102: 7 | K102: 8 | L102: 9 | M102: 10 | N102: 11 | O102: 12 | P102: 13 | Q102: 14 | R102: 15 | S102: 16 | T102: 17 | U102: 18 | V102: 19 | W102: 20
B103: =title284 -> Depreciation method | C103: =title288 -> Straight-line
B104: =title285 -> Total depreciation (USD) | D104: =COST_RES1!H68 ->  | E104: =D104 ->  | F104: =E104 -> 
A107: =title289 -> Base case project
A108: =title290 -> Summary of this project - before tax
B109: =title229 -> Operating Year | C109: =title247 -> Appraisal | D109: 1 | E109: 2 | F109: 3 | G109: 4 | H109: 5 | I109: 6 | J109: 7 | K109: 8 | L109: 9 | M109: 10 | N109: 11 | O109: 12 | P109: 13 | Q109: 14 | R109: 15 | S109: 16 | T109: 17 | U109: 18 | V109: 19 | W109: 20
B110: =title291 -> Total revenue (USD) | D110: =D24 -> 0 | E110: =E24 -> 0 | F110: 0 | G110: 0 | H110: 0 | I110: 0 | J110: 0 | K110: 0 | L110: 0 | M110: 0 | N110: 0 | O110: 0 | P110: 0 | Q110: 0 | R110: 0 | S110: 0 | T110: 0 | U110: 0 | V110: 0 | W110: 0
B111: =title245 -> Total capital cost (USD) | C111: =-(C41-C86) -> 
B112: =title292 -> Total operating and maintenance cost (USD) | D112: =-D75+D71 -> 
B113: =title293 -> Loan payment (USD) | D113: =D90 -> 0 | E113: =E90 -> 0 | F113: 0 | G113: 0 | H113: 0 | I113: 0 | J113: 0 | K113: 0 | L113: 0 | M113: 0 | N113: 0 | O113: 0 | P113: 0 | Q113: 0 | R113: 0 | S113: 0 | T113: 0 | U113: 0 | V113: 0 | W113: 0
B114: =title294 -> Cash flow - before tax (USD) | C114: =SUM(C110:C113) ->  | D114: =SUM(D110:D113) -> 
A116: =title295 -> Summary of this project - after tax
B117: =title229 -> Operating Year | C117: =title247 -> Appraisal | D117: 1 | E117: 2 | F117: 3 | G117: 4 | H117: 5 | I117: 6 | J117: 7 | K117: 8 | L117: 9 | M117: 10 | N117: 11 | O117: 12 | P117: 13 | Q117: 14 | R117: 15 | S117: 16 | T117: 17 | U117: 18 | V117: 19 | W117: 20
B118: =B110 -> Total revenue (USD) | C118: =C110 -> 0 | D118: =D110 -> 0 | E118: =E110 -> 0 | F118: 0 | G118: 0 | H118: 0 | I118: 0 | J118: 0 | K118: 0 | L118: 0 | M118: 0 | N118: 0 | O118: 0 | P118: 0 | Q118: 0 | R118: 0 | S118: 0 | T118: 0 | U118: 0 | V118: 0 | W118: 0
B119: =title292 -> Total operating and maintenance cost (USD) | D119: =-D75+D71 -> 
B120: =title293 -> Loan payment (USD) | D120: =D90 -> 0 | E120: =E90 -> 0 | F120: 0 | G120: 0 | H120: 0 | I120: 0 | J120: 0 | K120: 0 | L120: 0 | M120: 0 | N120: 0 | O120: 0 | P120: 0 | Q120: 0 | R120: 0 | S120: 0 | T120: 0 | U120: 0 | V120: 0 | W120: 0
B121: =title296 -> Depreciation of fixed cost (USD) | D121: =-D104 ->  | E121: =-E104 -> 
B122: =title297 -> Net Profit - before tax (USD) for income tax calculation | C122: =SUM(C118:C121) -> 0 | D122: =SUM(D118:D121) -> 
B123: =title281 -> Income tax | D123: =D97 ->  | E123: =E97 -> 
B124: =title310 -> Cash flow - after tax (USD) | C124: =C111 ->  | D124: =D114+D123 ->  | E124: =E114+E123 -> 
A126: =title298 -> Cumulative value of Net Profit
B127: =title229 -> Operating Year | C127: =title247 -> Appraisal | D127: 1 | E127: 2 | F127: 3 | G127: 4 | H127: 5 | I127: 6 | J127: 7 | K127: 8 | L127: 9 | M127: 10 | N127: 11 | O127: 12 | P127: 13 | Q127: 14 | R127: 15 | S127: 16 | T127: 17 | U127: 18 | V127: 19 | W127: 20
B128: =title299 -> Cumulative value of Net Profit - before tax | C128: =C114 ->  | D128: =C128+(D114) -> 
B129: =title300 -> Cumulative value of Net Profit - after tax | C129: =C124 ->  | D129: =C129+(D124) -> 
A131: =title301 -> Financial Analysis Result
B133: =title302 -> Net Present Value (NPV) (USD) - before tax | C133: =NPV(C82,D114:W114)+C114 -> 
B134: =title303 -> Internal Rate of Return (IRR) (%) - before tax | C134: =IF(C133<0,title455,IRR(C114:W114,0.001)) -> 
B135: =title304 -> Payback period (years) | C135: =title308 -> Please see Figure of the cumulative value of Net Profit - before tax
B138: =title305 -> Net Present Value (NPV) (USD) - after tax | C138: =NPV(C82,D124:W124)+C124 -> 
B139: =title306 -> Internal Rate of Return (IRR) (%) - after tax | C139: =IF(C138<0,title455,IRR(C124:W124,0.000001)) -> 
B140: =title304 -> Payback period (years) | C140: =title309 -> Please see Figure of the cumulative value of Net Profit - after tax
B141: =title307 -> Total income tax payment of project lifetime | C141: =SUM(D123:W123) -> 

Sheet FA40kW_RES1 (hidden)
B1: =title227&"40 kW" -> FINANCIAL EVALUATION OF GASIFICATION FOR POWER GENERATION40 kW
A4: =title228 -> Revenues of biomass gasification and power generation system
B6: =title229 -> Operating Year | C6: 0 | D6: 1 | E6: 2 | F6: 3 | G6: 4 | H6: 5 | I6: 6 | J6: 7 | K6: 8 | L6: 9 | M6: 10 | N6: 11 | O6: 12 | P6: 13 | Q6: 14 | R6: 15 | S6: 16 | T6: 17 | U6: 18 | V6: 19 | W6: 20
B8: =title230 -> Power generation capacity (kW) | C8: 40 | D8: =C8 -> 40 | E8: =D8 -> 40 | F8: 40 | G8: 40 | H8: 40 | I8: 40 | J8: 40 | K8: 40 | L8: 40 | M8: 40 | N8: 40 | O8: 40 | P8: 40 | Q8: 40 | R8: 40 | S8: 40 | T8: 40 | U8: 40 | V8: 40 | W8: 40
B10: =title157 -> Gas engine type | C10: =+COST_RES1!$I$11 -> 100% Syngas
B12: =title162 -> Power loss in distribution network (%) | C12: =+COST_RES1!$I$18 -> 0 | D12: =+C12 -> 0 | E12: =+D12 -> 0 | F12: 0 | G12: 0 | H12: 0 | I12: 0 | J12: 0 | K12: 0 | L12: 0 | M12: 0 | N12: 0 | O12: 0 | P12: 0 | Q12: 0 | R12: 0 | S12: 0 | T12: 0 | U12: 0 | V12: 0 | W12: 0
B14: =title231 -> Operating hours per year | C14: =+COST_RES1!$J$34 -> 0 | D14: =C14 -> 0 | E14: =D14 -> 0 | F14: 0 | G14: 0 | H14: 0 | I14: 0 | J14: 0 | K14: 0 | L14: 0 | M14: 0 | N14: 0 | O14: 0 | P14: 0 | Q14: 0 | R14: 0 | S14: 0 | T14: 0 | U14: 0 | V14: 0 | W14: 0
B15: =title158 -> Capacity utilization factor | C15: =C14/8760 -> 0 | D15: =D14/8760 -> 0 | E15: 0 | F15: 0 | G15: 0 | H15: 0 | I15: 0 | J15: 0 | K15: 0 | L15: 0 | M15: 0 | N15: 0 | O15: 0 | P15: 0 | Q15: 0 | R15: 0 | S15: 0 | T15: 0 | U15: 0 | V15: 0 | W15: 0
B17: =title232 -> Electricity generation (kWh per year) | C17: =C8*C14*(1-C12) -> 0 | D17: =D8*D14*(1-D12) -> 0 | E17: 0 | F17: 0 | G17: 0 | H17: 0 | I17: 0 | J17: 0 | K17: 0 | L17: 0 | M17: 0 | N17: 0 | O17: 0 | P17: 0 | Q17: 0 | R17: 0 | S17: 0 | T17: 0 | U17: 0 | V17: 0 | W17: 0
B18: =title233 -> Electricity - self use (kWh per year) | C18: =C17*10% -> 0 | D18: =D17*10% -> 0 | E18: 0 | F18: 0 | G18: 0 | H18: 0 | I18: 0 | J18: 0 | K18: 0 | L18: 0 | M18: 0 | N18: 0 | O18: 0 | P18: 0 | Q18: 0 | R18: 0 | S18: 0 | T18: 0 | U18: 0 | V18: 0 | W18: 0
B19: =title234 -> Power loss in distribution network (kWh per year) | C19: =C17*COST_RES1!$I$20 -> 0 | D19: =C19 -> 0 | E19: =D19 -> 0 | F19: 0 | G19: 0 | H19: 0 | I19: 0 | J19: 0 | K19: 0 | L19: 0 | M19: 0 | N19: 0 | O19: 0 | P19: 0 | Q19: 0 | R19: 0 | S19: 0 | T19: 0 | U19: 0 | V19: 0 | W19: 0
B20: =title235 -> Total power sold to customers (kWh per year) | C20: =C17-C18-C19 -> 0 | D20: =D17-D18-D19 -> 0 | E20: 0 | F20: 0 | G20: 0 | H20: 0 | I20: 0 | J20: 0 | K20: 0 | L20: 0 | M20: 0 | N20: 0 | O20: 0 | P20: 0 | Q20: 0 | R20: 0 | S20: 0 | T20: 0 | U20: 0 | V20: 0 | W20: 0
B22: =title166 -> Price of electricity (USD/kWh) | C22: =+COST_RES1!$N$15 -> 0 | D22: =C22*(1+D23) -> 0 | E22: =D22*(1+E23) -> 0 | F22: =E22*(1+F23) -> 0 | G22: 0 | H22: 0 | I22: 0 | J22: 0 | K22: 0 | L22: 0 | M22: 0 | N22: 0 | O22: 0 | P22: 0 | Q22: 0 | R22: 0 | S22: 0 | T22: 0 | U22: 0 | V22: 0 | W22: 0
B24: =title237 -> Total income (USD/year) | C24: =C20*C22 -> 0 | D24: =D20*D22 -> 0 | E24: 0 | F24: 0 | G24: 0 | H24: 0 | I24: 0 | J24: 0 | K24: 0 | L24: 0 | M24: 0 | N24: 0 | O24: 0 | P24: 0 | Q24: 0 | R24: 0 | S24: 0 | T24: 0 | U24: 0 | V24: 0 | W24: 0
B26: =title238 -> Project lifetime (years) | C26: =+COST_RES1!$N$16 -> 20
B27: =title239 -> Lifespan of civil work (years) | C27: =20 -> 20
B28: =title240 -> Lifespan of gasifier system (years) | C28: =20 -> 20
B29: =title241 -> Lifespan of engine generator system (years) | C29: =20 -> 20
B30: =title242 -> Lifespan of electrical distribution system (years) | C30: =20 -> 20
A33: =title243 -> Capital and operating cost of biomass gasification and power generation system
B35: =title229 -> Operating Year | C35: =title247 -> Appraisal | D35: 1 | E35: 2 | F35: 3 | G35: 4 | H35: 5 | I35: 6 | J35: 7 | K35: 8 | L35: 9 | M35: 10 | N35: 11 | O35: 12 | P35: 13 | Q35: 14 | R35: 15 | S35: 16 | T35: 17 | U35: 18 | V35: 19 | W35: 20
B36: =title244 -> Direct capital cost (USD)
B37: =title187 -> Equipments | C37: =COST_RES1!I63 -> 0
B38: =title188 -> Building | C38: =COST_RES1!I64 -> 0
B39: =title189 -> Installation | C39: =COST_RES1!I65 -> 0
B40: =title190 -> Distribution network | C40: =COST_RES1!I66 -> 
B41: =title245 -> Total capital cost (USD) | C41: =SUM(C37:C40) ->  | D41: =D37+D38+D39 -> 0 | E41: 0 | F41: 0 | G41: 0 | H41: 0 | I41: 0 | J41: 0 | K41: 0 | L41: 0 | M41: 0 | N41: 0 | O41: 0 | P41: 0 | Q41: 0 | R41: 0 | S41: 0 | T41: 0 | U41: 0 | V41: 0 | W41: 0
B42: =title246 -> Capital cost (USD/kW) | C42: =C41/C8 -> 
B45: =title229 -> Operating Year | C45: =title247 -> Appraisal | D45: 1 | E45: 2 | F45: 3 | G45: 4 | H45: 5 | I45: 6 | J45: 7 | K45: 8 | L45: 9 | M45: 10 | N45: 11 | O45: 12 | P45: 13 | Q45: 14 | R45: 15 | S45: 16 | T45: 17 | U45: 18 | V45: 19 | W45: 20
B46: =title248 -> Annual operating and maintenance cost
B47: =title249 -> Sub-total material cost (USD) | C47: =C48+C56+C60 ->  | D47: =D48+D56+D60 ->  | E47: =E48+E56+E60 -> 
B48: =title250 -> Biomass cost (USD/year) | C48: =C49*C50 ->  | D48: =D49*D50 ->  | E48: =E49*E50 -> 
B49: =title251 -> Biomass consumption (t per year) | C49: =+COST_RES1!$I$39 ->  | D49: =+C49 ->  | E49: =+D49 -> 
B50: =title252 -> Biomass total price (USD/t) | C50: =SUM(C51:C52) -> 0 | D50: =SUM(D51:D52) -> 0 | E50: 0 | F50: 0 | G50: 0 | H50: 0 | I50: 0 | J50: 0 | K50: 0 | L50: 0 | M50: 0 | N50: 0 | O50: 0 | P50: 0 | Q50: 0 | R50: 0 | S50: 0 | T50: 0 | U50: 0 | V50: 0 | W50: 0
B51: =title253 -> Biomass price (USD/t) | C51: =+COST_RES1!$F$39 -> 0 | D51: =C51*(1+D80+D81) -> 0 | E51: 0 | F51: 0 | G51: 0 | H51: 0 | I51: 0 | J51: 0 | K51: 0 | L51: 0 | M51: 0 | N51: 0 | O51: 0 | P51: 0 | Q51: 0 | R51: 0 | S51: 0 | T51: 0 | U51: 0 | V51: 0 | W51: 0
B52: =title254 -> Biomass transportation cost (USD/t) | C52: =+C53*C54 -> 0 | D52: =C52*(1+D80+D81) -> 0 | E52: 0 | F52: 0 | G52: 0 | H52: 0 | I52: 0 | J52: 0 | K52: 0 | L52: 0 | M52: 0 | N52: 0 | O52: 0 | P52: 0 | Q52: 0 | R52: 0 | S52: 0 | T52: 0 | U52: 0 | V52: 0 | W52: 0
B53: =title255 -> Biomass from farm to plant (USD/t/km) | C53: =+COST_RES1!$F$53 -> 0
B54: =title256 -> Transportation distant (km) | C54: =+COST_RES1!$I$53 -> 0
B56: =title257 -> Water cost (USD/year) | C56: =C57*C58 -> 0 | D56: =D57*D58 -> 0 | E56: 0 | F56: 0 | G56: 0 | H56: 0 | I56: 0 | J56: 0 | K56: 0 | L56: 0 | M56: 0 | N56: 0 | O56: 0 | P56: 0 | Q56: 0 | R56: 0 | S56: 0 | T56: 0 | U56: 0 | V56: 0 | W56: 0
B57: =title258 -> Water consumption (m3 per year) | C57: =+COST_RES1!$I$40 -> 0 | D57: =+C57 -> 0 | E57: =+D57 -> 0 | F57: 0 | G57: 0 | H57: 0 | I57: 0 | J57: 0 | K57: 0 | L57: 0 | M57: 0 | N57: 0 | O57: 0 | P57: 0 | Q57: 0 | R57: 0 | S57: 0 | T57: 0 | U57: 0 | V57: 0 | W57: 0
B58: =title259 -> Water treatment cost (USD/m3) | C58: =+COST_RES1!$F$40 -> 0 | D58: =C58*(1+D80+D81) -> 0 | E58: 0 | F58: 0 | G58: 0 | H58: 0 | I58: 0 | J58: 0 | K58: 0 | L58: 0 | M58: 0 | N58: 0 | O58: 0 | P58: 0 | Q58: 0 | R58: 0 | S58: 0 | T58: 0 | U58: 0 | V58: 0 | W58: 0
B60: =title260 -> Diesel cost (USD/year) | C60: =C61*C62 -> 0 | D60: =D61*D62 -> 0 | E60: 0 | F60: 0 | G60: 0 | H60: 0 | I60: 0 | J60: 0 | K60: 0 | L60: 0 | M60: 0 | N60: 0 | O60: 0 | P60: 0 | Q60: 0 | R60: 0 | S60: 0 | T60: 0 | U60: 0 | V60: 0 | W60: 0
B61: =title261 -> Diesel/fuel oil consumption (litres per year) | C61: =+COST_RES1!$I$41 -> 219 | D61: =+C61 -> 219 | E61: =+D61 -> 219 | F61: 219 | G61: 219 | H61: 219 | I61: 219 | J61: 219 | K61: 219 | L61: 219 | M61: 219 | N61: 219 | O61: 219 | P61: 219 | Q61: 219 | R61: 219 | S61: 219 | T61: 219 | U61: 219 | V61: 219 | W61: 219
B62: =title262 -> Diesel/fuel oil price (USD per litre) | C62: =+COST_RES1!$F$41 -> 0 | D62: =C62*(1+D80+D81) -> 0 | E62: 0 | F62: 0 | G62: 0 | H62: 0 | I62: 0 | J62: 0 | K62: 0 | L62: 0 | M62: 0 | N62: 0 | O62: 0 | P62: 0 | Q62: 0 | R62: 0 | S62: 0 | T62: 0 | U62: 0 | V62: 0 | W62: 0
B64: =title263 -> Sub-total operating cost (USD) | C64: =C65+C67+C68 ->  | D64: =D65+D67+D68 -> 
B65: =title264 -> Labour cost (USD) | C65: =COST_RES1!J49 -> 0 | D65: =C65*(1+D66) -> 0 | E65: 0 | F65: 0 | G65: 0 | H65: 0 | I65: 0 | J65: 0 | K65: 0 | L65: 0 | M65: 0 | N65: 0 | O65: 0 | P65: 0 | Q65: 0 | R65: 0 | S65: 0 | T65: 0 | U65: 0 | V65: 0 | W65: 0
B66: =title265 -> Annual change in labour cost (%) | D66: 0 | E66: =D66 -> 0 | F66: =E66 -> 0 | G66: 0 | H66: 0 | I66: 0 | J66: 0 | K66: 0 | L66: 0 | M66: 0 | N66: 0 | O66: 0 | P66: 0 | Q66: 0 | R66: 0 | S66: 0 | T66: 0 | U66: 0 | V66: 0 | W66: 0
B67: =title192 -> Plant overhead | C67: =COST_RES1!J74 ->  | D67: =C67 ->  | E67: =D67 -> 
B68: =title193 -> General and administrative cost | C68: =COST_RES1!J75 ->  | D68: =C68 -> 
B69: =title266 -> Sub-total maintenance cost (USD) | C69: =COST_RES1!J69 ->  | D69: =C69 -> 
B71: =title267 -> Sub-total of annual fixed cost | C71: =COST_RES1!J68 ->  | D71: =C71 ->  | E71: =D71 -> 
B73: =title268 -> Sub-total of storage capacity | C73: =+COST_RES1!J59 ->  | D73: =C73 ->  | E73: =D73 -> 
B75: =title269 -> Total operation and maintenance cost (USD) | C75: =C47+C64+C69+C71+C73 ->  | D75: =D47+D64+D69+D71+D73 -> 
B76: =title270 -> Operation and maintenance cost (USD/kWh) without loan interest | C76: =C75/C20 -> 
A78: =title131 -> Financial parameters
B79: =title229 -> Operating Year | C79: =title247 -> Appraisal | D79: 1 | E79: 2 | F79: 3 | G79: 4 | H79: 5 | I79: 6 | J79: 7 | K79: 8 | L79: 9 | M79: 10 | N79: 11 | O79: 12 | P79: 13 | Q79: 14 | R79: 15 | S79: 16 | T79: 17 | U79: 18 | V79: 19 | W79: 20
B80: =title271 -> Annual change in raw material cost (%) | D80: =+COST_RES1!$N$19 -> 0 | E80: =D80 -> 0 | F80: =E80 -> 0 | G80: 0 | H80: 0 | I80: 0 | J80: 0 | K80: 0 | L80: 0 | M80: 0 | N80: 0 | O80: 0 | P80: 0 | Q80: 0 | R80: 0 | S80: 0 | T80: 0 | U80: 0 | V80: 0 | W80: 0
B81: =title272 -> Inflation rate (%) | D81: 0 | E81: =D81 -> 0 | F81: 0 | G81: 0 | H81: 0 | I81: 0 | J81: 0 | K81: 0 | L81: 0 | M81: 0 | N81: 0 | O81: 0 | P81: 0 | Q81: 0 | R81: 0 | S81: 0 | T81: 0 | U81: 0 | V81: 0 | W81: 0
B82: =title132&" (%)" -> Discount rate (%) | C82: =+COST_RES1!$N$13 -> 0
B83: =title133&" (%)" -> Loan ratio (%) | C83: =+COST_RES1!$N$11 -> 0
B85: =title273 -> Loans | D85: 1 | E85: 2 | F85: 3 | G85: 4 | H85: 5 | I85: 6 | J85: 7 | K85: 8 | L85: 9 | M85: 10 | N85: 11 | O85: 12 | P85: 13 | Q85: 14 | R85: 15 | S85: 16 | T85: 17 | U85: 18 | V85: 19 | W85: 20
B86: =title274 -> Loan amount (USD ) | C86: =C83*C41 -> 
B87: =title134&" (%)" -> Loan interest rate (%) | C87: =+COST_RES1!$N$10 -> 0
B88: =title164 -> Loan term (years) | C88: =+COST_RES1!$N$12 -> 0
B89: =title275 -> Loan payment (USD/month) | C89: =(PMT(C87/12,(12*C88),C86)) -> 
B90: =title276 -> Loan payment (USD/year) | D90: =IF(D79<=$C$88,$C$89*12,0) -> 0 | E90: =IF(E79<=$C$88,$C$89*12,0) -> 0 | F90: 0 | G90: 0 | H90: 0 | I90: 0 | J90: 0 | K90: 0 | L90: 0 | M90: 0 | N90: 0 | O90: 0 | P90: 0 | Q90: 0 | R90: 0 | S90: 0 | T90: 0 | U90: 0 | V90: 0 | W90: 0
B91: =title277 -> Total loan payment (USD) | C91: =SUM(D90:W90) -> 0
B92: =title278 -> Loan interest payment (USD) | C92: =C91+C86 ->  | D92: =title286 -> Average loan interest payment for project lifetime | G92: =C92/C26 ->  | H92: =title287 -> USD per year
A94: =title279 -> Income tax analysis
B95: =title229 -> Operating Year | C95: =title247 -> Appraisal | D95: 1 | E95: 2 | F95: 3 | G95: 4 | H95: 5 | I95: 6 | J95: 7 | K95: 8 | L95: 9 | M95: 10 | N95: 11 | O95: 12 | P95: 13 | Q95: 14 | R95: 15 | S95: 16 | T95: 17 | U95: 18 | V95: 19 | W95: 20
B96: =title280 -> Effective income tax rate (%) | C96: =+'Data Entry Needs'!$AQ$92 -> 0 | D96: =C96 -> 0 | E96: =D96 -> 0 | F96: 0 | G96: 0 | H96: 0 | I96: 0 | J96: 0 | K96: 0 | L96: 0 | M96: 0 | N96: 0 | O96: 0 | P96: 0 | Q96: 0 | R96: 0 | S96: 0 | T96: 0 | U96: 0 | V96: 0 | W96: 0
B97: =title281 -> Income tax | D97: =IF(D122<0,0,-D96*D122) -> 
B98: =title282 -> Total income tax (USD) | C98: =SUM(D97:W97) -> 
B99: =title283 -> Income tax payment (USD per year) | C99: =C98/$C$26 -> 
A101: =title206 -> Depreciation
B102: =title229 -> Operating Year | C102: =title247 -> Appraisal | D102: 1 | E102: 2 | F102: 3 | G102: 4 | H102: 5 | I102: 6 | J102: 7 | K102: 8 | L102: 9 | M102: 10 | N102: 11 | O102: 12 | P102: 13 | Q102: 14 | R102: 15 | S102: 16 | T102: 17 | U102: 18 | V102: 19 | W102: 20
B103: =title284 -> Depreciation method | C103: =title288 -> Straight-line
B104: =title285 -> Total depreciation (USD) | D104: =COST_RES1!H68 ->  | E104: =D104 ->  | F104: =E104 -> 
A107: =title289 -> Base case project
A108: =title290 -> Summary of this project - before tax
B109: =title229 -> Operating Year | C109: =title247 -> Appraisal | D109: 1 | E109: 2 | F109: 3 | G109: 4 | H109: 5 | I109: 6 | J109: 7 | K109: 8 | L109: 9 | M109: 10 | N109: 11 | O109: 12 | P109: 13 | Q109: 14 | R109: 15 | S109: 16 | T109: 17 | U109: 18 | V109: 19 | W109: 20
B110: =title291 -> Total revenue (USD) | D110: =D24 -> 0 | E110: =E24 -> 0 | F110: 0 | G110: 0 | H110: 0 | I110: 0 | J110: 0 | K110: 0 | L110: 0 | M110: 0 | N110: 0 | O110: 0 | P110: 0 | Q110: 0 | R110: 0 | S110: 0 | T110: 0 | U110: 0 | V110: 0 | W110: 0
B111: =title245 -> Total capital cost (USD) | C111: =-(C41-C86) -> 
B112: =title292 -> Total operating and maintenance cost (USD) | D112: =-D75+D71 -> 
B113: =title293 -> Loan payment (USD) | D113: =D90 -> 0 | E113: =E90 -> 0 | F113: 0 | G113: 0 | H113: 0 | I113: 0 | J113: 0 | K113: 0 | L113: 0 | M113: 0 | N113: 0 | O113: 0 | P113: 0 | Q113: 0 | R113: 0 | S113: 0 | T113: 0 | U113: 0 | V113: 0 | W113: 0
B114: =title294 -> Cash flow - before tax (USD) | C114: =SUM(C110:C113) ->  | D114: =SUM(D110:D113) -> 
A116: =title295 -> Summary of this project - after tax
B117: =title229 -> Operating Year | C117: =title247 -> Appraisal | D117: 1 | E117: 2 | F117: 3 | G117: 4 | H117: 5 | I117: 6 | J117: 7 | K117: 8 | L117: 9 | M117: 10 | N117: 11 | O117: 12 | P117: 13 | Q117: 14 | R117: 15 | S117: 16 | T117: 17 | U117: 18 | V117: 19 | W117: 20
B118: =B110 -> Total revenue (USD) | C118: =C110 -> 0 | D118: =D110 -> 0 | E118: =E110 -> 0 | F118: 0 | G118: 0 | H118: 0 | I118: 0 | J118: 0 | K118: 0 | L118: 0 | M118: 0 | N118: 0 | O118: 0 | P118: 0 | Q118: 0 | R118: 0 | S118: 0 | T118: 0 | U118: 0 | V118: 0 | W118: 0
B119: =title292 -> Total operating and maintenance cost (USD) | D119: =-D75+D71 -> 
B120: =title293 -> Loan payment (USD) | D120: =D90 -> 0 | E120: =E90 -> 0 | F120: 0 | G120: 0 | H120: 0 | I120: 0 | J120: 0 | K120: 0 | L120: 0 | M120: 0 | N120: 0 | O120: 0 | P120: 0 | Q120: 0 | R120: 0 | S120: 0 | T120: 0 | U120: 0 | V120: 0 | W120: 0
B121: =title296 -> Depreciation of fixed cost (USD) | D121: =-D104 ->  | E121: =-E104 -> 
B122: =title297 -> Net Profit - before tax (USD) for income tax calculation | C122: =SUM(C118:C121) -> 0 | D122: =SUM(D118:D121) -> 
B123: =title281 -> Income tax | D123: =D97 ->  | E123: =E97 -> 
B124: =title310 -> Cash flow - after tax (USD) | C124: =C111 ->  | D124: =D114+D123 ->  | E124: =E114+E123 -> 
A126: =title298 -> Cumulative value of Net Profit
B127: =title229 -> Operating Year | C127: =title247 -> Appraisal | D127: 1 | E127: 2 | F127: 3 | G127: 4 | H127: 5 | I127: 6 | J127: 7 | K127: 8 | L127: 9 | M127: 10 | N127: 11 | O127: 12 | P127: 13 | Q127: 14 | R127: 15 | S127: 16 | T127: 17 | U127: 18 | V127: 19 | W127: 20
B128: =title299 -> Cumulative value of Net Profit - before tax | C128: =C114 ->  | D128: =C128+(D114) -> 
B129: =title300 -> Cumulative value of Net Profit - after tax | C129: =C124 ->  | D129: =C129+(D124) -> 
A131: =title301 -> Financial Analysis Result
B133: =title302 -> Net Present Value (NPV) (USD) - before tax | C133: =NPV(C82,D114:W114)+C114 -> 
B134: =title303 -> Internal Rate of Return (IRR) (%) - before tax | C134: =IF(C133<0,title455,IRR(C114:W114,0.001)) -> 
B135: =title304 -> Payback period (years) | C135: =title308 -> Please see Figure of the cumulative value of Net Profit - before tax
B138: =title305 -> Net Present Value (NPV) (USD) - after tax | C138: =NPV(C82,D124:W124)+C124 -> 
B139: =title306 -> Internal Rate of Return (IRR) (%) - after tax | C139: =IF(C138<0,title455,IRR(C124:W124,0.000001)) -> 
B140: =title304 -> Payback period (years) | C140: =title309 -> Please see Figure of the cumulative value of Net Profit - after tax
B141: =title307 -> Total income tax payment of project lifetime | C141: =SUM(D123:W123) -> 

Sheet FA100kW_RES1 (hidden)
B1: =title227&"100 kW" -> FINANCIAL EVALUATION OF GASIFICATION FOR POWER GENERATION100 kW
A4: =title228 -> Revenues of biomass gasification and power generation system
B6: =title229 -> Operating Year | C6: 0 | D6: 1 | E6: 2 | F6: 3 | G6: 4 | H6: 5 | I6: 6 | J6: 7 | K6: 8 | L6: 9 | M6: 10 | N6: 11 | O6: 12 | P6: 13 | Q6: 14 | R6: 15 | S6: 16 | T6: 17 | U6: 18 | V6: 19 | W6: 20
B8: =title230 -> Power generation capacity (kW) | C8: 100 | D8: =C8 -> 100 | E8: =D8 -> 100 | F8: 100 | G8: 100 | H8: 100 | I8: 100 | J8: 100 | K8: 100 | L8: 100 | M8: 100 | N8: 100 | O8: 100 | P8: 100 | Q8: 100 | R8: 100 | S8: 100 | T8: 100 | U8: 100 | V8: 100 | W8: 100
B10: =title157 -> Gas engine type | C10: =+COST_RES1!$I$11 -> 100% Syngas
B12: =title162 -> Power loss in distribution network (%) | C12: =+COST_RES1!$I$18 -> 0 | D12: =+C12 -> 0 | E12: =+D12 -> 0 | F12: 0 | G12: 0 | H12: 0 | I12: 0 | J12: 0 | K12: 0 | L12: 0 | M12: 0 | N12: 0 | O12: 0 | P12: 0 | Q12: 0 | R12: 0 | S12: 0 | T12: 0 | U12: 0 | V12: 0 | W12: 0
B14: =title231 -> Operating hours per year | C14: =+COST_RES1!$L$34 -> 0 | D14: =C14 -> 0 | E14: =D14 -> 0 | F14: 0 | G14: 0 | H14: 0 | I14: 0 | J14: 0 | K14: 0 | L14: 0 | M14: 0 | N14: 0 | O14: 0 | P14: 0 | Q14: 0 | R14: 0 | S14: 0 | T14: 0 | U14: 0 | V14: 0 | W14: 0
B15: =title158 -> Capacity utilization factor | C15: =C14/8760 -> 0 | D15: =D14/8760 -> 0 | E15: 0 | F15: 0 | G15: 0 | H15: 0 | I15: 0 | J15: 0 | K15: 0 | L15: 0 | M15: 0 | N15: 0 | O15: 0 | P15: 0 | Q15: 0 | R15: 0 | S15: 0 | T15: 0 | U15: 0 | V15: 0 | W15: 0
B17: =title232 -> Electricity generation (kWh per year) | C17: =C8*C14*(1-C12) -> 0 | D17: =D8*D14*(1-D12) -> 0 | E17: 0 | F17: 0 | G17: 0 | H17: 0 | I17: 0 | J17: 0 | K17: 0 | L17: 0 | M17: 0 | N17: 0 | O17: 0 | P17: 0 | Q17: 0 | R17: 0 | S17: 0 | T17: 0 | U17: 0 | V17: 0 | W17: 0
B18: =title233 -> Electricity - self use (kWh per year) | C18: =C17*10% -> 0 | D18: =D17*10% -> 0 | E18: 0 | F18: 0 | G18: 0 | H18: 0 | I18: 0 | J18: 0 | K18: 0 | L18: 0 | M18: 0 | N18: 0 | O18: 0 | P18: 0 | Q18: 0 | R18: 0 | S18: 0 | T18: 0 | U18: 0 | V18: 0 | W18: 0
B19: =title234 -> Power loss in distribution network (kWh per year) | C19: =C17*COST_RES1!$I$20 -> 0 | D19: =C19 -> 0 | E19: =D19 -> 0 | F19: 0 | G19: 0 | H19: 0 | I19: 0 | J19: 0 | K19: 0 | L19: 0 | M19: 0 | N19: 0 | O19: 0 | P19: 0 | Q19: 0 | R19: 0 | S19: 0 | T19: 0 | U19: 0 | V19: 0 | W19: 0
B20: =title235 -> Total power sold to customers (kWh per year) | C20: =C17-C18-C19 -> 0 | D20: =D17-D18-D19 -> 0 | E20: 0 | F20: 0 | G20: 0 | H20: 0 | I20: 0 | J20: 0 | K20: 0 | L20: 0 | M20: 0 | N20: 0 | O20: 0 | P20: 0 | Q20: 0 | R20: 0 | S20: 0 | T20: 0 | U20: 0 | V20: 0 | W20: 0
B22: =title166 -> Price of electricity (USD/kWh) | C22: =+COST_RES1!$N$15 -> 0 | D22: =C22*(1+D23) -> 0 | E22: =D22*(1+E23) -> 0 | F22: =E22*(1+F23) -> 0 | G22: 0 | H22: 0 | I22: 0 | J22: 0 | K22: 0 | L22: 0 | M22: 0 | N22: 0 | O22: 0 | P22: 0 | Q22: 0 | R22: 0 | S22: 0 | T22: 0 | U22: 0 | V22: 0 | W22: 0
B24: =title237 -> Total income (USD/year) | C24: =C20*C22 -> 0 | D24: =D20*D22 -> 0 | E24: 0 | F24: 0 | G24: 0 | H24: 0 | I24: 0 | J24: 0 | K24: 0 | L24: 0 | M24: 0 | N24: 0 | O24: 0 | P24: 0 | Q24: 0 | R24: 0 | S24: 0 | T24: 0 | U24: 0 | V24: 0 | W24: 0
B26: =title238 -> Project lifetime (years) | C26: =+COST_RES1!$N$16 -> 20
B27: =title239 -> Lifespan of civil work (years) | C27: =20 -> 20
B28: =title240 -> Lifespan of gasifier system (years) | C28: =20 -> 20
B29: =title241 -> Lifespan of engine generator system (years) | C29: =20 -> 20
B30: =title242 -> Lifespan of electrical distribution system (years) | C30: =20 -> 20
A33: =title243 -> Capital and operating cost of biomass gasification and power generation system
B35: =title229 -> Operating Year | C35: =title247 -> Appraisal | D35: 1 | E35: 2 | F35: 3 | G35: 4 | H35: 5 | I35: 6 | J35: 7 | K35: 8 | L35: 9 | M35: 10 | N35: 11 | O35: 12 | P35: 13 | Q35: 14 | R35: 15 | S35: 16 | T35: 17 | U35: 18 | V35: 19 | W35: 20
B36: =title244 -> Direct capital cost (USD)
B37: =title187 -> Equipments | C37: =COST_RES1!K63 -> 0
B38: =title188 -> Building | C38: =COST_RES1!K64 -> 0
B39: =title189 -> Installation | C39: =COST_RES1!K65 -> 0
B40: =title190 -> Distribution network | C40: =COST_RES1!K66 -> 
B41: =title245 -> Total capital cost (USD) | C41: =SUM(C37:C40) ->  | D41: =D37+D38+D39 -> 0 | E41: 0 | F41: 0 | G41: 0 | H41: 0 | I41: 0 | J41: 0 | K41: 0 | L41: 0 | M41: 0 | N41: 0 | O41: 0 | P41: 0 | Q41: 0 | R41: 0 | S41: 0 | T41: 0 | U41: 0 | V41: 0 | W41: 0
B42: =title246 -> Capital cost (USD/kW) | C42: =C41/C8 -> 
B45: =title229 -> Operating Year | C45: =title247 -> Appraisal | D45: 1 | E45: 2 | F45: 3 | G45: 4 | H45: 5 | I45: 6 | J45: 7 | K45: 8 | L45: 9 | M45: 10 | N45: 11 | O45: 12 | P45: 13 | Q45: 14 | R45: 15 | S45: 16 | T45: 17 | U45: 18 | V45: 19 | W45: 20
B46: =title248 -> Annual operating and maintenance cost
B47: =title249 -> Sub-total material cost (USD) | C47: =C48+C56+C60 ->  | D47: =D48+D56+D60 ->  | E47: =E48+E56+E60 -> 
B48: =title250 -> Biomass cost (USD/year) | C48: =C49*C50 ->  | D48: =D49*D50 ->  | E48: =E49*E50 -> 
B49: =title251 -> Biomass consumption (t per year) | C49: =+COST_RES1!$K$39 ->  | D49: =+C49 ->  | E49: =+D49 -> 
B50: =title252 -> Biomass total price (USD/t) | C50: =SUM(C51:C52) -> 0 | D50: =SUM(D51:D52) -> 0 | E50: =SUM(E51:E52) -> 0 | F50: 0 | G50: 0 | H50: 0 | I50: 0 | J50: 0 | K50: 0 | L50: 0 | M50: 0 | N50: 0 | O50: 0 | P50: 0 | Q50: 0 | R50: 0 | S50: 0 | T50: 0 | U50: 0 | V50: 0 | W50: 0
B51: =title253 -> Biomass price (USD/t) | C51: =+COST_RES1!$F$39 -> 0 | D51: =C51*(1+D80+D81) -> 0 | E51: =D51*(1+E80+E81) -> 0 | F51: 0 | G51: 0 | H51: 0 | I51: 0 | J51: 0 | K51: 0 | L51: 0 | M51: 0 | N51: 0 | O51: 0 | P51: 0 | Q51: 0 | R51: 0 | S51: 0 | T51: 0 | U51: 0 | V51: 0 | W51: 0
B52: =title254 -> Biomass transportation cost (USD/t) | C52: =+C53*C54 -> 0 | D52: =C52*(1+D80+D81) -> 0 | E52: 0 | F52: 0 | G52: 0 | H52: 0 | I52: 0 | J52: 0 | K52: 0 | L52: 0 | M52: 0 | N52: 0 | O52: 0 | P52: 0 | Q52: 0 | R52: 0 | S52: 0 | T52: 0 | U52: 0 | V52: 0 | W52: 0
B53: =title255 -> Biomass from farm to plant (USD/t/km) | C53: =+COST_RES1!$F$53 -> 0
B54: =title256 -> Transportation distant (km) | C54: =+COST_RES1!$K$53 -> 0
B56: =title257 -> Water cost (USD/year) | C56: =C57*C58 -> 0 | D56: =D57*D58 -> 0 | E56: 0 | F56: 0 | G56: 0 | H56: 0 | I56: 0 | J56: 0 | K56: 0 | L56: 0 | M56: 0 | N56: 0 | O56: 0 | P56: 0 | Q56: 0 | R56: 0 | S56: 0 | T56: 0 | U56: 0 | V56: 0 | W56: 0
B57: =title258 -> Water consumption (m3 per year) | C57: =+COST_RES1!$K$40 -> 0 | D57: =+C57 -> 0 | E57: =+D57 -> 0 | F57: 0 | G57: 0 | H57: 0 | I57: 0 | J57: 0 | K57: 0 | L57: 0 | M57: 0 | N57: 0 | O57: 0 | P57: 0 | Q57: 0 | R57: 0 | S57: 0 | T57: 0 | U57: 0 | V57: 0 | W57: 0
B58: =title259 -> Water treatment cost (USD/m3) | C58: =+COST_RES1!$F$40 -> 0 | D58: =C58*(1+D80+D81) -> 0 | E58: 0 | F58: 0 | G58: 0 | H58: 0 | I58: 0 | J58: 0 | K58: 0 | L58: 0 | M58: 0 | N58: 0 | O58: 0 | P58: 0 | Q58: 0 | R58: 0 | S58: 0 | T58: 0 | U58: 0 | V58: 0 | W58: 0
B60: =title260 -> Diesel cost (USD/year) | C60: =C61*C62 -> 0 | D60: =D61*D62 -> 0 | E60: 0 | F60: 0 | G60: 0 | H60: 0 | I60: 0 | J60: 0 | K60: 0 | L60: 0 | M60: 0 | N60: 0 | O60: 0 | P60: 0 | Q60: 0 | R60: 0 | S60: 0 | T60: 0 | U60: 0 | V60: 0 | W60: 0
B61: =title261 -> Diesel/fuel oil consumption (litres per year) | C61: =+COST_RES1!$K$41 -> 547.5 | D61: =+C61 -> 547.5 | E61: =+D61 -> 547.5 | F61: 547.5 | G61: 547.5 | H61: 547.5 | I61: 547.5 | J61: 547.5 | K61: 547.5 | L61: 547.5 | M61: 547.5 | N61: 547.5 | O61: 547.5 | P61: 547.5 | Q61: 547.5 | R61: 547.5 | S61: 547.5 | T61: 547.5 | U61: 547.5 | V61: 547.5 | W61: 547.5
B62: =title262 -> Diesel/fuel oil price (USD per litre) | C62: =+COST_RES1!$F$41 -> 0 | D62: =C62*(1+D80+D81) -> 0 | E62: 0 | F62: 0 | G62: 0 | H62: 0 | I62: 0 | J62: 0 | K62: 0 | L62: 0 | M62: 0 | N62: 0 | O62: 0 | P62: 0 | Q62: 0 | R62: 0 | S62: 0 | T62: 0 | U62: 0 | V62: 0 | W62: 0
B64: =title263 -> Sub-total operating cost (USD) | C64: =C65+C67+C68 ->  | D64: =D65+D67+D68 -> 
B65: =title264 -> Labour cost (USD) | C65: =COST_RES1!L49 -> 0 | D65: =C65*(1+D66) -> 0 | E65: 0 | F65: 0 | G65: 0 | H65: 0 | I65: 0 | J65: 0 | K65: 0 | L65: 0 | M65: 0 | N65: 0 | O65: 0 | P65: 0 | Q65: 0 | R65: 0 | S65: 0 | T65: 0 | U65: 0 | V65: 0 | W65: 0
B66: =title265 -> Annual change in labour cost (%) | D66: 0 | E66: =D66 -> 0 | F66: 0 | G66: 0 | H66: 0 | I66: 0 | J66: 0 | K66: 0 | L66: 0 | M66: 0 | N66: 0 | O66: 0 | P66: 0 | Q66: 0 | R66: 0 | S66: 0 | T66: 0 | U66: 0 | V66: 0 | W66: 0
B67: =title192 -> Plant overhead | C67: =COST_RES1!L74 ->  | D67: =C67 ->  | E67: =D67 ->  | U67: =T67 -> 
B68: =title193 -> General and administrative cost | C68: =COST_RES1!L75 ->  | D68: =C68 -> 
B69: =title266 -> Sub-total maintenance cost (USD) | C69: =COST_RES1!L69 ->  | D69: =C69 -> 
B71: =title267 -> Sub-total of annual fixed cost | C71: =COST_RES1!L68 ->  | D71: =C71 ->  | E71: =D71 -> 
B73: =title268 -> Sub-total of storage capacity | C73: =+COST_RES1!L59 ->  | D73: =C73 ->  | E73: =D73 -> 
B75: =title269 -> Total operation and maintenance cost (USD) | C75: =C47+C64+C69+C71+C73 ->  | D75: =D47+D64+D69+D71+D73 ->  | E75: =E47+E64+E69+E71+E73 -> 
B76: =title270 -> Operation and maintenance cost (USD/kWh) without loan interest | C76: =C75/C20 -> 
A78: =title131 -> Financial parameters
B79: =title229 -> Operating Year | C79: =title247 -> Appraisal | D79: 1 | E79: 2 | F79: 3 | G79: 4 | H79: 5 | I79: 6 | J79: 7 | K79: 8 | L79: 9 | M79: 10 | N79: 11 | O79: 12 | P79: 13 | Q79: 14 | R79: 15 | S79: 16 | T79: 17 | U79: 18 | V79: 19 | W79: 20
B80: =title271 -> Annual change in raw material cost (%) | D80: =+COST_RES1!$N$19 -> 0 | E80: =D80 -> 0 | F80: =E80 -> 0 | G80: 0 | H80: 0 | I80: 0 | J80: 0 | K80: 0 | L80: 0 | M80: 0 | N80: 0 | O80: 0 | P80: 0 | Q80: 0 | R80: 0 | S80: 0 | T80: 0 | U80: 0 | V80: =U80 -> 0 | W80: =V80 -> 0
B81: =title272 -> Inflation rate (%) | D81: 0 | E81: =D81 -> 0 | F81: 0 | G81: 0 | H81: 0 | I81: 0 | J81: 0 | K81: 0 | L81: 0 | M81: 0 | N81: 0 | O81: 0 | P81: 0 | Q81: 0 | R81: 0 | S81: 0 | T81: 0 | U81: 0 | V81: =U81 -> 0 | W81: =V81 -> 0
B82: =title132&" (%)" -> Discount rate (%) | C82: =+COST_RES1!$N$13 -> 0
B83: Debt ratio (%) | C83: =+COST_RES1!$N$11 -> 0
B85: =title273 -> Loans | D85: 1 | E85: 2 | F85: 3 | G85: 4 | H85: 5 | I85: 6 | J85: 7 | K85: 8 | L85: 9 | M85: 10 | N85: 11 | O85: 12 | P85: 13 | Q85: 14 | R85: 15 | S85: 16 | T85: 17 | U85: 18 | V85: 19 | W85: 20
B86: =title274 -> Loan amount (USD ) | C86: =C83*C41 -> 
B87: =title134&" (%)" -> Loan interest rate (%) | C87: =+COST_RES1!$N$10 -> 0
B88: =title164 -> Loan term (years) | C88: =+COST_RES1!$N$12 -> 0
B89: =title275 -> Loan payment (USD/month) | C89: =(PMT(C87/12,(12*C88),C86)) -> 
B90: =title276 -> Loan payment (USD/year) | D90: =IF(D79<=$C$88,$C$89*12,0) -> 0 | E90: =IF(E79<=$C$88,$C$89*12,0) -> 0 | F90: 0 | G90: 0 | H90: 0 | I90: 0 | J90: 0 | K90: 0 | L90: 0 | M90: 0 | N90: 0 | O90: 0 | P90: 0 | Q90: 0 | R90: 0 | S90: 0 | T90: 0 | U90: 0 | V90: 0 | W90: 0
B91: =title277 -> Total loan payment (USD) | C91: =SUM(D90:W90) -> 0
B92: =title278 -> Loan interest payment (USD) | C92: =C91+C86 ->  | D92: =title286 -> Average loan interest payment for project lifetime | G92: =C92/C26 ->  | H92: =title287 -> USD per year
A94: =title279 -> Income tax analysis
B95: =title229 -> Operating Year | C95: =title247 -> Appraisal | D95: 1 | E95: 2 | F95: 3 | G95: 4 | H95: 5 | I95: 6 | J95: 7 | K95: 8 | L95: 9 | M95: 10 | N95: 11 | O95: 12 | P95: 13 | Q95: 14 | R95: 15 | S95: 16 | T95: 17 | U95: 18 | V95: 19 | W95: 20
B96: =title280 -> Effective income tax rate (%) | C96: =+'Data Entry Needs'!$AQ$92 -> 0 | D96: =C96 -> 0 | E96: =D96 -> 0 | F96: 0 | G96: 0 | H96: 0 | I96: 0 | J96: 0 | K96: 0 | L96: 0 | M96: 0 | N96: 0 | O96: 0 | P96: 0 | Q96: 0 | R96: 0 | S96: 0 | T96: 0 | U96: 0 | V96: 0 | W96: 0
B97: =title281 -> Income tax | D97: =IF(D122<0,0,-D96*D122) -> 
B98: =title282 -> Total income tax (USD) | C98: =SUM(D97:W97) -> 
B99: =title283 -> Income tax payment (USD per year) | C99: =C98/$C$26 -> 
A101: =title206 -> Depreciation
B102: =title229 -> Operating Year | C102: =title247 -> Appraisal | D102: 1 | E102: 2 | F102: 3 | G102: 4 | H102: 5 | I102: 6 | J102: 7 | K102: 8 | L102: 9 | M102: 10 | N102: 11 | O102: 12 | P102: 13 | Q102: 14 | R102: 15 | S102: 16 | T102: 17 | U102: 18 | V102: 19 | W102: 20
B103: =title284 -> Depreciation method | C103: =title288 -> Straight-line
B104: =title285 -> Total depreciation (USD) | D104: =COST_RES1!H68 ->  | E104: =D104 ->  | F104: =E104 -> 
A107: =title289 -> Base case project
A108: =title290 -> Summary of this project - before tax
B109: =title229 -> Operating Year | C109: =title247 -> Appraisal | D109: 1 | E109: 2 | F109: 3 | G109: 4 | H109: 5 | I109: 6 | J109: 7 | K109: 8 | L109: 9 | M109: 10 | N109: 11 | O109: 12 | P109: 13 | Q109: 14 | R109: 15 | S109: 16 | T109: 17 | U109: 18 | V109: 19 | W109: 20
B110: =title291 -> Total revenue (USD) | D110: =D24 -> 0 | E110: =E24 -> 0 | F110: 0 | G110: 0 | H110: 0 | I110: 0 | J110: 0 | K110: 0 | L110: 0 | M110: 0 | N110: 0 | O110: 0 | P110: 0 | Q110: 0 | R110: 0 | S110: 0 | T110: 0 | U110: 0 | V110: 0 | W110: 0
B111: =title245 -> Total capital cost (USD) | C111: =-(C41-C86) -> 
B112: =title292 -> Total operating and maintenance cost (USD) | D112: =-D75+D71 ->  | E112: =-E75+E71 -> 
B113: Debt payment (USD) | D113: =D90 -> 0 | E113: =E90 -> 0 | F113: 0 | G113: 0 | H113: 0 | I113: 0 | J113: 0 | K113: 0 | L113: 0 | M113: 0 | N113: 0 | O113: 0 | P113: 0 | Q113: 0 | R113: 0 | S113: 0 | T113: 0 | U113: 0 | V113: 0 | W113: 0
B114: =title294 -> Cash flow - before tax (USD) | C114: =SUM(C110:C113) ->  | D114: =SUM(D110:D113) -> 
A116: =title295 -> Summary of this project - after tax
B117: =title229 -> Operating Year | C117: =title247 -> Appraisal | D117: 1 | E117: 2 | F117: 3 | G117: 4 | H117: 5 | I117: 6 | J117: 7 | K117: 8 | L117: 9 | M117: 10 | N117: 11 | O117: 12 | P117: 13 | Q117: 14 | R117: 15 | S117: 16 | T117: 17 | U117: 18 | V117: 19 | W117: 20
B118: =B110 -> Total revenue (USD) | C118: =C110 -> 0 | D118: =D110 -> 0 | E118: =E110 -> 0 | F118: 0 | G118: 0 | H118: 0 | I118: 0 | J118: 0 | K118: 0 | L118: 0 | M118: 0 | N118: 0 | O118: 0 | P118: 0 | Q118: 0 | R118: 0 | S118: 0 | T118: 0 | U118: 0 | V118: 0 | W118: 0
B119: =title292 -> Total operating and maintenance cost (USD) | D119: =-D75+D71 -> 
B120: Debt payment (USD) | D120: =D90 -> 0 | E120: =E90 -> 0 | F120: 0 | G120: 0 | H120: 0 | I120: 0 | J120: 0 | K120: 0 | L120: 0 | M120: 0 | N120: 0 | O120: 0 | P120: 0 | Q120: 0 | R120: 0 | S120: 0 | T120: 0 | U120: 0 | V120: 0 | W120: 0
B121: =title296 -> Depreciation of fixed cost (USD) | D121: =-D104 ->  | E121: =-E104 -> 
B122: =title297 -> Net Profit - before tax (USD) for income tax calculation | C122: =SUM(C118:C121) -> 0 | D122: =SUM(D118:D121) -> 
B123: =title281 -> Income tax | D123: =D97 ->  | E123: =E97 -> 
B124: =title310 -> Cash flow - after tax (USD) | C124: =C111 ->  | D124: =D114+D123 ->  | E124: =E114+E123 -> 
A126: =title298 -> Cumulative value of Net Profit
B127: =title229 -> Operating Year | C127: =title247 -> Appraisal | D127: 1 | E127: 2 | F127: 3 | G127: 4 | H127: 5 | I127: 6 | J127: 7 | K127: 8 | L127: 9 | M127: 10 | N127: 11 | O127: 12 | P127: 13 | Q127: 14 | R127: 15 | S127: 16 | T127: 17 | U127: 18 | V127: 19 | W127: 20
B128: =title299 -> Cumulative value of Net Profit - before tax | C128: =C114 ->  | D128: =C128+(D114) -> 
B129: =title300 -> Cumulative value of Net Profit - after tax | C129: =C124 ->  | D129: =C129+(D124) -> 
A131: =title301 -> Financial Analysis Result
B133: =title302 -> Net Present Value (NPV) (USD) - before tax | C133: =NPV(C82,D114:W114)+C114 -> 
B134: =title303 -> Internal Rate of Return (IRR) (%) - before tax | C134: =IF(C133<0,title455,IRR(C114:W114,0.001)) -> 
B135: =title304 -> Payback period (years) | C135: =title308 -> Please see Figure of the cumulative value of Net Profit - before tax
B138: =title305 -> Net Present Value (NPV) (USD) - after tax | C138: =NPV(C82,D124:W124)+C124 -> 
B139: =title306 -> Internal Rate of Return (IRR) (%) - after tax | C139: =IF(C138<0,title455,IRR(C124:W124,0.000001)) -> 
B140: =title304 -> Payback period (years) | C140: =title309 -> Please see Figure of the cumulative value of Net Profit - after tax
B141: =title307 -> Total income tax payment of project lifetime | C141: =SUM(D123:W123) -> 

Sheet COST(ADJUSTED)_RES1 (hidden)
B1: Cost details of dual fuel and 100% producer gas biomass gasifier power projects (5–40 kW) | I1: Source: Nouni et al, 2007
L2: Unit: Rs of India
B3: Manufacturer of BGPP | C3: Manufacturer I | J3: Manufacturer II
B4: Type of engine | C4: Dual fuel engine | H4: 100% producer gas engine | J4: Dual fuel engine | L4: 100% producer gas engine
B5: Rated capacity of BGPP (kW) | C5: 5 | D5: 10 | E5: 20 | F5: 30 | G5: 40 | H5: 9 | I5: 40 | J5: 10 | K5: 40 | L5: 10 | M5: 40
B6: Gasifier with accessories | C6: 76000 | D6: 95000 | E6: 145000 | F6: 300000 | G6: 380000 | H6: 145000 | I6: 700000 | J6: 230000 | K6: 510000 | L6: 250000 | M6: 600000
B7: Biomass cutter | C7: 12000 | D7: 12000 | E7: 12000 | F7: 20000 | G7: 20000 | H7: 12000 | I7: 20000 | J7: 7500 | K7: 7500 | L7: 7500 | M7: 7500
B8: Biomass dryer | C8: 9000 | D8: 9000 | E8: 9000 | F8: 40000 | G8: 40000 | H8: 9000 | I8: 50000 | J8: 10000 | K8: 35000 | L8: 10000 | M8: 35000
B9: Moisture meter | C9: 3000 | D9: 3000 | E9: 3000 | F9: 3000 | G9: 3000 | H9: 3000 | I9: 3000 | J9: 5000 | K9: 5000 | L9: 5000 | M9: 5000
B10: Chain pulley block | C10: 0 | D10: 0 | E10: 0 | F10: 10000 | G10: 10000 | H10: 0 | I10: 10000 | J10: 3000 | K10: 6500 | L10: 3000 | M10: 6500
B11: Water cooling system | C11: 10000 | D11: 10000 | E11: 15000 | F11: 15000 | G11: 15000 | H11: 10000 | I11: 25000 | J11: 0 | K11: 30000 | L11: 0 | M11: 30000
B12: Other accessories | C12: 0 | D12: 0 | E12: 0 | F12: 0 | G12: 0 | H12: 0 | I12: 0 | J12: 50000 | K12: 90000 | L12: 50000 | M12: 90000
B13: Taxes and duties | C13: 29700 | D13: 34830 | E13: 49680 | F13: 104760 | G13: 126360 | H13: 48330 | I13: 218160 | J13: 82485 | K13: 184680 | L13: 87885 | M13: 208980
B14: Total cost of biomass gasifier | C14: 139700 | D14: 163830 | E14: 233680 | F14: 492760 | G14: 594360 | H14: 227330 | I14: 1026160 | J14: 387985 | K14: 868680 | L14: 413385 | M14: 982980
B15: Engine–generator set | C15: 94000 | D15: 140000 | E15: 245000 | F15: 375000 | G15: 405000 | H15: 200000 | I15: 814000 | J15: 60000 | K15: 400000 | L15: 80000 | M15: 725000
B16: Accessories | C16: 0 | D16: 0 | E16: 0 | F16: 0 | G16: 0 | H16: 0 | I16: 100000 | J16: 0 | K16: 0 | L16: 0 | M16: 0
B17: Taxes and duties | C17: 25380 | D17: 37800 | E17: 66150 | F17: 101250 | G17: 109350 | H17: 54000 | I17: 273780 | J17: 16200 | K17: 108000 | L17: 21600 | M17: 195750
B18: Total cost of engine–generator set | C18: 119380 | D18: 163830 | E18: 311150 | F18: 476250 | G18: 514350 | H18: 254000 | I18: 1287780 | J18: 76200 | K18: 508000 | L18: 101600 | M18: 920750
B19: Earthing materials | C19: 10000 | D19: 10000 | E19: 15000 | F19: 20000 | G19: 30000 | H19: 10000 | I19: 30000 | J19: 15000 | K19: 30000 | L19: 15000 | M19: 30000
B20: Civil work | C20: 60000 | D20: 80000 | E20: 100000 | F20: 150000 | G20: 175000 | H20: 80000 | I20: 200000 | J20: 125000 | K20: 400000 | L20: 125000 | M20: 400000
B21: Erection, commissioning and training | C21: 30000 | D21: 30000 | E21: 30000 | F21: 50000 | G21: 50000 | H21: 30000 | I21: 50000 | J21: 80000 | K21: 100000 | L21: 80000 | M21: 100000
B22: Cost of site related work | C22: 100000 | D22: 120000 | E22: 145000 | F22: 220000 | G22: 255000 | H22: 120000 | I22: 280000 | J22: 220000 | K22: 530000 | L22: 220000 | M22: 530000
B23: Total installed cost of BGPP | C23: 359080 | D23: 461630 | E23: 689830 | F23: 1189010 | G23: 1363710 | H23: 601330 | I23: 2593940 | J23: 684185 | K23: 1906680 | L23: 734985 | M23: 2433730
B24: LT electricity distribution network | C24: 250000 | D24: 250000 | E24: 250000 | F24: 375000 | G24: 375000 | H24: 250000 | I24: 375000 | J24: 250000 | K24: 375000 | L24: 250000 | M24: 375000
B25: Total cost including distribution network | C25: 609080 | D25: 711630 | E25: 939830 | F25: 1564010 | G25: 1738710 | H25: 851330 | I25: 2968940 | J25: 934185 | K25: 2281680 | L25: 984985 | M25: 2808730
B26: Cost of BGPP per kW of rated capacity | C26: 121816 | D26: 71163 | E26: 46992 | F26: 52134 | G26: 43468 | H26: 94592 | I26: 74224 | J26: 93419 | K26: 57042 | L26: 98499 | M26: 70218
H28: Exchange rate | J28: 0.5998 | K28: Baht/Rs | L28: Unit: Baht of Thailand
B29: Manufacturer of BGPP | C29: Manufacturer I | J29: Manufacturer II
B30: Type of engine | C30: Dual fuel engine | H30: 100% producer gas engine | J30: Dual fuel engine | L30: 100% producer gas engine
B31: Rated capacity of BGPP (kW) | C31: 5 | D31: 10 | E31: 20 | F31: 30 | G31: 40 | H31: 9 | I31: 40 | J31: 10 | K31: 40 | L31: 10 | M31: 40
B32: Gasifier with accessories | C32: =C6*$J$28 -> 45584.8 | D32: =D6*$J$28 -> 56981 | E32: 86971 | F32: 179940 | G32: 227924 | H32: 86971 | I32: 419860 | J32: 137954 | K32: 305898 | L32: 149950 | M32: 359880
B33: Biomass cutter | C33: =C7*$J$28 -> 7197.6 | D33: 7197.6 | E33: 7197.6 | F33: 11996 | G33: 11996 | H33: 7197.6 | I33: 11996 | J33: 4498.5 | K33: 4498.5 | L33: 4498.5 | M33: 4498.5
B34: Biomass dryer | C34: 5398.2 | D34: 5398.2 | E34: 5398.2 | F34: 23992 | G34: 23992 | H34: 5398.2 | I34: 29990 | J34: 5998 | K34: 20993 | L34: 5998 | M34: 20993
B35: Moisture meter | C35: 1799.4 | D35: 1799.4 | E35: 1799.4 | F35: 1799.4 | G35: 1799.4 | H35: 1799.4 | I35: 1799.4 | J35: 2999 | K35: 2999 | L35: 2999 | M35: 2999
B36: Chain pulley block | C36: 0 | D36: 0 | E36: 0 | F36: 5998 | G36: 5998 | H36: 0 | I36: 5998 | J36: 1799.4 | K36: 3898.7 | L36: 1799.4 | M36: 3898.7
B37: Water cooling system | C37: 5998 | D37: 5998 | E37: 8997 | F37: 8997 | G37: 8997 | H37: 5998 | I37: 14995 | J37: 0 | K37: 17994 | L37: 0 | M37: 17994
B38: Other accessories | C38: 0 | D38: 0 | E38: 0 | F38: 0 | G38: 0 | H38: 0 | I38: 0 | J38: 29990 | K38: 53982 | L38: 29990 | M38: 53982
B39: Taxes and duties | C39: 17814.06 | D39: 20891.034 | E39: 29798.064 | F39: 62835.048 | G39: 75790.728 | H39: 28988.334 | I39: 130852.368 | J39: 49474.503 | K39: 110771.064 | L39: 52713.423 | M39: 125346.204
B40: Total cost of biomass gasifier | C40: 83792.06 | D40: 98265.234 | E40: 140161.264 | F40: 295557.448 | G40: 356497.128 | H40: 136352.534 | I40: 615490.768 | J40: 232713.403 | K40: 521034.264 | L40: 247948.323 | M40: 589591.404
B41: Engine–generator set | C41: 56381.2 | D41: 83972 | E41: 146951 | F41: 224925 | G41: 242919 | H41: 119960 | I41: 488237.2 | J41: 35988 | K41: 239920 | L41: 47984 | M41: 434855
B42: Accessories | C42: 0 | D42: 0 | E42: 0 | F42: 0 | G42: 0 | H42: 0 | I42: 59980 | J42: 0 | K42: 0 | L42: 0 | M42: 0
B43: Taxes and duties | C43: 15222.924 | D43: 22672.44 | E43: 39676.77 | F43: 60729.75 | G43: 65588.13 | H43: 32389.2 | I43: 164213.244 | J43: 9716.76 | K43: 64778.4 | L43: 12955.68 | M43: 117410.85
B44: Total cost of engine–generator set | C44: 71604.124 | D44: 98265.234 | E44: 186627.77 | F44: 285654.75 | G44: 308507.13 | H44: 152349.2 | I44: 772410.444 | J44: 45704.76 | K44: 304698.4 | L44: 60939.68 | M44: 552265.85
B45: Earthing materials | C45: 5998 | D45: 5998 | E45: 8997 | F45: 11996 | G45: 17994 | H45: 5998 | I45: 17994 | J45: 8997 | K45: 17994 | L45: 8997 | M45: 17994
B46: Civil work | C46: 35988 | D46: 47984 | E46: 59980 | F46: 89970 | G46: 104965 | H46: 47984 | I46: 119960 | J46: 74975 | K46: 239920 | L46: 74975 | M46: 239920
B47: Erection, commissioning and training | C47: 17994 | D47: 17994 | E47: 17994 | F47: 29990 | G47: 29990 | H47: 17994 | I47: 29990 | J47: 47984 | K47: 59980 | L47: 47984 | M47: 59980
B48: Cost of site related work | C48: 59980 | D48: 71976 | E48: 86971 | F48: 131956 | G48: 152949 | H48: 71976 | I48: 167944 | J48: 131956 | K48: 317894 | L48: 131956 | M48: 317894
B49: Total installed cost of BGPP | C49: =C23*$J$28 -> 215376.184 | D49: 276885.674 | E49: 413760.034 | F49: 713168.198 | G49: 817953.258 | H49: 360677.734 | I49: 1555845.212 | J49: 410374.163 | K49: 1143626.664 | L49: 440844.003 | M49: 1459751.254
B50: LT electricity distribution network | C50: 149950 | D50: 149950 | E50: 149950 | F50: 224925 | G50: 224925 | H50: 149950 | I50: 224925 | J50: 149950 | K50: 224925 | L50: 149950 | M50: 224925
B51: Total cost including distribution network | C51: 365326.184 | D51: 426835.674 | E51: 563710.034 | F51: 938093.198 | G51: 1042878.258 | H51: 510627.734 | I51: 1780770.212 | J51: 560324.163 | K51: 1368551.664 | L51: 590794.003 | M51: 1684676.254
B52: Cost of BGPP per kW of rated capacity | C52: 73065.2368 | D52: 42683.5674 | E52: 28185.8016 | F52: 31269.9732 | G52: 26072.1064 | H52: 56736.2816 | I52: 44519.5552 | J52: 56032.7162 | K52: 34213.7916 | L52: 59079.7002 | M52: 42116.7564
B54: The cost details were adjusted by considering the replacement equipments that have the lifetime less than the project lifetime for Nouni et at, 2007
H55: Exchange rate | J55: 30.7775 | K55: Baht/USD | AF55: Unit: USD
B56: Manufacturer of BGPP | C56: Manufacturer I by Nouni et al, 2007 | J56: Manufacturer II by Nouni et al, 2007 | N56: Arena et al, 2010 | Z56: Leung, Yin, & Wu, 2004 | AE56: Buchholz et al. n.d. | AI56: Cost Share (%)
B57: Type of engine | C57: Dual fuel engine | H57: 100% producer gas engine | J57: Dual fuel engine | L57: 100% producer gas engine | N57: Bubbling Fluidized Bed Gasifier+ Gas engine | T57: Bubbling Fluidized Bed Gasifier+ Externally Fired Gas turbine | Z57: Circulating Fluidized Bed & 100% producer gas engine | AE57: Downdraft Gasifier and Gas engine (250kW and 10kW capacity)
B58: Rated capacity of BGPP (kW) | C58: 5 | D58: 10 | E58: 20 | F58: 30 | G58: 40 | H58: 9 | I58: 40 | J58: 10 | K58: 40 | L58: 10 | M58: 40 | N58: 100 | O58: 200 | P58: 300 | Q58: 400 | R58: 500 | S58: 600 | T58: 100 | U58: 200 | V58: 300 | W58: 400 | X58: 500 | Y58: 600 | Z58: 200 | AA58: 600 | AB58: 1000 | AC58: 1500 | AD58: 2000 | AE58: 10 | AF58: 87 | AG58: 220
B59: Gasifier with accessories | C59: ='COST(PREADJUSTED)'!C59*LIFETIME_RES1!$F$17 -> 0 | D59: ='COST(PREADJUSTED)'!D59*LIFETIME_RES1!$F$17 -> 0 | E59: ='COST(PREADJUSTED)'!E59*LIFETIME_RES1!$F$17 -> 0 | F59: ='COST(PREADJUSTED)'!F59*LIFETIME_RES1!$F$17 -> 0 | G59: ='COST(PREADJUSTED)'!G59*LIFETIME_RES1!$F$17 -> 0 | H59: ='COST(PREADJUSTED)'!H59*LIFETIME_RES1!$F$17 -> 0 | I59: ='COST(PREADJUSTED)'!I59*LIFETIME_RES1!$F$17 -> 0 | J59: ='COST(PREADJUSTED)'!J59*LIFETIME_RES1!$F$17 -> 0 | K59: ='COST(PREADJUSTED)'!K59*LIFETIME_RES1!$F$17 -> 0 | L59: ='COST(PREADJUSTED)'!L59*LIFETIME_RES1!$F$17 -> 0 | M59: ='COST(PREADJUSTED)'!M59*LIFETIME_RES1!$F$17 -> 0 | Z59: =19.7*1000 -> 19700 | AA59: 43000 | AB59: =61.5*1000 -> 61500 | AC59: =73.8*1000 -> 73800 | AD59: =86.1*1000 -> 86100 | AF59: =+'COST(PREADJUSTED)'!AF59*LIFETIME_RES1!$F$13*20/(12*265*13) -> 0 | AG59: 99651 | AI59: =M59/$M$67 -> 
B60: Biomass cutter | C60: ='COST(PREADJUSTED)'!C60*LIFETIME_RES1!$F$17 -> 0 | D60: ='COST(PREADJUSTED)'!D60*LIFETIME_RES1!$F$17 -> 0 | E60: ='COST(PREADJUSTED)'!E60*LIFETIME_RES1!$F$17 -> 0 | F60: ='COST(PREADJUSTED)'!F60*LIFETIME_RES1!$F$17 -> 0 | G60: ='COST(PREADJUSTED)'!G60*LIFETIME_RES1!$F$17 -> 0 | H60: ='COST(PREADJUSTED)'!H60*LIFETIME_RES1!$F$17 -> 0 | I60: ='COST(PREADJUSTED)'!I60*LIFETIME_RES1!$F$17 -> 0 | J60: ='COST(PREADJUSTED)'!J60*LIFETIME_RES1!$F$17 -> 0 | K60: ='COST(PREADJUSTED)'!K60*LIFETIME_RES1!$F$17 -> 0 | L60: ='COST(PREADJUSTED)'!L60*LIFETIME_RES1!$F$17 -> 0 | M60: ='COST(PREADJUSTED)'!M60*LIFETIME_RES1!$F$17 -> 0 | AF60: =+'COST(PREADJUSTED)'!AF60*LIFETIME_RES1!$F$13*20/(12*265*13) -> 0 | AG60: 35000
B61: Biomass dryer | C61: ='COST(PREADJUSTED)'!C61*LIFETIME_RES1!$F$17 -> 0 | D61: ='COST(PREADJUSTED)'!D61*LIFETIME_RES1!$F$17 -> 0 | E61: ='COST(PREADJUSTED)'!E61*LIFETIME_RES1!$F$17 -> 0 | F61: ='COST(PREADJUSTED)'!F61*LIFETIME_RES1!$F$17 -> 0 | G61: ='COST(PREADJUSTED)'!G61*LIFETIME_RES1!$F$17 -> 0 | H61: ='COST(PREADJUSTED)'!H61*LIFETIME_RES1!$F$17 -> 0 | I61: ='COST(PREADJUSTED)'!I61*LIFETIME_RES1!$F$17 -> 0 | J61: ='COST(PREADJUSTED)'!J61*LIFETIME_RES1!$F$17 -> 0 | K61: ='COST(PREADJUSTED)'!K61*LIFETIME_RES1!$F$17 -> 0 | L61: ='COST(PREADJUSTED)'!L61*LIFETIME_RES1!$F$17 -> 0 | M61: ='COST(PREADJUSTED)'!M61*LIFETIME_RES1!$F$17 -> 0
B62: Moisture meter | C62: ='COST(PREADJUSTED)'!C62*LIFETIME_RES1!$F$17 -> 0 | D62: ='COST(PREADJUSTED)'!D62*LIFETIME_RES1!$F$17 -> 0 | E62: ='COST(PREADJUSTED)'!E62*LIFETIME_RES1!$F$17 -> 0 | F62: ='COST(PREADJUSTED)'!F62*LIFETIME_RES1!$F$17 -> 0 | G62: ='COST(PREADJUSTED)'!G62*LIFETIME_RES1!$F$17 -> 0 | H62: ='COST(PREADJUSTED)'!H62*LIFETIME_RES1!$F$17 -> 0 | I62: ='COST(PREADJUSTED)'!I62*LIFETIME_RES1!$F$17 -> 0 | J62: ='COST(PREADJUSTED)'!J62*LIFETIME_RES1!$F$17 -> 0 | K62: ='COST(PREADJUSTED)'!K62*LIFETIME_RES1!$F$17 -> 0 | L62: ='COST(PREADJUSTED)'!L62*LIFETIME_RES1!$F$17 -> 0 | M62: ='COST(PREADJUSTED)'!M62*LIFETIME_RES1!$F$17 -> 0
B63: Chain pulley block | C63: ='COST(PREADJUSTED)'!C63*LIFETIME_RES1!$F$17 -> 0 | D63: ='COST(PREADJUSTED)'!D63*LIFETIME_RES1!$F$17 -> 0 | E63: ='COST(PREADJUSTED)'!E63*LIFETIME_RES1!$F$17 -> 0 | F63: ='COST(PREADJUSTED)'!F63*LIFETIME_RES1!$F$17 -> 0 | G63: ='COST(PREADJUSTED)'!G63*LIFETIME_RES1!$F$17 -> 0 | H63: ='COST(PREADJUSTED)'!H63*LIFETIME_RES1!$F$17 -> 0 | I63: ='COST(PREADJUSTED)'!I63*LIFETIME_RES1!$F$17 -> 0 | J63: ='COST(PREADJUSTED)'!J63*LIFETIME_RES1!$F$17 -> 0 | K63: ='COST(PREADJUSTED)'!K63*LIFETIME_RES1!$F$17 -> 0 | L63: ='COST(PREADJUSTED)'!L63*LIFETIME_RES1!$F$17 -> 0 | M63: ='COST(PREADJUSTED)'!M63*LIFETIME_RES1!$F$17 -> 0
B64: Water cooling system | C64: ='COST(PREADJUSTED)'!C64*LIFETIME_RES1!$F$17 -> 0 | D64: ='COST(PREADJUSTED)'!D64*LIFETIME_RES1!$F$17 -> 0 | E64: ='COST(PREADJUSTED)'!E64*LIFETIME_RES1!$F$17 -> 0 | F64: ='COST(PREADJUSTED)'!F64*LIFETIME_RES1!$F$17 -> 0 | G64: ='COST(PREADJUSTED)'!G64*LIFETIME_RES1!$F$17 -> 0 | H64: ='COST(PREADJUSTED)'!H64*LIFETIME_RES1!$F$17 -> 0 | I64: ='COST(PREADJUSTED)'!I64*LIFETIME_RES1!$F$17 -> 0 | J64: ='COST(PREADJUSTED)'!J64*LIFETIME_RES1!$F$17 -> 0 | K64: ='COST(PREADJUSTED)'!K64*LIFETIME_RES1!$F$17 -> 0 | L64: ='COST(PREADJUSTED)'!L64*LIFETIME_RES1!$F$17 -> 0 | M64: ='COST(PREADJUSTED)'!M64*LIFETIME_RES1!$F$17 -> 0
B65: Other accessories | C65: ='COST(PREADJUSTED)'!C65*LIFETIME_RES1!$F$17 -> 0 | D65: ='COST(PREADJUSTED)'!D65*LIFETIME_RES1!$F$17 -> 0 | E65: ='COST(PREADJUSTED)'!E65*LIFETIME_RES1!$F$17 -> 0 | F65: ='COST(PREADJUSTED)'!F65*LIFETIME_RES1!$F$17 -> 0 | G65: ='COST(PREADJUSTED)'!G65*LIFETIME_RES1!$F$17 -> 0 | H65: ='COST(PREADJUSTED)'!H65*LIFETIME_RES1!$F$17 -> 0 | I65: ='COST(PREADJUSTED)'!I65*LIFETIME_RES1!$F$17 -> 0 | J65: ='COST(PREADJUSTED)'!J65*LIFETIME_RES1!$F$17 -> 0 | K65: ='COST(PREADJUSTED)'!K65*LIFETIME_RES1!$F$17 -> 0 | L65: ='COST(PREADJUSTED)'!L65*LIFETIME_RES1!$F$17 -> 0 | M65: ='COST(PREADJUSTED)'!M65*LIFETIME_RES1!$F$17 -> 0
B66: Taxes and duties | C66: ='COST(PREADJUSTED)'!C66*LIFETIME_RES1!$F$17 -> 0 | D66: ='COST(PREADJUSTED)'!D66*LIFETIME_RES1!$F$17 -> 0 | E66: ='COST(PREADJUSTED)'!E66*LIFETIME_RES1!$F$17 -> 0 | F66: ='COST(PREADJUSTED)'!F66*LIFETIME_RES1!$F$17 -> 0 | G66: ='COST(PREADJUSTED)'!G66*LIFETIME_RES1!$F$17 -> 0 | H66: ='COST(PREADJUSTED)'!H66*LIFETIME_RES1!$F$17 -> 0 | I66: ='COST(PREADJUSTED)'!I66*LIFETIME_RES1!$F$17 -> 0 | J66: ='COST(PREADJUSTED)'!J66*LIFETIME_RES1!$F$17 -> 0 | K66: ='COST(PREADJUSTED)'!K66*LIFETIME_RES1!$F$17 -> 0 | L66: ='COST(PREADJUSTED)'!L66*LIFETIME_RES1!$F$17 -> 0 | M66: ='COST(PREADJUSTED)'!M66*LIFETIME_RES1!$F$17 -> 0
B67: Sub-total cost of biomass gasifier | C67: =SUM(C59:C66) -> 0 | D67: =SUM(D59:D66) -> 0 | E67: 0 | F67: 0 | G67: 0 | H67: 0 | I67: 0 | J67: 0 | K67: 0 | L67: 0 | M67: 0 | Z67: =SUM(Z59:Z66) -> 19700 | AA67: =SUM(AA59:AA66) -> 43000 | AB67: =SUM(AB59:AB66) -> 61500 | AC67: =SUM(AC59:AC66) -> 73800 | AD67: =SUM(AD59:AD66) -> 86100 | AF67: =SUM(AF59:AF66) -> 0 | AG67: =SUM(AG59:AG66) -> 134651 | AI67: =M67/M80 -> 0
B68: Engine–generator set | C68: ='COST(PREADJUSTED)'!C68*LIFETIME_RES1!$F$15 -> 0 | D68: ='COST(PREADJUSTED)'!D68*LIFETIME_RES1!$F$15 -> 0 | E68: ='COST(PREADJUSTED)'!E68*LIFETIME_RES1!$F$15 -> 0 | F68: ='COST(PREADJUSTED)'!F68*LIFETIME_RES1!$F$15 -> 0 | G68: ='COST(PREADJUSTED)'!G68*LIFETIME_RES1!$F$15 -> 0 | H68: ='COST(PREADJUSTED)'!H68*LIFETIME_RES1!$F$15 -> 0 | I68: ='COST(PREADJUSTED)'!I68*LIFETIME_RES1!$F$15 -> 0 | J68: ='COST(PREADJUSTED)'!J68*LIFETIME_RES1!$F$15 -> 0 | K68: ='COST(PREADJUSTED)'!K68*LIFETIME_RES1!$F$15 -> 0 | L68: ='COST(PREADJUSTED)'!L68*LIFETIME_RES1!$F$15 -> 0 | M68: ='COST(PREADJUSTED)'!M68*LIFETIME_RES1!$F$15 -> 0 | Z68: =43*1000 -> 43000 | AA68: =129.1*1000 -> 129100 | AB68: =215.2*1000 -> 215200 | AC68: =295.2*1000 -> 295200 | AD68: =393.6*1000 -> 393600 | AF68: =+'COST(PREADJUSTED)'!AF68*LIFETIME_RES1!$F$13*20/(12*265*13) -> 0 | AG68: 129547 | AI68: =M68/$M$72 -> 
B69: Diesel generator | C69: ='COST(PREADJUSTED)'!C69*LIFETIME_RES1!$F$15 -> 0 | D69: ='COST(PREADJUSTED)'!D69*LIFETIME_RES1!$F$15 -> 0 | E69: ='COST(PREADJUSTED)'!E69*LIFETIME_RES1!$F$15 -> 0 | F69: ='COST(PREADJUSTED)'!F69*LIFETIME_RES1!$F$15 -> 0 | G69: ='COST(PREADJUSTED)'!G69*LIFETIME_RES1!$F$15 -> 0 | H69: ='COST(PREADJUSTED)'!H69*LIFETIME_RES1!$F$15 -> 0 | I69: ='COST(PREADJUSTED)'!I69*LIFETIME_RES1!$F$15 -> 0 | J69: ='COST(PREADJUSTED)'!J69*LIFETIME_RES1!$F$15 -> 0 | K69: ='COST(PREADJUSTED)'!K69*LIFETIME_RES1!$F$15 -> 0 | L69: ='COST(PREADJUSTED)'!L69*LIFETIME_RES1!$F$15 -> 0 | M69: ='COST(PREADJUSTED)'!M69*LIFETIME_RES1!$F$15 -> 0 | AF69: =+'COST(PREADJUSTED)'!AF69*LIFETIME_RES1!$F$13*20/(12*265*13) -> 0 | AG69: =AF69-17000 -> -17000 | AI69: =M69/$M$72 -> 
B70: Accessories | C70: ='COST(PREADJUSTED)'!C70*LIFETIME_RES1!$F$15 -> 0 | D70: ='COST(PREADJUSTED)'!D70*LIFETIME_RES1!$F$15 -> 0 | E70: ='COST(PREADJUSTED)'!E70*LIFETIME_RES1!$F$15 -> 0 | F70: ='COST(PREADJUSTED)'!F70*LIFETIME_RES1!$F$15 -> 0 | G70: ='COST(PREADJUSTED)'!G70*LIFETIME_RES1!$F$15 -> 0 | H70: ='COST(PREADJUSTED)'!H70*LIFETIME_RES1!$F$15 -> 0 | I70: ='COST(PREADJUSTED)'!I70*LIFETIME_RES1!$F$15 -> 0 | J70: ='COST(PREADJUSTED)'!J70*LIFETIME_RES1!$F$15 -> 0 | K70: ='COST(PREADJUSTED)'!K70*LIFETIME_RES1!$F$15 -> 0 | L70: ='COST(PREADJUSTED)'!L70*LIFETIME_RES1!$F$15 -> 0 | M70: ='COST(PREADJUSTED)'!M70*LIFETIME_RES1!$F$15 -> 0 | AF70: =+'COST(PREADJUSTED)'!AF70*LIFETIME_RES1!$F$13*20/(12*265*13) -> 0 | AG70: 20000 | AI70: =M70/$M$72 -> 
B71: Taxes and duties | C71: ='COST(PREADJUSTED)'!C71*LIFETIME_RES1!$F$15 -> 0 | D71: ='COST(PREADJUSTED)'!D71*LIFETIME_RES1!$F$15 -> 0 | E71: ='COST(PREADJUSTED)'!E71*LIFETIME_RES1!$F$15 -> 0 | F71: ='COST(PREADJUSTED)'!F71*LIFETIME_RES1!$F$15 -> 0 | G71: ='COST(PREADJUSTED)'!G71*LIFETIME_RES1!$F$15 -> 0 | H71: ='COST(PREADJUSTED)'!H71*LIFETIME_RES1!$F$15 -> 0 | I71: ='COST(PREADJUSTED)'!I71*LIFETIME_RES1!$F$15 -> 0 | J71: ='COST(PREADJUSTED)'!J71*LIFETIME_RES1!$F$15 -> 0 | K71: ='COST(PREADJUSTED)'!K71*LIFETIME_RES1!$F$15 -> 0 | L71: ='COST(PREADJUSTED)'!L71*LIFETIME_RES1!$F$15 -> 0 | M71: ='COST(PREADJUSTED)'!M71*LIFETIME_RES1!$F$15 -> 0 | AI71: =M71/$M$72 -> 
B72: Sub-total cost of engine–generator set | C72: =SUM(C68:C71) -> 0 | D72: =SUM(D68:D71) -> 0 | E72: 0 | F72: 0 | G72: 0 | H72: 0 | I72: 0 | J72: 0 | K72: 0 | L72: 0 | M72: 0 | Z72: =SUM(Z68:Z71) -> 43000 | AA72: =SUM(AA68:AA71) -> 129100 | AB72: =SUM(AB68:AB71) -> 215200 | AC72: =SUM(AC68:AC71) -> 295200 | AD72: =SUM(AD68:AD71) -> 393600 | AF72: =SUM(AF68:AF71) -> 0 | AG72: =SUM(AG68:AG71) -> 132547 | AI72: =M72/M80 -> 0
B73: Feasibility study | AF73: =+'COST(PREADJUSTED)'!AF73*LIFETIME_RES1!$F$13*20/(12*265*13) -> 0 | AG73: 40000
B74: Development and Engineering
B75: Earthing materials | C75: =C45/$J$55 -> 194.8826253 | D75: 194.8826253 | E75: 292.3239379 | F75: 389.7652506 | G75: 584.6478759 | H75: 194.8826253 | I75: 584.6478759 | J75: 292.3239379 | K75: 584.6478759 | L75: 292.3239379 | M75: 584.6478759 | AI75: =M75/$M$79 -> 0.05660377358
B76: Civil work (Building, water pool, etc.) | C76: 1169.295752 | D76: 1559.061002 | E76: 1948.826253 | F76: 2923.239379 | G76: 3410.445943 | H76: 1559.061002 | I76: 3897.652506 | J76: 2436.032816 | K76: 7795.305012 | L76: 2436.032816 | M76: 7795.305012 | Z76: =12.4*1000 -> 12400 | AA76: =(12.3+24.6)*1000 -> 36900 | AB76: =(18.4+36.9)*1000 -> 55300 | AC76: =(24.6+49.2)*1000 -> 73800 | AD76: =(61.5+36.9)*1000 -> 98400 | AF76: =+'COST(PREADJUSTED)'!AF76*LIFETIME_RES1!$F$13*20/(12*265*13) -> 0 | AG76: 30000 | AI76: =M76/$M$79 -> 0.7547169811
B77: Installation,Erection, commissioning and training | C77: 584.6478759 | D77: 584.6478759 | E77: 584.6478759 | F77: 974.4131265 | G77: 974.4131265 | H77: 584.6478759 | I77: 974.4131265 | J77: 1559.061002 | K77: 1948.826253 | L77: 1559.061002 | M77: 1948.826253 | Z77: =11.1*1000 -> 11100 | AA77: =(18.4+12.3)*1000 -> 30700 | AB77: =(24.6+12.3)*1000 -> 36900 | AC77: =(36.9+12.3)*1000 -> 49200 | AD77: =(49.2+12.3)*1000 -> 61500 | AF77: =+'COST(PREADJUSTED)'!AF77*LIFETIME_RES1!$F$13*20/(12*265*13) -> 0 | AG77: =60000+4000 -> 64000 | AI77: =M77/$M$79 -> 0.1886792453
B78: Shipping, Duty, Insurrance, clearance | AF78: =+'COST(PREADJUSTED)'!AF78*LIFETIME_RES1!$F$13*20/(12*265*13) -> 0 | AG78: =10000+10000 -> 20000
B79: Sub-total cost of site related work | C79: =SUM(C73:C78) -> 1948.826253 | D79: 2338.591504 | E79: 2825.798067 | F79: 4287.417756 | G79: 4969.506945 | H79: 2338.591504 | I79: 5456.713508 | J79: 4287.417756 | K79: 10328.77914 | L79: 4287.417756 | M79: 10328.77914 | Z79: =SUM(Z73:Z78) -> 23500 | AA79: 67600 | AB79: 92200 | AC79: 123000 | AD79: 159900 | AE79: 0 | AF79: =SUM(AF73:AF78) -> 0 | AG79: =SUM(AG73:AG78) -> 154000 | AI79: =M79/M80 -> 1
B80: Total installation cost of BGPP | C80: =C67+C72+C79 -> 1948.826253 | D80: =D67+D72+D79 -> 2338.591504 | E80: 2825.798067 | F80: 4287.417756 | G80: 4969.506945 | H80: 2338.591504 | I80: 5456.713508 | J80: 4287.417756 | K80: 10328.77914 | L80: 4287.417756 | M80: 10328.77914 | N80: =900000*40.7124/30.6212 -> 1196594.516 | O80: =6000*O58*40.7124/30.6212 -> 1595459.355 | P80: =1500000*40.7124/30.6212 -> 1994324.194 | Q80: =1750000*40.7124/30.6212 -> 2326711.559 | R80: =2000000*40.7124/30.6212 -> 2659098.925 | S80: =2200000*40.7124/30.6212 -> 2925008.817 | T80: =1000000*40.7124/30.6212 -> 1329549.462 | U80: =7600*U58*40.7124/30.6212 -> 2020915.183 | V80: =2000000*40.7124/30.6212 -> 2659098.925 | W80: =2250000*40.7124/30.6212 -> 2991486.291 | X80: =2600000*40.7124/30.6212 -> 3456828.602 | Y80: =2900000*40.7124/30.6212 -> 3855693.441 | Z80: =Z67+Z72+Z79 -> 86200 | AA80: =AA67+AA72+AA79 -> 239700 | AB80: =AB67+AB72+AB79 -> 368900 | AC80: =AC67+AC72+AC79 -> 492000 | AD80: =AD67+AD72+AD79 -> 639600 | AE80: =2890*AE58 -> 28900 | AF80: =AF67+AF72+AF79 -> 0 | AG80: =AG67+AG72+AG79 -> 421198 | AI80: =M80/M82 -> 0.5856353591
B81: LT electricity distribution network | C81: =C50/$J$55 -> 4872.065632 | D81: 4872.065632 | E81: 4872.065632 | F81: 7308.098449 | G81: 7308.098449 | H81: 4872.065632 | I81: 7308.098449 | J81: 4872.065632 | K81: 7308.098449 | L81: 4872.065632 | M81: 7308.098449 | N81: 0 | O81: 0 | P81: 0 | Q81: 0 | R81: 0 | S81: 0 | T81: 0 | U81: 0 | V81: 0 | W81: 0 | X81: 0 | Y81: 0 | Z81: 0 | AA81: 0 | AB81: 0 | AC81: 0 | AD81: 0 | AE81: 0 | AF81: 0 | AG81: 0 | AI81: =M81/M82 -> 0.4143646409
B82: Total cost including distribution network | C82: =SUM(C80:C81) -> 6820.891885 | D82: =SUM(D80:D81) -> 7210.657136 | E82: 7697.863699 | F82: 11595.51621 | G82: 12277.60539 | H82: 7210.657136 | I82: 12764.81196 | J82: 9159.483389 | K82: 17636.87759 | L82: 9159.483389 | M82: 17636.87759 | N82: =SUM(N80:N81) -> 1196594.516 | O82: 1595459.355 | P82: 1994324.194 | Q82: 2326711.559 | R82: 2659098.925 | S82: 2925008.817 | T82: 1329549.462 | U82: 2020915.183 | V82: 2659098.925 | W82: 2991486.291 | X82: 3456828.602 | Y82: 3855693.441 | Z82: 86200 | AA82: =SUM(AA80:AA81) -> 239700 | AB82: 368900 | AC82: 492000 | AD82: 639600 | AE82: 28900 | AF82: 0 | AG82: 421198 | AI82: =SUM(AI80:AI81) -> 1
B83: Cost of BGPP per kW of rated capacity | C83: =C82/C58 -> 1364.178377 | D83: =D82/D58 -> 721.0657136 | E83: 384.893185 | F83: 386.5172068 | G83: 306.9401348 | H83: 801.1841262 | I83: 319.1202989 | J83: 915.9483389 | K83: 440.9219397 | L83: 915.9483389 | M83: 440.9219397 | N83: =N82/N58 -> 11965.94516 | O83: =O82/O58 -> 7977.296775 | P83: 6647.747312 | Q83: 5816.778898 | R83: 5318.19785 | S83: 4875.014696 | T83: 13295.49462 | U83: 10104.57591 | V83: 8863.663083 | W83: 7478.715726 | X83: 6913.657205 | Y83: 6426.155735 | Z83: =Z82/Z58 -> 431 | AA83: 399.5 | AB83: 368.9 | AC83: 328 | AD83: 319.8 | AE83: 2890 | AF83: 0 | AG83: 1914.536364
AF85: Unit: USD
B86: Manufacturer of BGPP | C86: Manufacturer I by Nouni et al, 2007 | J86: Manufacturer II by Nouni et al, 2007 | N86: Arena et al, 2010 | Z86: Leung, Yin, & Wu, 2004 | AE86: Buchholz et al. n.d.
B87: Type of engine | C87: Dual fuel engine | H87: 100% producer gas engine | J87: Dual fuel engine | L87: 100% producer gas engine | N87: Bubbling Fluidized Bed Gasifier+ Gas engine | T87: Bubbling Fluidized Bed Gasifier+ Externally Fired Gas turbine | Z87: Circulating Fluidized Bed & 100% producer gas engine | AE87: Downdraft Gasifier and Gas engine (250kW and 10kW capacity)
B88: Rated capacity of BGPP (kW) | C88: 5 | D88: 10 | E88: 20 | F88: 30 | G88: 40 | H88: 9 | I88: 40 | J88: 10 | K88: 40 | L88: 10 | M88: 40 | N88: 100 | O88: 200 | P88: 300 | Q88: 400 | R88: 500 | S88: 600 | T88: 100 | U88: 200 | V88: 300 | W88: 400 | X88: 500 | Y88: 600 | Z88: 200 | AA88: 600 | AB88: 1000 | AC88: 1500 | AD88: 2000 | AE88: 8 | AF88: 87 | AG88: 220
B89: =title231 -> Operating hours per year | C89: ='Data Entry Needs'!#REF! ->  | D89: ='Data Entry Needs'!#REF! ->  | E89: ='Data Entry Needs'!#REF! ->  | F89: ='Data Entry Needs'!#REF! ->  | G89: ='Data Entry Needs'!#REF! ->  | H89: ='Data Entry Needs'!#REF! ->  | I89: ='Data Entry Needs'!#REF! ->  | J89: ='Data Entry Needs'!#REF! ->  | K89: ='Data Entry Needs'!#REF! ->  | L89: =+COST_RES1!$H$34 -> 0 | M89: =+COST_RES1!$H$34 -> 0 | Z89: 5000 | AA89: 5000 | AB89: 5000 | AC89: 5000 | AD89: 5000
B90: Electrical conversion Efficiency | C90: ='Data Entry Needs'!#REF! ->  | D90: ='Data Entry Needs'!#REF! ->  | E90: ='Data Entry Needs'!#REF! ->  | F90: ='Data Entry Needs'!#REF! ->  | G90: ='Data Entry Needs'!#REF! ->  | H90: ='Data Entry Needs'!#REF! ->  | I90: ='Data Entry Needs'!#REF! ->  | J90: ='Data Entry Needs'!#REF! ->  | K90: ='Data Entry Needs'!#REF! ->  | L90: =+COST_RES1!$I$18 -> 0 | M90: =+COST_RES1!$I$18 -> 0
B91: Electric generation (kWh per year) | C91: =C88*C89*C90 ->  | D91: =D88*D89*D90 ->  | E91: =E88*E89*E90 ->  | L91: 0 | M91: 0
B93: Operating & Maintenance cost
B94: Raw material cost
A95: 1 | B95: Land cost
A96: 2 | B96: Biomass cost (US$ per year) | C96: =C99*C98 ->  | D96: =D99*D98 ->  | L96: 0 | M96: 0
B97: Specific Biomass conversion rate (kWh per kg) | C97: =1/1.1 -> 0.9090909091 | D97: =1/1.1 -> 0.9090909091 | E97: =1/1.1 -> 0.9090909091 | F97: =1/1.1 -> 0.9090909091 | G97: =1/1.1 -> 0.9090909091 | H97: =1/1.4 -> 0.7142857143 | I97: =1/1.4 -> 0.7142857143 | J97: =1/1.1 -> 0.9090909091 | K97: =1/1.1 -> 0.9090909091 | L97: =1/1.4 -> 0.7142857143 | M97: =1/1.4 -> 0.7142857143
B98: Biomass consumption (kg per year) | C98: =C91/C97 ->  | D98: =D91/D97 ->  | L98: 0 | M98: 0
B99: Biomass price (US$ per kg) | C99: =1.5*$J$28/$J$55 -> 0.02923239379 | D99: =1.5*$J$28/$J$55 -> 0.02923239379 | E99: 0.02923239379 | F99: 0.02923239379 | G99: 0.02923239379 | H99: 0.02923239379 | I99: 0.02923239379 | J99: 0.02923239379 | K99: 0.02923239379 | L99: 0.02923239379 | M99: 0.02923239379
A100: 3 | B100: Water cost (US$ per year)
B101: Specific water conversion rate (kWh per m3)
B102: =title258 -> Water consumption (m3 per year)
B103: Water price (US$ per m3)
A104: 4 | B104: Chemical cost (US$ per year)
B105: Specific chemical conversion rate (kWh per kg)
B106: Chemical consumption (kg per year)
B107: Chemical price (US$ per kg)
A108: 5 | B108: Diesel cost (US$ per year) | C108: =C110*C111 ->  | D108: =D110*D111 ->  | J108: =J110*J111 ->  | L108: 0 | M108: 0
B109: Specific diesel conversion rate (kWh per liter) | C109: =1/0.11 -> 9.090909091 | D109: =1/0.11 -> 9.090909091 | E109: =1/0.11 -> 9.090909091 | F109: =1/0.11 -> 9.090909091 | G109: =1/0.11 -> 9.090909091 | H109: =(1/0.11)*1.9 -> 17.27272727 | I109: =(1/0.11)*1.9 -> 17.27272727 | J109: =1/0.11 -> 9.090909091 | K109: =1/0.11 -> 9.090909091 | L109: =(1/0.11)*1.9 -> 17.27272727 | M109: =(1/0.11)*1.9 -> 17.27272727
B110: Diesel consumption (liters per year) | C110: =C91/C109 ->  | D110: =D91/D109 ->  | J110: =J91/J109 ->  | K110: =K91/K109 ->  | L110: =L91/L109 -> 0 | M110: =M91/M109 -> 0
B111: Diesel price (US$ per liter) | C111: =30.45*$J$28/$J$55 -> 0.593417594 | D111: =30.45*$J$28/$J$55 -> 0.593417594 | E111: 0.593417594 | F111: 0.593417594 | G111: 0.593417594 | H111: 0.593417594 | I111: 0.593417594 | J111: 0.593417594 | K111: 0.593417594 | L111: 0.593417594 | M111: 0.593417594
A112: 6 | B112: Auxiliary power consumption | C112: =10%*C88*C89*(24.99*$J$28/$J$55) ->  | D112: =10%*D88*D89*(16.84*$J$28/$J$55) ->  | E112: =10%*E88*E89*(13.28*$J$28/$J$55) ->  | F112: =10%*F88*F89*(14.54*$J$28/$J$55) ->  | G112: =10%*G88*G89*(13.14*$J$28/$J$55) ->  | H112: =10%*H88*H89*(18.53*$J$28/$J$55) ->  | I112: =10%*I88*I89*(15.02*$J$28/$J$55) ->  | J112: =10%*J88*J89*(16.84*$J$28/$J$55) ->  | K112: =10%*K88*K89*(13.14*$J$28/$J$55) ->  | L112: =10%*L88*L89*(18.53*$J$28/$J$55) -> 0 | M112: =10%*M88*M89*(15.02*$J$28/$J$55) -> 0
B113: Sub-total raw material cost | C113: =C95+C96+C100+C104+C108+C112 ->  | D113: =D95+D96+D100+D104+D108+D112 ->  | L113: 0 | M113: 0 | N113: =SUM(N94:N112) -> 0 | O113: 0 | P113: 0 | Q113: 0 | R113: 0 | S113: 0 | T113: 0 | U113: 0 | V113: 0 | W113: 0 | X113: 0 | Y113: 0 | Z113: 5500 | AA113: 16600 | AB113: 27700 | AC113: 38600 | AD113: 51600 | AE113: 0 | AF113: 0 | AG113: 0
B115: Labor cost
B116: Engineer
B117: Assistant, skilled | C117: =15*5000*$J$28/$J$55 -> 1461.61969 | D117: =15*5000*$J$28/$J$55 -> 1461.61969 | E117: 1461.61969 | F117: =2*15*5000*$J$28/$J$55 -> 2923.239379 | G117: =2*15*5000*$J$28/$J$55 -> 2923.239379 | H117: 1461.61969 | I117: =2*15*5000*$J$28/$J$55 -> 2923.239379 | J117: 1461.61969 | K117: =2*15*5000*$J$28/$J$55 -> 2923.239379 | L117: 1461.61969 | M117: =2*15*5000*$J$28/$J$55 -> 2923.239379
B118: Assistant, unskilled
B119: Indirect labor cost
B120: Sub-total labor cost | C120: =SUM(C115:C119) -> 1461.61969 | D120: =SUM(D115:D119) -> 1461.61969 | E120: 1461.61969 | F120: 2923.239379 | G120: 2923.239379 | H120: 1461.61969 | I120: 2923.239379 | J120: 1461.61969 | K120: 2923.239379 | L120: 1461.61969 | M120: 2923.239379 | N120: 0 | O120: 0 | P120: 0 | Q120: 0 | R120: 0 | S120: 0 | T120: 0 | U120: 0 | V120: 0 | W120: 0 | X120: 0 | Y120: 0 | Z120: 12200 | AA120: 24500 | AB120: 36900 | AC120: 43000 | AD120: 49100 | AE120: 14237 | AF120: 17275 | AG120: 17497
B122: =title143 -> Maintenance cost
B123: Maintenance of Gasifier system | C123: =0.05*C67 -> 0 | D123: =0.05*D67 -> 0 | E123: 0 | F123: 0 | G123: 0 | H123: 0 | I123: 0 | J123: 0 | K123: 0 | L123: 0 | M123: 0
B124: Maintenance of Gas engine system | C124: =0.1*C72 -> 0 | D124: =0.1*D72 -> 0 | E124: 0 | F124: 0 | G124: 0 | H124: 0 | I124: 0 | J124: 0 | K124: 0 | L124: 0 | M124: 0
B125: Maintenance of Electrical distribution network | C125: =0.03*C81 -> 146.161969 | D125: =0.03*D81 -> 146.161969 | E125: 146.161969 | F125: 219.2429535 | G125: 219.2429535 | H125: 146.161969 | I125: 219.2429535 | J125: 146.161969 | K125: 219.2429535 | L125: 146.161969 | M125: 219.2429535
B126: Maintenance of Civil work | C126: =0.02*C76 -> 23.38591504 | D126: =0.02*D76 -> 31.18122005 | E126: 38.97652506 | F126: 58.46478759 | G126: 68.20891885 | H126: 31.18122005 | I126: 77.95305012 | J126: 48.72065632 | K126: 155.9061002 | L126: 48.72065632 | M126: 155.9061002
B127: others
B128: Sub-total maintenance cost | C128: =SUM(C123:C127) -> 169.547884 | D128: =SUM(D123:D127) -> 177.343189 | E128: 185.138494 | F128: 277.707741 | G128: 287.4518723 | H128: 177.343189 | I128: 297.1960036 | J128: 194.8826253 | K128: 375.1490537 | L128: 194.8826253 | M128: 375.1490537 | N128: 0 | O128: 0 | P128: 0 | Q128: 0 | R128: 0 | S128: 0 | T128: 0 | U128: 0 | V128: 0 | W128: 0 | X128: 0 | Y128: 0 | Z128: 1800 | AA128: 4900 | AB128: 7400 | AC128: 9900 | AD128: 12300 | AE128: 0 | AF128: 48030 | AG128: 31175
B130: Total Operating & Maintenance cost | C130: =C113+C120+C128 ->  | D130: =D113+D120+D128 ->  | L130: 1656.502315 | M130: 3298.388433 | N130: =150000*40.7124/30.6212 -> 199432.4194 | O130: =940*O88*40.7124/30.6212 -> 249955.2989 | P130: =225000*40.7124/30.6212 -> 299148.6291 | Q130: =260000*40.7124/30.6212 -> 345682.8602 | R130: =300000*40.7124/30.6212 -> 398864.8387 | S130: =340000*40.7124/30.6212 -> 452046.8172 | T130: =100000*40.7124/30.6212 -> 132954.9462 | U130: =690*U88*40.7124/30.6212 -> 183477.8258 | V130: =175000*40.7124/30.6212 -> 232671.1559 | W130: =220000*40.7124/30.6212 -> 292500.8817 | X130: =260000*40.7124/30.6212 -> 345682.8602 | Y130: =290000*40.7124/30.6212 -> 385569.3441 | Z130: 19500 | AA130: 46000 | AB130: 72000 | AC130: 91500 | AD130: 113000 | AE130: 14237 | AF130: 65305 | AG130: 48672
B131: O&M cost per kW of rate capacity | C131: =C130/C88 ->  | D131: =D130/D88 ->  | L131: 165.6502315 | M131: 82.45971083 | N131: 1994.324194 | O131: 1249.776495 | P131: 997.1620968 | Q131: 864.2071506 | R131: 797.7296775 | S131: 753.4113621 | T131: 1329.549462 | U131: 917.3891291 | V131: 775.5705198 | W131: 731.2522044 | X131: 691.3657205 | Y131: 642.6155735 | Z131: 97.5 | AA131: 76.66666667 | AB131: 72 | AC131: 61 | AD131: 56.5 | AE131: 1779.625 | AF131: 750.6321839 | AG131: 221.2363636

Sheet LIFETIME_RES1 (hidden)
C2: The useful life of project classified by sub-processes
C4: Sub-processes | D4: Lifetime | E4: =title116 -> Unit | F4: Reference
C5: Useful life of civil work | D5: 20 | E5: =title224 -> years | F5: Nouni et al, 2007
C6: Useful life of engine–generator set with diesel as pilot or main fuel | D6: 20000 | E6: hours | F6: Nouni et al, 2007
C7: Useful life of engine–generator set with bio-diesel as pilot fuel | D7: 15000 | E7: hours | F7: Nouni et al, 2007
C8: Useful life of biomass gasifier | D8: 10000 | E8: hours | F8: Nouni et al, 2007
C9: Useful life of LT electricity distribution network | D9: 20 | E9: =title224 -> years | F9: Nouni et al, 2007
C12: Calculation for the replacement of equipments according to the project lifetime | F12: =+COST_RES1!$N$16 -> 20 | G12: =PROPER(title224) -> Years
C13: Operating hours | F13: =+COST_RES1!$H$34 -> 0 | G13: hours/year
C14: Useful life of civil work | D14: 20 | E14: =title224 -> years | F14: =$F$12/D14 -> 1 | G14: Number of installation | H14: Replacement of equipments | I14: =IF((F14-1)<0,0,(F14-1)) -> 0 | J14: times
C15: Useful life of engine–generator set with diesel as pilot or main fuel | D15: 20000 | E15: hours | F15: =$F$12*$F$13/D15 -> 0 | G15: Number of installation | H15: Replacement of equipments | I15: =IF((F15-1)<0,0,(F15-1)) -> 0 | J15: times
C16: Useful life of engine–generator set with bio-diesel as pilot fuel | D16: 15000 | E16: hours | F16: =$F$12*$F$13/D16 -> 0 | G16: Number of installation | H16: Replacement of equipments | I16: =IF((F16-1)<0,0,(F16-1)) -> 0 | J16: times
C17: Useful life of biomass gasifier | D17: 10000 | E17: hours | F17: =$F$12*$F$13/D17 -> 0 | G17: Number of installation | H17: Replacement of equipments | I17: =IF((F17-1)<0,0,(F17-1)) -> 0 | J17: times
C18: Useful life of LT electricity distribution network | D18: 20 | E18: =title224 -> years | F18: =$F$12/D18 -> 1 | G18: Number of installation | H18: Replacement of equipments | I18: =IF((F18-1)<0,0,(F18-1)) -> 0 | J18: times

Sheet COST_RES2
C3: =+UPPER("Processing costs FOR POWER GENERATION FROM "&'Data Entry Needs'!$E$11&" "&'Data Entry Needs'!$E$12) -> PROCESSING COSTS FOR POWER GENERATION FROM PLEASE SELECT PLEASE SELECT
C6: =title26 -> Use white cells to input data | E6: =title27 -> Grey cells are used for calculations
C8: =title150 -> Summary of Feedstock and Storage | G8: =title151 -> Summary of Operational Parameters | K8: =title131 -> Financial parameters
C10: =title152 -> Feedstock available (t/year) | E10: =+'Data Entry Needs'!$E$13 -> 0 | G10: =title156 -> Gasifier type | I10: =title441 -> Downdraft | K10: =title134&" (%)" -> Loan interest rate (%) | N10: =+'Data Entry Needs'!$D$55 -> 0
C11: =title153 -> Feedstock yield (t/ha) | E11: =+'Data Entry Needs'!$E$14 -> 0 | G11: =title157 -> Gas engine type | I11: 100% Syngas | K11: =title133&" (%)" -> Loan ratio (%) | N11: =+'Data Entry Needs'!$D$54 -> 0
C12: =title154 -> Moisture (%) | E12: =+'Data Entry Needs'!$E$15 -> 0 | G12: =title158 -> Capacity utilization factor | I12: =H34/8760 -> 0 | K12: =title164 -> Loan term (years) | N12: =+'Data Entry Needs'!$D$56 -> 0
C13: =title155 -> Size (mm) | E13: =+'Data Entry Needs'!$E$16 -> 0 | G13: =title159 -> Power conversion (kWh/kg feedstock) | I13: =+VLOOKUP(IF('Data Entry Needs'!$E$11=title59,'Data Entry Needs'!$E$11,'Data Entry Needs'!$E$11&'Data Entry Needs'!$E$12),dummy_database!$C$1:$P$31,14,FALSE)/(dummy_database!$P$45*3.6) ->  | K13: =title132&" (%)" -> Discount rate (%) | N13: =+'Data Entry Needs'!$D$53 -> 0
C14: =title37 -> Feedstock storage cost (USD/t) | E14: =+'Data Entry Needs'!$E$20 -> 0 | H14: CO (%Vol) | I14: =+VLOOKUP(IF('Data Entry Needs'!$E$11=title59,'Data Entry Needs'!$E$11,'Data Entry Needs'!$E$11&'Data Entry Needs'!$E$12),dummy_database!$C$1:$P$31,9,FALSE) ->  | K14: =+'Data Entry Needs'!F54 -> Plant Cost Index during 5/2017 | N14: =+'Data Entry Needs'!$I$54 -> 0
H15: CO2 (%Vol) | I15: =+VLOOKUP(IF('Data Entry Needs'!$E$11=title59,'Data Entry Needs'!$E$11,'Data Entry Needs'!$E$11&'Data Entry Needs'!$E$12),dummy_database!$C$1:$P$31,10,FALSE) ->  | K15: =IF('Data Entry Needs'!$AG$125=0,title167,title168) -> Price of electricity (USD/kWh) - Calculated | N15: =+'Data Entry Needs'!$AH$125 -> 0
H16: H2 (%Vol) | I16: =+VLOOKUP(IF('Data Entry Needs'!$E$11=title59,'Data Entry Needs'!$E$11,'Data Entry Needs'!$E$11&'Data Entry Needs'!$E$12),dummy_database!$C$1:$P$31,11,FALSE) ->  | K16: =title165 -> Project lifetime | N16: 20
H17: CH4 (%Vol) | I17: =+VLOOKUP(IF('Data Entry Needs'!$E$11=title59,'Data Entry Needs'!$E$11,'Data Entry Needs'!$E$11&'Data Entry Needs'!$E$12),dummy_database!$C$1:$P$31,13,FALSE) -> 
G18: =title160 -> Power loss due to operation (%)
G19: =title161 -> Operating hours per day
G20: =title162 -> Power loss in distribution network (%)
G21: =title163 -> Gas engine efficiency (%)
C23: =title169 -> Transport Distance of Feedstock | F23: =title170 -> Transport Quantity | I23: =title169 -> Transport Distance of Feedstock | L23: =title170 -> Transport Quantity
C25: =title171 -> Distance small scale production (km) | F25: =title173 -> Small scale (t/year) | H25: =+$G$39 ->  | I25: =title175 -> Distance large scale production (km) | L25: =title177 -> Large scale (t/year) | N25: =+$K$39 -> 
C26: =title172 -> Distance medium scale production (km) | F26: =title174 -> Medium scale (t/year) | H26: =+$I$39 ->  | I26: =title176 -> Transportation cost (USD/t/km) | N26: =+'Data Entry Needs'!$D$46 -> 0
C30: =title178 -> Production Cost Details
G32: =title223 -> Capacities (kW of power generation)
G33: 10 | I33: 40 | K33: 100
G34: =title231 -> Operating hours per year | H34: =$I$19*365 -> 0 | I34: =title231 -> Operating hours per year | J34: =$I$19*365 -> 0 | K34: =title231 -> Operating hours per year | L34: =$I$19*365 -> 0
D37: =title179 -> Inputs | E37: =title116 -> Unit | F37: =title200 -> Unit Price | G37: =title202 -> Quantity | H37: Total | I37: =title202 -> Quantity | J37: Total | K37: =title202 -> Quantity | L37: Total
F38: =title201 -> (USD/unit) | G38: =title203 -> (Unit/year) | H38: =title204 -> (USD/year) | I38: =title203 -> (Unit/year) | J38: =title204 -> (USD/year) | K38: =title203 -> (Unit/year) | L38: =title204 -> (USD/year)
D39: =title29 -> Feedstock | E39: t | F39: =+IF('Data Entry Needs'!$C$18=FALSE,'Data Entry Needs'!E$18,'Data Entry Needs'!E$19) -> 0 | G39: =+(G$33/$I$21/$I$13)*(H$34/1000)/(1-$I$18) ->  | H39: =+G39*$F39 ->  | I39: =+(I$33/$I$21/$I$13)*(J$34/1000)/(1-$I$18) ->  | J39: =+I39*$F39 ->  | K39: =+(K$33/$I$21/$I$13)*(L$34/1000)/(1-$I$18) ->  | L39: =+K39*$F39 -> 
D40: =title123 -> Water | E40: m3 | F40: =+'Data Entry Needs'!$D$40 -> 0 | G40: =G$33*H$34/GASIFICACONVERSION!$C$5 -> 0 | H40: =+G40*$F40 -> 0 | I40: =I$33*J$34/GASIFICACONVERSION!$C$5 -> 0 | J40: =+I40*$F40 -> 0 | K40: =K$33*L$34/GASIFICACONVERSION!$C$5 -> 0 | L40: =+K40*$F40 -> 0
D41: =title180 -> Diesel for start up | E41: litre | F41: =+'Data Entry Needs'!I$40 -> 0 | G41: =10%*G$33*0.5*365/GASIFICACONVERSION!$C$11 -> 54.75 | H41: =+G41*$F41 -> 0 | I41: =10%*I$33*0.5*365/GASIFICACONVERSION!$C$11 -> 219 | J41: =+I41*$F41 -> 0 | K41: =10%*K$33*0.5*365/GASIFICACONVERSION!$C$11 -> 547.5 | L41: =+K41*$F41 -> 0
D42: =title181 -> Subtotal | H42: =SUM(H39:H41) ->  | J42: =SUM(J39:J41) ->  | L42: =SUM(L39:L41) -> 
D44: =title182 -> Labour and miscellaneous cost | E44: =title116 -> Unit | F44: =title200 -> Unit Price | G44: =title202 -> Quantity | H44: Total | I44: =title202 -> Quantity | J44: Total | K44: =title202 -> Quantity | L44: Total
F45: ="("&title433&")" -> (USD/person-hour) | G45: (Unit) | H45: =title204 -> (USD/year) | I45: (Unit) | J45: =title204 -> (USD/year) | K45: (Unit) | L45: =title204 -> (USD/year)
D46: =title121 -> Unskilled worker | E46: =title205 -> # employee | F46: =+'Data Entry Needs'!$D$37 -> 0 | G46: 1 | H46: =+F46*G46*H34 -> 0 | I46: 3 | J46: =+$F46*I46*$H$34 -> 0 | K46: 6 | L46: =+$F46*K46*$H$34 -> 0
D47: =title139 -> Skilled worker | E47: =title205 -> # employee | F47: =+'Data Entry Needs'!I$37 -> 0 | G47: 1 | H47: =+F47*G47*H34 -> 0 | I47: =+ROUND(I46/4,0) -> 1 | J47: =+$F47*I47*$H$34 -> 0 | K47: =+ROUND(K46/3,0) -> 2 | L47: =+$F47*K47*$H$34 -> 0
D48: Miscellaneous Costs | G48: =+'Data Entry Needs'!$I$50 -> 0 | H48: =+G48*SUM(H46:H47) -> 0 | I48: =+G48 -> 0 | J48: =+I48*SUM(J46:J47) -> 0 | K48: =+G48 -> 0 | L48: =+K48*SUM(L46:L47) -> 0
D49: =title181 -> Subtotal | H49: =+H46+H47+H48 -> 0 | J49: =+J46+J47+J48 -> 0 | L49: =+L46+L47+L48 -> 0
G50: =+SUM(G46:G47) -> 2 | I50: =+SUM(I46:I47) -> 4 | K50: =+SUM(K46:K47) -> 8
D51: =title183 -> Transport of feedstock | E51: =title116 -> Unit | F51: =title200 -> Unit Price | G51: =title202 -> Quantity | H51: Total | I51: =title202 -> Quantity | J51: Total | K51: =title202 -> Quantity | L51: Total
F52: (USD/t/km) | G52: (Unit) | H52: =title204 -> (USD/year) | I52: (Unit) | J52: =title204 -> (USD/year) | K52: (Unit) | L52: =title204 -> (USD/year)
D53: =title184 -> Feedstock (farm to plant) | E53: km | F53: =+'Data Entry Needs'!$D$46 -> 0 | G53: =+$E$25 -> 0 | H53: =+G53*F53*G39 ->  | I53: =+$E$26 -> 0 | J53: =+I53*$F53*I$39 ->  | K53: =+$K$25 -> 0 | L53: =+K53*$F53*K$39 -> 
D54: =title181 -> Subtotal | H54: =+H53 ->  | J54: =+J53 ->  | L54: =+L53 -> 
D56: =title185 -> Storage | E56: =title116 -> Unit | F56: =title200 -> Unit Price | G56: =title202 -> Quantity | H56: Total | I56: =title202 -> Quantity | J56: Total | K56: =title202 -> Quantity | L56: Total
F57: USD/t | G57: (Unit) | H57: =title204 -> (USD/year) | I57: (Unit) | J57: =title204 -> (USD/year) | K57: (Unit) | L57: =title204 -> (USD/year)
D58: =title29 -> Feedstock | E58: t | F58: =+$E$14 -> 0 | G58: =+STORAGE_RES2!$F$38 ->  | H58: =+F58*G58 ->  | I58: =+STORAGE_RES2!$I$38 ->  | J58: =I58*F58 ->  | K58: =+STORAGE_RES2!$L$38 ->  | L58: =F58*K58 -> 
D59: =title181 -> Subtotal | H59: =SUM(H58) ->  | J59: =SUM(J58) ->  | L59: =SUM(L58) -> 
D61: =title186 -> Investment | E61: =title116 -> Unit | F61: =PROPER(title224) -> Years | G61: Total | H61: =title206 -> Depreciation | I61: Total | J61: =title206 -> Depreciation | K61: Total | L61: =title206 -> Depreciation
G62: (USD) | H62: =title204 -> (USD/year) | I62: (USD) | J62: =title204 -> (USD/year) | K62: (USD) | L62: =title204 -> (USD/year)
D63: =title187 -> Equipments | E63: USD | F63: =+$N$16 -> 20 | G63: =('COST(ADJUSTED)_RES1'!L67+'COST(ADJUSTED)_RES1'!L72)*('Data Entry Needs'!$I$54/141) -> 0 | H63: =+G63/F63 -> 0 | I63: =('COST(ADJUSTED)_RES1'!M67+'COST(ADJUSTED)_RES1'!M72)*('Data Entry Needs'!$I$54/141) -> 0 | J63: =+I63/F63 -> 0 | K63: =('COST(ADJUSTED)_RES1'!AF67+'COST(ADJUSTED)_RES1'!AF72)*('Data Entry Needs'!$I$54/141) -> 0 | L63: =+K63/F63 -> 0
D64: =title188 -> Building | E64: USD | F64: =+$N$16 -> 20 | G64: =('COST(ADJUSTED)_RES1'!L76+'COST(ADJUSTED)_RES1'!L75)*('Data Entry Needs'!$I$54/141) -> 0 | H64: =+G64/F64 -> 0 | I64: =('COST(ADJUSTED)_RES1'!M75+'COST(ADJUSTED)_RES1'!M76)*('Data Entry Needs'!$I$54/141) -> 0 | J64: =+I64/F64 -> 0 | K64: =('COST(ADJUSTED)_RES1'!AF76+'COST(ADJUSTED)_RES1'!AF75)*('Data Entry Needs'!$I$54/141) -> 0 | L64: =+K64/F64 -> 0
D65: =title189 -> Installation | E65: USD | F65: =+$N$16 -> 20 | G65: ='COST(ADJUSTED)_RES1'!L77*('Data Entry Needs'!$I$54/141) -> 0 | H65: =+G65/F65 -> 0 | I65: ='COST(ADJUSTED)_RES1'!M77*('Data Entry Needs'!$I$54/141) -> 0 | J65: =+I65/F65 -> 0 | K65: =('COST(ADJUSTED)_RES1'!AF73+'COST(ADJUSTED)_RES1'!AF77+'COST(ADJUSTED)_RES1'!AF78)*('Data Entry Needs'!$I$54/141) -> 0 | L65: =+K65/F65 -> 0
D66: =title190 -> Distribution network | E66: USD | F66: =+$N$16 -> 20 | G66: =((27.1*$G33)+(7.5*10*($G94/('Energy Demand'!$F$8*12))))*('Data Entry Needs'!$I$54/141) ->  | H66: =+G66/F66 ->  | I66: =((27.1*I$33)+(7.5*10*($I$94/('Energy Demand'!$F$8*12))))*('Data Entry Needs'!$I$54/141) ->  | J66: =+I66/F66 ->  | K66: =((27.1*K$33)+(7.5*10*($K$94/('Energy Demand'!$F$8*12))))*('Data Entry Needs'!$I$54/141) ->  | L66: =+K66/F66 -> 
D67: =title191 -> Total Investment | G67: =SUM(G63:G66) ->  | I67: =SUM(I63:I66) ->  | K67: =SUM(K63:K66) -> 
G68: =title207 -> Total depreciation | H68: =SUM(H63:H67) ->  | I68: =title207 -> Total depreciation | J68: =SUM(J63:J67) ->  | K68: =title207 -> Total depreciation | L68: =SUM(L63:L67) -> 
D69: =title143 -> Maintenance cost | F69: =+'Data Entry Needs'!I49 -> 0 | H69: =+F69*H68 ->  | J69: =+F69*$J$68 ->  | L69: =+$F$69*L68 -> 
D70: =title181 -> Subtotal | H70: =SUM(H68:H69) ->  | J70: =SUM(J68:J69) ->  | L70: =SUM(L68:L69) -> 
D72: =title128 -> Other costs | E72: =title116 -> Unit | F72: Rate (%) | H72: Total | J72: Total | L72: Total
H73: =title204 -> (USD/year) | J73: =title204 -> (USD/year) | L73: =title204 -> (USD/year)
D74: =title192 -> Plant overhead | E74: USD | F74: =+'Data Entry Needs'!$D$50 -> 0 | H74: =+(H46+H47+H69)*$F$74 ->  | J74: =+(J46+J47+J69)*$F$74 ->  | L74: =+(L46+L47+L69)*$F$74 -> 
D75: =title193 -> General and administrative cost | E75: USD | F75: =+'Data Entry Needs'!$D$49 -> 0 | H75: =+(H42+H49+H74+H69)*$F$75 ->  | J75: =+(J42+J49+J74+J69)*$F$75 ->  | L75: =+(L42+L49+L74+L69)*$F$75 -> 
D76: =title194 -> Loan interest | E76: USD | F76: =+'Data Entry Needs'!$D$55 -> 0 | H76: =-FA10kW_RES2!G92 ->  | J76: =-FA40kW_RES2!G92 ->  | L76: =-FA100kW_RES2!G92 -> 
D77: =title195 -> Income tax | E77: USD | F77: =+'Data Entry Needs'!$AQ$92 -> 0 | H77: =-FA10kW_RES2!C99 ->  | J77: =-FA40kW_RES2!C99 ->  | L77: =-FA100kW_RES2!C99 -> 
D78: =title181 -> Subtotal | H78: =SUM(H74:H76) ->  | J78: =SUM(J74:J76) ->  | L78: =SUM(L74:L76) -> 
G80: Total | H80: =title208 -> Share (%) | I80: Total | J80: =title208 -> Share (%) | K80: Total | L80: =title208 -> Share (%)
G81: =title204 -> (USD/year) | I81: =title204 -> (USD/year) | K81: =title204 -> (USD/year)
D82: =title196 -> Total operating costs | G82: =+H42+H49+H54+H59 ->  | H82: =+G82/$G$85 ->  | I82: =+J42+J49+J54+J59 ->  | J82: =+I82/$I$85 ->  | K82: =+L42+L49+L54+L59 ->  | L82: =+K82/$K$85 -> 
D83: =title197 -> Total fixed costs | G83: =+H70 ->  | H83: =+G83/$G$85 ->  | I83: =+J70 ->  | J83: =+I83/$I$85 ->  | K83: =+L70 ->  | L83: =+K83/$K$85 -> 
D84: =title198 -> Total other costs | G84: =+H78 ->  | H84: =+G84/$G$85 ->  | I84: =+J78 ->  | J84: =+I84/$I$85 ->  | K84: =+L78 ->  | L84: =+K84/$K$85 -> 
D85: =title199 -> Total production costs | G85: =SUM(G82:G84) ->  | I85: =SUM(I82:I84) ->  | K85: =SUM(K82:K84) -> 
C87: =title209 -> Power generation
E89: =title116 -> Unit | G89: =title202 -> Quantity | I89: =title202 -> Quantity | K89: =title202 -> Quantity
G90: (Unit) | I90: (Unit) | K90: (Unit)
D91: =title209 -> Power generation | E91: =title211 -> kWh/year | G91: =+G33*H34*(1-$I$18) -> 0 | I91: =+I33*J34*(1-$I$18) -> 0 | K91: =+K33*L34*(1-$I$18) -> 0
D92: =title210 -> Electricity - self use | E92: =title211 -> kWh/year | G92: =-G91*10% -> 0 | I92: =-I91*10% -> 0 | K92: =-K91*10% -> 0
D93: =title212 -> Power loss in distribution network | E93: =title211 -> kWh/year | G93: =-G91*$I$20 -> 0 | I93: =-I91*$I$20 -> 0 | K93: =-K91*$I$20 -> 0
D94: =title181 -> Subtotal | G94: =SUM(G91:H93) -> 0 | I94: =SUM(I91:J93) -> 0 | K94: =SUM(K91:L93) -> 0
C96: =title213 -> Total Production Cost + Distribution
G98: =$G$32 -> Capacities (kW of power generation)
G99: =+G33 -> 10 | I99: =+I33 -> 40 | K99: =+K33 -> 100
D100: =title214 -> Unit cost of electricity (USD/kWh) | G100: =G85/G94 ->  | I100: =I85/I94 ->  | K100: =K85/K94 -> 
D102: =title219 -> Average loan interest | E102: =title116 -> Unit | F102: =title133&" (%)" -> Loan ratio (%) | G102: =title191 -> Total Investment | H102: =title215 -> Loan amount | I102: =title191 -> Total Investment | J102: =title215 -> Loan amount | K102: =title191 -> Total Investment | L102: =title215 -> Loan amount
G103: (USD) | H103: (USD) | I103: (USD) | J103: (USD) | K103: (USD) | L103: (USD)
D104: =title215 -> Loan amount | E104: USD | F104: =+$N$11 -> 0 | G104: =G67 ->  | H104: =$F$104*G104 ->  | I104: =I67 ->  | J104: =$F$104*I104 ->  | K104: =K67 ->  | L104: =$F$104*K104 -> 
D105: =title134 -> Loan interest rate | E105: % | H105: =+$N$10 -> 0 | J105: =+$N$10 -> 0 | L105: =+$N$10 -> 0
D106: =title216 -> Loan payment | E106: =title220 -> USD/month | H106: =PMT(H105/12,H108*12,H104,0) ->  | J106: =PMT(J105/12,J108*12,J104,0) ->  | L106: =PMT(L105/12,L108*12,L104,0) -> 
D107: =title217 -> Annual loan payment | E107: =title221 -> USD/year | H107: =H106*12 ->  | J107: =J106*12 ->  | L107: =L106*12 -> 
D108: =title222 -> Loan terms | E108: =title224 -> years | H108: =+$N$12 -> 0 | J108: =+$N$12 -> 0 | L108: =+$N$12 -> 0
D109: =title218 -> Total loan payment | E109: USD | H109: =H107*H108 ->  | J109: =J107*J108 ->  | L109: =L107*L108 -> 
D110: =title194 -> Loan interest | E110: USD | H110: =H109+H104 ->  | J110: =J109+J104 ->  | L110: =L109+L104 -> 
D111: =title219 -> Average loan interest | E111: =title221 -> USD/year | H111: =H110/$N$16 ->  | J111: =J110/$N$16 ->  | L111: =L110/$N$16 -> 

Sheet FA10kW_RES2 (hidden)
B1: =title227&"10 kW" -> FINANCIAL EVALUATION OF GASIFICATION FOR POWER GENERATION10 kW
A4: =title228 -> Revenues of biomass gasification and power generation system
B6: =title229 -> Operating Year | C6: 0 | D6: 1 | E6: 2 | F6: 3 | G6: 4 | H6: 5 | I6: 6 | J6: 7 | K6: 8 | L6: 9 | M6: 10 | N6: 11 | O6: 12 | P6: 13 | Q6: 14 | R6: 15 | S6: 16 | T6: 17 | U6: 18 | V6: 19 | W6: 20
B8: =title230 -> Power generation capacity (kW) | C8: 10 | D8: =C8 -> 10 | E8: =D8 -> 10 | F8: 10 | G8: 10 | H8: 10 | I8: 10 | J8: 10 | K8: 10 | L8: 10 | M8: 10 | N8: 10 | O8: 10 | P8: 10 | Q8: 10 | R8: 10 | S8: 10 | T8: 10 | U8: 10 | V8: 10 | W8: 10
B10: =title157 -> Gas engine type | C10: =+COST_RES2!$I$11 -> 100% Syngas
B12: =title162 -> Power loss in distribution network (%) | C12: =+COST_RES2!$I$18 -> 0 | D12: =+C12 -> 0 | E12: =+D12 -> 0 | F12: 0 | G12: 0 | H12: 0 | I12: 0 | J12: 0 | K12: 0 | L12: 0 | M12: 0 | N12: 0 | O12: 0 | P12: 0 | Q12: 0 | R12: 0 | S12: 0 | T12: 0 | U12: 0 | V12: 0 | W12: 0
B14: =title231 -> Operating hours per year | C14: =+COST_RES2!$H$34 -> 0 | D14: =C14 -> 0 | E14: =D14 -> 0 | F14: 0 | G14: 0 | H14: 0 | I14: 0 | J14: 0 | K14: 0 | L14: 0 | M14: 0 | N14: 0 | O14: 0 | P14: 0 | Q14: 0 | R14: 0 | S14: 0 | T14: 0 | U14: 0 | V14: 0 | W14: 0
B15: =title158 -> Capacity utilization factor | C15: =C14/8760 -> 0 | D15: =D14/8760 -> 0 | E15: =E14/8760 -> 0 | F15: 0 | G15: 0 | H15: 0 | I15: 0 | J15: 0 | K15: 0 | L15: 0 | M15: 0 | N15: 0 | O15: 0 | P15: 0 | Q15: 0 | R15: 0 | S15: 0 | T15: 0 | U15: 0 | V15: 0 | W15: 0
B17: =title232 -> Electricity generation (kWh per year) | C17: =C8*C14*(1-C12) -> 0 | D17: =D8*D14*(1-D12) -> 0 | E17: =E8*E14*(1-E12) -> 0 | F17: 0 | G17: 0 | H17: 0 | I17: 0 | J17: 0 | K17: 0 | L17: 0 | M17: 0 | N17: 0 | O17: 0 | P17: 0 | Q17: 0 | R17: 0 | S17: 0 | T17: 0 | U17: 0 | V17: 0 | W17: 0
B18: =title233 -> Electricity - self use (kWh per year) | C18: =C17*10% -> 0 | D18: =D17*10% -> 0 | E18: =E17*10% -> 0 | F18: 0 | G18: 0 | H18: 0 | I18: 0 | J18: 0 | K18: 0 | L18: 0 | M18: 0 | N18: 0 | O18: 0 | P18: 0 | Q18: 0 | R18: 0 | S18: 0 | T18: 0 | U18: 0 | V18: 0 | W18: 0
B19: =title234 -> Power loss in distribution network (kWh per year) | C19: =C17*COST_RES2!$I$20 -> 0 | D19: =C19 -> 0 | E19: =D19 -> 0 | F19: 0 | G19: 0 | H19: 0 | I19: 0 | J19: 0 | K19: 0 | L19: 0 | M19: 0 | N19: 0 | O19: 0 | P19: 0 | Q19: 0 | R19: 0 | S19: 0 | T19: 0 | U19: 0 | V19: 0 | W19: 0
B20: =title235 -> Total power sold to customers (kWh per year) | C20: =C17-C18-C19 -> 0 | D20: =D17-D18-D19 -> 0 | E20: =E17-E18-E19 -> 0 | F20: 0 | G20: 0 | H20: 0 | I20: 0 | J20: 0 | K20: 0 | L20: 0 | M20: 0 | N20: 0 | O20: 0 | P20: 0 | Q20: 0 | R20: 0 | S20: 0 | T20: 0 | U20: 0 | V20: 0 | W20: 0
B22: =title166 -> Price of electricity (USD/kWh) | C22: =+COST_RES2!$N$15 -> 0 | D22: =C22*(1+D23) -> 0 | E22: =D22*(1+E23) -> 0 | F22: =E22*(1+F23) -> 0 | G22: 0 | H22: 0 | I22: 0 | J22: 0 | K22: 0 | L22: 0 | M22: 0 | N22: 0 | O22: 0 | P22: 0 | Q22: 0 | R22: 0 | S22: 0 | T22: 0 | U22: 0 | V22: 0 | W22: 0
B24: =title237 -> Total income (USD/year) | C24: =C20*C22 -> 0 | D24: =D20*D22 -> 0 | E24: 0 | F24: 0 | G24: 0 | H24: 0 | I24: 0 | J24: 0 | K24: 0 | L24: 0 | M24: 0 | N24: 0 | O24: 0 | P24: 0 | Q24: 0 | R24: 0 | S24: 0 | T24: 0 | U24: 0 | V24: 0 | W24: 0
B26: =title238 -> Project lifetime (years) | C26: =+COST_RES2!$N$16 -> 20
B27: =title239 -> Lifespan of civil work (years) | C27: =20 -> 20
B28: =title240 -> Lifespan of gasifier system (years) | C28: =20 -> 20
B29: =title241 -> Lifespan of engine generator system (years) | C29: =20 -> 20
B30: =title242 -> Lifespan of electrical distribution system (years) | C30: =20 -> 20
A33: =title243 -> Capital and operating cost of biomass gasification and power generation system
B35: =title229 -> Operating Year | C35: =title247 -> Appraisal | D35: 1 | E35: 2 | F35: 3 | G35: 4 | H35: 5 | I35: 6 | J35: 7 | K35: 8 | L35: 9 | M35: 10 | N35: 11 | O35: 12 | P35: 13 | Q35: 14 | R35: 15 | S35: 16 | T35: 17 | U35: 18 | V35: 19 | W35: 20
B36: =title244 -> Direct capital cost (USD)
B37: =title187 -> Equipments | C37: =COST_RES2!G63 -> 0
B38: =title188 -> Building | C38: =COST_RES2!G64 -> 0
B39: =title189 -> Installation | C39: =COST_RES2!G65 -> 0
B40: =title190 -> Distribution network | C40: =COST_RES2!G66 -> 
B41: =title245 -> Total capital cost (USD) | C41: =SUM(C37:C40) ->  | D41: =D37+D38+D39 -> 0 | E41: 0 | F41: 0 | G41: 0 | H41: 0 | I41: 0 | J41: 0 | K41: 0 | L41: 0 | M41: 0 | N41: 0 | O41: 0 | P41: 0 | Q41: 0 | R41: 0 | S41: 0 | T41: 0 | U41: 0 | V41: 0 | W41: 0
B42: =title246 -> Capital cost (USD/kW) | C42: =C41/C8 -> 
B45: =title229 -> Operating Year | C45: =title247 -> Appraisal | D45: 1 | E45: 2 | F45: 3 | G45: 4 | H45: 5 | I45: 6 | J45: 7 | K45: 8 | L45: 9 | M45: 10 | N45: 11 | O45: 12 | P45: 13 | Q45: 14 | R45: 15 | S45: 16 | T45: 17 | U45: 18 | V45: 19 | W45: 20
B46: =title248 -> Annual operating and maintenance cost
B47: =title249 -> Sub-total material cost (USD) | C47: =C48+C56+C60 ->  | D47: =D48+D56+D60 ->  | E47: =E48+E56+E60 -> 
B48: =title250 -> Biomass cost (USD/year) | C48: =C49*C50 ->  | D48: =D49*D50 ->  | E48: =E49*E50 -> 
B49: =title251 -> Biomass consumption (t per year) | C49: =+COST_RES2!$G$39 ->  | D49: =+C49 ->  | E49: =+D49 -> 
B50: =title252 -> Biomass total price (USD/t) | C50: =SUM(C51:C52) -> 0 | D50: =SUM(D51:D52) -> 0 | E50: 0 | F50: 0 | G50: 0 | H50: 0 | I50: 0 | J50: 0 | K50: 0 | L50: 0 | M50: 0 | N50: 0 | O50: 0 | P50: 0 | Q50: 0 | R50: 0 | S50: 0 | T50: 0 | U50: 0 | V50: 0 | W50: 0
B51: =title253 -> Biomass price (USD/t) | C51: =+COST_RES2!$F$39 -> 0 | D51: =C51*(1+D80+D81) -> 0 | E51: =D51*(1+E80+E81) -> 0 | F51: 0 | G51: 0 | H51: 0 | I51: 0 | J51: 0 | K51: 0 | L51: 0 | M51: 0 | N51: 0 | O51: 0 | P51: 0 | Q51: 0 | R51: 0 | S51: 0 | T51: 0 | U51: 0 | V51: 0 | W51: 0
B52: =title254 -> Biomass transportation cost (USD/t) | C52: =+C53*C54 -> 0 | D52: =C52*(1+D80+D81) -> 0 | E52: 0 | F52: 0 | G52: 0 | H52: 0 | I52: 0 | J52: 0 | K52: 0 | L52: 0 | M52: 0 | N52: 0 | O52: 0 | P52: 0 | Q52: 0 | R52: 0 | S52: 0 | T52: 0 | U52: 0 | V52: 0 | W52: 0
B53: =title255 -> Biomass from farm to plant (USD/t/km) | C53: =+COST_RES2!$F$53 -> 0
B54: =title256 -> Transportation distant (km) | C54: =+COST_RES2!$G$53 -> 0
B56: =title257 -> Water cost (USD/year) | C56: =C57*C58 -> 0 | D56: =D57*D58 -> 0 | E56: 0 | F56: 0 | G56: 0 | H56: 0 | I56: 0 | J56: 0 | K56: 0 | L56: 0 | M56: 0 | N56: 0 | O56: 0 | P56: 0 | Q56: 0 | R56: 0 | S56: 0 | T56: 0 | U56: 0 | V56: 0 | W56: 0
B57: =title258 -> Water consumption (m3 per year) | C57: =+COST_RES2!$G$40 -> 0 | D57: =+C57 -> 0 | E57: =+D57 -> 0 | F57: 0 | G57: 0 | H57: 0 | I57: 0 | J57: 0 | K57: 0 | L57: 0 | M57: 0 | N57: 0 | O57: 0 | P57: 0 | Q57: 0 | R57: 0 | S57: 0 | T57: 0 | U57: 0 | V57: 0 | W57: 0
B58: =title259 -> Water treatment cost (USD/m3) | C58: =+COST_RES2!$F$40 -> 0 | D58: =C58*(1+D80+D81) -> 0 | E58: 0 | F58: 0 | G58: 0 | H58: 0 | I58: 0 | J58: 0 | K58: 0 | L58: 0 | M58: 0 | N58: 0 | O58: 0 | P58: 0 | Q58: 0 | R58: 0 | S58: 0 | T58: 0 | U58: 0 | V58: 0 | W58: 0
B60: =title260 -> Diesel cost (USD/year) | C60: =C61*C62 -> 0 | D60: =D61*D62 -> 0 | E60: 0 | F60: 0 | G60: 0 | H60: 0 | I60: 0 | J60: 0 | K60: 0 | L60: 0 | M60: 0 | N60: 0 | O60: 0 | P60: 0 | Q60: 0 | R60: 0 | S60: 0 | T60: 0 | U60: 0 | V60: 0 | W60: 0
B61: =title261 -> Diesel/fuel oil consumption (litres per year) | C61: =+COST_RES2!$G$41 -> 54.75 | D61: =+C61 -> 54.75 | E61: =+D61 -> 54.75 | F61: 54.75 | G61: 54.75 | H61: 54.75 | I61: 54.75 | J61: 54.75 | K61: 54.75 | L61: 54.75 | M61: 54.75 | N61: 54.75 | O61: 54.75 | P61: 54.75 | Q61: 54.75 | R61: 54.75 | S61: 54.75 | T61: 54.75 | U61: 54.75 | V61: 54.75 | W61: 54.75
B62: =title262 -> Diesel/fuel oil price (USD per litre) | C62: =+COST_RES2!$F$41 -> 0 | D62: =C62*(1+D80+D81) -> 0 | E62: 0 | F62: 0 | G62: 0 | H62: 0 | I62: 0 | J62: 0 | K62: 0 | L62: 0 | M62: 0 | N62: 0 | O62: 0 | P62: 0 | Q62: 0 | R62: 0 | S62: 0 | T62: 0 | U62: 0 | V62: 0 | W62: 0
B64: =title263 -> Sub-total operating cost (USD) | C64: =C65+C67+C68 ->  | D64: =D65+D67+D68 -> 
B65: =title264 -> Labour cost (USD) | C65: =COST_RES2!H49 -> 0 | D65: =C65*(1+D66) -> 0 | E65: 0 | F65: 0 | G65: 0 | H65: 0 | I65: 0 | J65: 0 | K65: 0 | L65: 0 | M65: 0 | N65: 0 | O65: 0 | P65: 0 | Q65: 0 | R65: 0 | S65: 0 | T65: 0 | U65: 0 | V65: 0 | W65: 0
B66: =title265 -> Annual change in labour cost (%) | D66: 0 | E66: =D66 -> 0 | F66: =E66 -> 0 | G66: 0 | H66: 0 | I66: 0 | J66: 0 | K66: 0 | L66: 0 | M66: 0 | N66: 0 | O66: 0 | P66: 0 | Q66: 0 | R66: 0 | S66: 0 | T66: 0 | U66: 0 | V66: 0 | W66: 0
B67: =title192 -> Plant overhead | C67: =COST_RES2!H74 ->  | D67: =C67 ->  | E67: =D67 -> 
B68: =title193 -> General and administrative cost | C68: =COST_RES2!H75 ->  | D68: =C68 -> 
B69: =title266 -> Sub-total maintenance cost (USD) | C69: =COST_RES2!H69 ->  | D69: =C69 -> 
B71: =title267 -> Sub-total of annual fixed cost | C71: =COST_RES2!H68 ->  | D71: =C71 ->  | E71: =D71 -> 
B73: =title268 -> Sub-total of storage capacity | C73: =+COST_RES2!H59 ->  | D73: =C73 ->  | E73: =D73 -> 
B75: =title269 -> Total operation and maintenance cost (USD) | C75: =C47+C64+C69+C71+C73 ->  | D75: =D47+D64+D69+D71+D73 -> 
B76: =title270 -> Operation and maintenance cost (USD/kWh) without loan interest | C76: =C75/C20 -> 
A78: =title131 -> Financial parameters
B79: =title229 -> Operating Year | C79: =title247 -> Appraisal | D79: 1 | E79: 2 | F79: 3 | G79: 4 | H79: 5 | I79: 6 | J79: 7 | K79: 8 | L79: 9 | M79: 10 | N79: 11 | O79: 12 | P79: 13 | Q79: 14 | R79: 15 | S79: 16 | T79: 17 | U79: 18 | V79: 19 | W79: 20
B80: =title271 -> Annual change in raw material cost (%) | D80: =+COST_RES2!$N$19 -> 0 | E80: =D80 -> 0 | F80: =E80 -> 0 | G80: 0 | H80: 0 | I80: 0 | J80: 0 | K80: 0 | L80: 0 | M80: 0 | N80: 0 | O80: 0 | P80: 0 | Q80: 0 | R80: 0 | S80: 0 | T80: 0 | U80: 0 | V80: 0 | W80: 0
B81: =title272 -> Inflation rate (%) | D81: 0 | E81: =D81 -> 0 | F81: 0 | G81: 0 | H81: 0 | I81: 0 | J81: 0 | K81: 0 | L81: 0 | M81: 0 | N81: 0 | O81: 0 | P81: 0 | Q81: 0 | R81: 0 | S81: 0 | T81: 0 | U81: 0 | V81: 0 | W81: 0
B82: =title132&" (%)" -> Discount rate (%) | C82: =+COST_RES2!$N$13 -> 0
B83: =title133&" (%)" -> Loan ratio (%) | C83: =+COST_RES2!$N$11 -> 0
B85: =title273 -> Loans | D85: 1 | E85: 2 | F85: 3 | G85: 4 | H85: 5 | I85: 6 | J85: 7 | K85: 8 | L85: 9 | M85: 10 | N85: 11 | O85: 12 | P85: 13 | Q85: 14 | R85: 15 | S85: 16 | T85: 17 | U85: 18 | V85: 19 | W85: 20
B86: =title274 -> Loan amount (USD ) | C86: =C83*C41 -> 
B87: =title134&" (%)" -> Loan interest rate (%) | C87: =+COST_RES2!$N$10 -> 0
B88: =title164 -> Loan term (years) | C88: =+COST_RES2!$N$12 -> 0
B89: =title275 -> Loan payment (USD/month) | C89: =(PMT(C87/12,(12*C88),C86)) -> 
B90: =title276 -> Loan payment (USD/year) | D90: =IF(D79<=$C$88,$C$89*12,0) -> 0 | E90: =IF(E79<=$C$88,$C$89*12,0) -> 0 | F90: 0 | G90: 0 | H90: 0 | I90: 0 | J90: 0 | K90: 0 | L90: 0 | M90: 0 | N90: 0 | O90: 0 | P90: 0 | Q90: 0 | R90: 0 | S90: 0 | T90: 0 | U90: 0 | V90: 0 | W90: 0
B91: =title277 -> Total loan payment (USD) | C91: =SUM(D90:W90) -> 0
B92: =title278 -> Loan interest payment (USD) | C92: =C91+C86 ->  | D92: =title286 -> Average loan interest payment for project lifetime | G92: =C92/C26 ->  | H92: =title287 -> USD per year
A94: =title279 -> Income tax analysis
B95: =title229 -> Operating Year | C95: =title247 -> Appraisal | D95: 1 | E95: 2 | F95: 3 | G95: 4 | H95: 5 | I95: 6 | J95: 7 | K95: 8 | L95: 9 | M95: 10 | N95: 11 | O95: 12 | P95: 13 | Q95: 14 | R95: 15 | S95: 16 | T95: 17 | U95: 18 | V95: 19 | W95: 20
B96: =title280 -> Effective income tax rate (%) | C96: =+'Data Entry Needs'!$AQ$92 -> 0 | D96: =C96 -> 0 | E96: =D96 -> 0 | F96: 0 | G96: 0 | H96: 0 | I96: 0 | J96: 0 | K96: 0 | L96: 0 | M96: 0 | N96: 0 | O96: 0 | P96: 0 | Q96: 0 | R96: 0 | S96: 0 | T96: 0 | U96: 0 | V96: 0 | W96: 0
B97: =title281 -> Income tax | D97: =IF(D122<0,0,-D96*D122) -> 
B98: =title282 -> Total income tax (USD) | C98: =SUM(D97:W97) -> 
B99: =title283 -> Income tax payment (USD per year) | C99: =C98/$C$26 -> 
A101: =title206 -> Depreciation
B102: =title229 -> Operating Year | C102: =title247 -> Appraisal | D102: 1 | E102: 2 | F102: 3 | G102: 4 | H102: 5 | I102: 6 | J102: 7 | K102: 8 | L102: 9 | M102: 10 | N102: 11 | O102: 12 | P102: 13 | Q102: 14 | R102: 15 | S102: 16 | T102: 17 | U102: 18 | V102: 19 | W102: 20
B103: =title284 -> Depreciation method | C103: =title288 -> Straight-line
B104: =title285 -> Total depreciation (USD) | D104: =COST_RES2!H68 ->  | E104: =D104 ->  | F104: =E104 -> 
A107: =title289 -> Base case project
A108: =title290 -> Summary of this project - before tax
B109: =title229 -> Operating Year | C109: =title247 -> Appraisal | D109: 1 | E109: 2 | F109: 3 | G109: 4 | H109: 5 | I109: 6 | J109: 7 | K109: 8 | L109: 9 | M109: 10 | N109: 11 | O109: 12 | P109: 13 | Q109: 14 | R109: 15 | S109: 16 | T109: 17 | U109: 18 | V109: 19 | W109: 20
B110: =title291 -> Total revenue (USD) | D110: =D24 -> 0 | E110: =E24 -> 0 | F110: 0 | G110: 0 | H110: 0 | I110: 0 | J110: 0 | K110: 0 | L110: 0 | M110: 0 | N110: 0 | O110: 0 | P110: 0 | Q110: 0 | R110: 0 | S110: 0 | T110: 0 | U110: 0 | V110: 0 | W110: 0
B111: =title245 -> Total capital cost (USD) | C111: =-(C41-C86) -> 
B112: =title292 -> Total operating and maintenance cost (USD) | D112: =-D75+D71 -> 
B113: =title293 -> Loan payment (USD) | D113: =D90 -> 0 | E113: =E90 -> 0 | F113: 0 | G113: 0 | H113: 0 | I113: 0 | J113: 0 | K113: 0 | L113: 0 | M113: 0 | N113: 0 | O113: 0 | P113: 0 | Q113: 0 | R113: 0 | S113: 0 | T113: 0 | U113: 0 | V113: 0 | W113: 0
B114: =title294 -> Cash flow - before tax (USD) | C114: =SUM(C110:C113) ->  | D114: =SUM(D110:D113) -> 
A116: =title295 -> Summary of this project - after tax
B117: =title229 -> Operating Year | C117: =title247 -> Appraisal | D117: 1 | E117: 2 | F117: 3 | G117: 4 | H117: 5 | I117: 6 | J117: 7 | K117: 8 | L117: 9 | M117: 10 | N117: 11 | O117: 12 | P117: 13 | Q117: 14 | R117: 15 | S117: 16 | T117: 17 | U117: 18 | V117: 19 | W117: 20
B118: =B110 -> Total revenue (USD) | C118: =C110 -> 0 | D118: =D110 -> 0 | E118: =E110 -> 0 | F118: 0 | G118: 0 | H118: 0 | I118: 0 | J118: 0 | K118: 0 | L118: 0 | M118: 0 | N118: 0 | O118: 0 | P118: 0 | Q118: 0 | R118: 0 | S118: 0 | T118: 0 | U118: 0 | V118: 0 | W118: 0
B119: =title292 -> Total operating and maintenance cost (USD) | D119: =-D75+D71 -> 
B120: =title293 -> Loan payment (USD) | D120: =D90 -> 0 | E120: =E90 -> 0 | F120: 0 | G120: 0 | H120: 0 | I120: 0 | J120: 0 | K120: 0 | L120: 0 | M120: 0 | N120: 0 | O120: 0 | P120: 0 | Q120: 0 | R120: 0 | S120: 0 | T120: 0 | U120: 0 | V120: 0 | W120: 0
B121: =title296 -> Depreciation of fixed cost (USD) | D121: =-D104 ->  | E121: =-E104 -> 
B122: =title297 -> Net Profit - before tax (USD) for income tax calculation | C122: =SUM(C118:C121) -> 0 | D122: =SUM(D118:D121) -> 
B123: =title281 -> Income tax | D123: =D97 ->  | E123: =E97 -> 
B124: =title310 -> Cash flow - after tax (USD) | C124: =C111 ->  | D124: =D114+D123 ->  | E124: =E114+E123 -> 
A126: =title298 -> Cumulative value of Net Profit
B127: =title229 -> Operating Year | C127: =title247 -> Appraisal | D127: 1 | E127: 2 | F127: 3 | G127: 4 | H127: 5 | I127: 6 | J127: 7 | K127: 8 | L127: 9 | M127: 10 | N127: 11 | O127: 12 | P127: 13 | Q127: 14 | R127: 15 | S127: 16 | T127: 17 | U127: 18 | V127: 19 | W127: 20
B128: =title299 -> Cumulative value of Net Profit - before tax | C128: =C114 ->  | D128: =C128+(D114) -> 
B129: =title300 -> Cumulative value of Net Profit - after tax | C129: =C124 ->  | D129: =C129+(D124) -> 
A131: =title301 -> Financial Analysis Result
B133: =title302 -> Net Present Value (NPV) (USD) - before tax | C133: =NPV(C82,D114:W114)+C114 -> 
B134: =title303 -> Internal Rate of Return (IRR) (%) - before tax | C134: =IF(C133<0,title455,IRR(C114:W114,0.001)) -> 
B135: =title304 -> Payback period (years) | C135: =title308 -> Please see Figure of the cumulative value of Net Profit - before tax
B138: =title305 -> Net Present Value (NPV) (USD) - after tax | C138: =NPV(C82,D124:W124)+C124 -> 
B139: =title306 -> Internal Rate of Return (IRR) (%) - after tax | C139: =IF(C138<0,title455,IRR(C124:W124,0.000001)) -> 
B140: =title304 -> Payback period (years) | C140: =title309 -> Please see Figure of the cumulative value of Net Profit - after tax
B141: =title307 -> Total income tax payment of project lifetime | C141: =SUM(D123:W123) -> 

Sheet FA40kW_RES2 (hidden)
B1: =title227&"40 kW" -> FINANCIAL EVALUATION OF GASIFICATION FOR POWER GENERATION40 kW
A4: =title228 -> Revenues of biomass gasification and power generation system
B6: =title229 -> Operating Year | C6: 0 | D6: 1 | E6: 2 | F6: 3 | G6: 4 | H6: 5 | I6: 6 | J6: 7 | K6: 8 | L6: 9 | M6: 10 | N6: 11 | O6: 12 | P6: 13 | Q6: 14 | R6: 15 | S6: 16 | T6: 17 | U6: 18 | V6: 19 | W6: 20
B8: =title230 -> Power generation capacity (kW) | C8: 40 | D8: =C8 -> 40 | E8: =D8 -> 40 | F8: 40 | G8: 40 | H8: 40 | I8: 40 | J8: 40 | K8: 40 | L8: 40 | M8: 40 | N8: 40 | O8: 40 | P8: 40 | Q8: 40 | R8: 40 | S8: 40 | T8: 40 | U8: 40 | V8: 40 | W8: 40
B10: =title157 -> Gas engine type | C10: =+COST_RES2!$I$11 -> 100% Syngas
B12: =title162 -> Power loss in distribution network (%) | C12: =+COST_RES2!$I$18 -> 0 | D12: =+C12 -> 0 | E12: =+D12 -> 0 | F12: 0 | G12: 0 | H12: 0 | I12: 0 | J12: 0 | K12: 0 | L12: 0 | M12: 0 | N12: 0 | O12: 0 | P12: 0 | Q12: 0 | R12: 0 | S12: 0 | T12: 0 | U12: 0 | V12: 0 | W12: 0
B14: =title231 -> Operating hours per year | C14: =+COST_RES2!$J$34 -> 0 | D14: =C14 -> 0 | E14: =D14 -> 0 | F14: 0 | G14: 0 | H14: 0 | I14: 0 | J14: 0 | K14: 0 | L14: 0 | M14: 0 | N14: 0 | O14: 0 | P14: 0 | Q14: 0 | R14: 0 | S14: 0 | T14: 0 | U14: 0 | V14: 0 | W14: 0
B15: =title158 -> Capacity utilization factor | C15: =C14/8760 -> 0 | D15: =D14/8760 -> 0 | E15: =E14/8760 -> 0 | F15: 0 | G15: 0 | H15: 0 | I15: 0 | J15: 0 | K15: 0 | L15: 0 | M15: 0 | N15: 0 | O15: 0 | P15: 0 | Q15: 0 | R15: 0 | S15: 0 | T15: 0 | U15: 0 | V15: 0 | W15: 0
B17: =title232 -> Electricity generation (kWh per year) | C17: =C8*C14*(1-C12) -> 0 | D17: =D8*D14*(1-D12) -> 0 | E17: =E8*E14*(1-E12) -> 0 | F17: 0 | G17: 0 | H17: 0 | I17: 0 | J17: 0 | K17: 0 | L17: 0 | M17: 0 | N17: 0 | O17: 0 | P17: 0 | Q17: 0 | R17: 0 | S17: 0 | T17: 0 | U17: 0 | V17: 0 | W17: 0
B18: =title233 -> Electricity - self use (kWh per year) | C18: =C17*10% -> 0 | D18: =D17*10% -> 0 | E18: =E17*10% -> 0 | F18: 0 | G18: 0 | H18: 0 | I18: 0 | J18: 0 | K18: 0 | L18: 0 | M18: 0 | N18: 0 | O18: 0 | P18: 0 | Q18: 0 | R18: 0 | S18: 0 | T18: 0 | U18: 0 | V18: 0 | W18: 0
B19: =title234 -> Power loss in distribution network (kWh per year) | C19: =C17*COST_RES2!$I$20 -> 0 | D19: =C19 -> 0 | E19: =D19 -> 0 | F19: 0 | G19: 0 | H19: 0 | I19: 0 | J19: 0 | K19: 0 | L19: 0 | M19: 0 | N19: 0 | O19: 0 | P19: 0 | Q19: 0 | R19: 0 | S19: 0 | T19: 0 | U19: 0 | V19: 0 | W19: 0
B20: =title235 -> Total power sold to customers (kWh per year) | C20: =C17-C18-C19 -> 0 | D20: =D17-D18-D19 -> 0 | E20: =E17-E18-E19 -> 0 | F20: 0 | G20: 0 | H20: 0 | I20: 0 | J20: 0 | K20: 0 | L20: 0 | M20: 0 | N20: 0 | O20: 0 | P20: 0 | Q20: 0 | R20: 0 | S20: 0 | T20: 0 | U20: 0 | V20: 0 | W20: 0
B22: =title166 -> Price of electricity (USD/kWh) | C22: =+COST_RES2!$N$15 -> 0 | D22: =C22*(1+D23) -> 0 | E22: =D22*(1+E23) -> 0 | F22: =E22*(1+F23) -> 0 | G22: 0 | H22: 0 | I22: 0 | J22: 0 | K22: 0 | L22: 0 | M22: 0 | N22: 0 | O22: 0 | P22: 0 | Q22: 0 | R22: 0 | S22: 0 | T22: 0 | U22: 0 | V22: 0 | W22: 0
B24: =title237 -> Total income (USD/year) | C24: =C20*C22 -> 0 | D24: =D20*D22 -> 0 | E24: 0 | F24: 0 | G24: 0 | H24: 0 | I24: 0 | J24: 0 | K24: 0 | L24: 0 | M24: 0 | N24: 0 | O24: 0 | P24: 0 | Q24: 0 | R24: 0 | S24: 0 | T24: 0 | U24: 0 | V24: 0 | W24: 0
B26: =title238 -> Project lifetime (years) | C26: =+COST_RES2!$N$16 -> 20
B27: =title239 -> Lifespan of civil work (years) | C27: =20 -> 20
B28: =title240 -> Lifespan of gasifier system (years) | C28: =20 -> 20
B29: =title241 -> Lifespan of engine generator system (years) | C29: =20 -> 20
B30: =title242 -> Lifespan of electrical distribution system (years) | C30: =20 -> 20
A33: =title243 -> Capital and operating cost of biomass gasification and power generation system
B35: =title229 -> Operating Year | C35: =title247 -> Appraisal | D35: 1 | E35: 2 | F35: 3 | G35: 4 | H35: 5 | I35: 6 | J35: 7 | K35: 8 | L35: 9 | M35: 10 | N35: 11 | O35: 12 | P35: 13 | Q35: 14 | R35: 15 | S35: 16 | T35: 17 | U35: 18 | V35: 19 | W35: 20
B36: =title244 -> Direct capital cost (USD)
B37: =title187 -> Equipments | C37: =COST_RES2!I63 -> 0
B38: =title188 -> Building | C38: =COST_RES2!I64 -> 0
B39: =title189 -> Installation | C39: =COST_RES2!I65 -> 0
B40: =title190 -> Distribution network | C40: =COST_RES2!I66 -> 
B41: =title245 -> Total capital cost (USD) | C41: =SUM(C37:C40) ->  | D41: =D37+D38+D39 -> 0 | E41: 0 | F41: 0 | G41: 0 | H41: 0 | I41: 0 | J41: 0 | K41: 0 | L41: 0 | M41: 0 | N41: 0 | O41: 0 | P41: 0 | Q41: 0 | R41: 0 | S41: 0 | T41: 0 | U41: 0 | V41: 0 | W41: 0
B42: =title246 -> Capital cost (USD/kW) | C42: =C41/C8 -> 
B45: =title229 -> Operating Year | C45: =title247 -> Appraisal | D45: 1 | E45: 2 | F45: 3 | G45: 4 | H45: 5 | I45: 6 | J45: 7 | K45: 8 | L45: 9 | M45: 10 | N45: 11 | O45: 12 | P45: 13 | Q45: 14 | R45: 15 | S45: 16 | T45: 17 | U45: 18 | V45: 19 | W45: 20
B46: =title248 -> Annual operating and maintenance cost
B47: =title249 -> Sub-total material cost (USD) | C47: =C48+C56+C60 ->  | D47: =D48+D56+D60 ->  | E47: =E48+E56+E60 -> 
B48: =title250 -> Biomass cost (USD/year) | C48: =C49*C50 ->  | D48: =D49*D50 ->  | E48: =E49*E50 -> 
B49: =title251 -> Biomass consumption (t per year) | C49: =+COST_RES2!$I$39 ->  | D49: =+C49 ->  | E49: =+D49 -> 
B50: =title252 -> Biomass total price (USD/t) | C50: =SUM(C51:C52) -> 0 | D50: =SUM(D51:D52) -> 0 | E50: 0 | F50: 0 | G50: 0 | H50: 0 | I50: 0 | J50: 0 | K50: 0 | L50: 0 | M50: 0 | N50: 0 | O50: 0 | P50: 0 | Q50: 0 | R50: 0 | S50: 0 | T50: 0 | U50: 0 | V50: 0 | W50: 0
B51: =title253 -> Biomass price (USD/t) | C51: =+COST_RES2!$F$39 -> 0 | D51: =C51*(1+D80+D81) -> 0 | E51: 0 | F51: 0 | G51: 0 | H51: 0 | I51: 0 | J51: 0 | K51: 0 | L51: 0 | M51: 0 | N51: 0 | O51: 0 | P51: 0 | Q51: 0 | R51: 0 | S51: 0 | T51: 0 | U51: 0 | V51: 0 | W51: 0
B52: =title254 -> Biomass transportation cost (USD/t) | C52: =+C53*C54 -> 0 | D52: =C52*(1+D80+D81) -> 0 | E52: 0 | F52: 0 | G52: 0 | H52: 0 | I52: 0 | J52: 0 | K52: 0 | L52: 0 | M52: 0 | N52: 0 | O52: 0 | P52: 0 | Q52: 0 | R52: 0 | S52: 0 | T52: 0 | U52: 0 | V52: 0 | W52: 0
B53: =title255 -> Biomass from farm to plant (USD/t/km) | C53: =+COST_RES2!$F$53 -> 0
B54: =title256 -> Transportation distant (km) | C54: =+COST_RES2!$I$53 -> 0
B56: =title257 -> Water cost (USD/year) | C56: =C57*C58 -> 0 | D56: =D57*D58 -> 0 | E56: 0 | F56: 0 | G56: 0 | H56: 0 | I56: 0 | J56: 0 | K56: 0 | L56: 0 | M56: 0 | N56: 0 | O56: 0 | P56: 0 | Q56: 0 | R56: 0 | S56: 0 | T56: 0 | U56: 0 | V56: 0 | W56: 0
